Workbook

Sheet Main
B1: This sheet provides access to all functions and detailed results of the model, as well as a detailed comparison of two cash cycles
B3: ECB Circulation Model - v 11.01 (19/01/2021)
N4: 0
B5: Mode: | F5: Expert
B9: Technical Parameters of the model
A11: T1 | B11: No. of model cycles: | F11: 1000
A12: T2 | B12: Cycle Duration (days): | F12: 7
A13: T3 | B13: Note Life Calculation: | F13: Ideal
A15: T4 | B15: Show Calculation Steps: | F15: No
A16: T5 | B16: Steady State Correlation Factor: | F16: 0.999999995
A17: T6 | B17: Quick Finish if Steady State: | F17: Yes
B20: Input
F22: Case 1 | J22: Case 2
B24: Banknote production
A26: P1 | B26: Note production and issuance costs (€/1,000 notes): | F26: 50 | J26: 50
A28: P2 | B28: New note fitness level: | F28: 1 | J28: 1
A29: P3 | B29: St.Dev of new notes (in fitness levels): | F29: 5 | J29: 5
A30: P4 | B30: OR: New note distribution profile:
B32: Circulation
A34: C1 | B34: Note distribution at start: | F34: 10%UnfitInCircOld | J34: 10%UnfitInCircOld
A36: C2 | B36: Notes in circulation: | F36: 1000000000 | J36: 1000000000
A37: C3 | B37: Annual change in note circulation: | F37: 0.05 | J37: 0.05
A39: C4 | B39: External notes entering per year: | F39: 0 | J39: 0
A40: C5 | B40: Fitness distribution of external notes: | F40: 15%UnfitInCirc | J40: 5%UnfitInCirc
A42: C6 | B42: Notes leaving per year: | F42: 0 | J42: 0
B44: Note Life
A46: N1 | B46: Ageing Model: | F46: Poisson | J46: Poisson
A47: N2 | B47: Theoretical note life (soil only, in months): | F47: 24 | J47: 24 | O47: 0
A49: N3 | B49: Defect likelihood (% per year): | F49: 0.1 | J49: 0.1
A50: N4 | B50: Defect profile: | F50: IncreaseFrom1 | J50: IncreaseFrom1
A52: N5 | B52: Guideline Fit/Unfit threshold (in fitness levels): | F52: 50 | J52: 50
B54: Third Party Fitness Sorting (Recirculation)
A56: R1 | B56: Annual Third Party (3P) sorting volume: | F56: 2000000000 | J56: 5000000000
A57: R2 | B57: % of 3P fit notes returned to NCB: | F57: 0.25 | J57: 0.25
A59: R3 | B59: 3P fitness sorting threshold: | F59: 70 | J59: 70
A60: R4 | B60: 3P St.Dev of sorting sensor (in fitness levels): | F60: 10 | J60: 10
B62: NCB Fitness Sorting
A64: F1 | B64: NCB sorting costs (€/1,000 notes): | F64: 10 | J64: 10
A65: F2 | B65: Residual note value at threshold: | F65: 0.2 | J65: 0.2
A67: F3 | B67: Annual NCB sorting volume: | F67: 5000000000 | J67: 2000000000
A68: F4 | B68: NCB sorts 3P pre-precessed notes only: | F68: No | J68: No
A70: F5 | B70: NCB St.Dev of sorting sensor (in fitness levels): | F70: 10 | J70: 10
B72: NCB Sorting Policy
F73: Insert one of the four parameters below | J73: Insert one of the four parameters below
A74: S1 | B74: Fitness sensor sorting threshold (fitness levels): | F74: 50 | J74: 50
A75: S2 | B75: OR: False-fit rate (% of unfit notes in fit notes issued):
A76: S3 | B76: OR: Shred rate (% of notes unfit per sorting cycle):
A77: S4 | B77: OR: Unfit in circulation (% of total circulation):
B80: Results
B82: Model evolution - comparison of the two cases
B84: Note quality (% unfit in circulation) | H84: Weekly replacement costs (in 1,000 €)
O87: Unfit notes in circ. (%)
O88: Repl. Costs incl growth and flows (k€ /week)
B96: Volumes and financials per year (figures in italics not considered in total costs)
F98: Case 1 | J98: Case 2
F100: Notes (M) | G100: Costs/Value | J100: =F100 -> Notes (M) | K100: =G100 -> Costs/Value
A101: M1 | B101: NCB sorting: | F101: =ResultsCM!B78 -> 5000 | G101: =ResultsCM!C78 -> 50000000 | J101: =ResultsCM!B198 -> 2000 | K101: =ResultsCM!C198 -> 20000000
A102: M2 | B102: Unfit notes: | F102: =ResultsCM!B79 -> 574.6014286 | J102: =ResultsCM!B199 -> 476.4903327
A103: M3 | B103: of which False Unfit: | F103: =ResultsCM!B80 -> 284.2303605 | G103: =ResultsCM!C80 -> 4735871.89 | J103: =ResultsCM!B200 -> 116.0963141 | K103: =ResultsCM!C200 -> 1863840.704
A104: M4 | E104: Notes put on stock: | F104: =ResultsCM!B81 -> 0 | G104: =ResultsCM!C81 -> 0 | J104: =ResultsCM!B201 -> 0 | K104: =ResultsCM!C201 -> 0
A105: M5 | E105: Note change due to circulation increase / decrease: | F105: =ResultsCM!B82 -> 48.81299781 | J105: =ResultsCM!B202 -> 48.81299781
A106: M6 | E106: Net inflows: | F106: =ResultsCM!B83 -> 0 | G106: =ResultsCM!C83 -> 0 | J106: =ResultsCM!B203 -> 0 | K106: =ResultsCM!C203 -> 0
A107: M7 | B107: Total new notes added: | F107: =ResultsCM!B84 -> 623.4144264 | G107: =ResultsCM!C84 -> 31170721.32 | J107: =ResultsCM!B204 -> 525.3033305 | K107: =ResultsCM!C204 -> 26265166.52
A108: M8 | B108: Total costs (M1+M7): | G108: =ResultsCM!B88 -> 81170721.32 | K108: =ResultsCM!B208 -> 46265166.52
B111: =IF(F107>J107,"Annual savings of case 2 of "&ROUND(F107-J107,1)&" million notes","Annual additional needs of case 2 of "&ROUND(J107-F107,1)&" million notes ") -> Annual savings of case 2 of 98.1 million notes
B112: =IF(K108>G108,"Case 2 cost increase of € "&TEXT(ROUND(K108-G108,0),"0,###"),"Case 2 cost savings of €"&TEXT(ROUND(-(K108-G108),0),"0,###")) &" per year" -> Case 2 cost savings of €34,905,555 per year
B114: Resulting cash cycle parameters
F116: Case 1 | J116: Case 2
A118: M9 | B118: Lifetime (LT) of notes (simple, months): | F118: =ResultsCM!B91 -> 20.88404136 | J118: =ResultsCM!B211 -> 25.18414158
A119: M10 | B119: LT of notes (CIS method, months): | F119: =ResultsCM!B92 -> 20.01329454 | J119: =ResultsCM!B212 -> 23.92867662
A121: M11 | B121: Unfit notes in circulation (% of total circulation): | F121: =ResultsCM!B66 -> 0.06812687905 | J121: =ResultsCM!B186 -> 0.147295696
A122: M12 | B122: of which defects (% of total circulation): | F122: =ResultsCM!B67 -> 0.01536225282 | J122: =ResultsCM!B187 -> 0.01776782329
A124: M13 | B124: NCB sorting threshold: | F124: =ResultsCM!B62 -> 50 | J124: =ResultsCM!B182 -> 50
A125: M14 | B125: NCB shred rate (% of total sorted): | F125: =ResultsCM!B75 -> 0.1149202857 | J125: =ResultsCM!B195 -> 0.2382451663
A127: M15 | B127: NCB FF_rel (% unfit in NCB fit): | F127: =ResultsCM!B73 -> 0.01791439371 | J127: =ResultsCM!B193 -> 0.04232994204
A128: M16 | B128: NCB FU_abs (% of total sorted): | F128: =ResultsCM!B72 -> 0.05684607209 | J128: =ResultsCM!B192 -> 0.05804815703
A130: M17 | B130: Third Party Unfit: | F130: =ResultsCM!B101 -> 0.02204363014 | J130: =ResultsCM!B221 -> 0.04223497812
A132: M18 | B132: Number of model cycles run: | F132: =ResultsCM!B60 -> 135 | J132: =ResultsCM!B180 -> 234

Sheet StepResults
B2: Case 1 | N2: Case 2
B4: Days Passed | C4: Total Unfit in Circulation | D4: Defects in Circulation | E4: NCB False Fit relative (%) | F4: NCB False Unfit absolute (%) | G4: NCB Sensor Threshold | H4: NCB Unfit (Shred) Rate (%) | I4: New notes added to (+) / fit notes removed from circulation (-) per week | J4: Replacement Costs per week incl. growth and flows | K4: Note profile sorted by NCB (Input) | L4: Note profile in Circulation (Out) OR Correlation Coefficient | N4: Days Passed | O4: Total Unfit in Circulation | P4: Defects in Circulation | Q4: NCB False Fit relative (%) | R4: NCB False Unfit absolute(%) | S4: NCB Sensor Threshold | T4: NCB Unfit (Shred) Rate (%) | U4: New notes added to (+) / fit notes removed from circulation (-) per week | V4: Replacement Costs per week incl. growth and flows | W4: Note profile sorted by NCB (Input) | X4: Note profile in Circulation (Out) OR Correlation Coefficient
B5: 0 | C5: 0.07664938465 | D5: 0 | E5: 0.0239385917 | F5: 0.06135963665 | G5: 50 | H5: 0.1197942739 | I5: 12423261.84 | J5: 621163.092 | L5: 0.999609 | N5: 0 | O5: 0.07664938465 | P5: 0 | Q5: 0.02649280467 | R5: 0.06093608345 | S5: 50 | T5: 0.1324525665 | U5: 6016512.099 | V5: 300825.6049 | X5: 0.999528
B6: 7 | C6: 0.07721063087 | D6: 0.001919028315 | E6: 0.02358007368 | F6: 0.06100950074 | G6: 50 | H6: 0.1208096334 | I6: 12520625.08 | J6: 626031.2538 | L6: 0.999679 | N6: 7 | O6: 0.08019485067 | P6: 0.001919049178 | Q6: 0.02718598756 | R6: 0.06130181073 | S6: 50 | T6: 0.1394990333 | U6: 6286787.535 | V6: 314339.3768 | X6: 0.999592
B7: 14 | C7: 0.07759288762 | D7: 0.003597947137 | E7: 0.02323459893 | F7: 0.06068961707 | G7: 50 | H7: 0.1215952874 | I7: 12595961.76 | J7: 629798.088 | L7: 0.99973 | N7: 14 | O7: 0.0835555538 | P7: 0.003626743093 | Q7: 0.02788048078 | R7: 0.06167007646 | S7: 50 | T7: 0.1459870941 | U7: 6535644.662 | V7: 326782.2331 | X7: 0.999643
B8: 21 | C8: 0.07782431655 | D8: 0.005066944445 | E8: 0.02290258854 | F8: 0.06039787625 | G8: 50 | H8: 0.1221863967 | I8: 12652643.48 | J8: 632632.174 | L8: 0.99977 | N8: 21 | O8: 0.08675181028 | P8: 0.005146856239 | Q8: 0.0285753783 | R8: 0.06203865527 | S8: 50 | T8: 0.1519814774 | U8: 6765566.216 | V8: 338278.3108 | X8: 0.999684
B9: 28 | C9: 0.07792936337 | D9: 0.006352375267 | E9: 0.02258432801 | F9: 0.06013230037 | G9: 50 | H9: 0.1226133442 | I9: 12693583.65 | J9: 634679.1824 | L9: 0.999801 | N9: 28 | O9: 0.08980126245 | P9: 0.006500398212 | Q9: 0.02926978327 | R9: 0.06240558823 | S9: 50 | T9: 0.1575386015 | U9: 6978716.178 | V9: 348935.8089 | X9: 0.999717
B10: 35 | C10: 0.07792923173 | D10: 0.00747725739 | E10: 0.02227998463 | F10: 0.05989102939 | G10: 50 | H10: 0.1229023713 | I10: 12721298.57 | J10: 636064.9287 | L10: 0.999826 | N10: 35 | O10: 0.09271922041 | P10: 0.007705953699 | Q10: 0.02996281246 | R10: 0.06276915606 | S10: 50 | T10: 0.1627077003 | U10: 7176982.983 | V10: 358849.1492 | X10: 0.999744
B11: 42 | C11: 0.07784229449 | D11: 0.008461700825 | E11: 0.0219896229 | F11: 0.05967230985 | G11: 50 | H11: 0.123076126 | I11: 12737959.98 | J11: 636897.9991 | L11: 0.999847 | N11: 42 | O11: 0.09551895848 | P11: 0.008779976936 | Q11: 0.03065360019 | R11: 0.06312785514 | S11: 50 | T11: 0.1675317819 | U11: 7362016.251 | V11: 368100.8125 | X11: 0.999766
B12: 49 | C12: 0.07768445111 | D12: 0.00932328039 | E12: 0.02171321815 | F12: 0.0594744854 | G12: 50 | H12: 0.123154135 | I12: 12745440.3 | J12: 637272.0152 | L12: 0.999864 | N12: 49 | O12: 0.09821197335 | P12: 0.009737047468 | Q12: 0.03134130181 | R12: 0.06348037603 | S12: 50 | T12: 0.1720484456 | U12: 7535258.147 | V12: 376762.9073 | X12: 0.999783
B13: 56 | C13: 0.07746943879 | D13: 0.01007735931 | E13: 0.02145066863 | F13: 0.05929598881 | G13: 50 | H13: 0.1231532122 | I13: 12745351.81 | J13: 637267.5906 | L13: 0.999878 | N13: 56 | O13: 0.1008082092 | P13: 0.01059009287 | Q13: 0.03202509675 | R13: 0.06382558412 | S13: 50 | T13: 0.176290583 | U13: 7697970.263 | V13: 384898.5132 | X13: 0.999798
B14: 63 | C14: 0.07720910364 | D14: 0.01073737055 | E14: 0.02120180619 | F14: 0.05913533528 | G14: 50 | H14: 0.1230878113 | I14: 12739080.5 | J14: 636954.0248 | L14: 0.99989 | N14: 63 | O14: 0.1033162544 | P14: 0.01135058315 | Q14: 0.03270419117 | R14: 0.06416250207 | S14: 50 | T14: 0.1802869802 | U14: 7851256.733 | V14: 392562.8366 | X14: 0.99981
B15: 70 | C15: 0.0769136374 | D15: 0.01131506165 | E15: 0.02096640575 | F15: 0.05899111668 | G15: 50 | H15: 0.1229703329 | I15: 12727815.44 | J15: 636390.7719 | L15: 0.9999 | N15: 70 | O15: 0.1057435144 | P15: 0.01202870085 | Q15: 0.03337782019 | R15: 0.06449029377 | S15: 50 | T15: 0.1840628385 | U15: 7996084.174 | V15: 399804.2087 | X15: 0.99982
B16: 77 | C16: 0.07659178421 | D16: 0.01182070799 | E16: 0.02074419373 | F16: 0.0588619966 | G16: 50 | H16: 0.1228113898 | I16: 12712574.32 | J16: 635628.7162 | L16: 0.999909 | N16: 77 | O16: 0.1080963622 | P16: 0.01263349005 | Q16: 0.03404524983 | R16: 0.06480824972 | S16: 50 | T16: 0.1876402237 | U16: 8133298.95 | V16: 406664.9475 | X16: 0.999828
B17: 84 | C17: 0.07625102153 | D17: 0.01226329853 | E17: 0.02053485548 | F17: 0.05874670608 | G17: 50 | H17: 0.1226200392 | I17: 12694225.63 | J17: 634711.2817 | L17: 0.999917 | N17: 84 | O17: 0.1103802715 | P17: 0.01317298732 | Q17: 0.03470577856 | R17: 0.0651157735 | S17: 50 | T17: 0.191038457 | U17: 8263642.143 | V17: 413182.1072 | X17: 0.999835
B18: 91 | C18: 0.07589771859 | D18: 0.01265069794 | E18: 0.02033804191 | F18: 0.05864403975 | G18: 50 | H18: 0.1224039834 | I18: 12673507.95 | J18: 633675.3976 | L18: 0.999924 | N18: 91 | O18: 0.1125999336 | P18: 0.01365433676 | Q18: 0.03535873856 | R18: 0.06541236939 | S18: 50 | T18: 0.194274454 | U18: 8387762.577 | V18: 419388.1289 | X18: 0.999841
B19: 98 | C19: 0.07553727523 | D19: 0.01298978798 | E19: 0.0201533754 | F19: 0.05855285248 | G19: 50 | H19: 0.1221697457 | I19: 12651046.81 | J19: 632552.3405 | L19: 0.999929 | N19: 98 | O19: 0.1147593596 | P19: 0.01408389138 | Q19: 0.03600349679 | R19: 0.0656976308 | S19: 50 | T19: 0.1973630212 | U19: 8506228.168 | V19: 425311.4084 | X19: 0.999846
B20: 105 | C20: 0.07517424371 | D20: 0.01328659086 | E20: 0.01998045505 | F20: 0.05847205624 | G20: 50 | H20: 0.1219228237 | I20: 12627369.36 | J20: 631368.4678 | L20: 0.999935 | N20: 105 | O20: 0.116861971 | P20: 0.01446730254 | Q20: 0.03663945561 | R20: 0.06597122956 | S20: 50 | T20: 0.2003171138 | U20: 8619535.831 | V20: 430976.7916 | X20: 0.99985
B21: 112 | C21: 0.07481243571 | D21: 0.0135463771 | E21: 0.01981886138 | F21: 0.05840061729 | G21: 50 | H21: 0.1216678226 | I21: 12602917.19 | J21: 630145.8595 | L21: 0.999939 | N21: 112 | O21: 0.1189106793 | P21: 0.01480959882 | Q21: 0.03726605338 | R21: 0.06623290595 | S21: 50 | T21: 0.2031480622 | U21: 8728120.153 | V21: 436406.0077 | X21: 0.999854
B22: 119 | C22: 0.0744550163 | D22: 0.01377375965 | E22: 0.01966816051 | F22: 0.05833755347 | G22: 50 | H22: 0.121408572 | I22: 12578057.54 | J22: 628902.8772 | L22: 0.999943 | N22: 119 | O22: 0.1209079561 | P22: 0.0151152558 | Q22: 0.0378827647 | R22: 0.06648245941 | S22: 50 | T22: 0.2058657694 | U22: 8832360.977 | V22: 441618.0489 | X22: 0.999857
B23: 126 | C23: 0.07410458666 | D23: 0.01397277618 | E23: 0.01952790791 | F23: 0.05828193169 | G23: 50 | H23: 0.1211482282 | I23: 12553093.07 | J23: 627654.6537 | L23: 0.999947 | N23: 126 | O23: 0.1228558944 | P23: 0.01538825776 | Q23: 0.0384891005 | R23: 0.06671973976 | S23: 50 | T23: 0.2084788848 | U23: 8932590.06 | V23: 446629.503 | X23: 0.99986
B24: 133 | C24: 0.07376325677 | D24: 0.014146961 | E24: 0.01939765172 | F24: 0.05823286554 | G24: 50 | H24: 0.1208893633 | I24: 12528270.41 | J24: 626413.5207 | L24: 0.99995 | N24: 133 | O24: 0.1247562635 | P24: 0.01563215233 | Q24: 0.03908460797 | R24: 0.06694463903 | S24: 50 | T24: 0.2109949563 | U24: 9029096.911 | V24: 451454.8455 | X24: 0.999863
B25: 140 | C25: 0.07343270948 | D25: 0.01429940796 | E25: 0.0192769358 | F25: 0.05818951292 | G25: 50 | H25: 0.1206340431 | I25: 12503787.65 | J25: 625189.3827 | L25: 0.999953 | N25: 140 | O25: 0.1266105563 | P25: 0.0158500989 | Q25: 0.03966887027 | R25: 0.06715708381 | S25: 50 | T25: 0.213420564 | U25: 9122133.921 | V25: 456106.6961 | X25: 0.999865
B26: 147 | C26: 0.07311425698 | D26: 0.0144328254 | E26: 0.01916530235 | F26: 0.05815107381 | G26: 50 | H26: 0.1203838954 | I26: 12479800.89 | J26: 623990.0443 | L26: 0.999956 | N26: 147 | O26: 0.1284200313 | P26: 0.01604491153 | Q26: 0.04024150614 | R26: 0.06735702797 | S26: 50 | T26: 0.2157614382 | U26: 9211920.873 | V26: 460596.0437 | X26: 0.999867
B27: 154 | C27: 0.07280889049 | D27: 0.01454958431 | E27: 0.01906229431 | F27: 0.0581167881 | G27: 50 | H27: 0.1201401697 | I27: 12456429.93 | J27: 622821.4967 | L27: 0.999958 | N27: 154 | O27: 0.1301857498 | P27: 0.01621909708 | Q27: 0.04080216933 | R27: 0.06754444596 | S27: 50 | T27: 0.2180225617 | U27: 9298648.899 | V27: 464932.4449 | X27: 0.999869
B28: 161 | C28: 0.07251732416 | D28: 0.01465176036 | E28: 0.01896745751 | F28: 0.05808593349 | G28: 50 | H28: 0.1199037898 | I28: 12433763.36 | J28: 621688.1681 | L28: 0.99996 | N28: 161 | O28: 0.1319086078 | P28: 0.01637488899 | Q28: 0.04135054797 | R28: 0.06771932634 | S28: 50 | T28: 0.2202082616 | U28: 9382483.964 | V28: 469124.1982 | X28: 0.99987
B29: 168 | C29: 0.07224003372 | D29: 0.01474117074 | E29: 0.01888034254 | F29: 0.05805782339 | G29: 50 | H29: 0.119675399 | I29: 12411862.87 | J29: 620593.1437 | L29: 0.999962 | N29: 168 | O29: 0.1335893643 | P29: 0.01651427735 | Q29: 0.04188636372 | R29: 0.06788166587 | S29: 50 | T29: 0.2223222886 | U29: 9463569.933 | V29: 473178.4967 | X29: 0.999872
B30: 175 | C30: 0.07197729059 | D30: 0.01481940634 | E30: 0.01880050643 | F30: 0.058031805 | G30: 50 | H30: 0.1194554006 | I30: 12390767.14 | J30: 619538.3571 | L30: 0.999964 | N30: 175 | O30: 0.1352286663 | P30: 0.01663903554 | Q30: 0.04240937095 | R30: 0.06803146385 | S30: 50 | T30: 0.2243678875 | U30: 9542031.259 | V30: 477101.563 | X30: 0.999873
B31: 182 | C31: 0.07172919198 | D31: 0.01488786 | E31: 0.01872751413 | F31: 0.05800725746 | G31: 50 | H31: 0.119243993 | I31: 12370495.18 | J31: 618524.7589 | L31: 0.999966 | N31: 182 | O31: 0.1368270698 | P31: 0.016750744 | Q31: 0.04291935568 | R31: 0.06816871695 | S31: 50 | T31: 0.2263478585 | U31: 9617975.353 | V31: 480898.7676 | X31: 0.999874
B32: 189 | C32: 0.07149568737 | D32: 0.01494775112 | E32: 0.01866093979 | F32: 0.05798358999 | G32: 50 | H32: 0.1190412002 | I32: 12351049.29 | J32: 617552.4646 | L32: 0.999967 | N32: 189 | O32: 0.138385059 | P32: 0.01685081129 | Q32: 0.04341613457 | R32: 0.06829341428 | S32: 50 | T32: 0.2282646119 | U32: 9691494.66 | V32: 484574.733 | X32: 0.999876
B33: 196 | C33: 0.07127660196 | D33: 0.01500014728 | E33: 0.01860036792 | F33: 0.05796024036 | G33: 50 | H33: 0.1188468989 | I33: 12332417.67 | J33: 616620.8833 | L33: 0.999969 | N33: 196 | O33: 0.139903062 | P33: 0.01694049289 | Q33: 0.04389955377 | R33: 0.0684055329 | S33: 50 | T33: 0.2301202153 | U33: 9762668.491 | V33: 488133.4246 | X33: 0.999877
B34: 203 | C34: 0.07107165716 | D34: 0.01504598315 | E34: 0.01854539432 | F34: 0.05793667327 | G34: 50 | H34: 0.1186608424 | I34: 12314576.63 | J34: 615728.8315 | L34: 0.99997 | N34: 203 | O34: 0.1413814645 | P34: 0.01702090788 | Q34: 0.04436948767 | R34: 0.06850503371 | S34: 50 | T34: 0.2319164359 | U34: 9831564.624 | V34: 491578.2312 | X34: 0.999878
B35: 210 | C35: 0.07088048875 | D35: 0.01508607701 | E35: 0.0184956269 | F35: 0.05791237912 | G35: 50 | H35: 0.118482681 | I35: 12297492.66 | J35: 614874.6328 | L35: 0.999971 | N35: 210 | O35: 0.1428206225 | P35: 0.01709305382 | Q35: 0.04482583767 | R35: 0.06859185765 | S35: 50 | T35: 0.2336547769 | U35: 9898240.715 | V35: 494912.0357 | X35: 0.999879
B36: 217 | C36: 0.07070266277 | D36: 0.01512114527 | E36: 0.01845068641 | F36: 0.05788687274 | G36: 50 | H36: 0.1183119805 | I36: 12281124.12 | J36: 614056.2058 | L36: 0.999972 | N36: 217 | O36: 0.1442208715 | P36: 0.01715781996 | Q36: 0.04526853085 | R36: 0.06866592239 | S36: 50 | T36: 0.2353365096 | U36: 9962745.53 | V36: 498137.2765 | X36: 0.99988
B37: 224 | C37: 0.07053768943 | D37: 0.01515181512 | E37: 0.01841020692 | F37: 0.05785969253 | G37: 50 | H37: 0.1181482384 | I37: 12265422.82 | J37: 613271.141 | L37: 0.999973 | N37: 224 | O37: 0.1455825352 | P37: 0.01721599905 | Q37: 0.04569751857 | R37: 0.06872711927 | S37: 50 | T37: 0.2369627021 | U37: 10025120.04 | V37: 501256.0019 | X37: 0.999882
B38: 231 | C38: 0.07038503532 | D38: 0.01517863565 | E38: 0.01837383631 | F38: 0.05783039967 | G38: 50 | H38: 0.1179908981 | I38: 12250335.39 | J38: 612516.7697 | L38: 0.999974 | N38: 231 | O38: 0.146905933 | P38: 0.01726829781 | Q38: 0.04611277508 | R38: 0.06877531085 | S38: 50 | T38: 0.2385342439 | U38: 10085398.35 | V38: 504269.9177 | X38: 0.999883
B39: 238 | C39: 0.07024413396 | D39: 0.01520208756 | E39: 0.01834123653 | F39: 0.05779857767 | G39: 50 | H39: 0.1178393615 | I39: 12235804.49 | J39: 611790.2244 | L39: 0.999975 | N39: 238 | O39: 0.148191385 | P39: 0.01731534628 | Q39: 0.04651429601 | R39: 0.06881032874 | S39: 50 | T39: 0.2400518679 | U39: 10143608.59 | V39: 507180.4296 | X39: 0.999884
B40: 245 | C40: 0.07011439504 | D40: 0.01522259166 | E40: 0.01831208384 | F40: 0.05776383216 | G40: 50 | H40: 0.1176930004 | I40: 12221769.86 | J40: 611088.493 | L40: 0.999976 | N40: 245 | O40: 0.1494392173 | P40: 0.01735770617 | Q40: 0.04690209688 | R40: 0.068831972 | S40: 50 | T40: 0.2415161695 | U40: 10199773.58 | V40: 509988.6791 | X40: 0.999885
B41: 252 | C41: 0.06999521229 | D41: 0.01524051634 | E41: 0.01828606881 | F41: 0.05772579096 | G41: 50 | H41: 0.1175511663 | I41: 12208169.33 | J41: 610408.4667 | L41: 0.999977 | N41: 252 | O41: 0.1506497647 | P41: 0.01739587827 | Q41: 0.04727621147 | R41: 0.06884000604 | S41: 50 | T41: 0.2429276234 | U41: 10253911.54 | V41: 512695.5771 | X41: 0.999886
B42: 259 | C42: 0.06988597022 | D42: 0.01525618409 | E42: 0.01826289636 | F42: 0.05768410448 | G42: 50 | H42: 0.1174131999 | I42: 12194939.68 | J42: 609746.9839 | L42: 0.999978 | N42: 259 | O42: 0.1518233738 | P42: 0.01743030904 | Q42: 0.04763669021 | R42: 0.06883416198 | S42: 50 | T42: 0.2442865992 | U42: 10306036.64 | V42: 515301.8319 | X42: 0.999887
B43: 266 | C43: 0.06978604982 | D43: 0.0152698772 | E43: 0.01824228554 | F43: 0.05763844642 | G43: 50 | H43: 0.1172784389 | I43: 12182017.39 | J43: 609100.8693 | L43: 0.999979 | N43: 266 | O43: 0.1529604044 | P43: 0.01746139654 | Q43: 0.04798359841 | R43: 0.06881413668 | S43: 50 | T43: 0.2455933738 | U43: 10356159.5 | V43: 517807.975 | X43: 0.999888
B44: 273 | C44: 0.06969483326 | D44: 0.01528184277 | E44: 0.01822396932 | F44: 0.05758851481 | G44: 50 | H44: 0.1171462255 | I44: 12169339.39 | J44: 608466.9696 | L44: 0.99998 | N44: 273 | O44: 0.1540612298 | P44: 0.01748949566 | Q44: 0.04831701445 | R44: 0.06877959339 | S44: 50 | T44: 0.2468481443 | U44: 10404287.69 | V44: 520214.3843 | X44: 0.999889
B45: 280 | C45: 0.06961170769 | D45: 0.0152922971 | E45: 0.01820769415 | F45: 0.05753403339 | G45: 50 | H45: 0.1170159135 | I45: 12156843.72 | J45: 607842.186 | L45: 0.99998 | N45: 280 | O45: 0.1551262369 | P45: 0.01751492279 | Q45: 0.04863702777 | R45: 0.06873016295 | S45: 50 | T45: 0.2480510381 | U45: 10450426.08 | V45: 522521.3039 | X45: 0.99989
B46: 287 | C46: 0.06953606821 | D46: 0.01530142949 | E46: 0.01819321951 | F46: 0.05747475335 | G46: 50 | H46: 0.1168868743 | I46: 12144470.1 | J46: 607223.5049 | L46: 0.999981 | N46: 287 | O46: 0.1561558249 | P46: 0.01753796003 | Q46: 0.04894373681 | R46: 0.06866544589 | S46: 50 | T46: 0.2492021228 | U46: 10494577.27 | V46: 524728.8635 | X46: 0.999892
B47: 294 | C47: 0.06946732009 | D47: 0.01530940563 | E47: 0.01818031725 | F47: 0.05741045534 | G47: 50 | H47: 0.1167585028 | I47: 12132160.5 | J47: 606608.0251 | L47: 0.999982 | N47: 294 | O47: 0.1571504035 | P47: 0.01755885888 | Q47: 0.04923724669 | R47: 0.06858501513 | S47: 50 | T47: 0.250301415 | U47: 10536741.9 | V47: 526837.0951 | X47: 0.999893
B48: 301 | C48: 0.06940488022 | D48: 0.01531637054 | E48: 0.01816877083 | F48: 0.05734095192 | G48: 50 | H48: 0.1166302229 | I48: 12119859.68 | J48: 605992.9842 | L48: 0.999982 | N48: 301 | O48: 0.15811039 | P48: 0.01757784356 | Q48: 0.04951766675 | R48: 0.06848841961 | S48: 50 | T48: 0.2513488887 | U48: 10576918.98 | V48: 528845.9488 | X48: 0.999894
B49: 308 | C49: 0.06934817792 | D49: 0.01532245111 | E49: 0.01815837452 | F49: 0.05726609025 | G49: 50 | H49: 0.1165014923 | I49: 12107515.65 | J49: 605375.7827 | L49: 0.999983 | N49: 308 | O49: 0.1590362055 | P49: 0.017595114 | Q49: 0.04978510776 | R49: 0.06837518874 | S49: 50 | T49: 0.2523444828 | U49: 10615106.15 | V49: 530755.3074 | X49: 0.999895
B50: 315 | C50: 0.06929665506 | D50: 0.01532775839 | E50: 0.01814893234 | F50: 0.05718575505 | G50: 50 | H50: 0.1163718075 | I50: 12095080.13 | J50: 604754.0064 | L50: 0.999984 | N50: 315 | O50: 0.1599282701 | P50: 0.01761084842 | Q50: 0.05003967898 | R50: 0.06824483777 | S50: 50 | T50: 0.2532881087 | U50: 10651300.02 | V50: 532565.001 | X50: 0.999897
B51: 322 | C51: 0.06924976571 | D51: 0.01533238956 | E51: 0.01814025702 | F51: 0.05709987187 | G51: 50 | H51: 0.1162407081 | I51: 12082508.95 | J51: 604125.4476 | L51: 0.999984 | N51: 322 | O51: 0.1607869979 | P51: 0.01762520573 | Q51: 0.0502814848 | R51: 0.06809687412 | S51: 50 | T51: 0.254179657 | U51: 10685496.39 | V51: 534274.8195 | X51: 0.999898
B52: 329 | C52: 0.06920697511 | D52: 0.01533642964 | E52: 0.01813216877 | F52: 0.05700841055 | G52: 50 | H52: 0.1161077808 | I52: 12069762.5 | J52: 603488.1249 | L52: 0.999985 | N52: 329 | O52: 0.1616127896 | P52: 0.01763832758 | Q52: 0.05051062121 | R52: 0.06793080471 | S52: 50 | T52: 0.2550190041 | U52: 10717690.53 | V52: 535884.5263 | X52: 0.999899
B53: 336 | C53: 0.06916775829 | D53: 0.01533995301 | E53: 0.01812449402 | F53: 0.05691138878 | G53: 50 | H53: 0.1159726632 | I53: 12056806.02 | J53: 602840.3009 | L53: 0.999985 | N53: 336 | O53: 0.1624060254 | P53: 0.01765034028 | Q53: 0.0507271718 | R53: 0.06774614429 | S53: 50 | T53: 0.2558060193 | U53: 10747877.41 | V53: 537393.8705 | X53: 0.999901
B54: 343 | C54: 0.06913159825 | D54: 0.01534302474 | E54: 0.01811706409 | F54: 0.05680887579 | G54: 50 | H54: 0.1158350474 | I54: 12043609.98 | J54: 602180.4991 | L54: 0.999986 | N54: 343 | O54: 0.1631670567 | P54: 0.01766135642 | Q54: 0.05093120353 | R54: 0.06754242475 | S54: 50 | T54: 0.2565405709 | U54: 10776051.99 | V54: 538802.5995 | X54: 0.999902
B55: 350 | C55: 0.0690979838 | D55: 0.01534570174 | E55: 0.01810971376 | F55: 0.05670099604 | G55: 50 | H55: 0.1156946829 | I55: 12030150.37 | J55: 601507.5184 | L55: 0.999986 | N55: 350 | O55: 0.1638961962 | P55: 0.01767147639 | Q55: 0.0511227622 | R55: 0.06731920546 | S55: 50 | T55: 0.2572225326 | U55: 10802209.43 | V55: 540110.4714 | X55: 0.999904
B56: 357 | C56: 0.06906640722 | D56: 0.01534803381 | E56: 0.01810227995 | F56: 0.05658793276 | G56: 50 | H56: 0.1155513793 | I56: 12016408.93 | J56: 600820.4466 | L56: 0.999987 | N56: 357 | O56: 0.1645937079 | P56: 0.01768078966 | Q56: 0.05130186757 | R56: 0.06707608453 | S56: 50 | T56: 0.2578517903 | U56: 10826345.34 | V56: 541317.267 | X56: 0.999905
B57: 364 | C57: 0.06903636175 | D57: 0.01535006448 | E57: 0.01809460033 | F57: 0.05646993128 | G57: 50 | H57: 0.115405009 | I57: 12002373.43 | J57: 600118.6713 | L57: 0.999987 | N57: 364 | O57: 0.1652597959 | P57: 0.017689376 | Q57: 0.0514685084 | R57: 0.06681271099 | S57: 50 | T57: 0.2584282479 | U57: 10848456.04 | V57: 542422.8021 | X57: 0.999907
B58: 371 | C58: 0.06900733916 | D58: 0.01535183181 | E58: 0.01808651211 | F58: 0.05634730214 | G58: 50 | H58: 0.1152555087 | I58: 11988037.78 | J58: 599401.8888 | L58: 0.999988 | N58: 371 | O58: 0.1658945932 | P58: 0.01769730651 | Q58: 0.05162263725 | R58: 0.06652879769 | S58: 50 | T58: 0.258951834 | U58: 10868538.8 | V58: 543426.9399 | X58: 0.999909
B59: 378 | C59: 0.06897882742 | D59: 0.01535336909 | E59: 0.01807785094 | F59: 0.05622042356 | G59: 50 | H59: 0.1151028808 | I59: 11973402.22 | J59: 598670.1111 | L59: 0.999988 | N59: 378 | O59: 0.1664981488 | P59: 0.01770464456 | Q59: 0.05176416537 | R59: 0.0662241349 | S59: 50 | T59: 0.2594225082 | U59: 10886592.05 | V59: 544329.6027 | X59: 0.99991
B60: 385 | C60: 0.06895030861 | D60: 0.01535470542 | E60: 0.01806844997 | F60: 0.05608974352 | G60: 50 | H60: 0.1149471945 | I60: 11958473.4 | J60: 597923.6702 | L60: 0.999989 | N60: 385 | O60: 0.1670704164 | P60: 0.01771144664 | Q60: 0.05189295762 | R60: 0.06589860434 | S60: 50 | T60: 0.2598402673 | U60: 10902615.69 | V60: 545130.7845 | X60: 0.999912
B61: 392 | C61: 0.06892125744 | D61: 0.01535586621 | E61: 0.01805813926 | F61: 0.05595578089 | G61: 50 | H61: 0.1147885861 | I61: 11943264.38 | J61: 597163.2191 | L61: 0.999989 | N61: 392 | O61: 0.1676112417 | P61: 0.01771776308 | Q61: 0.0520088278 | R61: 0.06555219347 | S61: 50 | T61: 0.2602051515 | U61: 10916611.25 | V61: 545830.5624 | X61: 0.999914
B62: 399 | C62: 0.0688911402 | D62: 0.0153568737 | E62: 0.0180467455 | F62: 0.05581912589 | G62: 50 | H62: 0.1146272587 | I62: 11927794.62 | J62: 596389.7312 | L62: 0.99999 | N62: 399 | O62: 0.1681203511 | P62: 0.0177236387 | Q62: 0.05211153436 | R62: 0.0651850098 | S62: 50 | T62: 0.2605172506 | U62: 10928582.17 | V62: 546429.1087 | X62: 0.999916
B63: 406 | C63: 0.06885941464 | D63: 0.0153577473 | E63: 0.01803409207 | F63: 0.05568043934 | G63: 50 | H63: 0.114463481 | I63: 11912089.92 | J63: 595604.4958 | L63: 0.99999 | N63: 406 | O63: 0.1685973412 | P63: 0.01772911345 | Q63: 0.05220077688 | R63: 0.06479729496 | S63: 50 | T63: 0.2607767103 | U63: 10938534.05 | V63: 546926.7025 | X63: 0.999917
B64: 413 | C64: 0.06882553067 | D64: 0.01535850397 | E64: 0.01801999963 | F64: 0.05554045093 | G64: 50 | H64: 0.1142975864 | I64: 11896182.22 | J64: 594809.1109 | L64: 0.99999 | N64: 413 | O64: 0.169041669 | P64: 0.01773422289 | Q64: 0.05227619348 | R64: 0.06438943806 | S64: 50 | T64: 0.2609837373 | U64: 10946474.81 | V64: 547323.7406 | X64: 0.999919
B65: 420 | C65: 0.06878893222 | D65: 0.01535915851 | E65: 0.01800428717 | F65: 0.05539995608 | G65: 50 | H65: 0.1141299703 | I65: 11880109.44 | J65: 594005.4722 | L65: 0.999991 | N65: 420 | O65: 0.1694526449 | P65: 0.01773899869 | Q65: 0.05233735932 | R65: 0.06396198824 | S65: 50 | T65: 0.2611386057 | U65: 10952414.97 | V65: 547620.7485 | X65: 0.999921
B66: 427 | C66: 0.0687490602 | D66: 0.01535972388 | E66: 0.01798677362 | F66: 0.05525981155 | G66: 50 | H66: 0.1139610875 | I66: 11863915.2 | J66: 593195.7601 | L66: 0.999991 | N66: 427 | O66: 0.1698294272 | P66: 0.01774346902 | Q66: 0.05238378658 | R66: 0.06351566581 | S66: 50 | T66: 0.261241662 | U66: 10956367.82 | V66: 547818.3908 | X66: 0.999923
B67: 434 | C67: 0.06870535685 | D67: 0.01536021135 | E67: 0.01796728003 | F67: 0.05512092954 | G67: 50 | H67: 0.1137914485 | I67: 11847648.44 | J67: 592382.4222 | L67: 0.999991 | N67: 434 | O67: 0.1701710198 | P67: 0.01774765893 | Q67: 0.05241492608 | R67: 0.06305137178 | S67: 50 | T67: 0.2612933303 | U67: 10958349.61 | V67: 547917.4807 | X67: 0.999925
B68: 441 | C68: 0.06865727132 | D68: 0.01536063078 | E68: 0.01794563229 | F68: 0.05498427036 | G68: 50 | H68: 0.1136216153 | I68: 11831363.07 | J68: 591568.1535 | L68: 0.999992 | N68: 441 | O68: 0.1704762733 | P68: 0.01775159069 | Q68: 0.05243017068 | R68: 0.06257019525 | S68: 50 | T68: 0.2612941168 | U68: 10958379.78 | V68: 547918.9891 | X68: 0.999927
B69: 448 | C69: 0.06860426663 | D69: 0.01536099077 | E69: 0.01792166447 | F69: 0.05485083362 | G69: 50 | H69: 0.1134521968 | I69: 11815117.46 | J69: 590755.8729 | L69: 0.999992 | N69: 448 | O69: 0.1707438892 | P69: 0.01775528408 | Q69: 0.05242886073 | R69: 0.06207341847 | S69: 50 | T69: 0.2612446144 | U69: 10956481.06 | V69: 547824.053 | X69: 0.999929
B70: 455 | C70: 0.06854582793 | D70: 0.01536129882 | E70: 0.01789522253 | F70: 0.05472164795 | G70: 50 | H70: 0.113283843 | I70: 11798973.94 | J70: 589948.6971 | L70: 0.999992 | N70: 455 | O70: 0.170972429 | P70: 0.01775875664 | Q70: 0.05241029168 | R70: 0.06156251907 | S70: 50 | T70: 0.2611455064 | U70: 10952679.65 | V70: 547633.9827 | X70: 0.999931
B71: 462 | C71: 0.06848147186 | D71: 0.01536156149 | E71: 0.01786616866 | F71: 0.05459775946 | G71: 50 | H71: 0.1131172392 | I71: 11782998.24 | J71: 589149.9119 | L71: 0.999993 | N71: 462 | O71: 0.1711603272 | P71: 0.01776202393 | Q71: 0.05237372393 | R71: 0.06103916923 | S71: 50 | T71: 0.2609975696 | U71: 10947005.37 | V71: 547350.2684 | X71: 0.999933
B72: 469 | C72: 0.068410757 | D72: 0.01536178447 | E72: 0.01783438579 | F72: 0.05448021891 | G72: 50 | H72: 0.1129530995 | I72: 11767258.81 | J72: 588362.9406 | L72: 0.999993 | N72: 469 | O72: 0.171305909 | P72: 0.01776509972 | Q72: 0.05231839485 | R72: 0.06050523159 | S72: 50 | T72: 0.2608016778 | U72: 10939491.71 | V72: 546974.5854 | X72: 0.999935
B73: 476 | C73: 0.0683332951 | D73: 0.01536197274 | E73: 0.01779978247 | F73: 0.05437006783 | G73: 50 | H73: 0.1127921595 | I73: 11751826.21 | J73: 587591.3105 | L73: 0.999993 | N73: 476 | O73: 0.1714074125 | P73: 0.01776799618 | Q73: 0.05224353303 | R73: 0.05996275168 | S73: 50 | T73: 0.2605588032 | U73: 10930175.97 | V73: 546508.7986 | X73: 0.999937
B74: 483 | C74: 0.06824876275 | D74: 0.01536213065 | E74: 0.01776229771 | F74: 0.05426832395 | G74: 50 | H74: 0.1126351693 | I74: 11736772.36 | J74: 586838.6179 | L74: 0.999993 | N74: 483 | O74: 0.1714630161 | P74: 0.01777072404 | Q74: 0.05214837459 | R74: 0.05941394667 | S74: 50 | T74: 0.2602700188 | U74: 10919099.31 | V74: 545954.9655 | X74: 0.999939
B75: 490 | C75: 0.0681569133 | D75: 0.01536226199 | E75: 0.01772190584 | F75: 0.05417596594 | G75: 50 | H75: 0.1124828857 | I75: 11722169.82 | J75: 586108.4908 | L75: 0.999994 | N75: 490 | O75: 0.1714708694 | P75: 0.01777329275 | Q75: 0.0520321812 | R75: 0.05886119069 | S75: 50 | T75: 0.2599364989 | U75: 10906306.77 | V75: 545315.3383 | X75: 0.999941
B76: 497 | C76: 0.06805758853 | D76: 0.01536237006 | E76: 0.0176786211 | F76: 0.05409391804 | G76: 50 | H76: 0.112336064 | I76: 11708091.03 | J76: 585404.5515 | L76: 0.999994 | N76: 497 | O76: 0.1714291287 | P76: 0.01777571064 | Q76: 0.05189425973 | R76: 0.05830699649 | S76: 50 | T76: 0.2595595198 | U76: 10891847.29 | V76: 544592.3647 | X76: 0.999943
B77: 504 | C77: 0.0679507298 | D77: 0.01536245773 | E77: 0.01763250179 | F77: 0.05402303471 | G77: 50 | H77: 0.1121954508 | I77: 11694607.57 | J77: 584730.3784 | L77: 0.999994 | N77: 504 | O77: 0.1713359963 | P77: 0.01777798496 | Q77: 0.05173398291 | R77: 0.05775399383 | S77: 50 | T77: 0.2591404593 | U77: 10875773.74 | V77: 543788.687 | X77: 0.999945
B78: 511 | C78: 0.06783638809 | D78: 0.01536252754 | E78: 0.01758365381 | F78: 0.05396408576 | G78: 50 | H78: 0.1120617751 | I78: 11681789.35 | J78: 584089.4675 | L78: 0.999994 | N78: 511 | O78: 0.1711897616 | P78: 0.0177801221 | Q78: 0.05155081075 | R78: 0.05720490477 | S78: 50 | T78: 0.2586807959 | U78: 10858142.81 | V78: 542907.1407 | X78: 0.999947
B79: 518 | C79: 0.06771473268 | D79: 0.01536258168 | E79: 0.01753223343 | F79: 0.05391774226 | G79: 50 | H79: 0.111935741 | I79: 11669703.89 | J79: 583485.1945 | L79: 0.999995 | N79: 518 | O79: 0.1709888453 | P79: 0.01778212759 | Q79: 0.05134431205 | R79: 0.05666251635 | S79: 50 | T79: 0.2581821071 | U79: 10839015.02 | V79: 541950.7512 | X79: 0.999949
B80: 525 | C80: 0.06758605797 | D80: 0.01536262208 | E80: 0.01747844909 | F80: 0.0538845637 | G80: 50 | H80: 0.1118180199 | I80: 11658415.56 | J80: 582920.7782 | L80: 0.999995 | N80: 525 | O80: 0.1707318443 | P80: 0.01778400623 | Q80: 0.0511141856 | R80: 0.05612965091 | S80: 50 | T80: 0.2576460673 | U80: 10818454.59 | V80: 540922.7297 | X80: 0.999951
B81: 532 | C81: 0.06745078816 | D81: 0.01536265042 | E81: 0.01742256218 | F81: 0.05386498652 | G81: 50 | H81: 0.1117092429 | I81: 11647984.89 | J81: 582399.2446 | L81: 0.999995 | N81: 532 | O81: 0.1704175766 | P81: 0.0177857622 | Q81: 0.05086028041 | R81: 0.05560913478 | S81: 50 | T81: 0.2570744448 | U81: 10796529.35 | V81: 539826.4674 | X81: 0.999953
B82: 539 | C82: 0.06730947934 | D82: 0.01536266819 | E82: 0.01736488651 | F82: 0.0538593146 | G82: 50 | H82: 0.1116099939 | I82: 11638467.87 | J82: 581923.3935 | L82: 0.999995 | N82: 539 | O82: 0.1700451254 | P82: 0.01778739907 | Q82: 0.05058261432 | R82: 0.05510376583 | S82: 50 | T82: 0.2564690984 | U82: 10773310.58 | V82: 538665.529 | X82: 0.999954
B83: 546 | C83: 0.06716281887 | D83: 0.01536267669 | E83: 0.0173057866 | F83: 0.0538677118 | G83: 50 | H83: 0.1115208033 | I83: 11629915.35 | J83: 581495.7674 | L83: 0.999995 | N83: 546 | O83: 0.169613881 | P83: 0.01778891992 | Q83: 0.0502813906 | R83: 0.05461628055 | S83: 50 | T83: 0.255831973 | U83: 10748872.89 | V83: 537443.6447 | X83: 0.999956
B84: 553 | C84: 0.06701162185 | D84: 0.01536267707 | E84: 0.01724567465 | F84: 0.05389019678 | G84: 50 | H84: 0.1114421418 | I84: 11622372.46 | J84: 581118.6228 | L84: 0.999996 | N84: 553 | O84: 0.16912358 | P84: 0.01779032739 | Q84: 0.04995701191 | R84: 0.05414932128 | S84: 50 | T84: 0.2551650953 | U84: 10723294.03 | V84: 536164.7013 | X84: 0.999958
B85: 560 | C85: 0.06685682455 | D85: 0.01536267036 | E85: 0.01718500617 | F85: 0.05392664038 | G85: 50 | H85: 0.1113744149 | I85: 11615878.1 | J85: 580793.905 | L85: 0.999996 | N85: 560 | O85: 0.1685743397 | P85: 0.0177916237 | Q85: 0.04961009108 | R85: 0.05370540435 | S85: 50 | T85: 0.2544705687 | U85: 10696654.65 | V85: 534832.7323 | X85: 0.99996
B86: 567 | C86: 0.0666994748 | D86: 0.01536265744 | E86: 0.01712427434 | F86: 0.05397676562 | G86: 50 | H86: 0.1113179591 | I86: 11610464.53 | J86: 580523.2266 | L86: 0.999996 | N86: 567 | O86: 0.1679666877 | P86: 0.01779281079 | Q86: 0.04924145844 | R86: 0.05328688966 | S86: 50 | T86: 0.2537505668 | U86: 10669038.14 | V86: 533451.9069 | X86: 0.999961
B87: 574 | C87: 0.06654071962 | D87: 0.01536263915 | E87: 0.01706400332 | F87: 0.05404015025 | G87: 50 | H87: 0.1112730375 | I87: 11606156.97 | J87: 580307.8487 | L87: 0.999996 | N87: 574 | O87: 0.1673015855 | P87: 0.01779389026 | Q87: 0.04885216531 | R87: 0.05289595248 | S87: 50 | T87: 0.2530073285 | U87: 10640530.37 | V87: 532026.5183 | X87: 0.999963
B88: 581 | C88: 0.06638178997 | D88: 0.01536261619 | E88: 0.0170047404 | F88: 0.05411623198 | G88: 50 | H88: 0.1112398368 | I88: 11602973.35 | J88: 580148.6676 | L88: 0.999996 | N88: 581 | O88: 0.1665804449 | P88: 0.01779486352 | Q88: 0.0484434834 | R88: 0.05253455788 | S88: 50 | T88: 0.2522431501 | U88: 10611219.41 | V88: 530560.9707 | X88: 0.999964
B89: 588 | C89: 0.06622398334 | D89: 0.01536258923 | E89: 0.01694704739 | F89: 0.05420431619 | G89: 50 | H89: 0.111218466 | I89: 11600924.09 | J89: 580046.2046 | L89: 0.999996 | N89: 588 | O89: 0.1658051378 | P89: 0.01779573177 | Q89: 0.04801690012 | R89: 0.0522044384 | S89: 50 | T89: 0.2514603795 | U89: 10581195.34 | V89: 529059.7668 | X89: 0.999965
B90: 595 | C90: 0.0660686441 | D90: 0.01536255885 | E90: 0.01689149129 | F90: 0.05430358595 | G90: 50 | H90: 0.1112089541 | I90: 11600012 | J90: 580000.5999 | L90: 0.999997 | N90: 595 | O90: 0.1649779977 | P90: 0.01779649605 | Q90: 0.04757410971 | R90: 0.0519070754 | S90: 50 | T90: 0.2506614081 | U90: 10550549.86 | V90: 527527.493 | X90: 0.999967
B91: 602 | C91: 0.06591714249 | D91: 0.01536252561 | E91: 0.01683863466 | F91: 0.05441311415 | G91: 50 | H91: 0.1112112509 | I91: 11600232.24 | J91: 580011.6119 | L91: 0.999997 | N91: 602 | O91: 0.1641018136 | P91: 0.01779715732 | Q91: 0.04711700037 | R91: 0.05164368427 | S91: 50 | T91: 0.2498486638 | U91: 10519376.1 | V91: 525968.8052 | X91: 0.999968
B92: 609 | C92: 0.06577085239 | D92: 0.01536249 | E92: 0.01678902566 | F92: 0.05453187746 | G92: 50 | H92: 0.1112252268 | I92: 11601572.39 | J92: 580078.6195 | L92: 0.999997 | N92: 609 | O92: 0.1631798163 | P92: 0.01779771643 | Q92: 0.04664763753 | R92: 0.05141520391 | S92: 50 | T92: 0.2490246028 | U92: 10487768.29 | V92: 524388.4143 | X92: 0.999969
B93: 616 | C93: 0.06563112868 | D93: 0.01536245247 | E93: 0.01674318829 | F93: 0.05465877171 | G93: 50 | H93: 0.1112506745 | I93: 11604012.58 | J93: 580200.6291 | L93: 0.999997 | N93: 616 | O93: 0.1622156562 | P93: 0.01779817424 | Q93: 0.04616824376 | R93: 0.05122229049 | S93: 50 | T93: 0.2481917019 | U93: 10455821.4 | V93: 522791.07 | X93: 0.999971
B94: 623 | C94: 0.06549928455 | D94: 0.01536241346 | E94: 0.01670161294 | F94: 0.05479262845 | G94: 50 | H94: 0.1112873114 | I94: 11607525.71 | J94: 580376.2856 | L94: 0.999997 | N94: 623 | O94: 0.161213375 | P94: 0.01779853157 | Q94: 0.04568117551 | R94: 0.05106531553 | S94: 50 | T94: 0.2473524499 | U94: 10423630.91 | V94: 521181.5457 | X94: 0.999972
B95: 630 | C95: 0.06537656946 | D95: 0.01536237337 | E95: 0.01666474747 | F95: 0.05493223221 | G95: 50 | H95: 0.1113347825 | I95: 11612077.74 | J95: 580603.8868 | L95: 0.999997 | N95: 630 | O95: 0.1601773701 | P95: 0.01779878928 | Q95: 0.04518889742 | R95: 0.05094436819 | S95: 50 | T95: 0.2465093399 | U95: 10391292.45 | V95: 519564.6224 | X95: 0.999973
B96: 637 | C96: 0.06526414819 | D96: 0.01536233255 | E96: 0.01663298916 | F96: 0.05507633816 | G96: 50 | H96: 0.1113926643 | I96: 11617628.04 | J96: 580881.4021 | L96: 0.999998 | N96: 637 | O96: 0.159112353 | P96: 0.01779894831 | Q96: 0.04469395453 | R96: 0.05085926169 | S96: 50 | T96: 0.2456648604 | U96: 10358901.45 | V96: 517945.0727 | X96: 0.999974
B97: 644 | C97: 0.06516308152 | D97: 0.01536229138 | E97: 0.01660667761 | F97: 0.05522368968 | G97: 50 | H97: 0.111460469 | I97: 11624129.86 | J97: 581206.493 | L97: 0.999998 | N97: 644 | O97: 0.1580233031 | P97: 0.01779900967 | Q97: 0.04419894318 | R97: 0.0508095434 | S97: 50 | T97: 0.2448214873 | U97: 10326552.89 | V97: 516327.6447 | X97: 0.999975
B98: 651 | C98: 0.06507430897 | D98: 0.01536225017 | E98: 0.01658608884 | F98: 0.05537303555 | G98: 50 | H98: 0.1115376498 | I98: 11631530.76 | J98: 581576.5381 | L98: 0.999998 | N98: 651 | O98: 0.1569154174 | P98: 0.01779897447 | Q98: 0.04370648099 | R98: 0.05079450848 | S98: 50 | T98: 0.2439816749 | U98: 10294340.91 | V98: 514717.0457 | X98: 0.999976
B99: 658 | C99: 0.06499863402 | D99: 0.01536220923 | E99: 0.0165714307 | F99: 0.05552314639 | G99: 50 | H99: 0.1116236064 | I99: 11639773.18 | J99: 581988.6589 | L99: 0.999998 | N99: 658 | O99: 0.1557940565 | P99: 0.017798844 | Q99: 0.04321917686 | R99: 0.05081321648 | S99: 50 | T99: 0.2431478482 | U99: 10262358.52 | V99: 513117.926 | X99: 0.999976
B100: 665 | C100: 0.06493671204 | D100: 0.01536216887 | E100: 0.01656283964 | F100: 0.05567283002 | G100: 50 | H100: 0.111717691 | I100: 11648794.98 | J100: 582439.7492 | L100: 0.999998 | N100: 665 | O100: 0.1546646895 | P100: 0.01779861968 | Q100: 0.0427396012 | R100: 0.05086451055 | S100: 50 | T100: 0.2423223942 | U100: 10230697.27 | V100: 511534.8635 | X100: 0.999977
B101: 672 | C101: 0.06488904122 | D101: 0.01536212935 | E101: 0.01656037901 | F101: 0.05582094554 | G101: 50 | H101: 0.1118192143 | I101: 11658530.1 | J101: 582926.5048 | L101: 0.999998 | N101: 672 | O101: 0.1535328372 | P101: 0.01779830311 | Q101: 0.04227025735 | R101: 0.05094703874 | S101: 50 | T101: 0.2415076536 | U101: 10199446.94 | V101: 509972.3472 | X101: 0.999978
B102: 679 | C102: 0.06485595661 | D102: 0.01536209094 | E102: 0.01656403871 | F102: 0.0559664158 | G102: 50 | H102: 0.1119274525 | I102: 11668909.11 | J102: 583445.4553 | L102: 0.999998 | N102: 679 | O102: 0.1524040165 | P102: 0.01779789611 | Q102: 0.04181355443 | R102: 0.05105927688 | S102: 50 | T102: 0.2407059127 | U102: 10168695.24 | V102: 508434.762 | X102: 0.999979
B103: 686 | C103: 0.06483762731 | D103: 0.01536205387 | E103: 0.01657373636 | F103: 0.05610823816 | G103: 50 | H103: 0.1120416539 | I103: 11679859.92 | J103: 583992.9961 | L103: 0.999998 | N103: 686 | O103: 0.1512836848 | P103: 0.01779740071 | Q103: 0.04137178219 | R103: 0.05119955255 | S103: 50 | T103: 0.239919396 | U103: 10138527.47 | V103: 506926.3737 | X103: 0.999979
B104: 693 | C104: 0.0648340568 | D104: 0.01536201838 | E104: 0.01658931978 | F104: 0.05624549347 | G104: 50 | H104: 0.1121610455 | I104: 11691308.43 | J104: 584565.4215 | L104: 0.999998 | N104: 693 | O104: 0.1501771872 | P104: 0.01779681914 | Q104: 0.04094708839 | R104: 0.05136606966 | S104: 50 | T104: 0.2391502575 | U104: 10109026.27 | V104: 505451.3137 | X104: 0.99998
B105: 700 | C105: 0.06484508621 | D105: 0.01536198468 | E105: 0.01661057075 | F105: 0.05637735305 | G105: 50 | H105: 0.1122848399 | I105: 11703179.13 | J105: 585158.9565 | L105: 0.999999 | N105: 700 | O105: 0.1490897068 | P105: 0.01779615391 | Q105: 0.04054145873 | R105: 0.05155693311 | S105: 50 | T105: 0.2384005743 | U105: 10080271.3 | V105: 504013.565 | X105: 0.999981
B106: 707 | C106: 0.0648704005 | D106: 0.01536195295 | E106: 0.01663720989 | F106: 0.05650308381 | G106: 50 | H106: 0.1124122423 | I106: 11715395.79 | J106: 585769.7897 | L106: 0.999999 | N106: 707 | O106: 0.1480262183 | P106: 0.01779540774 | Q106: 0.04015669995 | R106: 0.05177017315 | S106: 50 | T106: 0.2376723384 | U106: 10052338.97 | V106: 502616.9483 | X106: 0.999981
B107: 714 | C107: 0.0649095371 | D107: 0.01536192338 | E107: 0.01666890251 | F107: 0.05662205147 | G107: 50 | H107: 0.1125424564 | I107: 11727882.08 | J107: 586394.1038 | L107: 0.999999 | N107: 714 | O107: 0.1469914457 | P107: 0.01779458361 | Q107: 0.03979442593 | R107: 0.05200376899 | S107: 50 | T107: 0.2369674505 | U107: 10025302.17 | V107: 501265.1085 | X107: 0.999982
B108: 721 | C108: 0.06496189687 | D108: 0.01536189611 | E108: 0.01670526524 | F108: 0.05673372194 | G108: 50 | H108: 0.1126746912 | I108: 11740562.13 | J108: 587028.1065 | L108: 0.999999 | N108: 721 | O108: 0.145989826 | P108: 0.01779368477 | Q108: 0.03945604712 | R108: 0.05225567141 | S108: 50 | T108: 0.2362877131 | U108: 9999230.048 | V108: 499961.5024 | X108: 0.999982
B109: 728 | C109: 0.065026757 | D109: 0.01536187129 | E109: 0.01674587331 | F109: 0.05683766103 | G109: 50 | H109: 0.1128081669 | I109: 11753361.17 | J109: 587668.0586 | L109: 0.999999 | N109: 728 | O109: 0.1450254762 | P109: 0.0177927147 | Q109: 0.0391427632 | R109: 0.0525238239 | S109: 50 | T109: 0.2356348241 | U109: 9974187.73 | V109: 498709.3865 | X109: 0.999983
B110: 735 | C110: 0.06510328534 | D110: 0.01536184904 | E110: 0.01679026824 | F110: 0.05693353254 | G110: 50 | H110: 0.1129421204 | I110: 11766206.02 | J110: 588310.3011 | L110: 0.999999 | N110: 735 | O110: 0.1441021677 | P110: 0.01779167714 | Q110: 0.03885555892 | R110: 0.0528061823 | S110: 50 | T110: 0.2350103714 | U110: 9950236.122 | V110: 497511.8061 | X110: 0.999983
B111: 742 | C111: 0.06519055604 | D111: 0.01536182946 | E111: 0.01683796572 | F111: 0.05702109504 | G111: 50 | H111: 0.1130758104 | I111: 11779025.61 | J111: 588951.2805 | L111: 0.999999 | N111: 742 | O111: 0.1432233044 | P111: 0.01779057607 | Q111: 0.038595203 | R111: 0.05310073253 | S111: 50 | T111: 0.2344158275 | U111: 9927431.697 | V111: 496371.5848 | X111: 0.999984
B112: 749 | C112: 0.06528756584 | D112: 0.01536181263 | E112: 0.01688846364 | F112: 0.05710019734 | G112: 50 | H112: 0.1132085224 | I112: 11791751.43 | J112: 589587.5713 | L112: 0.999999 | N112: 749 | O112: 0.1423919075 | P112: 0.0177894157 | Q112: 0.03836225 | R112: 0.05340550648 | S112: 50 | T112: 0.2338525441 | U112: 9905826.309 | V112: 495291.3154 | X112: 0.999984
B113: 756 | C113: 0.06539325085 | D113: 0.01536179861 | E113: 0.01694124988 | F113: 0.05717077303 | G113: 50 | H113: 0.1133395732 | I113: 11804317.93 | J113: 590215.8967 | L113: 0.999999 | N113: 756 | O113: 0.1416106055 | P113: 0.01778820047 | Q113: 0.03815704475 | R113: 0.05371859587 | S113: 50 | T113: 0.2333217485 | U113: 9885467.026 | V113: 494273.3513 | X113: 0.999985
B114: 763 | C114: 0.0655065033 | D114: 0.01536178744 | E114: 0.01699580992 | F114: 0.05723283413 | G114: 50 | H114: 0.113468314 | I114: 11816662.94 | J114: 590833.1471 | L114: 0.999999 | N114: 763 | O114: 0.1408816283 | P114: 0.01778693503 | Q114: 0.03797972934 | R114: 0.05403816404 | S114: 50 | T114: 0.2328245391 | U114: 9866395.979 | V114: 493319.799 | X114: 0.999985
B115: 770 | C115: 0.06562618802 | D115: 0.01536177914 | E115: 0.01705163399 | F115: 0.05728646416 | G115: 50 | H115: 0.1135941344 | I115: 11828727.91 | J115: 591436.3955 | L115: 0.999999 | N115: 770 | O115: 0.140206808 | P115: 0.0177856242 | Q115: 0.03783025206 | R115: 0.05436245579 | S115: 50 | T115: 0.2323618824 | U115: 9848650.244 | V115: 492432.5122 | X115: 0.999986
B116: 777 | C116: 0.06575115834 | D116: 0.01536177372 | E116: 0.01710822371 | F116: 0.05733181081 | G116: 50 | H116: 0.1137164647 | I116: 11840458.22 | J116: 592022.9109 | L116: 0.999999 | N116: 777 | O116: 0.1395875821 | P116: 0.01778427301 | Q116: 0.03770837837 | R116: 0.05468980516 | S116: 50 | T116: 0.2319346104 | U116: 9832261.728 | V116: 491613.0864 | X116: 0.999986
B117: 784 | C117: 0.06588027108 | D117: 0.01536177117 | E117: 0.01716509802 | F117: 0.05736907829 | G117: 50 | H117: 0.1138347785 | I117: 11851803.38 | J117: 592590.169 | L117: 0.999999 | N117: 784 | O117: 0.1390250028 | P117: 0.01778288662 | Q117: 0.03761370319 | R117: 0.05501864142 | S117: 50 | T117: 0.2315434184 | U117: 9817257.1 | V117: 490862.855 | X117: 0.999987
B118: 791 | C118: 0.06601240046 | D118: 0.01536177143 | E118: 0.01722179853 | F118: 0.05739851972 | G118: 50 | H118: 0.1139485943 | I118: 11862717.22 | J118: 593135.8608 | L118: 0.999999 | N118: 791 | O118: 0.1385197483 | P118: 0.01778147032 | Q118: 0.03754566447 | R118: 0.05534749325 | S118: 50 | T118: 0.2311888634 | U118: 9803657.732 | V118: 490182.8866 | X118: 0.999987
B119: 798 | C119: 0.06614645082 | D119: 0.01536177447 | E119: 0.01727789401 | F119: 0.05742042951 | G119: 50 | H119: 0.1140574764 | I119: 11873157.97 | J119: 593657.8983 | L119: 0.999999 | N119: 798 | O119: 0.1380721383 | P119: 0.01778002951 | Q119: 0.0375035577 | R119: 0.0556749913 | S119: 50 | T119: 0.2308713639 | U119: 9791479.668 | V119: 489573.9834 | X119: 0.999987
B120: 805 | C120: 0.06628136781 | D120: 0.01536178022 | E120: 0.01733298417 | F120: 0.05743513598 | G120: 50 | H120: 0.1141610363 | I120: 11883088.37 | J120: 594154.4183 | L120: 0.999999 | N120: 805 | O120: 0.1376821519 | P120: 0.01777856968 | Q120: 0.03748655089 | R120: 0.05599986923 | S120: 50 | T120: 0.230591199 | U120: 9780733.62 | V120: 489036.681 | X120: 0.999988
B121: 812 | C121: 0.06641614818 | D121: 0.01536178858 | E121: 0.01738670254 | F121: 0.05744299435 | G121: 50 | H121: 0.1142589325 | I121: 11892475.68 | J121: 594623.784 | L121: 0.999999 | N121: 812 | O121: 0.1373494472 | P121: 0.01777709637 | Q121: 0.03749369994 | R121: 0.05632096353 | S121: 50 | T121: 0.2303485098 | U121: 9771424.993 | V121: 488571.2496 | X121: 0.999988
B122: 819 | C122: 0.06654984805 | D122: 0.01536179945 | E122: 0.0174387187 | F122: 0.05744438009 | G122: 50 | H122: 0.1143508709 | I122: 11901291.68 | J122: 595064.5842 | L122: 0.999999 | N122: 819 | O122: 0.1370733835 | P122: 0.01777561514 | Q122: 0.037523964 | R122: 0.05663721213 | S122: 50 | T122: 0.2301432999 | U122: 9763553.925 | V122: 488177.6963 | X122: 0.999989
B123: 826 | C123: 0.0666815895 | D123: 0.01536181273 | E123: 0.01748873969 | F123: 0.05743968282 | G123: 50 | H123: 0.1144366036 | I123: 11909512.63 | J123: 595475.6316 | L123: 0.999999 | N123: 826 | O123: 0.1368530442 | P123: 0.01777413155 | Q123: 0.03757622076 | R123: 0.056947652 | S123: 50 | T123: 0.2299754375 | U123: 9757115.367 | V123: 487855.7684 | X123: 0.999989
B124: 833 | C124: 0.06681056579 | D124: 0.01536182828 | E124: 0.01753651065 | F124: 0.05742930071 | G124: 50 | H124: 0.1145159288 | I124: 11917119.16 | J124: 595855.958 | L124: 0.999999 | N124: 833 | O124: 0.1366872605 | P124: 0.01777265114 | Q124: 0.03764928117 | R124: 0.05725141601 | S124: 50 | T124: 0.2298446581 | U124: 9752099.174 | V124: 487604.9587 | X124: 0.999989
B125: 840 | C125: 0.06693604492 | D125: 0.01536184596 | E125: 0.01758181492 | F125: 0.05741363554 | G125: 50 | H125: 0.1145886892 | I125: 11924096.18 | J125: 596204.8091 | L125: 0.999999 | N125: 840 | O125: 0.1365746363 | P125: 0.01777117938 | Q125: 0.03774190383 | R125: 0.05754772908 | S125: 50 | T125: 0.2297505678 | U125: 9748490.23 | V125: 487424.5115 | X125: 0.99999
B126: 847 | C126: 0.067057372 | D126: 0.01536186563 | E126: 0.01762447346 | F126: 0.05739308827 | G126: 50 | H126: 0.1146547706 | I126: 11930432.75 | J126: 596521.6376 | L126: 0.999999 | N126: 847 | O126: 0.1365135719 | P126: 0.01776972167 | Q126: 0.03785280843 | R126: 0.05783590383 | S126: 50 | T126: 0.2296926465 | U126: 9746268.591 | V126: 487313.4296 | X126: 0.99999
B127: 854 | C127: 0.0671739701 | D127: 0.01536188712 | E127: 0.01766434377 | F127: 0.05736805528 | G127: 50 | H127: 0.1147141002 | I127: 11936121.9 | J127: 596806.0948 | L127: 0.999999 | N127: 854 | O127: 0.1365022887 | P127: 0.01776828326 | Q127: 0.03798068857 | R127: 0.05811533591 | S127: 50 | T127: 0.2296702529 | U127: 9745409.659 | V127: 487270.4829 | X127: 0.999991
B128: 861 | C128: 0.06728534005 | D128: 0.01536191027 | E128: 0.01770131833 | F128: 0.0573389252 | G128: 50 | H128: 0.114766645 | I128: 11941160.44 | J128: 597058.022 | L128: 0.999999 | N128: 861 | O128: 0.1365388532 | P128: 0.0177668693 | Q128: 0.0381242235 | R128: 0.05838549898 | S128: 50 | T128: 0.2296826291 | U128: 9745884.362 | V128: 487294.2181 | X128: 0.999991
B129: 868 | C129: 0.06739105916 | D129: 0.01536193491 | E129: 0.01773532273 | F129: 0.0573060763 | G129: 50 | H129: 0.1148124093 | I129: 11945548.8 | J129: 597277.44 | L129: 0.999999 | N129: 868 | O129: 0.1366211992 | P129: 0.01776548475 | Q129: 0.03828208902 | R129: 0.05864593969 | S129: 50 | T129: 0.2297289061 | U129: 9747659.371 | V129: 487382.9685 | X129: 0.999991
B130: 875 | C130: 0.06749077895 | D130: 0.01536196085 | E130: 0.01776631342 | F130: 0.05726987439 | G130: 50 | H130: 0.1148514328 | I130: 11949290.78 | J130: 597464.5388 | L130: 0.999999 | N130: 875 | O130: 0.1367471509 | P130: 0.01776413436 | Q130: 0.03845296721 | R130: 0.05889627251 | S130: 50 | T130: 0.2298081099 | U130: 9750697.325 | V130: 487534.8663 | X130: 0.999992
B131: 882 | C131: 0.06758422217 | D131: 0.01536198792 | E131: 0.01779427527 | F131: 0.0572306713 | G131: 50 | H131: 0.1148837881 | I131: 11952393.34 | J131: 597619.6669 | L131: 0.999999 | N131: 882 | O131: 0.136914443 | P131: 0.0177628227 | Q131: 0.03863555522 | R131: 0.0591361747 | S131: 50 | T131: 0.2299191677 | U131: 9754957.075 | V131: 487747.8537 | X131: 0.999992
B132: 889 | C132: 0.06767117914 | D132: 0.01536201594 | E132: 0.01781921898 | F132: 0.05718880375 | G132: 50 | H132: 0.1149095784 | I132: 11954866.38 | J132: 597743.3192 | L132: 0.999999 | N132: 889 | O132: 0.1371207413 | P132: 0.01776155405 | Q132: 0.03882857302 | R132: 0.05936538132 | S132: 50 | T132: 0.2300609145 | U132: 9760393.941 | V132: 488019.697 | X132: 0.999992
B133: 896 | C133: 0.06775150351 | D133: 0.01536204473 | E133: 0.01784117839 | F133: 0.05714459269 | G133: 50 | H133: 0.1149289353 | I133: 11956722.52 | J133: 597836.1261 | L133: 0.999999 | N133: 896 | O133: 0.1373636606 | P133: 0.01776033248 | Q133: 0.03903077003 | R133: 0.0595836805 | S133: 50 | T133: 0.2302321008 | U133: 9766959.987 | V133: 488347.9994 | X133: 0.999993
B134: 903 | C134: 0.06782510778 | D134: 0.0153620741 | E134: 0.01786020771 | F134: 0.05709834294 | G134: 50 | H134: 0.114942016 | I134: 11957976.83 | J134: 597898.8417 | L134: 0.999999 | N134: 903 | O134: 0.1376407822 | P134: 0.01775916176 | Q134: 0.03924093087 | R134: 0.05979090885 | S134: 50 | T134: 0.230431399 | U134: 9774604.302 | V134: 488730.2151 | X134: 0.999993
B135: 910 | C135: 0.06789195837 | D135: 0.01536210387 | E135: 0.01787637885 | F135: 0.05705034317 | G135: 50 | H135: 0.1149490011 | I135: 11958646.64 | J135: 597932.332 | L135: 0.999999 | N135: 910 | O135: 0.1379496696 | P135: 0.01775804534 | Q135: 0.03945788009 | R135: 0.05998694721 | S135: 50 | T135: 0.2306574119 | U135: 9783273.289 | V135: 489163.6645 | X135: 0.999993
B136: 917 | C136: 0.06795207072 | D136: 0.01536213387 | E136: 0.01788977876 | F136: 0.05700086617 | G136: 50 | H136: 0.1149500923 | I136: 11958751.28 | J136: 597937.5639 | L136: 0.999999 | N136: 917 | O136: 0.1382878828 | P136: 0.0177569864 | Q136: 0.03968048605 | R136: 0.06017171661 | S136: 50 | T136: 0.2309086798 | U136: 9792910.965 | V136: 489645.5482 | X136: 0.999994
B137: 924 | C137: 0.06800550416 | D137: 0.01536216393 | E137: 0.01790050688 | F137: 0.05695016931 | G137: 50 | H137: 0.11494551 | I137: 11958311.87 | J137: 597915.5937 | L137: 0.999999 | N137: 924 | O137: 0.1386529917 | P137: 0.01775598778 | Q137: 0.03990766393 | R137: 0.06034517455 | S137: 50 | T137: 0.2311836889 | U137: 9803459.259 | V137: 490172.9629 | X137: 0.999994
B138: 931 | C138: 0.06805235695 | D138: 0.01536219388 | E138: 0.01790867274 | F138: 0.05689849512 | G138: 50 | H138: 0.1149354908 | I138: 11957351.13 | J138: 597867.5564 | L138: 0.999999 | N138: 931 | O138: 0.139042587 | P138: 0.01775505197 | Q138: 0.040138378 | R138: 0.06050731161 | S138: 50 | T138: 0.2314808787 | U138: 9814858.318 | V138: 490742.9159 | X138: 0.999994
B139: 1631 | C139: 0.06809276139 | D139: 0.01536222356 | E139: 0.01791439371 | F139: 0.05684607209 | G139: 50 | H139: 0.1149202857 | I139: 11955893.11 | J139: 597794.6555 | L139: 1 | N139: 938 | O139: 0.1394542913 | P139: 0.01775418116 | Q139: 0.04037164319 | R139: 0.06065814829 | S139: 50 | T139: 0.2317986501 | U139: 9827046.811 | V139: 491352.3405 | X139: 0.999994
N140: 945 | O140: 0.1398857678 | P140: 0.01775337717 | Q140: 0.04060652604 | R140: 0.06079773223 | S140: 50 | T140: 0.2321353735 | U140: 9839962.228 | V140: 491998.1114 | X140: 0.999995
N141: 952 | O141: 0.1403347285 | P141: 0.01775264148 | Q141: 0.04084214506 | R141: 0.06092613563 | S141: 50 | T141: 0.2324893962 | U141: 9853541.181 | V141: 492677.0591 | X141: 0.999995
N142: 959 | O142: 0.1407989405 | P142: 0.01775197521 | Q142: 0.04107767068 | R142: 0.06104345303 | S142: 50 | T142: 0.2328590503 | U142: 9867719.695 | V142: 493385.9847 | X142: 0.999995
N143: 966 | O143: 0.1412762326 | P143: 0.01775137916 | Q143: 0.04131232468 | R143: 0.06114979922 | S143: 50 | T143: 0.2332426599 | U143: 9882433.489 | V143: 494121.6745 | X143: 0.999995
N144: 973 | O144: 0.1417644992 | P144: 0.01775085378 | Q144: 0.04154537938 | R144: 0.06124530756 | S144: 50 | T144: 0.2336385486 | U144: 9897618.259 | V144: 494880.913 | X144: 0.999995
N145: 980 | O145: 0.1422617051 | P145: 0.01775039918 | Q145: 0.04177615645 | R145: 0.0613301283 | S145: 50 | T145: 0.2340450459 | U145: 9913209.939 | V145: 495660.497 | X145: 0.999996
N146: 987 | O146: 0.1427658881 | P146: 0.01775001514 | Q146: 0.04200402553 | R146: 0.06140442731 | S146: 50 | T146: 0.2344604946 | U146: 9929144.956 | V146: 496457.2478 | X146: 0.999996
N147: 994 | O147: 0.1432751614 | P147: 0.01774970115 | Q147: 0.04222840267 | R147: 0.06146838481 | S147: 50 | T147: 0.2348832562 | U147: 9945360.472 | V147: 497268.0236 | X147: 0.999996
N148: 1001 | O148: 0.1437877157 | P148: 0.01774945637 | Q148: 0.04244874861 | R148: 0.06152219439 | S148: 50 | T148: 0.2353117177 | U148: 9961794.611 | V148: 498089.7306 | X148: 0.999996
N149: 1008 | O149: 0.1443018205 | P149: 0.01774927969 | Q149: 0.04266456695 | R149: 0.06156606205 | S149: 50 | T149: 0.2357442966 | U149: 9978386.677 | V149: 498919.3338 | X149: 0.999996
N150: 1015 | O150: 0.1448158242 | P150: 0.01774916971 | Q150: 0.04287540237 | R150: 0.06160020543 | S150: 50 | T150: 0.2361794462 | U150: 9995077.345 | V150: 499753.8673 | X150: 0.999996
N151: 1022 | O151: 0.1453281549 | P151: 0.01774912478 | Q151: 0.04308083867 | R151: 0.06162485314 | S151: 50 | T151: 0.2366156605 | U151: 10011808.85 | V151: 500590.4427 | X151: 0.999996
N152: 1029 | O152: 0.1458373201 | P152: 0.01774914302 | Q152: 0.04328049691 | R152: 0.06164024413 | S152: 50 | T152: 0.2370514787 | U152: 10028525.17 | V152: 501426.2585 | X152: 0.999996
N153: 1036 | O153: 0.1463419061 | P153: 0.01774922232 | Q153: 0.0434740336 | R153: 0.06164662714 | S153: 50 | T153: 0.2374854889 | U153: 10045172.14 | V153: 502258.6068 | X153: 0.999997
N154: 1043 | O154: 0.1468405776 | P154: 0.01774936036 | Q154: 0.04366113885 | R154: 0.06164426025 | S154: 50 | T154: 0.2379163318 | U154: 10061697.62 | V154: 503084.8808 | X154: 0.999997
N155: 1050 | O155: 0.1473320763 | P155: 0.01774955465 | Q155: 0.04384153465 | R155: 0.06163341039 | S155: 50 | T155: 0.2383427038 | U155: 10078051.61 | V155: 503902.5805 | X155: 0.999997
N156: 1057 | O156: 0.14781522 | P156: 0.01774980255 | Q156: 0.0440149732 | R156: 0.06161435296 | S156: 50 | T156: 0.2387633598 | U156: 10094186.36 | V156: 504709.318 | X156: 0.999997
N157: 1064 | O157: 0.1482889013 | P157: 0.01775010124 | Q157: 0.04418123535 | R157: 0.06158737144 | S157: 50 | T157: 0.2391771156 | U157: 10110056.45 | V157: 505502.8224 | X157: 0.999997
N158: 1071 | O158: 0.148752086 | P158: 0.01775044782 | Q158: 0.04434012906 | R158: 0.06155275696 | S158: 50 | T158: 0.2395828499 | U158: 10125618.86 | V158: 506280.943 | X158: 0.999997
N159: 1078 | O159: 0.1492038116 | P159: 0.01775083929 | Q159: 0.04449148806 | R159: 0.06151080799 | S159: 50 | T159: 0.2399795058 | U159: 10140833.06 | V159: 507041.6529 | X159: 0.999997
N160: 1085 | O160: 0.1496431858 | P160: 0.01775127253 | Q160: 0.04463517052 | R160: 0.06146182991 | S160: 50 | T160: 0.2403660922 | U160: 10155661.03 | V160: 507783.0514 | X160: 0.999997
N161: 1092 | O161: 0.1500693848 | P161: 0.01775174441 | Q161: 0.04477105785 | R161: 0.06140613461 | S161: 50 | T161: 0.2407416844 | U161: 10170067.31 | V161: 508503.3653 | X161: 0.999997
N162: 1099 | O162: 0.1504816516 | P162: 0.01775225174 | Q162: 0.04489905358 | R162: 0.06134404017 | S162: 50 | T162: 0.2411054253 | U162: 10184019.01 | V162: 509200.9506 | X162: 0.999997
N163: 1106 | O163: 0.1508792941 | P163: 0.01775279131 | Q163: 0.04501908236 | R163: 0.06127587033 | S163: 50 | T163: 0.2414565252 | U163: 10197485.86 | V163: 509874.2928 | X163: 0.999997
N164: 1113 | O164: 0.1512616838 | P164: 0.01775335991 | Q164: 0.04513108899 | R164: 0.06120195415 | S164: 50 | T164: 0.2417942619 | U164: 10210440.14 | V164: 510522.0071 | X164: 0.999997
N165: 1120 | O165: 0.151628254 | P165: 0.01775395434 | Q165: 0.0452350376 | R165: 0.0611226255 | S165: 50 | T165: 0.2421179808 | U165: 10222856.76 | V165: 511142.8378 | X165: 0.999997
N166: 1127 | O166: 0.1519784979 | P166: 0.01775457144 | Q166: 0.04533091085 | R166: 0.06103822258 | S166: 50 | T166: 0.2424270939 | U166: 10234713.15 | V166: 511735.6575 | X166: 0.999997
N167: 1134 | O167: 0.1523119671 | P167: 0.01775520809 | Q167: 0.04541870919 | R167: 0.06094908744 | S167: 50 | T167: 0.2427210796 | U167: 10245989.31 | V167: 512299.4655 | X167: 0.999997
N168: 1141 | O168: 0.1526282704 | P168: 0.01775586124 | Q168: 0.04549845027 | R168: 0.06085556541 | S168: 50 | T168: 0.2429994812 | U168: 10256667.73 | V168: 512833.3865 | X168: 0.999997
N169: 1148 | O169: 0.1529270716 | P169: 0.01775652791 | Q169: 0.04557016827 | R169: 0.06075800459 | S169: 50 | T169: 0.2432619065 | U169: 10266733.36 | V169: 513336.6678 | X169: 0.999997
N170: 1155 | O170: 0.1532080883 | P170: 0.01775720519 | Q170: 0.04563391338 | R170: 0.06065675523 | S170: 50 | T170: 0.2435080259 | U170: 10276173.56 | V170: 513808.6778 | X170: 0.999997
N171: 1162 | O171: 0.1534710904 | P171: 0.01775789029 | Q171: 0.04568975128 | R171: 0.06055216912 | S171: 50 | T171: 0.2437375716 | U171: 10284978.05 | V171: 514248.9023 | X171: 0.999997
N172: 1169 | O172: 0.1537158987 | P172: 0.01775858049 | Q172: 0.04573776266 | R172: 0.06044459902 | S172: 50 | T172: 0.2439503352 | U172: 10293138.84 | V172: 514656.9422 | X172: 0.999997
N173: 1176 | O173: 0.1539423834 | P173: 0.01775927322 | Q173: 0.04577804277 | R173: 0.06033439794 | S173: 50 | T173: 0.244146167 | U173: 10300650.2 | V173: 515032.51 | X173: 0.999997
N174: 1183 | O174: 0.1541504625 | P174: 0.01775996601 | Q174: 0.04581070093 | R174: 0.06022191851 | S174: 50 | T174: 0.2443249735 | U174: 10307508.53 | V174: 515375.4265 | X174: 0.999997
N175: 1190 | O175: 0.154340101 | P175: 0.01776065649 | Q175: 0.04583586018 | R175: 0.06010751228 | S175: 50 | T175: 0.2444867158 | U175: 10313712.35 | V175: 515685.6173 | X175: 0.999997
N176: 1197 | O176: 0.1545113088 | P176: 0.01776134246 | Q176: 0.04585365681 | R176: 0.05999152904 | S176: 50 | T176: 0.2446314077 | U176: 10319262.17 | V176: 515963.1086 | X176: 0.999997
N177: 1204 | O177: 0.1546641402 | P177: 0.01776202182 | Q177: 0.04586423996 | R177: 0.05987431607 | S177: 50 | T177: 0.2447591136 | U177: 10324160.48 | V177: 516208.024 | X177: 0.999998
N178: 1211 | O178: 0.1547986919 | P178: 0.01776269261 | Q178: 0.0458677712 | R178: 0.05975621744 | S178: 50 | T178: 0.2448699465 | U178: 10328411.6 | V178: 516420.5802 | X178: 0.999998
N179: 1218 | O179: 0.1549151021 | P179: 0.01776335299 | Q179: 0.04586442411 | R179: 0.05963757328 | S179: 50 | T179: 0.2449640658 | U179: 10332021.66 | V179: 516601.083 | X179: 0.999998
N180: 1225 | O180: 0.1550135489 | P180: 0.01776400127 | Q180: 0.04585438384 | R180: 0.05951871905 | S180: 50 | T180: 0.2450416754 | U180: 10334998.46 | V180: 516749.9232 | X180: 0.999998
N181: 1232 | O181: 0.1550942495 | P181: 0.01776463588 | Q181: 0.04583784664 | R181: 0.05939998478 | S181: 50 | T181: 0.2451030211 | U181: 10337351.45 | V181: 516867.5726 | X181: 0.999998
N182: 1239 | O182: 0.1551574583 | P182: 0.01776525536 | Q182: 0.04581501943 | R182: 0.05928169435 | S182: 50 | T182: 0.245148389 | U182: 10339091.59 | V182: 516954.5795 | X182: 0.999998
N183: 1246 | O183: 0.155203466 | P183: 0.0177658584 | Q183: 0.0457861193 | R183: 0.05916416477 | S183: 50 | T183: 0.2451781028 | U183: 10340231.3 | V183: 517011.5649 | X183: 0.999998
N184: 1253 | O184: 0.1552325982 | P184: 0.0177664438 | Q184: 0.04575137297 | R184: 0.05904770547 | S184: 50 | T184: 0.2451925218 | U184: 10340784.36 | V184: 517039.2178 | X184: 0.999998
N185: 1260 | O185: 0.1552452138 | P185: 0.01776701049 | Q185: 0.04571101633 | R185: 0.05893261755 | S185: 50 | T185: 0.2451920389 | U185: 10340765.83 | V185: 517038.2916 | X185: 0.999998
N186: 1267 | O186: 0.155241704 | P186: 0.01776755749 | Q186: 0.04566529382 | R186: 0.05881919314 | S186: 50 | T186: 0.2451770779 | U186: 10340191.99 | V186: 517009.5993 | X186: 0.999998
N187: 1274 | O187: 0.1552224906 | P187: 0.01776808393 | Q187: 0.04561445789 | R187: 0.05870771471 | S187: 50 | T187: 0.245148092 | U187: 10339080.2 | V187: 516954.0099 | X187: 0.999998
N188: 1281 | O188: 0.1551880248 | P188: 0.01776858908 | Q188: 0.04555876841 | R188: 0.05859845442 | S188: 50 | T188: 0.245105561 | U188: 10337448.87 | V188: 516872.4436 | X188: 0.999998
N189: 1288 | O189: 0.1551387857 | P189: 0.01776907226 | Q189: 0.04549849202 | R189: 0.05849167348 | S189: 50 | T189: 0.2450499895 | U189: 10335317.36 | V189: 516765.8681 | X189: 0.999998
N190: 1295 | O190: 0.1550752785 | P190: 0.0177695329 | Q190: 0.0454339015 | R190: 0.05838762159 | S190: 50 | T190: 0.2449819048 | U190: 10332705.89 | V190: 516635.2947 | X190: 0.999998
N191: 1302 | O191: 0.1549980334 | P191: 0.01776997055 | Q191: 0.04536527512 | R191: 0.05828653636 | S191: 50 | T191: 0.2449018545 | U191: 10329635.47 | V191: 516481.7736 | X191: 0.999998
N192: 1309 | O192: 0.1549076039 | P192: 0.01777038479 | Q192: 0.04529289593 | R192: 0.05818864277 | S192: 50 | T192: 0.2448104048 | U192: 10326127.81 | V192: 516306.3906 | X192: 0.999998
N193: 1316 | O193: 0.1548045651 | P193: 0.01777077531 | Q193: 0.04521705107 | R193: 0.0580941527 | S193: 50 | T193: 0.244708138 | U193: 10322205.25 | V193: 516110.2626 | X193: 0.999998
N194: 1323 | O194: 0.1546895121 | P194: 0.01777114187 | Q194: 0.04513803106 | R194: 0.05800326445 | S194: 50 | T194: 0.2445956511 | U194: 10317890.68 | V194: 515894.5342 | X194: 0.999999
N195: 1330 | O195: 0.1545630582 | P195: 0.0177714843 | Q195: 0.04505612903 | R195: 0.05791616239 | S195: 50 | T195: 0.2444735529 | U195: 10313207.47 | V195: 515660.3734 | X195: 0.999999
N196: 1337 | O196: 0.1544258338 | P196: 0.01777180249 | Q196: 0.04497164004 | R196: 0.05783301651 | S196: 50 | T196: 0.2443424631 | U196: 10308179.37 | V196: 515408.9683 | X196: 0.999999
N197: 1344 | O197: 0.1542784837 | P197: 0.01777209638 | Q197: 0.04488486025 | R197: 0.05775398217 | S197: 50 | T197: 0.2442030095 | U197: 10302830.46 | V197: 515141.523 | X197: 0.999999
N198: 1351 | O198: 0.1541216661 | P198: 0.01777236599 | Q198: 0.04479608623 | R198: 0.0576791998 | S198: 50 | T198: 0.2440558265 | U198: 10297185.08 | V198: 514859.2541 | X198: 0.999999
N199: 1358 | O199: 0.1539560506 | P199: 0.01777261139 | Q199: 0.04470561415 | R199: 0.05760879468 | S199: 50 | T199: 0.2439015531 | U199: 10291267.75 | V199: 514563.3874 | X199: 0.999999
N200: 1365 | O200: 0.1537823161 | P200: 0.01777283267 | Q200: 0.04461373901 | R200: 0.05754287676 | S200: 50 | T200: 0.2437408314 | U200: 10285103.08 | V200: 514255.154 | X200: 0.999999
N201: 1372 | O201: 0.1536011495 | P201: 0.01777303001 | Q201: 0.04452075392 | R201: 0.05748154056 | S201: 50 | T201: 0.2435743044 | U201: 10278715.74 | V201: 513935.7872 | X201: 0.999999
N202: 1379 | O202: 0.1534132433 | P202: 0.0177732036 | Q202: 0.04442694932 | R202: 0.0574248651 | S202: 50 | T202: 0.2434026145 | U202: 10272130.38 | V202: 513606.5188 | X202: 0.999999
... 36 more rows

Sheet DetailedResults
A1: ResultsCM!B | G1: =INDIRECT($A$1&(A7+G2)) -> 50
G2: 0 | K2: 120
G3: Case 1 | K3: Case 2
C5: Results for the last sorting cycle
A7: 62 | B7: L1 | C7: Sensor Operational Threshold: | G7: =INDIRECT($A$1&($A7+G$2)) -> 50 | K7: =ResultsCM!B182 -> 50
C9: Composition of Note Set sent to the NCB
A10: 63 | B10: L2 | C10: Average soil level of notes: | G10: =INDIRECT($A$1&($A10+G$2)) -> 27.37967863 | K10: =INDIRECT($A$1&($A10+K$2)) -> 31.26592348
A11: 65 | B11: L3 | C11: Real Fit: | G11: 0.9318731209 | K11: 0.852704304
A12: 66 | B12: L4 | C12: Real Unfit: | G12: 0.06812687905 | K12: 0.147295696
C15: Sorting result of complete Input
A16: 69 | B16: L5 | C16: Correct Fit absolute (CF): | G16: =INDIRECT($A$1&($A16+G$2)) -> 0.8692240478 | K16: =INDIRECT($A$1&($A16+K$2)) -> 0.7295097957
A17: 70 | B17: L6 | C17: Correct Unfit absolute (CU): | G17: 0.05807421363 | K17: 0.1801970093
A18: 71 | B18: L7 | C18: False Fit absolute (FF): | G18: 0.01585566646 | K18: 0.03224503796
A19: 72 | B19: L8 | C19: False Unfit absolute (FU): | G19: 0.05684607209 | K19: 0.05804815703
C20: Total: | G20: =SUM(G16:G19) -> 1 | K20: =SUM(K16:K19) -> 1
A22: 73 | B22: L9 | C22: False Fit relative (FF/(CF+FF)): | G22: =INDIRECT($A$1&($A22+G$2)) -> 0.01791439371 | K22: =INDIRECT($A$1&($A22+K$2)) -> 0.04232994204
A23: 74 | B23: L10 | C23: False Unfit relative (FU/(CU+FU)): | G23: 0.4946565503 | K23: 0.2436488342
A25: 75 | B25: L11 | C25: Shred Rate (CU+FU): | G25: 0.1149202857 | K25: =INDIRECT($A$1&($A25+K$2)) -> 0.2382451663
A28: 76 | B28: L12 | C28: Fitness decrease per model cycle (in fitness levels) | G28: =INDIRECT($A$1&($A28+G$2)) -> 0.4763888889 | K28: =INDIRECT($A$1&($A28+K$2)) -> 0.4763888889
C31: Note balance in the last sorting cycle
C33: Note balance
A34: 94 | B34: B1 | C34: Notes In Circulation: | G34: =INDIRECT($A$1&($A34+G$2)) -> 1000000000 | K34: =INDIRECT($A$1&($A34+K$2)) -> 1000000000
C36: ="All below figures quoted are per circulation model cycle ("&ResultsCM!B3&" days)" -> All below figures quoted are per circulation model cycle (7 days)
A37: 95 | B37: B2 | C37: Unprocessed: | G37: =INDIRECT($A$1&($A37+G$2)) -> 875976597.6 | K37: =INDIRECT($A$1&($A37+K$2)) -> 892763474.5
A39: 98 | B39: B3 | C39: Third Party processed: | G39: =INDIRECT($A$1&($A39+G$2)) -> 38356164.38 | H39: 1 | K39: =INDIRECT($A$1&($A39+K$2)) -> 95890410.96 | L39: 1
C40: resulting in
A41: 99 | B41: B4 | C41: Third party fit: | G41: =INDIRECT($A$1&($A41+G$2)) -> 37510655.28 | H41: =+G41/G39 -> 0.9779563699 | K41: =INDIRECT($A$1&($A41+K$2)) -> 91840481.55 | L41: =+K41/K39 -> 0.9577650219
A42: 100 | B42: B5 | C42: Third party unfit: | G42: 845509.1012 | H42: =G42/G39 -> 0.02204363014 | K42: 4049929.409 | L42: =K42/K39 -> 0.04223497812
A44: 102 | B44: B6 | C44: NCB processed: | G44: =INDIRECT($A$1&($A44+G$2)) -> 95890410.96 | H44: 1 | K44: =INDIRECT($A$1&($A44+K$2)) -> 38356164.38 | L44: 1
C45: of which
A46: 103 | B46: B7 | C46: Circulation notes: | G46: =INDIRECT($A$1&($A46+G$2)) -> 85667238.04 | H46: =G46/G$44 -> 0.893386911 | K46: =INDIRECT($A$1&($A46+K$2)) -> 11346114.59 | L46: =K46/K$44 -> 0.295809416
A47: 104 | B47: B8 | C47: Third party fit: | G47: 9377663.821 | H47: =G47/G$44 -> 0.09779563699 | K47: =INDIRECT($A$1&($A47+K$2)) -> 22960120.39 | L47: =K47/K$44 -> 0.5986031387
A48: 100 | B48: B9 | C48: Third party unfit: | G48: 845509.1012 | H48: =G48/G$44 -> 0.008817452055 | K48: 4049929.409 | L48: =K48/K$44 -> 0.1055874453
C49: resulting in
A50: 105 | B50: B10 | C50: NCB Fit: | G50: =INDIRECT($A$1&($A50+G$2)) -> 84870657.53 | H50: =G50/G$44 -> 0.8850797143 | K50: =INDIRECT($A$1&($A50+K$2)) -> 29217993.62 | L50: =K50/K$44 -> 0.7617548337
A51: 106 | B51: B11 | C51: NCB Unfit: | G51: 11019753.43 | H51: =G51/G$44 -> 0.1149202857 | K51: 9138170.764 | L51: =K51/K$44 -> 0.2382451663
A53: 96 | B53: B12 | C53: Notes incoming from outside: | G53: 0 | K53: =INDIRECT($A$1&($A53+K$2)) -> 0
A54: 97 | B54: B13 | C54: Notes leaving: | G54: 0 | K54: 0
A55: 107 | B55: B14 | C55: Fit notes put on NCB stock: | G55: 0 | K55: 0
A56: 108 | B56: B15 | C56: Note change due to circ. Increase / decrease: | G56: 936139.6841 | K56: 936139.6841
A57: 109 | B57: B16 | C57: Total New notes added: | G57: 11955893.11 | K57: 10074310.45
C60: Average note return times
A62: 110 | B62: RT1 | F62: Average return time to NCB (days): | G62: =INDIRECT($A$1&($A62+G$2)) -> 73 | K62: =INDIRECT($A$1&($A62+K$2)) -> 182.5
A63: 111 | B63: RT2 | F63: Average return time to Third Party (days): | G63: 182.5 | K63: 73
A64: 112 | B64: RT3 | F64: Average return time to either NCB or Third Party (days): | G64: 56.44096085 | K64: 65.27626631
D67: Case 2 to Case 1 comparison of evolution
D70: Case 1 | N70: Case 2
D172: Relative False Fit vs. relative False Unfit for Case1 (blue) and Case2 (red) Sensor working points at model result (SS) shown as dashed lines | N172: Value of False Unfit per year at relative False Fit level for Case1 (blue) and Case2 (red)

Sheet WhatIf
B1: With this sheet you can see how the model result changes when a parameter changes up or down. Useful for modelling a cash cycle to see which changes would lead to results matching real-life data or for assessing the sensitivity of the model to the different parameters. Only allows (for speed reasons) the modelling at a given NCB sorting threshold.
B5: Technical Parameters of the model
A7: T1 | B7: =Main!B11 -> No. of model cycles: | F7: 1000
A8: T2 | B8: =Main!B12 -> Cycle Duration (days): | F8: 7
A9: T3 | B9: =Main!B13 -> Note Life Calculation: | F9: Ideal
A11: T5 | B11: =Main!B16 -> Steady State Correlation Factor: | F11: 0.999999995
B15: Production | F15: Total | L15: Tolerances of Conditional Formattings: | M15: 0.2 | N15: 0.2 | O15: 0.2 | P15: 0.2 | Q15: 0.2 | R15: 0.2 | S15: 0.2 | T15: 0.2 | U15: 0.2 | V15: 0.2 | W15: 0.2 | X15: 0.2
A17: P1 | B17: =Main!B26 -> Note production and issuance costs (€/1,000 notes): | F17: 50 | M17: In Circulation | O17: NCB Sorting | U17: Recirc | V17: Note balances | X17: False Unfit costs | Y17: Model
J18: Param. | K18: Change by | L18: New value | M18: Total Unfit | N18: Defects | O18: Shred Rate | P18: Sensor Threshold | Q18: FF Rel | R18: FU Abs | S18: Total Unfit per year (millions) | T18: False Unfit per year (millions) | U18: Unfit % | V18: Fit notes put on stock per year (millions) | W18: New notes added per year (millions) | Y18: Cycles until SS
A19: P2 | B19: =Main!B28 -> New note fitness level: | F19: 1 | I19: Original Case | K19: X | L19: X | M19: 0.06647438364 | N19: 0.01536242149 | O19: 0.1125363922 | P19: 50 | Q19: 0.01715796412 | R19: 0.05538715826 | S19: 562.6819609 | T19: 276.9357913 | U19: 0.02199668455 | V19: 0 | W19: 611.4949587 | X19: 4640830.135 | Y19: 203
A20: P3 | B20: =Main!B29 -> St.Dev of new notes (in fitness levels): | F20: 5 | I20: =B19 -> New note fitness level: | J20: P2 | K20: 5 | L20: =NewNoteFitLevelWI2+K20 -> 6 | M20: 0.07254599277 | N20: 0.01536449687 | O20: 0.1218498547 | P20: 50 | Q20: 0.01949874898 | R20: 0.06046083457 | S20: 609.2492733 | T20: 302.3041728 | U20: 0.02264691571 | V20: 0 | W20: 658.0622711 | X20: 5034026.482 | Y20: 172
J21: P2 | K21: 10 | L21: =NewNoteFitLevelWI2+K21 -> 11 | M21: 0.07968657041 | N21: 0.01536773004 | O21: 0.1346925763 | P21: 50 | Q21: 0.02227294849 | R21: 0.06820798415 | S21: 673.4628816 | T21: 341.0399207 | U21: 0.0235393565 | V21: 0 | W21: 722.2758794 | X21: 5673529.141 | Y21: 167
B22: Circulation | I22: =B20 -> St.Dev of new notes (in fitness levels): | J22: P3 | K22: -4 | L22: =NewNoteStDevWI2+K22 -> 1 | M22: 0.0635892195 | N22: 0.01536021981 | O22: 0.1071286833 | P22: 50 | Q22: 0.01623423801 | R22: 0.05232563018 | S22: 535.6434163 | T22: 261.6281509 | U22: 0.02147670008 | V22: 0 | W22: 584.4564141 | X22: 4361840.983 | Y22: 262
J23: P3 | K23: 10 | L23: =NewNoteStDevWI2+K23 -> 15 | M23: 0.08252831565 | N23: 0.01536902835 | O23: 0.1396814263 | P23: 50 | Q23: 0.02340398004 | R23: 0.07121075398 | S23: 698.4071314 | T23: 356.0537699 | U23: 0.02389271335 | V23: 0 | W23: 747.2201293 | X23: 5897809.854 | Y23: 160
A24: C1 | B24: =Main!B34 -> Note distribution at start: | F24: 5%UnfitInCirc | I24: =B26 -> Notes in circulation: | J24: C2 | K24: -0.1 | L24: =NotesInCirculationWI2*(1+K24) -> 900000000 | M24: 0.05784611865 | N24: 0.01382727013 | O24: 0.1035559841 | P24: 50 | Q24: 0.01513597801 | R24: 0.0540830838 | S24: 517.7799207 | T24: 270.415419 | U24: 0.01921979744 | V24: 0 | W24: 561.7116188 | X24: 4558290.333 | Y24: 193
J25: C2 | K25: 0.1 | L25: =NotesInCirculationWI2*(1+K25) -> 1100000000 | M25: 0.07508879057 | N25: 0.0168984289 | O25: 0.121419643 | P25: 50 | Q25: 0.0191122895 | R25: 0.05649901491 | S25: 607.098215 | T25: 282.4950745 | U25: 0.02489845051 | V25: 0 | W25: 660.7925126 | X25: 4708730.739 | Y25: 211
A26: C2 | B26: =Main!B36 -> Notes in circulation: | F26: 1000000000 | I26: =B27 -> Annual change in note circulation: | J26: C3 | K26: -0.1 | L26: =CirculationIncreaseWI2+K26 -> -0.05 | M26: 0.07414426432 | N26: 0.01557609025 | O26: 0.1235116586 | P26: 50 | Q26: 0.01990958008 | R26: 0.0608209611 | S26: 617.5582929 | T26: 304.1048055 | U26: 0.02310068075 | V26: 0 | W26: 566.290219 | X26: 5040066.349 | Y26: 250
A27: C3 | B27: =Main!B37 -> Annual change in note circulation: | F27: 0.05 | J27: C3 | K27: 0.1 | L27: =CirculationIncreaseWI2+K27 -> 0.15 | M27: 0.06286622473 | N27: 0.01517378568 | O27: 0.1071551575 | P27: 50 | Q27: 0.01611931098 | R27: 0.05300598276 | S27: 535.7757873 | T27: 265.0299138 | U27: 0.02118992537 | V27: 0 | W27: 675.7252037 | X27: 4440459.302 | Y27: 166
I28: =B29 -> External notes entering per year: | J28: C4 | K28: 10000000 | L28: =NotesComingInWI2+K28 -> 10000000 | M28: 0.06720158877 | N28: 0.01540055227 | O28: 0.1135277993 | P28: 50 | Q28: 0.01737232837 | R28: 0.05579476301 | S28: 567.6389967 | T28: 278.9738151 | U28: 0.0221537662 | V28: 0 | W28: 606.4519945 | X28: 4672218.664 | Y28: 205
A29: C4 | B29: =Main!B39 -> External notes entering per year: | F29: 0 | J29: C4 | K29: 25000000 | L29: =NotesComingInWI2+K29 -> 25000000 | M29: 0.06835035812 | N29: 0.01545777871 | O29: 0.1150298577 | P29: 50 | Q29: 0.01771290162 | R29: 0.05637349759 | S29: 575.1492885 | T29: 281.8674879 | U29: 0.02239685288 | V29: 0 | W29: 598.9622863 | X29: 4716171.364 | Y29: 207
A30: C5 | B30: =Main!B40 -> Fitness distribution of external notes: | F30: 15%UnfitInCirc | I30: =B30 -> Fitness distribution of external notes: | J30: C5 | K30: New Notes | L30: =K30 -> New Notes | M30: 0.06647438364 | N30: 0.01536242149 | O30: 0.1125363922 | P30: 50 | Q30: 0.01715796412 | R30: 0.05538715826 | S30: 562.6819609 | T30: 276.9357913 | U30: 0.02199668455 | V30: 0 | W30: 611.4949587 | X30: 4640830.135 | Y30: 203
J31: C5 | K31: 5%UnfitInCirc | L31: =K31 -> 5%UnfitInCirc | M31: 0.06647438364 | N31: 0.01536242149 | O31: 0.1125363922 | P31: 50 | Q31: 0.01715796412 | R31: 0.05538715826 | S31: 562.6819609 | T31: 276.9357913 | U31: 0.02199668455 | V31: 0 | W31: 611.4949587 | X31: 4640830.135 | Y31: 203
A32: C6 | B32: =Main!B42 -> Notes leaving per year: | F32: 0 | I32: =B32 -> Notes leaving per year: | J32: C6 | K32: 500000000 | L32: =NotesLeavingWI2+K32 -> 500000000 | M32: 0.04119211273 | N32: 0.01425321717 | O32: 0.07760852143 | P32: 50 | Q32: 0.009165951249 | R32: 0.04014749506 | S32: 388.0426071 | T32: 200.7374753 | U32: 0.01750519816 | V32: 0 | W32: 936.855605 | X32: 3464761.692 | Y32: 119
J33: C6 | K33: 250000000 | L33: =NotesLeavingWI2+K33 -> 250000000 | M33: 0.05292476288 | N33: 0.01478594245 | O33: 0.09460843927 | P33: 50 | Q33: 0.01294493418 | R33: 0.04820517023 | S33: 473.0421964 | T33: 241.0258512 | U33: 0.01948462871 | V33: 0 | W33: 771.8551942 | X33: 4086109.282 | Y33: 136
B34: Note Life | I34: =B36 -> Ageing Model: | J34: N1 | K34: Exponential | L34: =K34 -> Exponential | M34: 0.06840321507 | N34: 0.01536397569 | O34: 0.1137160226 | P34: 50 | Q34: 0.01767900768 | R34: 0.05498407651 | S34: 568.5801132 | T34: 274.9203826 | U34: 0.02235342607 | V34: 0 | W34: 617.393111 | X34: 4590341.128 | Y34: 180
J35: N1 | K35: LogNormal 0.8 | L35: LogNormal 0.8 | M35: 0.06883214275 | N35: 0.01536734087 | O35: 0.1141068841 | P35: 50 | Q35: 0.01758857958 | R35: 0.05483440023 | S35: 570.5344203 | T35: 274.1720012 | U35: 0.02266982448 | V35: 0 | W35: 619.3474181 | X35: 4577584.222 | Y35: 167
A36: N1 | B36: =Main!B46 -> Ageing Model: | F36: Poisson | J36: N1 | K36: Gamma a1 | L36: Gamma a1 | M36: 0.06873905055 | N36: 0.01536451539 | O36: 0.1140774834 | P36: 50 | Q36: 0.0177438285 | R36: 0.05506167576 | S36: 570.387417 | T36: 275.3083788 | U36: 0.02244691357 | V36: 0 | W36: 619.2004148 | X36: 4593896.36 | Y36: 174
A37: N2 | B37: =Main!B47 -> Theoretical note life (soil only, in months): | F37: 24 | J37: N1 | K37: Gamma a10 | L37: Gamma a10 | M37: 0.06994558064 | N37: 0.01637241725 | O37: 0.103861677 | P37: 50 | Q37: 0.01304697793 | R37: 0.03738182317 | S37: 519.308385 | T37: 186.9091159 | U37: 0.0299613927 | V37: 0 | W37: 568.1213828 | X37: 3191393.784 | Y37: 90
J38: N1 | K38: Gamma a9 | L38: Gamma a9 | M38: 0.06992826827 | N38: 0.01613078043 | O38: 0.1045427864 | P38: 50 | Q38: 0.01344568725 | R38: 0.03866145037 | S38: 522.7139318 | T38: 193.3072519 | U38: 0.02917167235 | V38: 0 | W38: 571.5269296 | X38: 3294708.741 | Y38: 92
A39: N3 | B39: =Main!B49 -> Defect likelihood (% per year): | F39: 0.1 | J39: N1 | K39: Weibull k1.5 | L39: Weibull k1.5 | M39: 0.06555120658 | N39: 0.01536100702 | O39: 0.1131140771 | P39: 50 | Q39: 0.01709810775 | R39: 0.05699039012 | S39: 565.5703853 | T39: 284.9519506 | U39: 0.02169124649 | V39: 0 | W39: 614.3833831 | X39: 4771553.518 | Y39: 219
A40: N4 | B40: =Main!B50 -> Defect profile: | F40: IncreaseFrom1 | I40: =B37 -> Theoretical note life (soil only, in months): | J40: N2 | K40: -10 | L40: =NoteLifeTimeWI2+K40 -> 14 | M40: 0.1294326081 | N40: 0.01552219079 | O40: 0.1737672267 | P40: 50 | Q40: 0.03343047314 | R40: 0.06259421847 | S40: 868.8361334 | T40: 312.9710923 | U40: 0.03702513984 | V40: 0 | W40: 917.6491312 | X40: 5058965.6 | Y40: 177
J41: N2 | K41: 10 | L41: =NoteLifeTimeWI2+K41 -> 34 | M41: 0.04078276682 | N41: 0.0153483194 | O41: 0.0859616319 | P41: 50 | Q41: 0.009238615857 | R41: 0.04866317595 | S41: 429.8081595 | T41: 243.3158797 | U41: 0.01822555294 | V41: 0 | W41: 478.6211573 | X41: 4211715.92 | Y41: 163
A42: N5 | B42: =Main!B52 -> Guideline Fit/Unfit threshold (in fitness levels): | F42: 50 | I42: =B39 -> Defect likelihood (% per year): | J42: N3 | K42: -0.05 | L42: =CEperYearWI2+K42 -> 0.05 | M42: 0.06317745957 | N42: 0.007669267311 | O42: 0.1093223079 | P42: 50 | Q42: 0.01850258707 | R42: 0.05876991153 | S42: 546.6115396 | T42: 293.8495576 | U42: 0.01493755135 | V42: 0 | W42: 595.4245374 | X42: 4901494.635 | Y42: 219
J43: N3 | K43: 0.1 | L43: =CEperYearWI2+K43 -> 0.2 | M43: 0.07442289521 | N43: 0.03082452028 | O43: 0.1217097459 | P43: 50 | Q43: 0.0150490418 | R43: 0.05069840252 | S43: 608.5487293 | T43: 253.4920126 | U43: 0.03625014812 | V43: 0 | W43: 657.3617271 | X43: 4266997.212 | Y43: 166
B44: Third Party Fitness Sorting (Recirculation) | I44: =B40 -> Defect profile: | J44: N4 | K44: Constant | L44: =K44 -> Constant | M44: 0.06924970518 | N44: 0.01536437664 | O44: 0.1154329505 | P44: 50 | Q44: 0.01797459211 | R44: 0.05608481622 | S44: 577.1647524 | T44: 280.4240811 | U44: 0.02247509115 | V44: 0 | W44: 625.9777502 | X44: 4684194.056 | Y44: 207
J45: N4 | K45: Increase25-100 | L45: =K45 -> Increase25-100 | M45: 0.06180445523 | N45: 0.01535918868 | O45: 0.1091358719 | P45: 50 | Q45: 0.01587620972 | R45: 0.05579485379 | S45: 545.6793594 | T45: 278.974269 | U45: 0.02117786629 | V45: 0 | W45: 594.4923572 | X45: 4701184.846 | Y45: 210
A46: R1 | B46: =Main!B56 -> Annual Third Party (3P) sorting volume: | F46: 2000000000 | J46: N4 | K46: Increase50-75 | L46: =K46 -> Increase50-75 | M46: 0.05392205682 | N46: 0.0153508199 | O46: 0.1073184992 | P46: 50 | Q46: 0.01544384381 | R46: 0.06221068899 | S46: 536.592496 | T46: 311.0534449 | U46: 0.01892799314 | V46: 0 | W46: 585.4054939 | X46: 5160381.433 | Y46: 227
A47: R2 | B47: =Main!B57 -> % of 3P fit notes returned to NCB: | F47: 0.25 | I47: =B46 -> Annual Third Party (3P) sorting volume: | J47: R1 | K47: -0.1 | L47: =RecirculationVolumeWI2*(1+K47) -> 1800000000 | M47: 0.06685018292 | N47: 0.01571764438 | O47: 0.1124815957 | P47: 50 | Q47: 0.01711658826 | R47: 0.05541441305 | S47: 562.4079786 | T47: 277.0720652 | U47: 0.02238388445 | V47: 0 | W47: 611.2209764 | X47: 4643744.376 | Y47: 204
J48: R1 | K48: 0.1 | L48: =RecirculationVolumeWI2*(1+K48) -> 2200000000 | M48: 0.06606253918 | N48: 0.01502268078 | O48: 0.1125864188 | P48: 50 | Q48: 0.0171841255 | R48: 0.05540051167 | S48: 562.9320939 | T48: 277.0025583 | U48: 0.02161854192 | V48: 0 | W48: 611.7450917 | X48: 4641582.273 | Y48: 203
A49: R3 | B49: =Main!B59 -> 3P fitness sorting threshold: | F49: 70 | I49: =B47 -> % of 3P fit notes returned to NCB: | J49: R2 | K49: -0.1 | L49: =RecircFitBackToNCBPercWI2+K49 -> 0.15 | M49: 0.06592838355 | N49: 0.0149127074 | O49: 0.1126027024 | P49: 50 | Q49: 0.01719273711 | R49: 0.05540489958 | S49: 563.013512 | T49: 277.0244979 | U49: 0.02149594578 | V49: 0 | W49: 611.8265098 | X49: 4641829.378 | Y49: 203
A50: R4 | B50: =Main!B60 -> 3P St.Dev of sorting sensor (in fitness levels): | F50: 10 | J50: R2 | K50: 0.1 | L50: =RecircFitBackToNCBPercWI2+K50 -> 0.35 | M50: 0.06699582515 | N50: 0.01583968867 | O50: 0.1124639672 | P50: 50 | Q50: 0.01710760326 | R50: 0.0554098545 | S50: 562.3198362 | T50: 277.0492725 | U50: 0.02251918071 | V50: 0 | W50: 611.1328341 | X50: 4643488.293 | Y50: 204
I51: =B49 -> 3P fitness sorting threshold: | J51: R3 | K51: -10 | L51: =RecircThresholdWI2+K51 -> 60 | M51: 0.06352308255 | N51: 0.01543692369 | O51: 0.1129231294 | P51: 50 | Q51: 0.01750401143 | R51: 0.05605316549 | S51: 564.615647 | T51: 280.2658274 | U51: 0.04290302314 | V51: 0 | W51: 613.4286449 | X51: 4685887.307 | Y51: 204
B52: NCB Fitness Sorting | J52: R3 | K52: 10 | L52: =RecircThresholdWI2+K52 -> 80 | M52: 0.06752432166 | N52: 0.01534348865 | O52: 0.1124153578 | P52: 50 | Q52: 0.01701569934 | R52: 0.05531534432 | S52: 562.0767891 | T52: 276.5767216 | U52: 0.01657374924 | V52: 0 | W52: 610.8897869 | X52: 4636644.074 | Y52: 203
I53: =B50 -> 3P St.Dev of sorting sensor (in fitness levels): | J53: R4 | K53: -4 | L53: =RecircStDevWI2+K53 -> 6 | M53: 0.06719165664 | N53: 0.01534797254 | O53: 0.1124538905 | P53: 50 | Q53: 0.01703751556 | R53: 0.05530733935 | S53: 562.2694527 | T53: 276.5366968 | U53: 0.01794919683 | V53: 0 | W53: 611.0824505 | X53: 4635959.602 | Y53: 203
A54: F1 | B54: =Main!B64 -> NCB sorting costs (€/1,000 notes): | F54: 10 | J54: R4 | K54: 10 | L54: =RecircStDevWI2+K54 -> 20 | M54: 0.06463257706 | N54: 0.01547390819 | O54: 0.1128701799 | P54: 50 | Q54: 0.01724146094 | R54: 0.05619571261 | S54: 564.3508994 | T54: 280.978563 | U54: 0.05325950182 | V54: 0 | W54: 613.1638973 | X54: 4701242.762 | Y54: 203
A55: F2 | B55: =Main!B65 -> Residual note value at threshold: | F55: 0.2 | I55: =B57 -> Annual NCB sorting volume: | J55: F3 | K55: -0.15 | L55: =NCBProcessingVolumeWI2*(1+K55) -> 4250000000 | M55: 0.08077652002 | N55: 0.01738276262 | O55: 0.128221553 | P55: 50 | Q55: 0.02061600852 | R55: 0.0572168029 | S55: 544.9416004 | T55: 243.1714123 | U55: 0.02639787612 | V55: 0 | W55: 593.7545982 | X55: 4037773.541 | Y55: 216
J56: F3 | K56: 0.1 | L56: =NCBProcessingVolumeWI2*(1+K56) -> 5500000000 | M56: 0.05897906218 | N56: 0.01426045186 | O56: 0.1043341725 | P56: 50 | Q56: 0.01530282341 | R56: 0.05419395617 | S56: 573.8379489 | T56: 298.0667589 | U56: 0.01978683766 | V56: 0 | W56: 622.6509467 | X56: 5021969.796 | Y56: 194
A57: F3 | B57: =Main!B67 -> Annual NCB sorting volume: | F57: 5000000000 | I57: =B60 -> NCB St.Dev of sorting sensor (in fitness levels): | J57: F5 | K57: -4 | L57: =SensorStDevWI2+K57 -> 6 | M57: 0.07748577224 | N57: 0.01536551945 | O57: 0.1058645588 | P57: 50 | Q57: 0.01584226216 | R57: 0.03651792341 | S57: 529.3227942 | T57: 182.589617 | U57: 0.02290204763 | V57: 0 | W57: 578.135792 | X57: 2546302.763 | Y57: 294
A58: F4 | B58: =Main!B68 -> NCB sorts 3P pre-precessed notes only: | F58: No | J58: F5 | K58: 10 | L58: =SensorStDevWI2+K58 -> 20 | M58: 0.04720405591 | N58: 0.01535536266 | O58: 0.1496739863 | P58: 50 | Q58: 0.01428435001 | R58: 0.1092088024 | S58: 748.3699316 | T58: 546.044012 | U58: 0.01992863923 | V58: 0 | W58: 797.1829294 | X58: 13284532.43 | Y58: 108
I59: =B63 -> Fitness sensor sorting threshold (fitness levels): | J59: S1 | K59: -5 | L59: =InputSensThresholdWI2+K59 -> 45 | M59: 0.04116983094 | N59: 0.01535017748 | O59: 0.1273761639 | P59: 45 | Q59: 0.004973348787 | R59: 0.08542407724 | S59: 636.8808197 | T59: 427.1203862 | U59: 0.0186578658 | V59: 0 | W59: 685.6938175 | X59: 8022554.843 | Y59: 109
A60: F5 | B60: =Main!B70 -> NCB St.Dev of sorting sensor (in fitness levels): | F60: 10 | J60: S1 | K60: 5 | L60: =InputSensThresholdWI2+K60 -> 55 | M60: 0.1064125643 | N60: 0.01538395393 | O60: 0.1037801186 | P60: 55 | Q60: 0.04574995132 | R60: 0.03129951614 | S60: 518.9005931 | T60: 156.4975807 | U60: 0.02791125721 | V60: 0 | W60: 567.7135909 | X60: 2388341.736 | Y60: 283
B62: NCB Sorting Policy
A63: S1 | B63: =Main!B74 -> Fitness sensor sorting threshold (fitness levels): | F63: 50

Sheet Variability
B1: With this sheet you can see how the model result changes when the NCB or CH sorting volume is adjusted. Useful for studying policy changes to a known cash cycle.
B5: Technical Parameters of the model | J5: From | K5: To
I6: NCB Sorting Volume in rel. to [F3]: | J6: 0.5 | K6: 2
A7: T1 | B7: =Main!B11 -> No. of model cycles: | F7: 1000 | I7: CH Sorting Volume in rel. to [F1]: | J7: 0.5 | K7: 2
A8: T2 | B8: =Main!B12 -> Cycle Duration (days): | F8: 7
A9: T3 | B9: =Main!B13 -> Note Life Calculation: | F9: Ideal | I9: Number of Steps | J9: 11
A11: T5 | B11: =Main!B16 -> Steady State Correlation Factor: | F11: 0.999999995
N13: Unfit in circulation (%)
O14: CH Sorting (M)
B15: Production | F15: Total | O15: 1000000000 | P15: 1300000000 | Q15: 1600000000 | R15: 1900000000 | S15: 2200000000 | T15: 2500000000 | U15: 2800000000 | V15: 3100000000 | W15: 3400000000 | X15: 3700000000 | Y15: 4000000000
M16: NCB Sorting (M) | N16: 2500000000 | O16: 0.1465791426 | P16: 0.1439679917 | Q16: 0.141608539 | R16: 0.1394494916 | S16: 0.1374200221 | T16: 0.1355828541 | U16: 0.1338278058 | V16: 0.1322425628 | W16: 0.1307028145 | X16: 0.1293195099 | Y16: 0.1279523139
A17: P1 | B17: =Main!B26 -> Note production and issuance costs (€/1,000 notes): | F17: 50 | N17: 3250000000 | O17: 0.1132236481 | P17: 0.1115829749 | Q17: 0.1100724676 | R17: 0.1086583471 | S17: 0.107337673 | T17: 0.106099928 | U17: 0.1049361595 | V17: 0.1038562717 | W17: 0.1028188343 | X17: 0.1018354018 | Y17: 0.100900984
N18: 4000000000 | O18: 0.09007023909 | P18: 0.08895053885 | Q18: 0.08790357943 | R18: 0.08690329666 | S18: 0.08597906216 | T18: 0.08510695001 | U18: 0.08428187673 | V18: 0.08349941778 | W18: 0.08275570395 | X18: 0.08204733651 | Y18: 0.08137131742
A19: P2 | B19: =Main!B28 -> New note fitness level: | F19: 1 | N19: 4750000000 | O19: 0.07328489475 | P19: 0.07247318243 | Q19: 0.07170894086 | R19: 0.07098749836 | S19: 0.07030478673 | T19: 0.06965724731 | U19: 0.06904175385 | V19: 0.06849990292 | W19: 0.06794052927 | X19: 0.06740582777 | Y19: 0.06689386351
A20: P3 | B20: =Main!B29 -> St.Dev of new notes (in fitness levels): | F20: 5 | N20: 5500000000 | O20: 0.06084903069 | P20: 0.06023280957 | Q20: 0.05964948588 | R20: 0.05915735571 | S20: 0.05863123963 | T20: 0.05813018966 | U20: 0.05765215999 | V20: 0.05719532578 | W20: 0.05675805412 | X20: 0.05640214227 | Y20: 0.05599965045
A21: P4 | B21: OR: New note distribution profile: | F21: SomeVariation | N21: 6250000000 | O21: 0.05162403946 | P21: 0.05113718102 | Q21: 0.05067430363 | R21: 0.05028440018 | S21: 0.04986357749 | T21: 0.04946146903 | U21: 0.04907666534 | V21: 0.04875630121 | W21: 0.04840222739 | X21: 0.04806201397 | Y21: 0.04773471842
N22: 7000000000 | O22: 0.04378694034 | P22: 0.04339187842 | Q22: 0.04301489076 | R22: 0.04265462005 | S22: 0.04230984218 | T22: 0.04197945046 | U22: 0.04167359259 | V22: 0.04136889232 | W22: 0.04107584285 | X22: 0.0407936873 | Y22: 0.04052173379
B23: Circulation | N23: 7750000000 | O23: 0.03719569452 | P23: 0.03685789369 | Q23: 0.03654521778 | R23: 0.03624552358 | S23: 0.03595793107 | T23: 0.03568163835 | U23: 0.03541591316 | V23: 0.0351600856 | W23: 0.03491354161 | X23: 0.03467571731 | Y23: 0.03444609404
N24: 8500000000 | O24: 0.03168936142 | P24: 0.03141518452 | Q24: 0.03115197735 | R24: 0.0308990337 | S24: 0.03065570679 | T24: 0.0303941862 | U24: 0.03016836529 | V24: 0.02995051891 | W24: 0.02974018432 | X24: 0.0295369341 | Y24: 0.02931186328
A25: C1 | B25: =Main!B34 -> Note distribution at start: | F25: 5%UnfitInCirc | N25: 9250000000 | O25: 0.02687389275 | P25: 0.02664509003 | Q25: 0.02642488499 | R25: 0.02619647832 | S25: 0.02599222986 | T25: 0.02579513587 | U25: 0.02560479011 | V25: 0.02542081679 | W25: 0.02524286769 | X25: 0.02505760701 | Y25: 0.02489098648
N26: 10000000000 | O26: 0.02355934016 | P26: 0.02336387611 | Q26: 0.02317539801 | R26: 0.02299350783 | S26: 0.02281783725 | T26: 0.02266742572 | U26: 0.02250316044 | V26: 0.02234416527 | W26: 0.02219016622 | X26: 0.02204090806 | Y26: 0.02189615276
A27: C2 | B27: =Main!B36 -> Notes in circulation: | F27: 1000000000
A28: C3 | B28: =Main!B37 -> Annual change in note circulation: | F28: 0.05 | N28: NCB shred rate (%)
O29: CH Sorting (M)
A30: C4 | B30: =Main!B39 -> External notes entering per year: | F30: 0 | O30: 1000000000 | P30: 1300000000 | Q30: 1600000000 | R30: 1900000000 | S30: 2200000000 | T30: 2500000000 | U30: 2800000000 | V30: 3100000000 | W30: 3400000000 | X30: 3700000000 | Y30: 4000000000
A31: C5 | B31: =Main!B40 -> Fitness distribution of external notes: | F31: 15%UnfitInCirc | M31: NCB Sorting (M) | N31: 2500000000 | O31: 0.1933814272 | P31: 0.1939433824 | Q31: 0.1945044626 | R31: 0.1950265185 | S31: 0.1954567299 | T31: 0.195915017 | U31: 0.1962858459 | V31: 0.1966987156 | W31: 0.1970247376 | X31: 0.1974050692 | Y31: 0.19769663
N32: 3250000000 | O32: 0.1578999361 | P32: 0.1581792552 | Q32: 0.1584857249 | R32: 0.1587244569 | S32: 0.1589467856 | T32: 0.1591546235 | U32: 0.1593495985 | V32: 0.159585435 | W32: 0.1597587526 | X32: 0.15992289 | Y32: 0.1600787419
A33: C6 | B33: =Main!B42 -> Notes leaving per year: | F33: 0 | N33: 4000000000 | O33: 0.1340820145 | P33: 0.1342422747 | Q33: 0.1343917248 | R33: 0.1345638057 | S33: 0.1346946242 | T33: 0.1348177794 | U33: 0.1349340368 | V33: 0.1350440635 | W33: 0.1351484431 | X33: 0.1352476882 | Y33: 0.1353422509
N34: 4750000000 | O34: 0.1169451926 | P34: 0.1170471265 | Q34: 0.1171429218 | R34: 0.1172331794 | S34: 0.1173184252 | T34: 0.117399121 | U34: 0.1174756741 | V34: 0.117543411 | W34: 0.1176130593 | X34: 0.1176795089 | Y34: 0.1177430151
B35: Note Life | N35: 5500000000 | O35: 0.1040842991 | P35: 0.1041552708 | Q35: 0.1042224218 | R35: 0.1043135655 | S35: 0.1043743596 | T35: 0.1044322131 | U35: 0.104487361 | V35: 0.1045400138 | W35: 0.1045903609 | X35: 0.1046727393 | Y35: 0.1047192383
N36: 6250000000 | O36: 0.09460420283 | P36: 0.0946561529 | Q36: 0.09470569238 | R36: 0.0948252697 | S36: 0.09487049377 | T36: 0.09491381421 | U36: 0.09495536443 | V36: 0.0950694798 | W36: 0.09510783375 | X36: 0.09514475735 | Y36: 0.09518034168
A37: N1 | B37: =Main!B46 -> Ageing Model: | F37: Poisson | N37: 7000000000 | O37: 0.08689932317 | P37: 0.08693545439 | Q37: 0.08697011704 | R37: 0.0870034115 | S37: 0.08703542895 | T37: 0.0870662525 | U37: 0.08715752033 | V37: 0.08718595454 | W37: 0.08721341733 | X37: 0.08723996627 | Y37: 0.0872656544
A38: N2 | B38: =Main!B47 -> Theoretical note life (soil only, in months): | F38: 24 | N38: 7750000000 | O38: 0.08017091517 | P38: 0.0802327948 | Q38: 0.08025646325 | R38: 0.08027928889 | S38: 0.08030132389 | T38: 0.08032261603 | U38: 0.08034320918 | V38: 0.08036314364 | W38: 0.0803824566 | X38: 0.08040118237 | Y38: 0.08041935272
N39: 8500000000 | O39: 0.07433476924 | P39: 0.07435044591 | Q39: 0.07436558772 | R39: 0.07438022788 | S39: 0.07439439672 | T39: 0.07440303614 | U39: 0.07441605526 | V39: 0.07442868815 | W39: 0.07444095611 | X39: 0.07445287879 | Y39: 0.07445419611
A40: N3 | B40: =Main!B49 -> Defect likelihood (% per year): | F40: 0.1 | N40: 9250000000 | O40: 0.06835028971 | P40: 0.06836109971 | Q40: 0.06837144499 | R40: 0.06832222109 | S40: 0.0683320103 | T40: 0.06834141288 | U40: 0.06835045514 | V40: 0.06835916112 | W40: 0.0683675528 | X40: 0.06831783226 | Y40: 0.06832588535
A41: N4 | B41: =Main!B50 -> Defect profile: | F41: IncreaseFrom1 | N41: 10000000000 | O41: 0.06358453401 | P41: 0.06359920767 | Q41: 0.06361330268 | R41: 0.06362685453 | S41: 0.063639896 | T41: 0.06362913736 | U41: 0.06364170962 | V41: 0.06365384277 | W41: 0.06366556143 | X41: 0.06367688843 | Y41: 0.06368784506
A43: N5 | B43: =Main!B52 -> Guideline Fit/Unfit threshold (in fitness levels): | F43: 50 | N43: NCB Sensor threshold
O44: CH Sorting (M)
B45: Third Party Fitness Sorting (Recirculation) | O45: 1000000000 | P45: 1300000000 | Q45: 1600000000 | R45: 1900000000 | S45: 2200000000 | T45: 2500000000 | U45: 2800000000 | V45: 3100000000 | W45: 3400000000 | X45: 3700000000 | Y45: 4000000000
M46: NCB Sorting (M) | N46: 2500000000 | O46: 50 | P46: 50 | Q46: 50 | R46: 50 | S46: 50 | T46: 50 | U46: 50 | V46: 50 | W46: 50 | X46: 50 | Y46: 50
A47: R1 | B47: =Main!B56 -> Annual Third Party (3P) sorting volume: | F47: 2000000000 | N47: 3250000000 | O47: 50 | P47: 50 | Q47: 50 | R47: 50 | S47: 50 | T47: 50 | U47: 50 | V47: 50 | W47: 50 | X47: 50 | Y47: 50
A48: R2 | B48: =Main!B57 -> % of 3P fit notes returned to NCB: | F48: 0.25 | N48: 4000000000 | O48: 50 | P48: 50 | Q48: 50 | R48: 50 | S48: 50 | T48: 50 | U48: 50 | V48: 50 | W48: 50 | X48: 50 | Y48: 50
N49: 4750000000 | O49: 50 | P49: 50 | Q49: 50 | R49: 50 | S49: 50 | T49: 50 | U49: 50 | V49: 50 | W49: 50 | X49: 50 | Y49: 50
A50: R3 | B50: =Main!B59 -> 3P fitness sorting threshold: | F50: 70 | N50: 5500000000 | O50: 50 | P50: 50 | Q50: 50 | R50: 50 | S50: 50 | T50: 50 | U50: 50 | V50: 50 | W50: 50 | X50: 50 | Y50: 50
A51: R4 | B51: =Main!B60 -> 3P St.Dev of sorting sensor (in fitness levels): | F51: 10 | N51: 6250000000 | O51: 50 | P51: 50 | Q51: 50 | R51: 50 | S51: 50 | T51: 50 | U51: 50 | V51: 50 | W51: 50 | X51: 50 | Y51: 50
N52: 7000000000 | O52: 50 | P52: 50 | Q52: 50 | R52: 50 | S52: 50 | T52: 50 | U52: 50 | V52: 50 | W52: 50 | X52: 50 | Y52: 50
B53: NCB Fitness Sorting | N53: 7750000000 | O53: 50 | P53: 50 | Q53: 50 | R53: 50 | S53: 50 | T53: 50 | U53: 50 | V53: 50 | W53: 50 | X53: 50 | Y53: 50
N54: 8500000000 | O54: 50 | P54: 50 | Q54: 50 | R54: 50 | S54: 50 | T54: 50 | U54: 50 | V54: 50 | W54: 50 | X54: 50 | Y54: 50
A55: F1 | B55: =Main!B64 -> NCB sorting costs (€/1,000 notes): | F55: 10 | N55: 9250000000 | O55: 50 | P55: 50 | Q55: 50 | R55: 50 | S55: 50 | T55: 50 | U55: 50 | V55: 50 | W55: 50 | X55: 50 | Y55: 50
A56: F2 | B56: =Main!B65 -> Residual note value at threshold: | F56: 0.2 | N56: 10000000000 | O56: 50 | P56: 50 | Q56: 50 | R56: 50 | S56: 50 | T56: 50 | U56: 50 | V56: 50 | W56: 50 | X56: 50 | Y56: 50
A58: F3 | B58: =Main!B67 -> Annual NCB sorting volume: | F58: 5000000000 | N58: New notes added per year
A59: F4 | B59: =Main!B68 -> NCB sorts 3P pre-precessed notes only: | F59: No | O59: CH Sorting (M)
O60: 1000000000 | P60: 1300000000 | Q60: 1600000000 | R60: 1900000000 | S60: 2200000000 | T60: 2500000000 | U60: 2800000000 | V60: 3100000000 | W60: 3400000000 | X60: 3700000000 | Y60: 4000000000
A61: F5 | B61: =Main!B70 -> NCB St.Dev of sorting sensor (in fitness levels): | F61: 10 | M61: NCB Sorting (M) | N61: 2500000000 | O61: 532266565.7 | P61: 533671453.8 | Q61: 535074154.2 | R61: 536379294.1 | S61: 537454822.5 | T61: 538600540.4 | U61: 539527612.6 | V61: 540559786.8 | W61: 541374841.9 | X61: 542325670.8 | Y61: 543054572.9
N62: 3250000000 | O62: 561987790.2 | P62: 562895577.1 | Q62: 563891603.7 | R62: 564667482.8 | S62: 565390051.1 | T62: 566065524.1 | U62: 566699192.9 | V62: 567465661.6 | W62: 568028943.7 | X62: 568562390.2 | Y62: 569068909
B63: NCB Sorting Policy | N63: 4000000000 | O63: 585141055.9 | P63: 585782096.5 | Q63: 586379897.1 | R63: 587068220.7 | S63: 587591494.5 | T63: 588084115.3 | U63: 588549144.9 | V63: 588989251.7 | W63: 589406770.1 | X63: 589803750.6 | Y63: 590182001.2
N64: 4750000000 | O64: 604302662.6 | P64: 604786848.6 | Q64: 605241876.3 | R64: 605670600 | S64: 606075517.4 | T64: 606458822.6 | U64: 606822449.8 | V64: 607144200.1 | W64: 607475029.4 | X64: 607790665.2 | Y64: 608092319.6
A65: S1 | B65: =Main!B74 -> Fitness sensor sorting threshold (fitness levels): | F65: 50 | N65: 5500000000 | O65: 621276643 | P65: 621666987.4 | Q65: 622036317.8 | R65: 622537608.2 | S65: 622871975.5 | T65: 623190170.1 | U65: 623493483.5 | V65: 623783073.9 | W65: 624059982.7 | X65: 624513063.9 | Y65: 624768808.4
A66: S2 | B66: =Main!B75 -> OR: False-fit rate (% of unfit notes in fit notes issued): | N66: 6250000000 | O66: 640089265.5 | P66: 640413953.4 | Q66: 640723575.2 | R66: 641470933.5 | S66: 641753583.9 | T66: 642024336.6 | U66: 642284025.5 | V66: 642997246.6 | W66: 643236958.7 | X66: 643467731.3 | Y66: 643690133.3
A67: S3 | B67: =Main!B76 -> OR: Shred rate (% of notes unfit per sorting cycle): | N67: 7000000000 | O67: 657108260 | P67: 657361178.6 | Q67: 657603817.1 | R67: 657836878.3 | S67: 658061000.5 | T67: 658276765.3 | U67: 658915640.1 | V67: 659114679.6 | W67: 659306919.1 | X67: 659492761.7 | Y67: 659672578.6
A68: S4 | B68: =Main!B77 -> OR: Unfit in circulation (% of total circulation): | N68: 7750000000 | O68: 670137590.4 | P68: 670617157.5 | Q68: 670800588 | R68: 670977486.7 | S68: 671148257.9 | T68: 671313272.1 | U68: 671472868.9 | V68: 671627361 | W68: 671777036.5 | X68: 671922161.2 | Y68: 672062981.4
N69: 8500000000 | O69: 680658536.3 | P69: 680791788 | Q69: 680920493.4 | R69: 681044934.8 | S69: 681165370 | T69: 681238805 | U69: 681349467.5 | V69: 681456847.1 | W69: 681561124.8 | X69: 681662467.5 | Y69: 681673664.8
N70: 9250000000 | O70: 681053177.6 | P70: 681153170.1 | Q70: 681248863.9 | R70: 680793542.9 | S70: 680884093.1 | T70: 680971066.9 | U70: 681054707.9 | V70: 681135238.2 | W70: 681212861.2 | X70: 680752946.2 | Y70: 680827437.3
N71: 10000000000 | O71: 684658337.9 | P71: 684805074.5 | Q71: 684946024.6 | R71: 685081543.1 | S71: 685211957.8 | T71: 685104371.4 | U71: 685230094 | V71: 685351425.6 | W71: 685468612.1 | X71: 685581882.2 | Y71: 685691448.4
N73: New notes put on stock per year
O74: CH Sorting (M)
O75: 1000000000 | P75: 1300000000 | Q75: 1600000000 | R75: 1900000000 | S75: 2200000000 | T75: 2500000000 | U75: 2800000000 | V75: 3100000000 | W75: 3400000000 | X75: 3700000000 | Y75: 4000000000
M76: NCB Sorting (M) | N76: 2500000000 | O76: 0 | P76: 0 | Q76: 0 | R76: 0 | S76: 0 | T76: 0 | U76: 0 | V76: 0 | W76: 0 | X76: 0 | Y76: 0
N77: 3250000000 | O77: 0 | P77: 0 | Q77: 0 | R77: 0 | S77: 0 | T77: 0 | U77: 0 | V77: 0 | W77: 0 | X77: 0 | Y77: 0
N78: 4000000000 | O78: 0 | P78: 0 | Q78: 0 | R78: 0 | S78: 0 | T78: 0 | U78: 0 | V78: 0 | W78: 0 | X78: 0 | Y78: 0
N79: 4750000000 | O79: 0 | P79: 0 | Q79: 0 | R79: 0 | S79: 0 | T79: 0 | U79: 0 | V79: 0 | W79: 0 | X79: 0 | Y79: 0
N80: 5500000000 | O80: 0 | P80: 0 | Q80: 0 | R80: 0 | S80: 0 | T80: 0 | U80: 0 | V80: 0 | W80: 0 | X80: 0 | Y80: 0
N81: 6250000000 | O81: 0 | P81: 0 | Q81: 0 | R81: 0 | S81: 0 | T81: 0 | U81: 0 | V81: 0 | W81: 0 | X81: 0 | Y81: 0
N82: 7000000000 | O82: 0 | P82: 0 | Q82: 0 | R82: 0 | S82: 0 | T82: 0 | U82: 0 | V82: 0 | W82: 0 | X82: 0 | Y82: 0
N83: 7750000000 | O83: 0 | P83: 0 | Q83: 0 | R83: 0 | S83: 0 | T83: 0 | U83: 0 | V83: 0 | W83: 0 | X83: 0 | Y83: 0
N84: 8500000000 | O84: 0 | P84: 0 | Q84: 0 | R84: 0 | S84: 0 | T84: 0 | U84: 0 | V84: 0 | W84: 0 | X84: 0 | Y84: 0
N85: 9250000000 | O85: 0 | P85: 0 | Q85: 0 | R85: 0 | S85: 0 | T85: 0 | U85: 0 | V85: 0 | W85: 0 | X85: 0 | Y85: 0
N86: 10000000000 | O86: 0 | P86: 0 | Q86: 0 | R86: 0 | S86: 0 | T86: 0 | U86: 0 | V86: 0 | W86: 0 | X86: 0 | Y86: 0
N88: Cash cycle costs (NCB sorting + new note replacement) per year
O89: CH Sorting (M)
O90: 1000000000 | P90: 1300000000 | Q90: 1600000000 | R90: 1900000000 | S90: 2200000000 | T90: 2500000000 | U90: 2800000000 | V90: 3100000000 | W90: 3400000000 | X90: 3700000000 | Y90: 4000000000
M91: NCB Sorting (M) | N91: 2500000000 | O91: 51613328.29 | P91: 51683572.69 | Q91: 51753707.71 | R91: 51818964.71 | S91: 51872741.13 | T91: 51930027.02 | U91: 51976380.63 | V91: 52027989.34 | W91: 52068742.09 | X91: 52116283.54 | Y91: 52152728.64
N92: 3250000000 | O92: 60599389.51 | P92: 60644778.86 | Q92: 60694580.19 | R92: 60733374.14 | S92: 60769502.55 | T92: 60803276.21 | U92: 60834959.65 | V92: 60873283.08 | W92: 60901447.18 | X92: 60928119.51 | Y92: 60953445.45
N93: 4000000000 | O93: 69257052.79 | P93: 69289104.83 | Q93: 69318994.85 | R93: 69353411.04 | S93: 69379574.73 | T93: 69404205.76 | U93: 69427457.25 | V93: 69449462.58 | W93: 69470338.5 | X93: 69490187.53 | Y93: 69509100.06
N94: 4750000000 | O94: 77715133.13 | P94: 77739342.43 | Q94: 77762093.82 | R94: 77783530 | S94: 77803775.87 | T94: 77822941.13 | U94: 77841122.49 | V94: 77857210.01 | W94: 77873751.47 | X94: 77889533.26 | Y94: 77904615.98
N95: 5500000000 | O95: 86063832.15 | P95: 86083349.37 | Q95: 86101815.89 | R95: 86126880.41 | S95: 86143598.78 | T95: 86159508.5 | U95: 86174674.17 | V95: 86189153.7 | W95: 86202999.14 | X95: 86225653.2 | Y95: 86238440.42
N96: 6250000000 | O96: 94504463.27 | P96: 94520697.67 | Q96: 94536178.76 | R96: 94573546.67 | S96: 94587679.19 | T96: 94601216.83 | U96: 94614201.27 | V96: 94649862.33 | W96: 94661847.94 | X96: 94673386.56 | Y96: 94684506.66
N97: 7000000000 | O97: 102855413 | P97: 102868058.9 | Q97: 102880190.9 | R97: 102891843.9 | S97: 102903050 | T97: 102913838.3 | U97: 102945782 | V97: 102955734 | W97: 102965346 | X97: 102974638.1 | Y97: 102983628.9
N98: 7750000000 | O98: 111006879.5 | P98: 111030857.9 | Q98: 111040029.4 | R98: 111048874.3 | S98: 111057412.9 | T98: 111065663.6 | U98: 111073643.4 | V98: 111081368.1 | W98: 111088851.8 | X98: 111096108.1 | Y98: 111103149.1
N99: 8500000000 | O99: 119032926.8 | P99: 119039589.4 | Q99: 119046024.7 | R99: 119052246.7 | S99: 119058268.5 | T99: 119061940.2 | U99: 119067473.4 | V99: 119072842.4 | W99: 119078056.2 | X99: 119083123.4 | Y99: 119083683.2
N100: 9250000000 | O100: 126552658.9 | P100: 126557658.5 | Q100: 126562443.2 | R100: 126539677.1 | S100: 126544204.7 | T100: 126548553.3 | U100: 126552735.4 | V100: 126556761.9 | W100: 126560643.1 | X100: 126537647.3 | Y100: 126541371.9
N101: 10000000000 | O101: 134232916.9 | P101: 134240253.7 | Q101: 134247301.2 | R101: 134254077.2 | S101: 134260597.9 | T101: 134255218.6 | U101: 134261504.7 | V101: 134267571.3 | W101: 134273430.6 | X101: 134279094.1 | Y101: 134284572.4

Sheet UDF
B1: This is an example of using the Circulation Model via the integrated User Defined Function. Useful for your own modelling approaches and changing multiple parameters.
B3: This sheet shows an example of how to use the Circulation Model as a function in Excel
B5: The function CirculationModelUDF is available in this workbook and can be used in any cell.
B6: See e.g. Cell G20 for the inputs needed for the formula
B8: N.B.: In the Circulation Model as Excel User Defined Function (UDF), the following parameter is set to fixed values:
B9: I_bln_FinishIfSteadyState = True
B10: As Sorting Policy only a fixed Sensor Threshold (I_dbl_PolicySensThreshold) can be set.
B12: The function CirculationModelUDF needs to be entered as an Array function, having a size of 14 colums and 1 row.
B13: For details on how to enter an Array Function please refer to
B14: https://support.office.com/en-us/article/Create-an-array-formula-e43e12e0-afc6-4a12-bc7f-48361075954d
B16: When changing any part of the Array Function DO NOT use the 'Insert Function Option' in Excel, but change the formula directly in the entry field as otherwise Excel might crash. Also take note that using too many UDFs will take time on startup for Excel to recalculate the formulas.
I19: In Circulation | K19: NCB Sorting | Q19: Recirc | R19: Costs per year (EUR)
B20: Function Input No. | C20: Parameter (Clear Name) | D20: Parameter (VBA Function Name) | E20: Value | I20: Total Unfit | J20: of which, Defects | K20: Shred Rate | L20: Sensor Threshold | M20: FF Rel | N20: FU Abs | O20: Total Unfit per year (million notes) | P20: False Unfit per year (million notes) | Q20: False Unfit value per year (EUR) | R20: Fit notes put on stock per year | S20: New notes added per year | T20: Total NCB costs (NCB sorting + new notes) per year | U20: Recirculation Unfit (%) | V20: Steps until SS
B21: 1 | C21: No. of model cycles: | D21: I_int_ModelIterations | E21: 1000 | H21: Function Results: | I21: =CirculationModelUDF(E21,E22,E23,E24,E25,E26,E27,E28,E29,E30,E31,E32,E33,E34,E35,E36,E37,E38,E39,E40,E41,E42,E43,E44,E45,E46,E47,E48,E49,E50) -> 0.1507 | J21: 0.0178 | K21: 0.2412 | L21: 50 | M21: 0.0434 | N21: 0.0574 | O21: 482.313 | P21: 114.816 | Q21: 1839356.676 | R21: 0 | S21: 531125830 | T21: 46556291.49 | U21: 0.0429 | V21: 210
B22: =B21+1 -> 2 | C22: Cycle Duration (days): | D22: I_int_ModelCycleDuration | E22: 7
B23: 3 | C23: Note Life Calculation: | D23: I_str_NoteLifeMethod | E23: Ideal
B24: 4 | C24: Steady State Correlation Factor: | D24: I_dbl_SSCorrelLimit | E24: 0.999999995 | H24: The below is as an example where the Cycle Duration (I_int_ModelCycleDuration) is changed
B25: 5 | C25: BN production and issuance costs: | D25: I_dbl_BNPriceNew | E25: 50 | H25: Cycle Duration (I_int_ModelCycleDuration)
B26: 6 | C26: New Note fitness level: | D26: I_dbl_NewNoteFitLevel | E26: 1 | H26: 10 | I26: =CirculationModelUDF($E$21,H26,$E$23,$E$24,$E$25,$E$26,$E$27,$E$28,$E$29,$E$30,$E$31,$E$32,$E$33,$E$34,$E$35,$E$36,$E$37,$E$38,$E$39,$E$40,$E$41,$E$42,$E$43,$E$44,$E$45,$E$46,$E$47,$E$48,$E$49,$E$50) -> 0.1482 | J26: 0.0178 | K26: 0.239 | L26: 50 | M26: 0.0429 | N26: 0.0587 | O26: 478.097 | P26: 117.471 | Q26: 1883361.17 | R26: 0 | S26: 526919376 | T26: 46345968.8 | U26: 0.0421 | V26: 171
B27: 7 | C27: St.Dev of New Note: | D27: I_dbl_NewNoteStDev | E27: 5 | H27: 20 | I27: =CirculationModelUDF($E$21,H27,$E$23,$E$24,$E$25,$E$26,$E$27,$E$28,$E$29,$E$30,$E$31,$E$32,$E$33,$E$34,$E$35,$E$36,$E$37,$E$38,$E$39,$E$40,$E$41,$E$42,$E$43,$E$44,$E$45,$E$46,$E$47,$E$48,$E$49,$E$50) -> 0.1528 | J27: 0.0178 | K27: 0.243 | L27: 50 | M27: 0.0449 | N27: 0.0595 | O27: 486.058 | P27: 119.012 | Q27: 1901342.463 | R27: 0 | S27: 534913504 | T27: 46745675.21 | U27: 0.0423 | V27: 105
B28: 8 | C28: OR: New Note distribution: | D28: I_dbl_NewNoteDistribution
B29: 9 | C29: Fitness distribution at beginning: | D29: I_str_UsedNoteDistribution | E29: 10%UnfitInCirc
B30: 10 | C30: Notes in circulation: | D30: I_dbl_NotesInCirculation | E30: 1000000000 | H30: Below is an example when bln_UDFRotated is set to TRUE (output is then put vertically)
B31: 11 | C31: Annual change in circulation volume: | D31: I_dbl_AnnualCirculationChange | E31: 0.05 | H31: Total Unfit | I31: =CirculationModelUDF($E$21,$E$22,$E$23,$E$24,$E$25,$E$26,$E$27,$E$28,$E$29,$E$30,$E$31,$E$32,$E$33,$E$34,$E$35,$E$36,$E$37,$E$38,$E$39,$E$40,$E$41,$E$42,$E$43,$E$44,$E$45,$E$46,$E$47,$E$48,$E$49,TRUE) -> 0.1507
B32: 12 | C32: Notes entering every year: | D32: I_dbl_ExternalNotesIn | E32: 0 | H32: of which, Defects | I32: 0.0178
B33: 13 | C33: Fitness distribution of external notes: | D33: I_str_ExternalNotesProfile | E33: 5%UnfitInCirc | H33: Shred Rate | I33: 0.2412
B34: 14 | C34: Notes leaving every year: | D34: I_dbl_NotesLeaving | E34: 0 | H34: Sensor Threshold | I34: 50
B35: 15 | C35: Ageing Model: | D35: I_str_AgeingModel | E35: Poisson | H35: FF Rel | I35: 0.0434
B36: 16 | C36: Theoretical note life (soil only): | D36: I_dbl_NoteLifeTime | E36: 24 | H36: FU Abs | I36: 0.0574
B37: 17 | C37: Defect likelihood: | D37: I_dbl_CEperYear | E37: 0.1 | H37: Total Unfit per year (million notes) | I37: 482.313
B38: 18 | C38: Defect profile Name: | D38: I_str_CEProfileName | E38: IncreaseFrom1 | H38: False Unfit per year (million notes) | I38: 114.816
B39: 19 | C39: Annual Third Party sorting volume at start: | D39: I_dbl_RecirculationSortingVolume | E39: 5000000000 | H39: False Unfit value per year (EUR) | I39: 1839356.676
B40: 20 | C40: % of 3rd Party (3P) fit notes returned to NCB: | D40: I_dbl_RecircFitPercBackToNCB | E40: 0.25 | H40: Fit notes put on stock per year | I40: 0
B41: 21 | C41: Third party fitness threshold: | D41: I_dbl_RecircFitUnfitThreshold | E41: 70 | H41: New notes added per year | I41: 531125830
B42: 22 | C42: Third Party St.Dev of Sensor: | D42: I_dbl_RecircSensorStDev | E42: 10 | H42: Total NCB costs (NCB sorting + new notes) per year | I42: 46556291.49
B43: 23 | C43: NCB Sorting costs (including re-issuance): | D43: I_dbl_NCBSortingCosts | E43: 10 | H43: Recirculation Unfit (%) | I43: 0.0429
B44: 24 | C44: BN value at threshold: | D44: I_dbl_BNValAtThreshold | E44: 0.2 | H44: Steps until SS | I44: 210
B45: 25 | C45: Annual NCB sorting volume at start: | D45: I_dbl_NCBProcessingVolume | E45: 2000000000
B46: 26 | C46: NCB Sorts only recirculated notes | D46: I_bln_NCBSortsRecirculatedOnly | E46: FALSE
B47: 27 | C47: Guideline Fit/Unfit Threshold: | D47: I_dbl_NCBFitUnfitThreshold | E47: 50
B48: 28 | C48: St.Dev of NCB Sensor: | D48: I_dbl_NCBSensorStDev | E48: 10
B49: 29 | C49: Sensor Op. Threshold: | D49: I_dbl_PolicySensThreshold | E49: 50
B50: 30 | D50: bln_UDFRotated (Optional) | E50: FALSE

Sheet FitnessData
B1: Used Notes Starting profile | O1: New Notes | AC1: Outside Notes Profile | AP1: Defect Profiles
C2: Optional Parameters for defining the Fitness Distribution | P2: Optional Parameters for defining the Fitness Distribution | AD2: Optional Parameters for defining the Fitness Distribution | AQ2: Optional Parameters for defining the Defect Profile
P3: 1 | Q3: 1 | R3: 5 | AR3: 25 | AS3: 50 | AT3: 1 | AU3: 50
P4: 0.01 | Q4: 5 | R4: 10 | AR4: 100 | AS4: 75 | AT4: 100 | AU4: 51
B8: Fitness Distribution (Does not need to be normalised!) | O8: Fitness Distribution (Does not need to be normalised!) | AC8: Distribution (Does not need to be normalised!) | AP8: Profile (Does not need to be normalised!)
B9: Fitness Level | C9: Homogenous | D9: New Notes | E9: 5%UnfitInCirc | F9: 10%UnfitInCirc | G9: 15%UnfitInCirc | H9: 20%UnfitInCirc | I9: 10%UnfitInCircOld | J9: UsedDummy8 | K9: UsedDummy9 | L9: UsedDummy10 | O9: Fitness Level | P9: Perfect | Q9: SomeVariation | R9: LargeVariation | S9: NewDummy3 | T9: NewDummy4 | U9: NewDummy5 | V9: NewDummy6 | W9: NewDummy7 | X9: NewDummy8 | Y9: NewDummy9 | Z9: NewDummy10 | AC9: Fitness Level | AD9: Homogenous | AE9: New Notes | AF9: 5%UnfitInCirc | AG9: 10%UnfitInCirc | AH9: 15%UnfitInCirc | AI9: 20%UnfitInCirc | AJ9: UsedDummy7 | AK9: UsedDummy8 | AL9: UsedDummy9 | AM9: UsedDummy10 | AP9: Fitness Level | AQ9: Constant | AR9: Increase25-100 | AS9: Increase50-75 | AT9: IncreaseFrom1 | AU9: DefectDummy5 | AV9: DefectDummy6 | AW9: DefectDummy7 | AX9: DefectDummy8 | AY9: DefectDummy9 | AZ9: DefectDummy10
B10: 1 | C10: 1 | D10: 0.07978845608 | E10: 0.0003329995854 | F10: 0.0002745462132 | G10: 0.0002450024616 | H10: 0.0002264858769 | I10: 0.0002745462132 | J10: 0.001741185032 | K10: 5.650168497e-05 | L10: 0.001521497365 | O10: 1 | P10: =_xlfn.NORM.DIST($O10,P$3,P$4,FALSE) -> 39.89422804 | Q10: =_xlfn.NORM.DIST($O10,Q$3,Q$4,FALSE) -> 0.07978845608 | R10: =_xlfn.NORM.DIST($O10,R$3,R$4,FALSE) -> 0.03682701403 | S10: 1 | T10: 1 | U10: 1 | V10: 1 | W10: 1 | X10: 1 | Y10: 1 | Z10: 1 | AC10: 1 | AD10: 1 | AE10: 0.07978845608 | AF10: 0.0003329995854 | AG10: 0.0002745462132 | AH10: 0.0002450024616 | AI10: 0.0002264858769 | AJ10: 0.001767976286 | AK10: 0.001741185032 | AL10: 0.003706202849 | AM10: 0.005395679986 | AP10: 1 | AQ10: 1 | AR10: =IF($AP10<AR$3,0,IF($AP10>AR$4,1,1/(AR$4-AR$3)*($AP10-AR$3))) -> 0 | AS10: =IF($AP10<AS$3,0,IF($AP10>AS$4,1,1/(AS$4-AS$3)*($AP10-AS$3))) -> 0 | AT10: =IF($AP10<AT$3,0,IF($AP10>AT$4,1,1/(AT$4-AT$3)*($AP10-AT$3))) -> 0 | AU10: =IF($AP10<AU$3,0,IF($AP10>AU$4,1,1/(AU$4-AU$3)*($AP10-AU$3))) -> 0 | AV10: 1 | AW10: 1 | AX10: 1 | AY10: 1 | AZ10: 1
B11: 2 | C11: 1 | D11: 0.0782085388 | E11: 0.00167511526 | F11: 0.001381184005 | G11: 0.001232662219 | H11: 0.001139388152 | I11: 0.001381184005 | J11: 0.004982693337 | K11: 0.0001567231767 | L11: 0.003372630921 | O11: 2 | P11: =_xlfn.NORM.DIST($O11,P$3,P$4,FALSE) -> 0 | Q11: =_xlfn.NORM.DIST($O11,Q$3,Q$4,FALSE) -> 0.0782085388 | R11: =_xlfn.NORM.DIST($O11,R$3,R$4,FALSE) -> 0.03813878155 | S11: 1 | T11: 1 | U11: 1 | V11: 1 | W11: 1 | X11: 1 | Y11: 1 | Z11: 1 | AC11: 2 | AD11: 1 | AE11: 0.0782085388 | AF11: 0.00167511526 | AG11: 0.001381184005 | AH11: 0.001232662219 | AI11: 0.001139388152 | AJ11: 0.004799588773 | AK11: 0.004982693337 | AL11: 0.007942984219 | AM11: 0.01197296169 | AP11: 2 | AQ11: 1 | AR11: =IF($AP11<AR$3,0,IF($AP11>AR$4,1,1/(AR$4-AR$3)*($AP11-AR$3))) -> 0 | AS11: 0 | AT11: 0.0101010101 | AU11: 0 | AV11: 1 | AW11: 1 | AX11: 1 | AY11: 1 | AZ11: 1
B12: 3 | C12: 1 | D12: 0.07365402806 | E12: 0.004411191045 | F12: 0.00363766605 | G12: 0.003246972665 | H12: 0.003000772552 | I12: 0.00363766605 | J12: 0.008624990984 | K12: 0.0003205182758 | L12: 0.005195193971 | O12: 3 | P12: =_xlfn.NORM.DIST($O12,P$3,P$4,FALSE) -> 0 | Q12: 0.07365402806 | R12: =_xlfn.NORM.DIST($O12,R$3,R$4,FALSE) -> 0.0391042694 | S12: 1 | T12: 1 | U12: 1 | V12: 1 | W12: 1 | X12: 1 | Y12: 1 | Z12: 1 | AC12: 3 | AD12: 1 | AE12: 0.07365402806 | AF12: 0.004411191045 | AG12: 0.00363766605 | AH12: 0.003246972665 | AI12: 0.003000772552 | AJ12: 0.00806542384 | AK12: 0.008624990984 | AL12: 0.01196338949 | AM12: 0.01822752899 | AP12: 3 | AQ12: 1 | AR12: 0 | AS12: 0 | AT12: 0.0202020202 | AU12: 0 | AV12: 1 | AW12: 1 | AX12: 1 | AY12: 1 | AZ12: 1
B13: 4 | C13: 1 | D13: 0.06664492058 | E13: 0.008211349455 | F13: 0.006772975612 | G13: 0.006046948551 | H13: 0.005586920289 | I13: 0.006772975612 | J13: 0.0120666762 | K13: 0.0005709598294 | L13: 0.006920579375 | O13: 4 | P13: =_xlfn.NORM.DIST($O13,P$3,P$4,FALSE) -> 0 | Q13: 0.06664492058 | R13: 0.03969525475 | S13: 1 | T13: 1 | U13: 1 | V13: 1 | W13: 1 | X13: 1 | Y13: 1 | Z13: 1 | AC13: 4 | AD13: 1 | AE13: 0.06664492058 | AF13: 0.008211349455 | AG13: 0.006772975612 | AH13: 0.006046948551 | AI13: 0.005586920289 | AJ13: 0.01110794809 | AK13: 0.0120666762 | AL13: 0.01558898259 | AM13: 0.02381194153 | AP13: 4 | AQ13: 1 | AR13: 0 | AS13: 0 | AT13: 0.0303030303 | AU13: 0 | AV13: 1 | AW13: 1 | AX13: 1 | AY13: 1 | AZ13: 1
B14: 5 | C14: 1 | D14: 0.05793831055 | E14: 0.01232667185 | F14: 0.01017093406 | G14: 0.00908380818 | H14: 0.008389282752 | I14: 0.01017093406 | J14: 0.01511815014 | K14: 0.0009185022937 | L14: 0.008512092478 | O14: 5 | P14: 0 | Q14: 0.05793831055 | R14: 0.03989422804 | S14: 1 | T14: 1 | U14: 1 | V14: 1 | W14: 1 | X14: 1 | Y14: 1 | Z14: 1 | AC14: 5 | AD14: 1 | AE14: 0.05793831055 | AF14: 0.01232667185 | AG14: 0.01017093406 | AH14: 0.00908380818 | AI14: 0.008389282752 | AJ14: 0.01379003785 | AK14: 0.01511815014 | AL14: 0.01871620612 | AM14: 0.02856486186 | AP14: 5 | AQ14: 1 | AR14: 0 | AS14: 0 | AT14: 0.0404040404 | AU14: 0 | AV14: 1 | AW14: 1 | AX14: 1 | AY14: 1 | AZ14: 1
B15: 6 | C15: 1 | D15: 0.0483941449 | E15: 0.01612731626 | F15: 0.01331344344 | G15: 0.01189607829 | H15: 0.01098014892 | I15: 0.01331344344 | J15: 0.01771503889 | K15: 0.001360726244 | L15: 0.009942218251 | O15: 6 | P15: 0 | Q15: 0.0483941449 | R15: 0.03969525475 | S15: 1 | T15: 1 | U15: 1 | V15: 1 | W15: 1 | X15: 1 | Y15: 1 | Z15: 1 | AC15: 6 | AD15: 1 | AE15: 0.0483941449 | AF15: 0.01612731626 | AG15: 0.01331344344 | AH15: 0.01189607829 | AI15: 0.01098014892 | AJ15: 0.01605727631 | AK15: 0.01771503889 | AL15: 0.02128856206 | AM15: 0.03240415102 | AP15: 6 | AQ15: 1 | AR15: 0 | AS15: 0 | AT15: 0.05050505051 | AU15: 0 | AV15: 1 | AW15: 1 | AX15: 1 | AY15: 1 | AZ15: 1
B16: 7 | C16: 1 | D16: 0.038837211 | E16: 0.01933511997 | F16: 0.0159718812 | G16: 0.01428001979 | H16: 0.01317056351 | I16: 0.0159718812 | J16: 0.01983306439 | K16: 0.001888257428 | L16: 0.0111971879 | O16: 7 | P16: 0 | Q16: 0.038837211 | R16: 0.0391042694 | S16: 1 | T16: 1 | U16: 1 | V16: 1 | W16: 1 | X16: 1 | Y16: 1 | Z16: 1 | AC16: 7 | AD16: 1 | AE16: 0.038837211 | AF16: 0.01933511997 | AG16: 0.0159718812 | AH16: 0.01428001979 | AI16: 0.01317056351 | AJ16: 0.01788974729 | AK16: 0.01983306439 | AL16: 0.02329724403 | AM16: 0.03532248062 | AP16: 7 | AQ16: 1 | AR16: 0 | AS16: 0 | AT16: 0.06060606061 | AU16: 0 | AV16: 1 | AW16: 1 | AX16: 1 | AY16: 1 | AZ16: 1
B17: 8 | C17: 1 | D17: 0.02994549313 | E17: 0.02192897857 | F17: 0.01812898003 | G17: 0.01621983196 | H17: 0.01494591576 | I17: 0.01812898003 | J17: 0.02148170489 | K17: 0.002490046238 | L17: 0.01227891826 | O17: 8 | P17: 0 | Q17: 0.02994549313 | R17: 0.03813878155 | S17: 1 | T17: 1 | U17: 1 | V17: 1 | W17: 1 | X17: 1 | Y17: 1 | Z17: 1 | AC17: 8 | AD17: 1 | AE17: 0.02994549313 | AF17: 0.02192897857 | AG17: 0.01812898003 | AH17: 0.01621983196 | AI17: 0.01494591576 | AJ17: 0.01929922181 | AK17: 0.02148170489 | AL17: 0.02477550225 | AM17: 0.03737610348 | AP17: 8 | AQ17: 1 | AR17: 0 | AS17: 0 | AT17: 0.07070707071 | AU17: 0 | AV17: 1 | AW17: 1 | AX17: 1 | AY17: 1 | AZ17: 1
B18: 9 | C18: 1 | D18: 0.02218416694 | E18: 0.02397536184 | F18: 0.01983925943 | G18: 0.01776329708 | H18: 0.01635084618 | I18: 0.01983925943 | J18: 0.02269986119 | K18: 0.003155641884 | L18: 0.01320242223 | O18: 9 | P18: 0 | Q18: 0.02218416694 | R18: 0.03682701403 | S18: 1 | T18: 1 | U18: 1 | V18: 1 | W18: 1 | X18: 1 | Y18: 1 | Z18: 1 | AC18: 9 | AD18: 1 | AE18: 0.02218416694 | AF18: 0.02397536184 | AG18: 0.01983925943 | AH18: 0.01776329708 | AI18: 0.01635084618 | AJ18: 0.02032337818 | AK18: 0.02269986119 | AL18: 0.02578771056 | AM18: 0.03866661033 | AP18: 9 | AQ18: 1 | AR18: 0 | AS18: 0 | AT18: 0.08080808081 | AU18: 0 | AV18: 1 | AW18: 1 | AX18: 1 | AY18: 1 | AZ18: 1
B19: 10 | C19: 1 | D19: 0.01579003166 | E19: 0.0255408566 | F19: 0.02115719394 | G19: 0.01895796994 | H19: 0.01743004196 | I19: 0.02115719394 | J19: 0.02354603086 | K19: 0.003875477286 | L19: 0.01399077817 | O19: 10 | P19: 0 | Q19: 0.01579003166 | R19: 0.03520653268 | S19: 1 | T19: 1 | U19: 1 | V19: 1 | W19: 1 | X19: 1 | Y19: 1 | Z19: 1 | AC19: 10 | AD19: 1 | AE19: 0.01579003166 | AF19: 0.0255408566 | AG19: 0.02115719394 | AH19: 0.01895796994 | AI19: 0.01743004196 | AJ19: 0.02101642319 | AK19: 0.02354603086 | AL19: 0.0264158688 | AM19: 0.03932042104 | AP19: 10 | AQ19: 1 | AR19: 0 | AS19: 0 | AT19: 0.09090909091 | AU19: 0 | AV19: 1 | AW19: 1 | AX19: 1 | AY19: 1 | AZ19: 1
B20: 11 | C20: 1 | D20: 0.0107981933 | E20: 0.02668333429 | F20: 0.02213014767 | G20: 0.01984509596 | H20: 0.01822246006 | I20: 0.02213014767 | J20: 0.02408761084 | K20: 0.004640695556 | L20: 0.01467007487 | O20: 11 | P20: 0 | Q20: 0.0107981933 | R20: 0.03332246029 | S20: 1 | T20: 1 | U20: 1 | V20: 1 | W20: 1 | X20: 1 | Y20: 1 | Z20: 1 | AC20: 11 | AD20: 1 | AE20: 0.0107981933 | AF20: 0.02668333429 | AG20: 0.02213014767 | AH20: 0.01984509596 | AI20: 0.01822246006 | AJ20: 0.02143956415 | AK20: 0.02408761084 | AL20: 0.02674652986 | AM20: 0.03946993366 | AP20: 11 | AQ20: 1 | AR20: 0 | AS20: 0 | AT20: 0.101010101 | AU20: 0 | AV20: 1 | AW20: 1 | AX20: 1 | AY20: 1 | AZ20: 1
B21: 12 | C21: 1 | D21: 0.007094918569 | E21: 0.02746503369 | F21: 0.02280926238 | G21: 0.02046943093 | H21: 0.01877034446 | I21: 0.02280926238 | J21: 0.02439185886 | K21: 0.005443152739 | L21: 0.0152656201 | O21: 12 | P21: 0 | Q21: 0.007094918569 | R21: 0.03122539334 | S21: 1 | T21: 1 | U21: 1 | V21: 1 | W21: 1 | X21: 1 | Y21: 1 | Z21: 1 | AC21: 12 | AD21: 1 | AE21: 0.007094918569 | AF21: 0.02746503369 | AG21: 0.02280926238 | AH21: 0.02046943093 | AI21: 0.01877034446 | AJ21: 0.02165309784 | AK21: 0.02439185886 | AL21: 0.02686047599 | AM21: 0.03923893287 | AP21: 12 | AQ21: 1 | AR21: 0 | AS21: 0 | AT21: 0.1111111111 | AU21: 0 | AV21: 1 | AW21: 1 | AX21: 1 | AY21: 1 | AZ21: 1
B22: 13 | C22: 1 | D22: 0.004478906059 | E22: 0.02795564308 | F22: 0.02325202217 | G22: 0.02088155373 | H22: 0.01912135357 | I22: 0.02325202217 | J22: 0.02451950082 | K22: 0.006275526924 | L22: 0.01579964831 | O22: 13 | P22: 0 | Q22: 0.004478906059 | R22: 0.02896915528 | S22: 1 | T22: 1 | U22: 1 | V22: 1 | W22: 1 | X22: 1 | Y22: 1 | Z22: 1 | AC22: 13 | AD22: 1 | AE22: 0.004478906059 | AF22: 0.02795564308 | AG22: 0.02325202217 | AH22: 0.02088155373 | AI22: 0.01912135357 | AJ22: 0.0217109214 | AK22: 0.02451950082 | AL22: 0.02682624914 | AM22: 0.0387333087 | AP22: 13 | AQ22: 1 | AR22: 0 | AS22: 0 | AT22: 0.1212121212 | AU22: 0 | AV22: 1 | AW22: 1 | AX22: 1 | AY22: 1 | AZ22: 1
B23: 14 | C23: 1 | D23: 0.002716593847 | E23: 0.02822475702 | F23: 0.02351603841 | G23: 0.02113232274 | H23: 0.01932342554 | I23: 0.02351603841 | J23: 0.02452118195 | K23: 0.007131336422 | L23: 0.016290279 | O23: 14 | P23: 0 | Q23: 0.002716593847 | R23: 0.02660852499 | S23: 1 | T23: 1 | U23: 1 | V23: 1 | W23: 1 | X23: 1 | Y23: 1 | Z23: 1 | AC23: 14 | AD23: 1 | AE23: 0.002716593847 | AF23: 0.02822475702 | AG23: 0.02351603841 | AH23: 0.02113232274 | AI23: 0.01932342554 | AJ23: 0.02165759247 | AK23: 0.02452118195 | AL23: 0.02669744712 | AM23: 0.03803680673 | AP23: 14 | AQ23: 1 | AR23: 0 | AS23: 0 | AT23: 0.1313131313 | AU23: 0 | AV23: 1 | AW23: 1 | AX23: 1 | AY23: 1 | AZ23: 1
B24: 15 | C24: 1 | D24: 0.001583090317 | E24: 0.0283331243 | F24: 0.02365184943 | G24: 0.02126646091 | H24: 0.01941882222 | I24: 0.02365184943 | J24: 0.02443639508 | K24: 0.008004813001 | L24: 0.01675137265 | O24: 15 | P24: 0 | Q24: 0.001583090317 | R24: 0.02419707245 | S24: 1 | T24: 1 | U24: 1 | V24: 1 | W24: 1 | X24: 1 | Y24: 1 | Z24: 1 | AC24: 15 | AD24: 1 | AE24: 0.001583090317 | AF24: 0.0283331243 | AG24: 0.02365184943 | AH24: 0.02126646091 | AI24: 0.01941882222 | AJ24: 0.02152755768 | AK24: 0.02443639508 | AL24: 0.02651292123 | AM24: 0.037210703 | AP24: 15 | AQ24: 1 | AR24: 0 | AS24: 0 | AT24: 0.1414141414 | AU24: 0 | AV24: 1 | AW24: 1 | AX24: 1 | AY24: 1 | AZ24: 1
B25: 16 | C25: 1 | D25: 0.0008863696824 | E25: 0.02832817957 | F25: 0.02369926094 | G25: 0.02131930767 | H25: 0.01944109399 | I25: 0.02369926094 | J25: 0.02429419353 | K25: 0.00889069503 | L25: 0.01719295365 | O25: 16 | P25: 0 | Q25: 0.0008863696824 | R25: 0.0217852177 | S25: 1 | T25: 1 | U25: 1 | V25: 1 | W25: 1 | X25: 1 | Y25: 1 | Z25: 1 | AC25: 16 | AD25: 1 | AE25: 0.0008863696824 | AF25: 0.02832817957 | AG25: 0.02369926094 | AH25: 0.02131930767 | AI25: 0.01944109399 | AJ25: 0.02134590124 | AK25: 0.02429419353 | AL25: 0.02629873941 | AM25: 0.03629602027 | AP25: 16 | AQ25: 1 | AR25: 0 | AS25: 0 | AT25: 0.1515151515 | AU25: 0 | AV25: 1 | AW25: 1 | AX25: 1 | AY25: 1 | AZ25: 1
B26: 17 | C26: 1 | D26: 0.0004768176403 | E26: 0.0282438908 | F26: 0.02368723921 | G26: 0.02131673791 | H26: 0.01941497861 | I26: 0.02368723921 | J26: 0.02411492487 | K26: 0.009784024495 | L26: 0.01762191733 | O26: 17 | P26: 0 | Q26: 0.0004768176403 | R26: 0.0194186055 | S26: 1 | T26: 1 | U26: 1 | V26: 1 | W26: 1 | X26: 1 | Y26: 1 | Z26: 1 | AC26: 17 | AD26: 1 | AE26: 0.0004768176403 | AF26: 0.0282438908 | AG26: 0.02368723921 | AH26: 0.02131673791 | AI26: 0.01941497861 | AJ26: 0.02112993019 | AK26: 0.02411492487 | AL26: 0.02607088444 | AM26: 0.03531705047 | AP26: 17 | AQ26: 1 | AR26: 0 | AS26: 0 | AT26: 0.1616161616 | AU26: 0 | AV26: 1 | AW26: 1 | AX26: 1 | AY26: 1 | AZ26: 1
B27: 18 | C27: 1 | D27: 0.0002464438337 | E27: 0.02810284099 | F27: 0.02363563002 | G27: 0.02127670088 | H27: 0.01935780868 | I27: 0.02363563002 | J27: 0.02391233192 | K27: 0.01067999776 | L27: 0.0180428004 | O27: 18 | P27: 0 | Q27: 0.0002464438337 | R27: 0.0171368592 | S27: 1 | T27: 1 | U27: 1 | V27: 1 | W27: 1 | X27: 1 | Y27: 1 | Z27: 1 | AC27: 18 | AD27: 1 | AE27: 0.0002464438337 | AF27: 0.02810284099 | AG27: 0.02363563002 | AH27: 0.02127670088 | AI27: 0.01935780868 | AJ27: 0.02089103244 | AK27: 0.02391233192 | AL27: 0.02583794926 | AM27: 0.03428531179 | AP27: 18 | AQ27: 1 | AR27: 0 | AS27: 0 | AT27: 0.1717171717 | AU27: 0 | AV27: 1 | AW27: 1 | AX27: 1 | AY27: 1 | AZ27: 1
B28: 19 | C28: 1 | D28: 0.000122380386 | E28: 0.02791884083 | F28: 0.02355729723 | G28: 0.02121112539 | H28: 0.01928126647 | I28: 0.02355729723 | J28: 0.02369556209 | K28: 0.01157388398 | L28: 0.01845847162 | O28: 19 | P28: 0 | Q28: 0.000122380386 | R28: 0.01497274656 | S28: 1 | T28: 1 | U28: 1 | V28: 1 | W28: 1 | X28: 1 | Y28: 1 | Z28: 1 | AC28: 19 | AD28: 1 | AE28: 0.000122380386 | AF28: 0.02791884083 | AG28: 0.02355729723 | AH28: 0.02121112539 | AI28: 0.01928126647 | AJ28: 0.02063643063 | AK28: 0.02369556209 | AL28: 0.02560341556 | AM28: 0.03320345184 | AP28: 19 | AQ28: 1 | AR28: 0 | AS28: 0 | AT28: 0.1818181818 | AU28: 0 | AV28: 1 | AW28: 1 | AX28: 1 | AY28: 1 | AZ28: 1
B29: 20 | C29: 1 | D29: 5.838938516e-05 | E29: 0.02769930579 | F29: 0.02346005128 | G29: 0.02112763305 | H29: 0.01919296569 | I29: 0.02346005128 | J29: 0.02347082559 | K29: 0.01246100531 | L29: 0.01887067506 | O29: 20 | P29: 0 | Q29: 5.838938516e-05 | R29: 0.01295175957 | S29: 1 | T29: 1 | U29: 1 | V29: 1 | W29: 1 | X29: 1 | Y29: 1 | Z29: 1 | AC29: 20 | AD29: 1 | AE29: 5.838938516e-05 | AF29: 0.02769930579 | AG29: 0.02346005128 | AH29: 0.02112763305 | AI29: 0.01919296569 | AJ29: 0.02037063647 | AK29: 0.02347082559 | AL29: 0.02536736903 | AM29: 0.03206888257 | AP29: 20 | AQ29: 1 | AR29: 0 | AS29: 0 | AT29: 0.1919191919 | AU29: 0 | AV29: 1 | AW29: 1 | AX29: 1 | AY29: 1 | AZ29: 1
B30: 21 | C30: 1 | D30: 2.676604515e-05 | E30: 0.02744720337 | F30: 0.02334820971 | G30: 0.0210309214 | H30: 0.01909773069 | I30: 0.02334820971 | J30: 0.02315626438 | K30: 0.01333676605 | L30: 0.01928041606 | O30: 21 | P30: 0 | Q30: 2.676604515e-05 | R30: 0.01109208347 | S30: 1 | T30: 1 | U30: 1 | V30: 1 | W30: 1 | X30: 1 | Y30: 1 | Z30: 1 | AC30: 21 | AD30: 1 | AE30: 2.676604515e-05 | AF30: 0.02744720337 | AG30: 0.02334820971 | AH30: 0.0210309214 | AI30: 0.01909773069 | AJ30: 0.020062189 | AK30: 0.02315626438 | AL30: 0.02506628717 | AM30: 0.03074508273 | AP30: 21 | AQ30: 1 | AR30: 0 | AS30: 0 | AT30: 0.202020202 | AU30: 0 | AV30: 1 | AW30: 1 | AX30: 1 | AY30: 1 | AZ30: 1
B31: 22 | C31: 1 | D31: 1.178861355e-05 | E31: 0.02716256804 | F31: 0.02322378812 | G31: 0.02092381586 | H31: 0.01899857181 | I31: 0.02322378812 | J31: 0.02280591427 | K31: 0.01419671627 | L31: 0.01968821302 | O31: 22 | P31: 0 | Q31: 1.178861355e-05 | R31: 0.009404907738 | S31: 1 | T31: 1 | U31: 1 | V31: 1 | W31: 1 | X31: 1 | Y31: 1 | Z31: 1 | AC31: 22 | AD31: 1 | AE31: 1.178861355e-05 | AF31: 0.02716256804 | AG31: 0.02322378812 | AH31: 0.02092381586 | AI31: 0.01899857181 | AJ31: 0.0197315601 | AK31: 0.02280591427 | AL31: 0.02470822799 | AM31: 0.02927548067 | AP31: 22 | AQ31: 1 | AR31: 0 | AS31: 0 | AT31: 0.2121212121 | AU31: 0 | AV31: 1 | AW31: 1 | AX31: 1 | AY31: 1 | AZ31: 1
B32: 23 | C32: 1 | D32: 4.988494258e-06 | E32: 0.02684362103 | F32: 0.02308735165 | G32: 0.02080801664 | H32: 0.01889738139 | I32: 0.02308735165 | J32: 0.02241800921 | K32: 0.01503663585 | L32: 0.02009424952 | O32: 23 | P32: 0 | Q32: 4.988494258e-06 | R32: 0.00789501583 | S32: 1 | T32: 1 | U32: 1 | V32: 1 | W32: 1 | X32: 1 | Y32: 1 | Z32: 1 | AC32: 23 | AD32: 1 | AE32: 4.988494258e-06 | AF32: 0.02684362103 | AG32: 0.02308735165 | AH32: 0.02080801664 | AI32: 0.01889738139 | AJ32: 0.01937921803 | AK32: 0.02241800921 | AL32: 0.02429066837 | AM32: 0.02767453858 | AP32: 23 | AQ32: 1 | AR32: 0 | AS32: 0 | AT32: 0.2222222222 | AU32: 0 | AV32: 1 | AW32: 1 | AX32: 1 | AY32: 1 | AZ32: 1
B33: 24 | C33: 1 | D33: 2.028170413e-06 | E33: 0.0264875532 | F33: 0.02293857452 | G33: 0.02068458202 | H33: 0.01879538917 | I33: 0.02293857452 | J33: 0.02199611443 | K33: 0.01585262571 | L33: 0.02049845954 | O33: 24 | P33: 0 | Q33: 2.028170413e-06 | R33: 0.006561581477 | S33: 1 | T33: 1 | U33: 1 | V33: 1 | W33: 1 | X33: 1 | Y33: 1 | Z33: 1 | AC33: 24 | AD33: 1 | AE33: 2.028170413e-06 | AF33: 0.0264875532 | AG33: 0.02293857452 | AH33: 0.02068458202 | AI33: 0.01879538917 | AJ33: 0.01900760848 | AK33: 0.02199611443 | AL33: 0.02381140359 | AM33: 0.02596470174 | AP33: 24 | AQ33: 1 | AR33: 0 | AS33: 0 | AT33: 0.2323232323 | AU33: 0 | AV33: 1 | AW33: 1 | AX33: 1 | AY33: 1 | AZ33: 1
B34: 25 | C34: 1 | D34: 7.922598182e-07 | E34: 0.02609105122 | F34: 0.02277657409 | G34: 0.02055420629 | H34: 0.01869343074 | I34: 0.02277657409 | J34: 0.0215442712 | K34: 0.01664119538 | L34: 0.02090057165 | O34: 25 | P34: 0 | Q34: 7.922598182e-07 | R34: 0.005399096651 | S34: 1 | T34: 1 | U34: 1 | V34: 1 | W34: 1 | X34: 1 | Y34: 1 | Z34: 1 | AC34: 25 | AD34: 1 | AE34: 7.922598182e-07 | AF34: 0.02609105122 | AG34: 0.02277657409 | AH34: 0.02055420629 | AI34: 0.01869343074 | AJ34: 0.01861950823 | AK34: 0.0215442712 | AL34: 0.02326848187 | AM34: 0.0241740933 | AP34: 25 | AQ34: 1 | AR34: 0 | AS34: 0 | AT34: 0.2424242424 | AU34: 0 | AV34: 1 | AW34: 1 | AX34: 1 | AY34: 1 | AZ34: 1
B35: 26 | C35: 1 | D35: 2.973439029e-07 | E35: 0.02565065275 | F35: 0.02260009144 | G35: 0.02041735625 | H35: 0.0185920873 | I35: 0.02260009144 | J35: 0.0210657614 | K35: 0.01739933817 | L35: 0.02130012986 | O35: 26 | P35: 0 | Q35: 2.973439029e-07 | R35: 0.004398359598 | S35: 1 | T35: 1 | U35: 1 | V35: 1 | W35: 1 | X35: 1 | Y35: 1 | Z35: 1 | AC35: 26 | AD35: 1 | AE35: 2.973439029e-07 | AF35: 0.02565065275 | AG35: 0.02260009144 | AH35: 0.02041735625 | AI35: 0.0185920873 | AJ35: 0.01821773381 | AK35: 0.0210657614 | AL35: 0.02266070116 | AM35: 0.02233516367 | AP35: 26 | AQ35: 1 | AR35: 0.01333333333 | AS35: 0 | AT35: 0.2525252525 | AU35: 0 | AV35: 1 | AW35: 1 | AX35: 1 | AY35: 1 | AZ35: 1
B36: 27 | C36: 1 | D36: 1.072207069e-07 | E36: 0.02516300326 | F36: 0.0224075809 | G36: 0.02027432109 | H36: 0.01849174698 | I36: 0.0224075809 | J36: 0.02056296974 | K36: 0.01812458802 | L36: 0.02169650221 | O36: 27 | P36: 0 | Q36: 1.072207069e-07 | R36: 0.003547459285 | S36: 1 | T36: 1 | U36: 1 | V36: 1 | W36: 1 | X36: 1 | Y36: 1 | Z36: 1 | AC36: 27 | AD36: 1 | AE36: 1.072207069e-07 | AF36: 0.02516300326 | AG36: 0.0224075809 | AH36: 0.02027432109 | AI36: 0.01849174698 | AJ36: 0.01780506354 | AK36: 0.02056296974 | AL36: 0.02198821944 | AM36: 0.02048260032 | AP36: 27 | AQ36: 1 | AR36: 0.02666666667 | AS36: 0 | AT36: 0.2626262626 | AU36: 0 | AV36: 1 | AW36: 1 | AX36: 1 | AY36: 1 | AZ36: 1
B37: 28 | C37: 1 | D37: 3.714723689e-08 | E37: 0.02462506396 | F37: 0.02219725288 | G37: 0.02012521491 | H37: 0.0183926228 | I37: 0.02219725288 | J37: 0.02003737883 | K37: 0.01881505437 | L37: 0.02208888255 | O37: 28 | P37: 0 | Q37: 3.714723689e-08 | R37: 0.002832703774 | S37: 1 | T37: 1 | U37: 1 | V37: 1 | W37: 1 | X37: 1 | Y37: 1 | Z37: 1 | AC37: 28 | AD37: 1 | AE37: 3.714723689e-08 | AF37: 0.02462506396 | AG37: 0.02219725288 | AH37: 0.02012521491 | AI37: 0.0183926228 | AJ37: 0.01738410449 | AK37: 0.02003737883 | AL37: 0.02125314858 | AM37: 0.01865082889 | AP37: 28 | AQ37: 1 | AR37: 0.04 | AS37: 0 | AT37: 0.2727272727 | AU37: 0 | AV37: 1 | AW37: 1 | AX37: 1 | AY37: 1 | AZ37: 1
B38: 29 | C38: 1 | D38: 1.2365241e-08 | E38: 0.0240342984 | F38: 0.02196709764 | G38: 0.01996995572 | H38: 0.01829474886 | I38: 0.02196709764 | J38: 0.01948965183 | K38: 0.01946943312 | L38: 0.02247628692 | O38: 29 | P38: 0 | Q38: 1.2365241e-08 | R38: 0.002239453029 | S38: 1 | T38: 1 | U38: 1 | V38: 1 | W38: 1 | X38: 1 | Y38: 1 | Z38: 1 | AC38: 29 | AD38: 1 | AE38: 1.2365241e-08 | AF38: 0.0240342984 | AG38: 0.02196709764 | AH38: 0.01996995572 | AI38: 0.01829474886 | AJ38: 0.01695712982 | AK38: 0.01948965183 | AL38: 0.02045995882 | AM38: 0.01687154809 | AP38: 29 | AQ38: 1 | AR38: 0.05333333333 | AS38: 0 | AT38: 0.2828282828 | AU38: 0 | AV38: 1 | AW38: 1 | AX38: 1 | AY38: 1 | AZ38: 1
B39: 30 | C39: 1 | D39: 3.954639281e-09 | E39: 0.02338884917 | F39: 0.02171490606 | G39: 0.01980823492 | H39: 0.01819796615 | I39: 0.02171490606 | J39: 0.01891983733 | K39: 0.02008699323 | L39: 0.02285754137 | O39: 30 | P39: 0 | Q39: 3.954639281e-09 | R39: 0.001752830049 | S39: 1 | T39: 1 | U39: 1 | V39: 1 | W39: 1 | X39: 1 | Y39: 1 | Z39: 1 | AC39: 30 | AD39: 1 | AE39: 3.954639281e-09 | AF39: 0.02338884917 | AG39: 0.02171490606 | AH39: 0.01980823492 | AI39: 0.01819796615 | AJ39: 0.01652592704 | AK39: 0.01891983733 | AL39: 0.01961556116 | AM39: 0.01517168531 | AP39: 30 | AQ39: 1 | AR39: 0.06666666667 | AS39: 0 | AT39: 0.2929292929 | AU39: 0 | AV39: 1 | AW39: 1 | AX39: 1 | AY39: 1 | AZ39: 1
B40: 31 | C40: 1 | D40: 1.21517657e-09 | E40: 0.0226877064 | F40: 0.02143829658 | G40: 0.01963948499 | H40: 0.01810190429 | I40: 0.02143829658 | J40: 0.01832767296 | K40: 0.02066753899 | L40: 0.02323125238 | O40: 31 | P40: 0 | Q40: 1.21517657e-09 | R40: 0.001358296923 | S40: 1 | T40: 1 | U40: 1 | V40: 1 | W40: 1 | X40: 1 | Y40: 1 | Z40: 1 | AC40: 31 | AD40: 1 | AE40: 1.21517657e-09 | AF40: 0.0226877064 | AG40: 0.02143829658 | AH40: 0.01963948499 | AI40: 0.01810190429 | AJ40: 0.01609168697 | AK40: 0.01832767296 | AL40: 0.01872903124 | AM40: 0.01357203717 | AP40: 31 | AQ40: 1 | AR40: 0.08 | AS40: 0 | AT40: 0.303030303 | AU40: 0 | AV40: 1 | AW40: 1 | AX40: 1 | AY40: 1 | AZ40: 1
B41: 32 | C41: 1 | D41: 3.587567816e-10 | E41: 0.02193086344 | F41: 0.02113475388 | G41: 0.01946285028 | H41: 0.01800596247 | I41: 0.02113475388 | J41: 0.01771293577 | K41: 0.02121134755 | L41: 0.02359574281 | O41: 32 | P41: 0 | Q41: 3.587567816e-10 | R41: 0.001042093481 | S41: 1 | T41: 1 | U41: 1 | V41: 1 | W41: 1 | X41: 1 | Y41: 1 | Z41: 1 | AC41: 32 | AD41: 1 | AE41: 3.587567816e-10 | AF41: 0.02193086344 | AG41: 0.02113475388 | AH41: 0.01946285028 | AI41: 0.01800596247 | AJ41: 0.01565495567 | AK41: 0.01771293577 | AL41: 0.01781103483 | AM41: 0.01208670172 | AP41: 32 | AQ41: 1 | AR41: 0.09333333333 | AS41: 0 | AT41: 0.3131313131 | AU41: 0 | AV41: 1 | AW41: 1 | AX41: 1 | AY41: 1 | AZ41: 1
B42: 33 | C42: 1 | D42: 1.017628056e-10 | E42: 0.02111945212 | F42: 0.02080168256 | G42: 0.01927716428 | H42: 0.01790929161 | I42: 0.02080168256 | J42: 0.01707578102 | K42: 0.02171907987 | L42: 0.02394892429 | O42: 33 | P42: 0 | Q42: 1.017628056e-10 | R42: 0.0007915451583 | S42: 1 | T42: 1 | U42: 1 | V42: 1 | W42: 1 | X42: 1 | Y42: 1 | Z42: 1 | AC42: 33 | AD42: 1 | AE42: 1.017628056e-10 | AF42: 0.02111945212 | AG42: 0.02080168256 | AH42: 0.01927716428 | AI42: 0.01790929161 | AJ42: 0.0152156613 | AK42: 0.01707578102 | AL42: 0.01687307487 | AM42: 0.01072325813 | AP42: 33 | AQ42: 1 | AR42: 0.1066666667 | AS42: 0 | AT42: 0.3232323232 | AU42: 0 | AV42: 1 | AW42: 1 | AX42: 1 | AY42: 1 | AZ42: 1
B43: 34 | C43: 1 | D43: 2.773359988e-11 | E43: 0.02025584761 | F43: 0.02043647775 | G43: 0.0190809361 | H43: 0.01781077897 | I43: 0.02043647775 | J43: 0.01641701773 | K43: 0.02219165978 | L43: 0.02428806085 | O43: 34 | P43: 0 | Q43: 2.773359988e-11 | R43: 0.000595253242 | S43: 1 | T43: 1 | U43: 1 | V43: 1 | W43: 1 | X43: 1 | Y43: 1 | Z43: 1 | AC43: 34 | AD43: 1 | AE43: 2.773359988e-11 | AF43: 0.02025584761 | AG43: 0.02043647775 | AH43: 0.0190809361 | AI43: 0.01781077897 | AJ43: 0.01477321546 | AK43: 0.01641701773 | AL43: 0.01592669669 | AM43: 0.009483536601 | AP43: 34 | AQ43: 1 | AR43: 0.12 | AS43: 0 | AT43: 0.3333333333 | AU43: 0 | AV43: 1 | AW43: 1 | AX43: 1 | AY43: 1 | AZ43: 1
B44: 35 | C44: 1 | D44: 7.261923004e-12 | E44: 0.01934373304 | F44: 0.02003661324 | G44: 0.01887234847 | H44: 0.01770903655 | I44: 0.02003661324 | J44: 0.01573828465 | K44: 0.0226301112 | L44: 0.02460936075 | O44: 35 | P44: 0 | Q44: 7.261923004e-12 | R44: 0.0004431848412 | S44: 1 | T44: 1 | U44: 1 | V44: 1 | W44: 1 | X44: 1 | Y44: 1 | Z44: 1 | AC44: 35 | AD44: 1 | AE44: 7.261923004e-12 | AF44: 0.01934373304 | AG44: 0.02003661324 | AH44: 0.01887234847 | AI44: 0.01770903655 | AJ44: 0.01432667631 | AK44: 0.01573828465 | AL44: 0.01498276999 | AM44: 0.008364761311 | AP44: 35 | AQ44: 1 | AR44: 0.1333333333 | AS44: 0 | AT44: 0.3434343434 | AU44: 0 | AV44: 1 | AW44: 1 | AX44: 1 | AY44: 1 | AZ44: 1
B45: 36 | C45: 1 | D45: 1.826944082e-12 | E45: 0.01838811431 | F45: 0.01959974639 | G45: 0.0186492695 | H45: 0.01760239438 | I45: 0.01959974639 | J45: 0.01504211053 | K45: 0.02303533804 | L45: 0.02490731885 | O45: 36 | P45: 0 | Q45: 1.826944082e-12 | R45: 0.0003266819056 | S45: 1 | T45: 1 | U45: 1 | V45: 1 | W45: 1 | X45: 1 | Y45: 1 | Z45: 1 | AC45: 36 | AD45: 1 | AE45: 1.826944082e-12 | AF45: 0.01838811431 | AG45: 0.01959974639 | AH45: 0.0186492695 | AI45: 0.01760239438 | AJ45: 0.01387495071 | AK45: 0.01504211053 | AL45: 0.01405093162 | AM45: 0.007360842307 | AP45: 36 | AQ45: 1 | AR45: 0.1466666667 | AS45: 0 | AT45: 0.3535353535 | AU45: 0 | AV45: 1 | AW45: 1 | AX45: 1 | AY45: 1 | AZ45: 1
B46: 37 | C46: 1 | D46: 4.415979926e-13 | E46: 0.01739527778 | F46: 0.01912383756 | G46: 0.01840928014 | H46: 0.0174888999 | I46: 0.01912383756 | J46: 0.01433186265 | K46: 0.02340782633 | L46: 0.0251737335 | O46: 37 | P46: 0 | Q46: 4.415979926e-13 | R46: 0.0002384088201 | S46: 1 | T46: 1 | U46: 1 | V46: 1 | W46: 1 | X46: 1 | Y46: 1 | Z46: 1 | AC46: 37 | AD46: 1 | AE46: 4.415979926e-13 | AF46: 0.01739527778 | AG46: 0.01912383756 | AH46: 0.01840928014 | AI46: 0.0174888999 | AJ46: 0.01341700741 | AK46: 0.01433186265 | AL46: 0.01313923195 | AM46: 0.006463625319 | AP46: 37 | AQ46: 1 | AR46: 0.16 | AS46: 0 | AT46: 0.3636363636 | AU46: 0 | AV46: 1 | AW46: 1 | AX46: 1 | AY46: 1 | AZ46: 1
B47: 38 | C47: 1 | D47: 1.025550727e-13 | E47: 0.01637268651 | F47: 0.01860728057 | G47: 0.0181497193 | H47: 0.01736632503 | I47: 0.01860728057 | J47: 0.01361160373 | K47: 0.02374724712 | L47: 0.02539635697 | O47: 38 | P47: 0 | Q47: 1.025550727e-13 | R47: 0.0001722568939 | S47: 1 | T47: 1 | U47: 1 | V47: 1 | W47: 1 | X47: 1 | Y47: 1 | Z47: 1 | AC47: 38 | AD47: 1 | AE47: 1.025550727e-13 | AF47: 0.01637268651 | AG47: 0.01860728057 | AH47: 0.0181497193 | AI47: 0.01736632503 | AJ47: 0.01295207327 | AK47: 0.01361160373 | AL47: 0.01225398977 | AM47: 0.005663965083 | AP47: 38 | AQ47: 1 | AR47: 0.1733333333 | AS47: 0 | AT47: 0.3737373737 | AU47: 0 | AV47: 1 | AW47: 1 | AX47: 1 | AY47: 1 | AZ47: 1
B48: 39 | C48: 1 | D48: 2.28831298e-14 | E48: 0.01532881476 | F48: 0.01804903862 | G48: 0.01786774781 | H48: 0.01723218243 | I48: 0.01804903862 | J48: 0.01288588644 | K48: 0.02405194635 | L48: 0.02555723331 | O48: 39 | P48: 0 | Q48: 2.28831298e-14 | R48: 0.0001232219168 | S48: 1 | T48: 1 | U48: 1 | V48: 1 | W48: 1 | X48: 1 | Y48: 1 | Z48: 1 | AC48: 39 | AD48: 1 | AE48: 2.28831298e-14 | AF48: 0.01532881476 | AG48: 0.01804903862 | AH48: 0.01786774781 | AI48: 0.01723218243 | AJ48: 0.01247978884 | AK48: 0.01288588644 | AL48: 0.01139983013 | AM48: 0.004952550194 | AP48: 39 | AQ48: 1 | AR48: 0.1866666667 | AS48: 0 | AT48: 0.3838383838 | AU48: 0 | AV48: 1 | AW48: 1 | AX48: 1 | AY48: 1 | AZ48: 1
B49: 40 | C49: 1 | D49: 4.905710571e-15 | E49: 0.01427292484 | F49: 0.01744877877 | G49: 0.01756043212 | H49: 0.01708375253 | I49: 0.01744877877 | J49: 0.01215951813 | K49: 0.02431832868 | L49: 0.02563095457 | O49: 40 | P49: 0 | Q49: 4.905710571e-15 | R49: 8.72682695e-05 | S49: 1 | T49: 1 | U49: 1 | V49: 1 | W49: 1 | X49: 1 | Y49: 1 | Z49: 1 | AC49: 40 | AD49: 1 | AE49: 4.905710571e-15 | AF49: 0.01427292484 | AG49: 0.01744877877 | AH49: 0.01756043212 | AI49: 0.01708375253 | AJ49: 0.01200030785 | AK49: 0.01215951813 | AL49: 0.01057986029 | AM49: 0.004320463062 | AP49: 40 | AQ49: 1 | AR49: 0.2 | AS49: 0 | AT49: 0.3939393939 | AU49: 0 | AV49: 1 | AW49: 1 | AX49: 1 | AY49: 1 | AZ49: 1
B50: 41 | C50: 1 | D50: 1.010454217e-15 | E50: 0.01321479543 | F50: 0.01680699676 | G50: 0.01722484746 | H50: 0.01691812297 | I50: 0.01680699676 | J50: 0.0114373255 | K50: 0.02454018106 | L50: 0.02558333272 | O50: 41 | P50: 0 | Q50: 1.010454217e-15 | R50: 6.119019301e-05 | S50: 1 | T50: 1 | U50: 1 | V50: 1 | W50: 1 | X50: 1 | Y50: 1 | Z50: 1 | AC50: 41 | AD50: 1 | AE50: 1.010454217e-15 | AF50: 0.01321479543 | AG50: 0.01680699676 | AH50: 0.01722484746 | AI50: 0.01691812297 | AJ50: 0.01151433462 | AK50: 0.0114373255 | AL50: 0.009795930108 | AM50: 0.003759499666 | AP50: 41 | AQ50: 1 | AR50: 0.2133333333 | AS50: 0 | AT50: 0.404040404 | AU50: 0 | AV50: 1 | AW50: 1 | AX50: 1 | AY50: 1 | AZ50: 1
B51: 42 | C51: 1 | D51: 1.99967575e-16 | E51: 0.01216441459 | F51: 0.01612512258 | G51: 0.01685819908 | H51: 0.01673224167 | I51: 0.01612512258 | J51: 0.01072394249 | K51: 0.02470803826 | L51: 0.0253712994 | O51: 42 | P51: 0 | Q51: 1.99967575e-16 | R51: 4.247802706e-05 | S51: 1 | T51: 1 | U51: 1 | V51: 1 | W51: 1 | X51: 1 | Y51: 1 | Z51: 1 | AC51: 42 | AD51: 1 | AE51: 1.99967575e-16 | AF51: 0.01216441459 | AG51: 0.01612512258 | AH51: 0.01685819908 | AI51: 0.01673224167 | AJ51: 0.0110231022 | AK51: 0.01072394249 | AL51: 0.009048925227 | AM51: 0.00326229808 | AP51: 42 | AQ51: 1 | AR51: 0.2266666667 | AS51: 0 | AT51: 0.4141414141 | AU51: 0 | AV51: 1 | AW51: 1 | AX51: 1 | AY51: 1 | AZ51: 1
B52: 43 | C52: 1 | D52: 3.802163076e-17 | E52: 0.0111316543 | F52: 0.01540559731 | G52: 0.01645795868 | H52: 0.01652298463 | I52: 0.01540559731 | J52: 0.01002363712 | K52: 0.02480875903 | L52: 0.02494508362 | O52: 43 | P52: 0 | Q52: 3.802163076e-17 | R52: 2.919469258e-05 | S52: 1 | T52: 1 | U52: 1 | V52: 1 | W52: 1 | X52: 1 | Y52: 1 | Z52: 1 | AC52: 43 | AD52: 1 | AE52: 3.802163076e-17 | AF52: 0.0111316543 | AG52: 0.01540559731 | AH52: 0.01645795868 | AI52: 0.01652298463 | AJ52: 0.01052830164 | AK52: 0.01002363712 | AL52: 0.008339050317 | AM52: 0.002822333636 | AP52: 43 | AQ52: 1 | AR52: 0.24 | AS52: 0 | AT52: 0.4242424242 | AU52: 0 | AV52: 1 | AW52: 1 | AX52: 1 | AY52: 1 | AZ52: 1
B53: 44 | C53: 1 | D53: 6.945925497e-18 | E53: 0.01012594581 | F53: 0.01465191195 | G53: 0.01602201144 | H53: 0.01628723854 | I53: 0.01465191195 | J53: 0.009340185101 | K53: 0.02482553793 | L53: 0.02425364825 | O53: 44 | P53: 0 | Q53: 6.945925497e-18 | R53: 1.986554714e-05 | S53: 1 | T53: 1 | U53: 1 | V53: 1 | W53: 1 | X53: 1 | Y53: 1 | Z53: 1 | AC53: 44 | AD53: 1 | AE53: 6.945925497e-18 | AF53: 0.01012594581 | AG53: 0.01465191195 | AH53: 0.01602201144 | AI53: 0.01628723854 | AJ53: 0.01003197695 | AK53: 0.009340185101 | AL53: 0.007666072522 | AM53: 0.002433835839 | AP53: 44 | AQ53: 1 | AR53: 0.2533333333 | AS53: 0 | AT53: 0.4343434343 | AU53: 0 | AV53: 1 | AW53: 1 | AX53: 1 | AY53: 1 | AZ53: 1
B54: 45 | C54: 1 | D54: 1.219151626e-18 | E54: 0.009155975265 | F54: 0.0138686004 | G54: 0.01554880744 | H54: 0.016021998 | I54: 0.0138686004 | J54: 0.00867679188 | K54: 0.02473859419 | L54: 0.02325371556 | O54: 45 | P54: 0 | Q54: 1.219151626e-18 | R54: 1.338302258e-05 | S54: 1 | T54: 1 | U54: 1 | V54: 1 | W54: 1 | X54: 1 | Y54: 1 | Z54: 1 | AC54: 45 | AD54: 1 | AE54: 1.219151626e-18 | AF54: 0.009155975265 | AG54: 0.0138686004 | AH54: 0.01554880744 | AI54: 0.016021998 | AJ54: 0.009536402065 | AK54: 0.00867679188 | AL54: 0.007029509172 | AM54: 0.002091672097 | AP54: 45 | AQ54: 1 | AR54: 0.2666666667 | AS54: 0 | AT54: 0.4444444444 | AU54: 0 | AV54: 1 | AW54: 1 | AX54: 1 | AY54: 1 | AZ54: 1
B55: 46 | C55: 1 | D55: 2.055954714e-19 | E55: 0.008229418035 | F55: 0.01306118133 | G55: 0.01503750935 | H55: 0.01572447545 | I55: 0.01306118133 | J55: 0.008036060033 | K55: 0.02452671663 | L55: 0.02192135087 | O55: 46 | P55: 0 | Q55: 2.055954714e-19 | R55: 8.926165718e-06 | S55: 1 | T55: 1 | U55: 1 | V55: 1 | W55: 1 | X55: 1 | Y55: 1 | Z55: 1 | AC55: 46 | AD55: 1 | AE55: 2.055954714e-19 | AF55: 0.008229418035 | AG55: 0.01306118133 | AH55: 0.01503750935 | AI55: 0.01572447545 | AJ55: 0.009043955073 | AK55: 0.008036060033 | AL55: 0.006428755951 | AM55: 0.001791230153 | AP55: 46 | AQ55: 1 | AR55: 0.28 | AS55: 0 | AT55: 0.4545454545 | AU55: 0 | AV55: 1 | AW55: 1 | AX55: 1 | AY55: 1 | AZ55: 1
B56: 47 | C56: 1 | D56: 3.331176065e-20 | E56: 0.007352727235 | F56: 0.01223604671 | G56: 0.01448812719 | H56: 0.01539222139 | I56: 0.01223604671 | J56: 0.007419996157 | K56: 0.02416967961 | L56: 0.02026330687 | O56: 47 | P56: 0 | Q56: 3.331176065e-20 | R56: 5.894306776e-06 | S56: 1 | T56: 1 | U56: 1 | V56: 1 | W56: 1 | X56: 1 | Y56: 1 | Z56: 1 | AC56: 47 | AD56: 1 | AE56: 3.331176065e-20 | AF56: 0.007352727235 | AG56: 0.01223604671 | AH56: 0.01448812719 | AI56: 0.01539222139 | AJ56: 0.008557002255 | AK56: 0.007419996157 | AL56: 0.005863160824 | AM56: 0.00152831801 | AP56: 47 | AQ56: 1 | AR56: 0.2933333333 | AS56: 0 | AT56: 0.4646464646 | AU56: 0 | AV56: 1 | AW56: 1 | AX56: 1 | AY56: 1 | AZ56: 1
B57: 48 | C57: 1 | D57: 5.185729402e-21 | E57: 0.006530987326 | F57: 0.01140029897 | G57: 0.0139016299 | H57: 0.01502325051 | I57: 0.01140029897 | J57: 0.006830049767 | K57: 0.02365128852 | L57: 0.01832404274 | O57: 48 | P57: 0 | Q57: 5.185729402e-21 | R57: 3.853519674e-06 | S57: 1 | T57: 1 | U57: 1 | V57: 1 | W57: 1 | X57: 1 | Y57: 1 | Z57: 1 | AC57: 48 | AD57: 1 | AE57: 5.185729402e-21 | AF57: 0.006530987326 | AG57: 0.01140029897 | AH57: 0.0139016299 | AI57: 0.01502325051 | AJ57: 0.008077800662 | AK57: 0.006830049767 | AL57: 0.00533205466 | AM57: 0.001299089182 | AP57: 48 | AQ57: 1 | AR57: 0.3066666667 | AS57: 0 | AT57: 0.4747474747 | AU57: 0 | AV57: 1 | AW57: 1 | AX57: 1 | AY57: 1 | AZ57: 1
B58: 49 | C58: 1 | D58: 7.756223863e-22 | E58: 0.005767838507 | F58: 0.01056154301 | G58: 0.01328002361 | H58: 0.01461616835 | I58: 0.01056154301 | J58: 0.006267176102 | K58: 0.02296253209 | L58: 0.01618464762 | O58: 49 | P58: 0 | Q58: 7.756223863e-22 | R58: 2.494247129e-06 | S58: 1 | T58: 1 | U58: 1 | V58: 1 | W58: 1 | X58: 1 | Y58: 1 | Z58: 1 | AC58: 49 | AD58: 1 | AE58: 7.756223863e-22 | AF58: 0.005767838507 | AG58: 0.01056154301 | AH58: 0.01328002361 | AI58: 0.01461616835 | AJ58: 0.007608424059 | AK58: 0.006267176102 | AL58: 0.004834751715 | AM58: 0.001099993269 | AP58: 49 | AQ58: 1 | AR58: 0.32 | AS58: 0 | AT58: 0.4848484848 | AU58: 0 | AV58: 1 | AW58: 1 | AX58: 1 | AY58: 1 | AZ58: 1
B59: 50 | C59: 1 | D59: 1.114600005e-22 | E59: 0.005065471897 | F59: 0.009727643069 | G59: 0.01262638715 | H59: 0.01417029202 | I59: 0.009727643069 | J59: 0.005731914614 | K59: 0.02210412753 | L59: 0.01395233222 | O59: 50 | P59: 0 | Q59: 1.114600005e-22 | R59: 1.598374111e-06 | S59: 1 | T59: 1 | U59: 1 | V59: 1 | W59: 1 | X59: 1 | Y59: 1 | Z59: 1 | AC59: 50 | AD59: 1 | AE59: 1.114600005e-22 | AF59: 0.005065471897 | AG59: 0.009727643069 | AH59: 0.01262638715 | AI59: 0.01417029202 | AJ59: 0.007150713436 | AK59: 0.005731914614 | AL59: 0.004370532853 | AM59: 0.0009277472405 | AP59: 50 | AQ59: 1 | AR59: 0.3333333333 | AS59: 0 | AT59: 0.4949494949 | AU59: 0 | AV59: 1 | AW59: 1 | AX59: 1 | AY59: 1 | AZ59: 1
B60: 51 | C60: 1 | D60: 1.538919725e-23 | E60: 0.00442469022 | F60: 0.008906458512 | G60: 0.01194485744 | H60: 0.01368575711 | I60: 0.008906458512 | J60: 0.005224475126 | K60: 0.02108776091 | L60: 0.01174285653 | O60: 51 | P60: 0 | Q60: 1.538919725e-23 | R60: 1.014085207e-06 | S60: 1 | T60: 1 | U60: 1 | V60: 1 | W60: 1 | X60: 1 | Y60: 1 | Z60: 1 | AC60: 51 | AD60: 1 | AE60: 1.538919725e-23 | AF60: 0.00442469022 | AG60: 0.008906458512 | AH60: 0.01194485744 | AI60: 0.01368575711 | AJ60: 0.006706250511 | AK60: 0.005224475126 | AL60: 0.003938622289 | AM60: 0.0007793208976 | AP60: 51 | AQ60: 1 | AR60: 0.3466666667 | AS60: 0.04 | AT60: 0.5050505051 | AU60: 1 | AV60: 1 | AW60: 1 | AX60: 1 | AY60: 1 | AZ60: 1
B61: 52 | C61: 1 | D61: 2.041461119e-24 | E61: 0.003845024262 | F61: 0.008105574389 | G61: 0.01124056035 | H61: 0.01316360296 | I61: 0.008105574389 | J61: 0.004744824101 | K61: 0.01993559582 | L61: 0.009661254811 | O61: 52 | P61: 0 | Q61: 2.041461119e-24 | R61: 6.369825179e-07 | S61: 1 | T61: 1 | U61: 1 | V61: 1 | W61: 1 | X61: 1 | Y61: 1 | Z61: 1 | AC61: 52 | AD61: 1 | AE61: 2.041461119e-24 | AF61: 0.003845024262 | AG61: 0.008105574389 | AH61: 0.01124056035 | AI61: 0.01316360296 | AJ61: 0.006276350705 | AK61: 0.004744824101 | AL61: 0.003538165767 | AM61: 0.000651930084 | AP61: 52 | AQ61: 1 | AR61: 0.36 | AS61: 0.08 | AT61: 0.5151515152 | AU61: 1 | AV61: 1 | AW61: 1 | AX61: 1 | AY61: 1 | AZ61: 1
B62: 53 | C62: 1 | D62: 2.60192324e-25 | E62: 0.003324892248 | F62: 0.007332043979 | G62: 0.01051948629 | H62: 0.01260582824 | I62: 0.007332043979 | J62: 0.00429276416 | K62: 0.01867807837 | L62: 0.007786734491 | O62: 53 | P62: 0 | Q62: 2.60192324e-25 | R62: 3.961299091e-07 | S62: 1 | T62: 1 | U62: 1 | V62: 1 | W62: 1 | X62: 1 | Y62: 1 | Z62: 1 | AC62: 53 | AD62: 1 | AE62: 2.60192324e-25 | AF62: 0.003324892248 | AG62: 0.007332043979 | AH62: 0.01051948629 | AI62: 0.01260582824 | AJ62: 0.005862071091 | AK62: 0.00429276416 | AL62: 0.003168214935 | AM62: 0.0005430324506 | AP62: 53 | AQ62: 1 | AR62: 0.3733333333 | AS62: 0.12 | AT62: 0.5252525253 | AU62: 1 | AV62: 1 | AW62: 1 | AX62: 1 | AY62: 1 | AZ62: 1
B63: 54 | C63: 1 | D63: 3.186222265e-26 | E63: 0.002861787625 | F63: 0.006592159579 | G63: 0.009788314227 | H63: 0.01201540989 | I63: 0.006592159579 | J63: 0.003868001062 | K63: 0.01735053213 | L63: 0.006165459559 | O63: 54 | P63: 0 | Q63: 3.186222265e-26 | R63: 2.438960746e-07 | S63: 1 | T63: 1 | U63: 1 | V63: 1 | W63: 1 | X63: 1 | Y63: 1 | Z63: 1 | AC63: 54 | AD63: 1 | AE63: 3.186222265e-26 | AF63: 0.002861787625 | AG63: 0.006592159579 | AH63: 0.009788314227 | AI63: 0.01201540989 | AJ63: 0.005464228527 | AK63: 0.003868001062 | AL63: 0.002827720016 | AM63: 0.0004503222745 | AP63: 54 | AQ63: 1 | AR63: 0.3866666667 | AS63: 0.16 | AT63: 0.5353535354 | AU63: 1 | AV63: 1 | AW63: 1 | AX63: 1 | AY63: 1 | AZ63: 1
B64: 55 | C64: 1 | D64: 3.748744805e-27 | E64: 0.002452480652 | F64: 0.005891265635 | G64: 0.009054192383 | H64: 0.0113962798 | I64: 0.005891265635 | J64: 0.003470193743 | K64: 0.01598932749 | L64: 0.004811530494 | O64: 55 | P64: 0 | Q64: 3.748744805e-27 | R64: 1.486719515e-07 | S64: 1 | T64: 1 | U64: 1 | V64: 1 | W64: 1 | X64: 1 | Y64: 1 | Z64: 1 | AC64: 55 | AD64: 1 | AE64: 3.748744805e-27 | AF64: 0.002452480652 | AG64: 0.005891265635 | AH64: 0.009054192383 | AI64: 0.0113962798 | AJ64: 0.005083423535 | AK64: 0.003470193743 | AL64: 0.002515530774 | AM64: 0.0003717225159 | AP64: 55 | AQ64: 1 | AR64: 0.4 | AS64: 0.2 | AT64: 0.5454545455 | AU64: 1 | AV64: 1 | AW64: 1 | AX64: 1 | AY64: 1 | AZ64: 1
B65: 56 | C65: 1 | D65: 4.237638507e-28 | E65: 0.002093220321 | F65: 0.005233624615 | G65: 0.008324487581 | H65: 0.01075325628 | I65: 0.005233624615 | J65: 0.003098984861 | K65: 0.01462842602 | L65: 0.003713742315 | O65: 56 | P65: 0 | Q65: 4.237638507e-28 | R65: 8.972435162e-08 | S65: 1 | T65: 1 | U65: 1 | V65: 1 | W65: 1 | X65: 1 | Y65: 1 | Z65: 1 | AC65: 56 | AD65: 1 | AE65: 4.237638507e-28 | AF65: 0.002093220321 | AG65: 0.005233624615 | AH65: 0.008324487581 | AI65: 0.01075325628 | AJ65: 0.004720066179 | AK65: 0.003098984861 | AL65: 0.00223040443 | AM65: 0.0003053736477 | AP65: 56 | AQ65: 1 | AR65: 0.4133333333 | AS65: 0.24 | AT65: 0.5555555556 | AU65: 1 | AV65: 1 | AW65: 1 | AX65: 1 | AY65: 1 | AZ65: 1
B66: 57 | C66: 1 | D66: 4.602461418e-29 | E66: 0.00177992533 | F66: 0.004622341506 | G66: 0.007606518737 | H66: 0.0100919302 | I66: 0.004622341506 | J66: 0.002754011342 | K66: 0.01329687245 | L66: 0.002844695384 | O66: 57 | P66: 0 | Q66: 4.602461418e-29 | R66: 5.361035345e-08 | S66: 1 | T66: 1 | U66: 1 | V66: 1 | W66: 1 | X66: 1 | Y66: 1 | Z66: 1 | AC66: 57 | AD66: 1 | AE66: 4.602461418e-29 | AF66: 0.00177992533 | AG66: 0.004622341506 | AH66: 0.007606518737 | AI66: 0.0100919302 | AJ66: 0.00437440113 | AK66: 0.002754011342 | AL66: 0.001971018601 | AM66: 0.0002496197042 | AP66: 57 | AQ66: 1 | AR66: 0.4266666667 | AS66: 0.28 | AT66: 0.5656565657 | AU66: 1 | AV66: 1 | AW66: 1 | AX66: 1 | AY66: 1 | AZ66: 1
B67: 58 | C67: 1 | D67: 4.8026908e-30 | E67: 0.001508355578 | F67: 0.004059347896 | G67: 0.006907291493 | H67: 0.009418508881 | I67: 0.004059347896 | J67: 0.002434896628 | K67: 0.01201746262 | L67: 0.002169391111 | O67: 58 | P67: 0 | Q67: 4.8026908e-30 | R67: 3.171349217e-08 | S67: 1 | T67: 1 | U67: 1 | V67: 1 | W67: 1 | X67: 1 | Y67: 1 | Z67: 1 | AC67: 58 | AD67: 1 | AE67: 4.8026908e-30 | AF67: 0.001508355578 | AG67: 0.004059347896 | AH67: 0.006907291493 | AI67: 0.009418508881 | AJ67: 0.004046530042 | AK67: 0.002434896628 | AL67: 0.001735987231 | AM67: 0.0002029924822 | AP67: 58 | AQ67: 1 | AR67: 0.44 | AS67: 0.32 | AT67: 0.5757575758 | AU67: 1 | AV67: 1 | AW67: 1 | AX67: 1 | AY67: 1 | AZ67: 1
B68: 59 | C68: 1 | D68: 4.815122264e-31 | E68: 0.001274258598 | F68: 0.003545441904 | G68: 0.006233251248 | H68: 0.008739624603 | I68: 0.003545441904 | J68: 0.002141228371 | K68: 0.01080649779 | L68: 0.001651727809 | O68: 59 | P68: 0 | Q68: 4.815122264e-31 | R68: 1.857361845e-08 | S68: 1 | T68: 1 | U68: 1 | V68: 1 | W68: 1 | X68: 1 | Y68: 1 | Z68: 1 | AC68: 59 | AD68: 1 | AE68: 4.815122264e-31 | AF68: 0.001274258598 | AG68: 0.003545441904 | AH68: 0.006233251248 | AI68: 0.008739624603 | AJ68: 0.003736430313 | AK68: 0.002141228371 | AL68: 0.001523877788 | AM68: 0.0001641949587 | AP68: 59 | AQ68: 1 | AR68: 0.4533333333 | AS68: 0.36 | AT68: 0.5858585859 | AU68: 1 | AV68: 1 | AW68: 1 | AX68: 1 | AY68: 1 | AZ68: 1
B69: 60 | C69: 1 | D69: 4.638293555e-32 | E69: 0.00107348818 | F69: 0.003080376245 | G69: 0.005590070332 | H69: 0.008062117295 | I69: 0.003080376245 | J69: 0.00187252686 | K69: 0.00967433632 | L69: 0.001258522567 | O69: 60 | P69: 0 | Q69: 4.638293555e-32 | R69: 1.076976004e-08 | S69: 1 | T69: 1 | U69: 1 | V69: 1 | W69: 1 | X69: 1 | Y69: 1 | Z69: 1 | AC69: 60 | AD69: 1 | AE69: 4.638293555e-32 | AF69: 0.00107348818 | AG69: 0.003080376245 | AH69: 0.005590070332 | AI69: 0.008062117295 | AJ69: 0.00344397005 | AK69: 0.00187252686 | AL69: 0.001333228498 | AM69: 0.000132084879 | AP69: 60 | AQ69: 1 | AR69: 0.4666666667 | AS69: 0.4 | AT69: 0.595959596 | AU69: 1 | AV69: 1 | AW69: 1 | AX69: 1 | AY69: 1 | AZ69: 1
B70: 61 | C70: 1 | D70: 4.292767471e-33 | E70: 0.000902094877 | F70: 0.002662983852 | G70: 0.004982481963 | H70: 0.007392803714 | I70: 0.002662983852 | J70: 0.001628210439 | K70: 0.008626393265 | L70: 0.0009614339335 | O70: 61 | P70: 0 | Q70: 4.292767471e-33 | R70: 6.1826205e-09 | S70: 1 | T70: 1 | U70: 1 | V70: 1 | W70: 1 | X70: 1 | Y70: 1 | Z70: 1 | AC70: 61 | AD70: 1 | AE70: 4.292767471e-33 | AF70: 0.000902094877 | AG70: 0.002662983852 | AH70: 0.004982481963 | AI70: 0.007392803714 | AJ70: 0.00316891964 | AK70: 0.001628210439 | AL70: 0.001162564825 | AM70: 0.0001056592232 | AP70: 61 | AQ70: 1 | AR70: 0.48 | AS70: 0.44 | AT70: 0.6060606061 | AU70: 1 | AV70: 1 | AW70: 1 | AX70: 1 | AY70: 1 | AZ70: 1
B71: 62 | C71: 1 | D71: 3.817198269e-34 | E71: 0.0007563899776 | F71: 0.0022913289 | G71: 0.004414169444 | H71: 0.00673824672 | I71: 0.0022913289 | J71: 0.001407564135 | K71: 0.007664282141 | L71: 0.0007374354747 | O71: 62 | P71: 0 | Q71: 3.817198269e-34 | R71: 3.513955095e-09 | S71: 1 | T71: 1 | U71: 1 | V71: 1 | W71: 1 | X71: 1 | Y71: 1 | Z71: 1 | AC71: 62 | AD71: 1 | AE71: 3.817198269e-34 | AF71: 0.0007563899776 | AG71: 0.0022913289 | AH71: 0.004414169444 | AI71: 0.00673824672 | AJ71: 0.002910960739 | AK71: 0.001407564135 | AL71: 0.001010414858 | AM71: 8.403996825e-05 | AP71: 62 | AQ71: 1 | AR71: 0.4933333333 | AS71: 0.48 | AT71: 0.6161616162 | AU71: 1 | AV71: 1 | AW71: 1 | AX71: 1 | AY71: 1 | AZ71: 1
B72: 63 | C72: 1 | D72: 3.26122147e-35 | E72: 0.0006329858523 | F72: 0.001962870844 | G72: 0.003887714172 | H72: 0.006104538607 | I72: 0.001962870844 | J72: 0.001209716917 | K72: 0.006786888149 | L72: 0.0005684587373 | O72: 63 | P72: 0 | Q72: 3.26122147e-35 | R72: 1.977319641e-09 | S72: 1 | T72: 1 | U72: 1 | V72: 1 | W72: 1 | X72: 1 | Y72: 1 | Z72: 1 | AC72: 63 | AD72: 1 | AE72: 3.26122147e-35 | AF72: 0.0006329858523 | AG72: 0.001962870844 | AH72: 0.003887714172 | AI72: 0.006104538607 | AJ72: 0.002669693631 | AK72: 0.001209716917 | AL72: 0.0008753234688 | AM72: 6.646129504e-05 | AP72: 63 | AQ72: 1 | AR72: 0.5066666667 | AS72: 0.52 | AT72: 0.6262626263 | AU72: 1 | AV72: 1 | AW72: 1 | AX72: 1 | AY72: 1 | AZ72: 1
B73: 64 | C73: 1 | D73: 2.676973599e-36 | E73: 0.0005288163426 | F73: 0.001674629995 | G73: 0.003404601148 | H73: 0.005497111375 | I73: 0.001674629995 | J73: 0.001033631392 | K73: 0.005991262491 | L73: 0.0004406634153 | O73: 64 | P73: 0 | Q73: 2.676973599e-36 | R73: 1.101576362e-09 | S73: 1 | T73: 1 | U73: 1 | V73: 1 | W73: 1 | X73: 1 | Y73: 1 | Z73: 1 | AC73: 64 | AD73: 1 | AE73: 2.676973599e-36 | AF73: 0.0005288163426 | AG73: 0.001674629995 | AH73: 0.003404601148 | AI73: 0.005497111375 | AJ73: 0.002444643932 | AK73: 0.001033631392 | AL73: 0.0007558652741 | AM73: 5.225818349e-05 | AP73: 64 | AQ73: 1 | AR73: 0.52 | AS73: 0.56 | AT73: 0.6363636364 | AU73: 1 | AV73: 1 | AW73: 1 | AX73: 1 | AY73: 1 | AZ73: 1
B74: 65 | C74: 1 | D74: 2.1112327e-37 | E74: 0.0004411411322 | F74: 0.001423344921 | G74: 0.002965276238 | H74: 0.004920584689 | I74: 0.001423344921 | J74: 0.0008781077055 | K74: 0.005273305985 | L74: 0.0003436187213 | O74: 65 | P74: =_xlfn.NORM.DIST($O74,P$3,P$4,FALSE) -> 0 | Q74: 2.1112327e-37 | R74: 6.07588285e-10 | S74: 1 | T74: 1 | U74: 1 | V74: 1 | W74: 1 | X74: 1 | Y74: 1 | Z74: 1 | AC74: 65 | AD74: 1 | AE74: 2.1112327e-37 | AF74: 0.0004411411322 | AG74: 0.001423344921 | AH74: 0.002965276238 | AI74: 0.004920584689 | AJ74: 0.002235269468 | AK74: 0.0008781077055 | AL74: 0.0006506563898 | AM74: 4.085621036e-05 | AP74: 65 | AQ74: 1 | AR74: 0.5333333333 | AS74: 0.6 | AT74: 0.6464646465 | AU74: =IF($AP74<AU$3,0,IF($AP74>AU$4,1,1/(AU$4-AU$3)*($AP74-AU$3))) -> 1 | AV74: 1 | AW74: 1 | AX74: 1 | AY74: 1 | AZ74: 1
B75: 66 | C75: 1 | D75: 1.599765551e-38 | E75: 0.0003675379549 | F75: 0.001205614303 | G75: 0.002569246026 | H75: 0.004378659097 | I75: 0.001205614303 | J75: 0.0007418012728 | K75: 0.004628258712 | L75: 0.0002695441578 | O75: 66 | P75: 0 | Q75: =_xlfn.NORM.DIST($O75,Q$3,Q$4,FALSE) -> 1.599765551e-38 | R75: 3.317884244e-10 | S75: 1 | T75: 1 | U75: 1 | V75: 1 | W75: 1 | X75: 1 | Y75: 1 | Z75: 1 | AC75: 66 | AD75: 1 | AE75: 1.599765551e-38 | AF75: 0.0003675379549 | AG75: 0.001205614303 | AH75: 0.002569246026 | AI75: 0.004378659097 | AJ75: 0.002040967914 | AK75: 0.0007418012728 | AL75: 0.0005583649534 | AM75: 3.176231381e-05 | AP75: 66 | AQ75: 1 | AR75: =IF($AP75<AR$3,0,IF($AP75>AR$4,1,1/(AR$4-AR$3)*($AP75-AR$3))) -> 0.5466666667 | AS75: 0.64 | AT75: 0.6565656566 | AU75: 1 | AV75: 1 | AW75: 1 | AX75: 1 | AY75: 1 | AZ75: 1
B76: 67 | C76: 1 | D76: 1.16467512e-39 | E76: 0.0003058861491 | F76: 0.001018018394 | G76: 0.002215208889 | H76: 0.003874058351 | I76: 0.001018018394 | J76: 0.0006232521228 | K76: 0.00405103428 | L76: 0.0002126697706 | O76: 67 | P76: 0 | Q76: 1.16467512e-39 | R76: 1.793783908e-10 | S76: 1 | T76: 1 | U76: 1 | V76: 1 | W76: 1 | X76: 1 | Y76: 1 | Z76: 1 | AC76: 67 | AD76: 1 | AE76: 1.16467512e-39 | AF76: 0.0003058861491 | AG76: 0.001018018394 | AH76: 0.002215208889 | AI76: 0.003874058351 | AJ76: 0.001861085503 | AK76: 0.0006232521228 | AL76: 0.0004777203004 | AM76: 2.45562981e-05 | AP76: 67 | AQ76: 1 | AR76: 0.56 | AS76: 0.68 | AT76: 0.6666666667 | AU76: 1 | AV76: 1 | AW76: 1 | AX76: 1 | AY76: 1 | AZ76: 1
B77: 68 | C77: 1 | D77: 8.146695355e-41 | E77: 0.0002543445736 | F77: 0.0008572176075 | G77: 0.001901205094 | H77: 0.003408520791 | I77: 0.0008572176075 | J77: 0.0005209223089 | K77: 0.003536440937 | L77: 0.0001687267649 | O77: 68 | P77: 0 | Q77: 8.146695355e-41 | R77: 9.60143337e-11 | S77: 1 | T77: 1 | U77: 1 | V77: 1 | W77: 1 | X77: 1 | Y77: 1 | Z77: 1 | AC77: 68 | AD77: 1 | AE77: 8.146695355e-41 | AF77: 0.0002543445736 | AG77: 0.0008572176075 | AH77: 0.001901205094 | AI77: 0.003408520791 | AJ77: 0.00169492686 | AK77: 0.0005209223089 | AL77: 0.000407520646 | AM77: 1.888290191e-05 | AP77: 68 | AQ77: 1 | AR77: 0.5733333333 | AS77: 0.72 | AT77: 0.6767676768 | AU77: 1 | AV77: 1 | AW77: 1 | AX77: 1 | AY77: 1 | AZ77: 1
B78: 69 | C78: 1 | D78: 5.475028385e-42 | E78: 0.0002113263501 | F78: 0.0007200278715 | G78: 0.001624774084 | H78: 0.002982836088 | I78: 0.0007200278715 | J78: 0.0004332372506 | K78: 0.003079325751 | L78: 0.0001345561487 | O78: 69 | P78: 0 | Q78: 5.475028385e-42 | R78: 5.088140282e-11 | S78: 1 | T78: 1 | U78: 1 | V78: 1 | W78: 1 | X78: 1 | Y78: 1 | Z78: 1 | AC78: 69 | AD78: 1 | AE78: 5.475028385e-42 | AF78: 0.0002113263501 | AG78: 0.0007200278715 | AH78: 0.001624774084 | AI78: 0.002982836088 | AJ78: 0.001541765723 | AK78: 0.0004332372506 | AL78: 0.0003466391183 | AM78: 1.444432047e-05 | AP78: 69 | AQ78: 1 | AR78: 0.5866666667 | AS78: 0.76 | AT78: 0.6868686869 | AU78: 1 | AV78: 1 | AW78: 1 | AX78: 1 | AY78: 1 | AZ78: 1
B79: 70 | C79: 1 | D79: 3.535244821e-43 | E79: 0.0001754723465 | F79: 0.0006034740073 | G79: 0.001383108535 | H79: 0.002596920666 | I79: 0.0006034740073 | J79: 0.0003586269406 | K79: 0.002674668778 | L79: 0.0001078148919 | O79: 70 | P79: 0 | Q79: 3.535244821e-43 | R79: 2.669556615e-11 | S79: 1 | T79: 1 | U79: 1 | V79: 1 | W79: 1 | X79: 1 | Y79: 1 | Z79: 1 | AC79: 70 | AD79: 1 | AE79: 3.535244821e-43 | AF79: 0.0001754723465 | AG79: 0.0006034740073 | AH79: 0.001383108535 | AI79: 0.002596920666 | AJ79: 0.001400856201 | AK79: 0.0003586269406 | AL79: 0.0002940280299 | AM79: 1.099313678e-05 | AP79: 70 | AQ79: 1 | AR79: 0.6 | AS79: 0.8 | AT79: 0.696969697 | AU79: 1 | AV79: 1 | AW79: 1 | AX79: 1 | AY79: 1 | AZ79: 1
B80: 71 | C80: 1 | D80: 2.193213119e-44 | E80: 0.0001456248132 | F80: 0.0005048235073 | G80: 0.001173196876 | H80: 0.002249922975 | I80: 0.0005048235073 | J80: 0.0002955635813 | K80: 0.002317645305 | L80: 8.675851759e-05 | O80: 71 | P80: 0 | Q80: 2.193213119e-44 | R80: 1.386679994e-11 | S80: 1 | T80: 1 | U80: 1 | V80: 1 | W80: 1 | X80: 1 | Y80: 1 | Z80: 1 | AC80: 71 | AD80: 1 | AE80: 2.193213119e-44 | AF80: 0.0001456248132 | AG80: 0.0005048235073 | AH80: 0.001173196876 | AI80: 0.002249922975 | AJ80: 0.001271444051 | AK80: 0.0002955635813 | AL80: 0.0002487213476 | AM80: 8.325668825e-06 | AP80: 71 | AQ80: 1 | AR80: 0.6133333333 | AS80: 0.84 | AT80: 0.7070707071 | AU80: 1 | AV80: 1 | AW80: 1 | AX80: 1 | AY80: 1 | AZ80: 1
B81: 72 | C81: 1 | D81: 1.307285355e-45 | E81: 0.0001208021524 | F81: 0.00042160375 | G81: 0.0009919483457 | H81: 0.001940348753 | I81: 0.00042160375 | J81: 0.0002425931782 | K81: 0.002003667415 | L81: 7.008168511e-05 | O81: 72 | P81: 0 | Q81: 1.307285355e-45 | R81: 7.131328124e-12 | S81: 1 | T81: 1 | U81: 1 | V81: 1 | W81: 1 | X81: 1 | Y81: 1 | Z81: 1 | AC81: 72 | AD81: 1 | AE81: 1.307285355e-45 | AF81: 0.0001208021524 | AG81: 0.00042160375 | AH81: 0.0009919483457 | AI81: 0.001940348753 | AJ81: 0.001152777489 | AK81: 0.0002425931782 | AL81: 0.0002098354099 | AM81: 6.27577058e-06 | AP81: 72 | AQ81: 1 | AR81: 0.6266666667 | AS81: 0.88 | AT81: 0.7171717172 | AU81: 1 | AV81: 1 | AW81: 1 | AX81: 1 | AY81: 1 | AZ81: 1
B82: 73 | C82: 1 | D82: 7.48666116e-47 | E82: 0.0001001754456 | F82: 0.0003516059271 | G82: 0.0008362971356 | H82: 0.001666196278 | I82: 0.0003516059271 | J82: 0.0001983597041 | K82: 0.001728411476 | L82: 5.680188138e-05 | O82: 73 | P82: 0 | Q82: 7.48666116e-47 | R82: 3.630961502e-12 | S82: 1 | T82: 1 | U82: 1 | V82: 1 | W82: 1 | X82: 1 | Y82: 1 | Z82: 1 | AC82: 73 | AD82: 1 | AE82: 7.48666116e-47 | AF82: 0.0001001754456 | AG82: 0.0003516059271 | AH82: 0.0008362971356 | AI82: 0.001666196278 | AJ82: 0.001044117054 | AK82: 0.0001983597041 | AL82: 0.0001765680277 | AM82: 4.709135348e-06 | AP82: 73 | AQ82: 1 | AR82: 0.64 | AS82: 0.92 | AT82: 0.7272727273 | AU82: 1 | AV82: 1 | AW82: 1 | AX82: 1 | AY82: 1 | AZ82: 1
B83: 74 | C83: 1 | D83: 4.119402045e-48 | E83: 8.304709173e-05 | F83: 0.0002928788874 | G83: 0.0007032843486 | H83: 0.001425092469 | I83: 0.0002928788874 | J83: 0.0001616214493 | K83: 0.001487835385 | L83: 4.61747445e-05 | O83: 74 | P83: 0 | Q83: 4.119402045e-48 | R83: 1.830332217e-12 | S83: 1 | T83: 1 | U83: 1 | V83: 1 | W83: 1 | X83: 1 | Y83: 1 | Z83: 1 | AC83: 74 | AD83: 1 | AE83: 4.119402045e-48 | AF83: 8.304709173e-05 | AG83: 0.0002928788874 | AH83: 0.0007032843486 | AI83: 0.001425092469 | AJ83: 0.0009447441412 | AK83: 0.0001616214493 | AL83: 0.0001481961754 | AM83: 3.518144968e-06 | AP83: 74 | AQ83: 1 | AR83: 0.6533333333 | AS83: 0.96 | AT83: 0.7373737374 | AU83: 1 | AV83: 1 | AW83: 1 | AX83: 1 | AY83: 1 | AZ83: 1
B84: 75 | C84: 1 | D84: 2.177751911e-49 | E84: 6.883169771e-05 | F84: 0.000243715815 | G84: 0.0005901183144 | H84: 0.001214422122 | I84: 0.000243715815 | J84: 0.000131259983 | K84: 0.001278187828 | L84: 3.763241724e-05 | O84: 75 | P84: 0 | Q84: 2.177751911e-49 | R84: 9.134720408e-13 | S84: 1 | T84: 1 | U84: 1 | V84: 1 | W84: 1 | X84: 1 | Y84: 1 | Z84: 1 | AC84: 75 | AD84: 1 | AE84: 2.177751911e-49 | AF84: 6.883169771e-05 | AG84: 0.000243715815 | AH84: 0.0005901183144 | AI84: 0.001214422122 | AJ84: 0.0008539679699 | AK84: 0.000131259983 | AL84: 0.0001240725315 | AM84: 2.617291945e-06 | AP84: 75 | AQ84: 1 | AR84: 0.6666666667 | AS84: 1 | AT84: 0.7474747475 | AU84: 1 | AV84: 1 | AW84: 1 | AX84: 1 | AY84: 1 | AZ84: 1
B85: 76 | C85: 1 | D85: 1.10614191e-50 | E85: 5.703922471e-05 | F85: 0.000202636248 | G85: 0.0004942151072 | H85: 0.001031444434 | I85: 0.000202636248 | J85: 0.0001062826994 | K85: 0.001096011055 | L85: 3.07385924e-05 | O85: 76 | P85: 0 | Q85: 1.10614191e-50 | R85: 4.513543677e-13 | S85: 1 | T85: 1 | U85: 1 | V85: 1 | W85: 1 | X85: 1 | Y85: 1 | Z85: 1 | AC85: 76 | AD85: 1 | AE85: 1.10614191e-50 | AF85: 5.703922471e-05 | AG85: 0.000202636248 | AH85: 0.0004942151072 | AI85: 0.001031444434 | AJ85: 0.0007711308429 | AK85: 0.0001062826994 | AL85: 0.0001036211419 | AM85: 1.939180696e-06 | AP85: 76 | AQ85: 1 | AR85: 0.68 | AS85: 1 | AT85: 0.7575757576 | AU85: 1 | AV85: 1 | AW85: 1 | AX85: 1 | AY85: 1 | AZ85: 1
B86: 77 | C86: 1 | D86: 5.398107289e-52 | E86: 4.726029067e-05 | F86: 0.0001683654817 | G86: 0.0004132219495 | H86: 0.0008733929542 | I86: 0.0001683654817 | J86: 8.582021453e-05 | K86: 0.0009381383032 | L86: 2.515563181e-05 | O86: 77 | P86: 0 | Q86: 5.398107289e-52 | R86: 2.207989963e-13 | S86: 1 | T86: 1 | U86: 1 | V86: 1 | W86: 1 | X86: 1 | Y86: 1 | Z86: 1 | AC86: 77 | AD86: 1 | AE86: 5.398107289e-52 | AF86: 4.726029067e-05 | AG86: 0.0001683654817 | AH86: 0.0004132219495 | AI86: 0.0008733929542 | AJ86: 0.0006956117242 | AK86: 8.582021453e-05 | AL86: 8.633248452e-05 | AM86: 1.431093e-06 | AP86: 77 | AQ86: 1 | AR86: 0.6933333333 | AS86: 1 | AT86: 0.7676767677 | AU86: 1 | AV86: 1 | AW86: 1 | AX86: 1 | AY86: 1 | AZ86: 1
B87: 78 | C87: 1 | D87: 2.531048093e-53 | E87: 3.915347392e-05 | F87: 0.0001398129415 | G87: 0.00034502658 | H87: 0.0007375570214 | I87: 0.0001398129415 | J87: 6.911995687e-05 | K87: 0.000801686821 | L87: 2.062041661e-05 | O87: 78 | P87: 0 | Q87: 2.531048093e-53 | R87: 1.069383787e-13 | S87: 1 | T87: 1 | U87: 1 | V87: 1 | W87: 1 | X87: 1 | Y87: 1 | Z87: 1 | AC87: 78 | AD87: 1 | AE87: 2.531048093e-53 | AF87: 3.915347392e-05 | AG87: 0.0001398129415 | AH87: 0.00034502658 | AI87: 0.0007375570214 | AJ87: 0.0006268282417 | AK87: 6.911995687e-05 | AL87: 7.175818283e-05 | AM87: 1.05208479e-06 | AP87: 78 | AQ87: 1 | AR87: 0.7066666667 | AS87: 1 | AT87: 0.7777777778 | AU87: 1 | AV87: 1 | AW87: 1 | AX87: 1 | AY87: 1 | AZ87: 1
B88: 79 | C88: 1 | D88: 1.140216978e-54 | E88: 3.24344298e-05 | F88: 0.0001160506911 | G88: 0.000287755718 | H88: 0.0006213443726 | I88: 0.0001160506911 | J88: 5.553721735e-05 | K88: 0.0006840473793 | L88: 1.692651885e-05 | O88: 79 | P88: 0 | Q88: 1.140216978e-54 | R88: 5.127753637e-14 | S88: 1 | T88: 1 | U88: 1 | V88: 1 | W88: 1 | X88: 1 | Y88: 1 | Z88: 1 | AC88: 79 | AD88: 1 | AE88: 1.140216978e-54 | AF88: 3.24344298e-05 | AG88: 0.0001160506911 | AH88: 0.000287755718 | AI88: 0.0006213443726 | AJ88: 0.0005642373157 | AK88: 5.553721735e-05 | AL88: 5.95055882e-05 | AM88: 7.705683688e-07 | AP88: 79 | AQ88: 1 | AR88: 0.72 | AS88: 1 | AT88: 0.7878787879 | AU88: 1 | AV88: 1 | AW88: 1 | AX88: 1 | AY88: 1 | AZ88: 1
B89: 80 | C89: 1 | D89: 4.935178103e-56 | E89: 2.686662107e-05 | F89: 9.629288336e-05 | G89: 0.000239765554 | H89: 0.0005223259128 | I89: 9.629288336e-05 | J89: 4.452474883e-05 | K89: 0.0005828710655 | L89: 1.391096119e-05 | O89: 80 | P89: 0 | Q89: 4.935178103e-56 | R89: 2.434320533e-14 | S89: 1 | T89: 1 | U89: 1 | V89: 1 | W89: 1 | X89: 1 | Y89: 1 | Z89: 1 | AC89: 80 | AD89: 1 | AE89: 4.935178103e-56 | AF89: 2.686662107e-05 | AG89: 9.629288336e-05 | AH89: 0.000239765554 | AI89: 0.0005223259128 | AJ89: 0.0005073346611 | AK89: 4.452474883e-05 | AL89: 4.92324036e-05 | AM89: 5.623263212e-07 | AP89: 80 | AQ89: 1 | AR89: 0.7333333333 | AS89: 1 | AT89: 0.797979798 | AU89: 1 | AV89: 1 | AW89: 1 | AX89: 1 | AY89: 1 | AZ89: 1
B90: 81 | C90: 1 | D90: 2.052326146e-57 | E90: 2.225346451e-05 | F90: 7.98766653e-05 | G90: 0.0001996268416 | H90: 0.0004382645331 | I90: 7.98766653e-05 | J90: 3.576915425e-05 | K90: 0.0004960541041 | L90: 1.144431781e-05 | O90: 81 | P90: 0 | Q90: 2.052326146e-57 | R90: 1.14415649e-14 | S90: 1 | T90: 1 | U90: 1 | V90: 1 | W90: 1 | X90: 1 | Y90: 1 | Z90: 1 | AC90: 81 | AD90: 1 | AE90: 2.052326146e-57 | AF90: 2.225346451e-05 | AG90: 7.98766653e-05 | AH90: 0.0001996268416 | AI90: 0.0004382645331 | AJ90: 0.0004564588749 | AK90: 3.576915425e-05 | AL90: 4.073085982e-05 | AM90: 4.104923695e-07 | AP90: 81 | AQ90: 1 | AR90: 0.7466666667 | AS90: 1 | AT90: 0.8080808081 | AU90: 1 | AV90: 1 | AW90: 1 | AX90: 1 | AY90: 1 | AZ90: 1
B91: 82 | C91: 1 | D91: 8.200081072e-59 | E91: 1.843170639e-05 | F91: 6.62448222e-05 | G91: 0.0001661067338 | H91: 0.0003671303953 | I91: 6.62448222e-05 | J91: 2.872175268e-05 | K91: 0.0004217213628 | L91: 9.423259974e-06 | O91: 82 | P91: 0 | Q91: 8.200081072e-59 | R91: 5.324148372e-15 | S91: 1 | T91: 1 | U91: 1 | V91: 1 | W91: 1 | X91: 1 | Y91: 1 | Z91: 1 | AC91: 82 | AD91: 1 | AE91: 8.200081072e-59 | AF91: 1.843170639e-05 | AG91: 6.62448222e-05 | AH91: 0.0001661067338 | AI91: 0.0003671303953 | AJ91: 0.0004105470895 | AK91: 2.872175268e-05 | AL91: 3.368378078e-05 | AM91: 2.994383384e-07 | AP91: 82 | AQ91: 1 | AR91: 0.76 | AS91: 1 | AT91: 0.8181818182 | AU91: 1 | AV91: 1 | AW91: 1 | AX91: 1 | AY91: 1 | AZ91: 1
B92: 83 | C92: 1 | D92: 3.14787976e-60 | E92: 1.526585457e-05 | F92: 5.493027649e-05 | G92: 0.000138149055 | H92: 0.0003071052998 | I92: 5.493027649e-05 | J92: 2.306298905e-05 | K92: 0.0003582091234 | L92: 7.764899672e-06 | O92: 83 | P92: 0 | Q92: 3.14787976e-60 | R92: 2.452855286e-15 | S92: 1 | T92: 1 | U92: 1 | V92: 1 | W92: 1 | X92: 1 | Y92: 1 | Z92: 1 | AC92: 83 | AD92: 1 | AE92: 3.14787976e-60 | AF92: 1.526585457e-05 | AG92: 5.493027649e-05 | AH92: 0.000138149055 | AI92: 0.0003071052998 | AJ92: 0.0003691669143 | AK92: 2.306298905e-05 | AL92: 2.784666676e-05 | AM92: 2.183066783e-07 | AP92: 83 | AQ92: 1 | AR92: 0.7733333333 | AS92: 1 | AT92: 0.8282828283 | AU92: 1 | AV92: 1 | AW92: 1 | AX92: 1 | AY92: 1 | AZ92: 1
B93: 84 | C93: 1 | D93: 1.161037761e-61 | E93: 1.264351265e-05 | F93: 4.55424366e-05 | G93: 0.0001148542801 | H93: 0.0002565787149 | I93: 4.55424366e-05 | J93: 1.852220133e-05 | K93: 0.0003040476084 | L93: 6.402464247e-06 | O93: 84 | P93: 0 | Q93: 1.161037761e-61 | R93: 1.118795621e-15 | S93: 1 | T93: 1 | U93: 1 | V93: 1 | W93: 1 | X93: 1 | Y93: 1 | Z93: 1 | AC93: 84 | AD93: 1 | AE93: 1.161037761e-61 | AF93: 1.264351265e-05 | AG93: 4.55424366e-05 | AH93: 0.0001148542801 | AI93: 0.0002565787149 | AJ93: 0.0003318787199 | AK93: 1.852220133e-05 | AL93: 2.301467985e-05 | AM93: 1.590792776e-07 | AP93: 84 | AQ93: 1 | AR93: 0.7866666667 | AS93: 1 | AT93: 0.8383838384 | AU93: 1 | AV93: 1 | AW93: 1 | AX93: 1 | AY93: 1 | AZ93: 1
B94: 85 | C94: 1 | D94: 4.114364606e-63 | E94: 1.047147926e-05 | F94: 3.775531292e-05 | G94: 9.546011986e-05 | H94: 0.0002141378232 | I94: 3.775531292e-05 | J94: 1.487886292e-05 | K94: 0.0002579436675 | L94: 5.281963131e-06 | O94: 85 | P94: 0 | Q94: 4.114364606e-63 | R94: 5.052271084e-16 | S94: 1 | T94: 1 | U94: 1 | V94: 1 | W94: 1 | X94: 1 | Y94: 1 | Z94: 1 | AC94: 85 | AD94: 1 | AE94: 4.114364606e-63 | AF94: 1.047147926e-05 | AG94: 3.775531292e-05 | AH94: 9.546011986e-05 | AI94: 0.0002141378232 | AJ94: 0.0002982811828 | AK94: 1.487886292e-05 | AL94: 1.901715989e-05 | AM94: 1.158708997e-07 | AP94: 85 | AQ94: 1 | AR94: 0.8 | AS94: 1 | AT94: 0.8484848485 | AU94: 1 | AV94: 1 | AW94: 1 | AX94: 1 | AY94: 1 | AZ94: 1
B95: 86 | C95: 1 | D95: 1.400836427e-64 | E95: 8.672493645e-06 | F95: 3.129726923e-05 | G95: 7.932330493e-05 | H95: 0.0001785536202 | I95: 3.129726923e-05 | J95: 1.195551823e-05 | K95: 0.0002187639463 | L95: 4.359599641e-06 | O95: 86 | P95: 0 | Q95: 1.400836427e-64 | R95: 2.258809403e-16 | S95: 1 | T95: 1 | U95: 1 | V95: 1 | W95: 1 | X95: 1 | Y95: 1 | Z95: 1 | AC95: 86 | AD95: 1 | AE95: 1.400836427e-64 | AF95: 8.672493645e-06 | AG95: 3.129726923e-05 | AH95: 7.932330493e-05 | AI95: 0.0001785536202 | AJ95: 0.0002680142962 | AK95: 1.195551823e-05 | AL95: 1.571204204e-05 | AM95: 8.436770894e-08 | AP95: 86 | AQ95: 1 | AR95: 0.8133333333 | AS95: 1 | AT95: 0.8585858586 | AU95: 1 | AV95: 1 | AW95: 1 | AX95: 1 | AY95: 1 | AZ95: 1
B96: 87 | C96: 1 | D96: 4.582477047e-66 | E96: 7.182524594e-06 | F96: 2.594225332e-05 | G96: 6.590291515e-05 | H96: 0.0001487647347 | I96: 2.594225332e-05 | J96: 9.609637302e-06 | K96: 0.0001855187839 | L96: 3.599746772e-06 | O96: 87 | P96: 0 | Q96: 4.582477047e-66 | R96: 9.998378748e-17 | S96: 1 | T96: 1 | U96: 1 | V96: 1 | W96: 1 | X96: 1 | Y96: 1 | Z96: 1 | AC96: 87 | AD96: 1 | AE96: 4.582477047e-66 | AF96: 7.182524594e-06 | AG96: 2.594225332e-05 | AH96: 6.590291515e-05 | AI96: 0.0001487647347 | AJ96: 0.0002407543976 | AK96: 9.609637302e-06 | AL96: 1.298110144e-05 | AM96: 6.141098253e-08 | AP96: 87 | AQ96: 1 | AR96: 0.8266666667 | AS96: 1 | AT96: 0.8686868687 | AU96: 1 | AV96: 1 | AW96: 1 | AX96: 1 | AY96: 1 | AZ96: 1
B97: 88 | C97: 1 | D97: 1.440261631e-67 | E97: 5.948514997e-06 | F97: 2.150234145e-05 | G97: 5.474542046e-05 | H97: 0.0001238602748 | I97: 2.150234145e-05 | J97: 7.726804561e-06 | K97: 0.0001573470132 | L97: 2.973353367e-06 | O97: 88 | P97: 0 | Q97: 1.440261631e-67 | R97: 4.381639436e-17 | S97: 1 | T97: 1 | U97: 1 | V97: 1 | W97: 1 | X97: 1 | Y97: 1 | Z97: 1 | AC97: 88 | AD97: 1 | AE97: 1.440261631e-67 | AF97: 5.948514997e-06 | AG97: 2.150234145e-05 | AH97: 5.474542046e-05 | AI97: 0.0001238602748 | AJ97: 0.0002162098149 | AK97: 7.726804561e-06 | AL97: 1.072594462e-05 | AM97: 4.469003005e-08 | AP97: 88 | AQ97: 1 | AR97: 0.84 | AS97: 1 | AT97: 0.8787878788 | AU97: 1 | AV97: 1 | AW97: 1 | AX97: 1 | AY97: 1 | AZ97: 1
B98: 89 | C98: 1 | D98: 4.349213269e-69 | E98: 4.926507342e-06 | F98: 1.782143333e-05 | G98: 4.547146558e-05 | H98: 0.000103062665 | I98: 1.782143333e-05 | J98: 6.215242124e-06 | K98: 0.000133501785 | L98: 2.456681346e-06 | O98: 89 | P98: 0 | Q98: 4.349213269e-69 | R98: 1.901081538e-17 | S98: 1 | T98: 1 | U98: 1 | V98: 1 | W98: 1 | X98: 1 | Y98: 1 | Z98: 1 | AC98: 89 | AD98: 1 | AE98: 4.349213269e-69 | AF98: 4.926507342e-06 | AG98: 1.782143333e-05 | AH98: 4.547146558e-05 | AI98: 0.000103062665 | AJ98: 0.0001941173072 | AK98: 6.215242124e-06 | AL98: 8.864671309e-06 | AM98: 3.251600165e-08 | AP98: 89 | AQ98: 1 | AR98: 0.8533333333 | AS98: 1 | AT98: 0.8888888889 | AU98: 1 | AV98: 1 | AW98: 1 | AX98: 1 | AY98: 1 | AZ98: 1
B99: 90 | C99: 1 | D99: 1.261851471e-70 | E99: 4.080087069e-06 | F99: 1.476994346e-05 | G99: 3.776434289e-05 | H99: 8.571115051e-05 | I99: 1.476994346e-05 | J99: 5.00137781e-06 | K99: 0.0001133374773 | L99: 2.030299602e-06 | O99: 90 | P99: 0 | Q99: 1.261851471e-70 | R99: 8.166235632e-18 | S99: 1 | T99: 1 | U99: 1 | V99: 1 | W99: 1 | X99: 1 | Y99: 1 | Z99: 1 | AC99: 90 | AD99: 1 | AE99: 1.261851471e-70 | AF99: 4.080087069e-06 | AG99: 1.476994346e-05 | AH99: 3.776434289e-05 | AI99: 8.571115051e-05 | AJ99: 0.0001742389879 | AK99: 5.00137781e-06 | AL99: 7.329124653e-06 | AM99: 2.365553227e-08 | AP99: 90 | AQ99: 1 | AR99: 0.8666666667 | AS99: 1 | AT99: 0.898989899 | AU99: 1 | AV99: 1 | AW99: 1 | AX99: 1 | AY99: 1 | AZ99: 1
B100: 91 | C100: 1 | D100: 3.517499085e-72 | E100: 3.379090732e-06 | F100: 1.224034725e-05 | G100: 3.136004156e-05 | H100: 7.124640397e-05 | I100: 1.224034725e-05 | J100: 4.026256758e-06 | K100: 9.629771851e-05 | L100: 1.678278375e-06 | O100: 91 | P100: 0 | Q100: 3.517499085e-72 | R100: 3.472962749e-18 | S100: 1 | T100: 1 | U100: 1 | V100: 1 | W100: 1 | X100: 1 | Y100: 1 | Z100: 1 | AC100: 91 | AD100: 1 | AE100: 3.517499085e-72 | AF100: 3.379090732e-06 | AG100: 1.224034725e-05 | AH100: 3.136004156e-05 | AI100: 7.124640397e-05 | AJ100: 0.0001563596504 | AK100: 4.026256758e-06 | AL100: 6.062633788e-06 | AM100: 1.720856158e-08 | AP100: 91 | AQ100: 1 | AR100: 0.88 | AS100: 1 | AT100: 0.9090909091 | AU100: 1 | AV100: 1 | AW100: 1 | AX100: 1 | AY100: 1 | AZ100: 1
B101: 92 | C101: 1 | D101: 9.420804006e-74 | E101: 2.798534447e-06 | F101: 1.014345528e-05 | G101: 2.603873035e-05 | H101: 5.919648273e-05 | I101: 1.014345528e-05 | J101: 3.242645477e-06 | K101: 8.19045129e-05 | L101: 1.387541282e-06 | O101: 92 | P101: 0 | Q101: 9.420804006e-74 | R101: 1.462296358e-18 | S101: 1 | T101: 1 | U101: 1 | V101: 1 | W101: 1 | X101: 1 | Y101: 1 | Z101: 1 | AC101: 92 | AD101: 1 | AE101: 9.420804006e-74 | AF101: 2.798534447e-06 | AG101: 1.014345528e-05 | AH101: 2.603873035e-05 | AI101: 5.919648273e-05 | AJ101: 0.0001402844465 | AK101: 3.242645477e-06 | AL101: 5.01814932e-06 | AM101: 1.251870787e-08 | AP101: 92 | AQ101: 1 | AR101: 0.8933333333 | AS101: 1 | AT101: 0.9191919192 | AU101: 1 | AV101: 1 | AW101: 1 | AX101: 1 | AY101: 1 | AZ101: 1
B102: 93 | C102: 1 | D102: 2.42420959e-75 | E102: 2.317725425e-06 | F102: 8.405303953e-06 | G102: 2.16175183e-05 | H102: 4.916424574e-05 | I102: 8.405303953e-06 | J102: 2.61270147e-06 | K102: 6.974843514e-05 | L102: 1.14734216e-06 | O102: 93 | P102: 0 | Q102: 2.42420959e-75 | R102: 6.09575813e-19 | S102: 1 | T102: 1 | U102: 1 | V102: 1 | W102: 1 | X102: 1 | Y102: 1 | Z102: 1 | AC102: 93 | AD102: 1 | AE102: 2.42420959e-75 | AF102: 2.317725425e-06 | AG102: 8.405303953e-06 | AH102: 2.16175183e-05 | AI102: 4.916424574e-05 | AJ102: 0.0001258368682 | AK102: 2.61270147e-06 | AL102: 4.156685305e-06 | AM102: 9.107594057e-09 | AP102: 93 | AQ102: 1 | AR102: 0.9066666667 | AS102: 1 | AT102: 0.9292929293 | AU102: 1 | AV102: 1 | AW102: 1 | AX102: 1 | AY102: 1 | AZ102: 1
B103: 94 | C103: 1 | D103: 5.993500996e-77 | E103: 1.919525522e-06 | F103: 6.964565451e-06 | G103: 1.794433666e-05 | H103: 4.081623849e-05 | I103: 6.964565451e-06 | J103: 2.106101913e-06 | K103: 5.947984197e-05 | L103: 9.488412499e-07 | O103: 94 | P103: 0 | Q103: 5.993500996e-77 | R103: 2.515805777e-19 | S103: 1 | T103: 1 | U103: 1 | V103: 1 | W103: 1 | X103: 1 | Y103: 1 | Z103: 1 | AC103: 94 | AD103: 1 | AE103: 5.993500996e-77 | AF103: 1.919525522e-06 | AG103: 6.964565451e-06 | AH103: 1.794433666e-05 | AI103: 4.081623849e-05 | AJ103: 0.0001128569844 | AK103: 2.106101913e-06 | AL103: 3.446002891e-06 | AM103: 6.626772554e-09 | AP103: 94 | AQ103: 1 | AR103: 0.92 | AS103: 1 | AT103: 0.9393939394 | AU103: 1 | AV103: 1 | AW103: 1 | AX103: 1 | AY103: 1 | AZ103: 1
B104: 95 | C104: 1 | D104: 1.423702408e-78 | E104: 1.589740945e-06 | F104: 5.770393473e-06 | G104: 1.489279241e-05 | H104: 3.387298829e-05 | I104: 5.770393473e-06 | J104: 1.698543392e-06 | K104: 5.08010358e-05 | L104: 7.847608747e-07 | O104: 95 | P104: 0 | Q104: 1.423702408e-78 | R104: 1.027977357e-19 | S104: 1 | T104: 1 | U104: 1 | V104: 1 | W104: 1 | X104: 1 | Y104: 1 | Z104: 1 | AC104: 95 | AD104: 1 | AE104: 1.423702408e-78 | AF104: 1.589740945e-06 | AG104: 5.770393473e-06 | AH104: 1.489279241e-05 | AI104: 3.387298829e-05 | AJ104: 0.0001011998893 | AK104: 1.698543392e-06 | AL104: 2.859491705e-06 | AM104: 4.822565481e-09 | AP104: 95 | AQ104: 1 | AR104: 0.9333333333 | AS104: 1 | AT104: 0.9494949495 | AU104: 1 | AV104: 1 | AW104: 1 | AX104: 1 | AY104: 1 | AZ104: 1
B105: 96 | C105: 1 | D105: 3.249272074e-80 | E105: 1.316616599e-06 | F105: 4.780633495e-06 | G105: 1.235785539e-05 | H105: 2.810061075e-05 | I105: 4.780633495e-06 | J105: 1.37054056e-06 | K105: 4.345930859e-05 | L105: 6.491050099e-07 | O105: 96 | P105: 0 | Q105: 3.249272074e-80 | R105: 4.158598979e-20 | S105: 1 | T105: 1 | U105: 1 | V105: 1 | W105: 1 | X105: 1 | Y105: 1 | Z105: 1 | AC105: 96 | AD105: 1 | AE105: 3.249272074e-80 | AF105: 1.316616599e-06 | AG105: 4.780633495e-06 | AH105: 1.235785539e-05 | AI105: 2.810061075e-05 | AJ105: 9.073432686e-05 | AK105: 1.37054056e-06 | AL105: 2.375219641e-06 | AM105: 3.510372677e-09 | AP105: 96 | AQ105: 1 | AR105: 0.9466666667 | AS105: 1 | AT105: 0.9595959596 | AU105: 1 | AV105: 1 | AW105: 1 | AX105: 1 | AY105: 1 | AZ105: 1
B106: 97 | C106: 1 | D106: 7.124939108e-82 | E106: 1.090417174e-06 | F106: 3.960337174e-06 | G106: 1.025225462e-05 | H106: 2.330360635e-05 | I106: 3.960337174e-06 | J106: 1.106464968e-06 | K106: 3.724079121e-05 | L106: 5.369304043e-07 | O106: 97 | P106: 0 | Q106: 7.124939108e-82 | R106: 1.665588032e-20 | S106: 1 | T106: 1 | U106: 1 | V106: 1 | W106: 1 | X106: 1 | Y106: 1 | Z106: 1 | AC106: 97 | AD106: 1 | AE106: 7.124939108e-82 | AF106: 1.090417174e-06 | AG106: 3.960337174e-06 | AH106: 1.025225462e-05 | AI106: 2.330360635e-05 | AJ106: 8.134146101e-05 | AK106: 1.106464968e-06 | AL106: 1.97512957e-06 | AM106: 2.555913341e-09 | AP106: 97 | AQ106: 1 | AR106: 0.96 | AS106: 1 | AT106: 0.9696969697 | AU106: 1 | AV106: 1 | AW106: 1 | AX106: 1 | AY106: 1 | AZ106: 1
B107: 98 | C107: 1 | D107: 1.501082137e-83 | E107: 9.030801525e-07 | F107: 3.28052999e-06 | G107: 8.503474267e-06 | H107: 1.931871717e-05 | I107: 3.28052999e-06 | J107: 8.937764508e-07 | K107: 3.196503339e-05 | L107: 4.441594366e-07 | O107: 98 | P107: 0 | Q107: 1.501082137e-83 | R107: 6.604579861e-21 | S107: 1 | T107: 1 | U107: 1 | V107: 1 | W107: 1 | X107: 1 | Y107: 1 | Z107: 1 | AC107: 98 | AD107: 1 | AE107: 1.501082137e-83 | AF107: 9.030801525e-07 | AG107: 3.28052999e-06 | AH107: 8.503474267e-06 | AI107: 1.931871717e-05 | AJ107: 7.291376712e-05 | AK107: 8.937764508e-07 | AL107: 1.644364772e-06 | AM107: 1.86154068e-09 | AP107: 98 | AQ107: 1 | AR107: 0.9733333333 | AS107: 1 | AT107: 0.9797979798 | AU107: 1 | AV107: 1 | AW107: 1 | AX107: 1 | AY107: 1 | AZ107: 1
B108: 99 | C108: 1 | D108: 3.03847717e-85 | E108: 7.479283884e-07 | F108: 2.717189432e-06 | G108: 7.051253863e-06 | H108: 1.600971461e-05 | I108: 2.717189432e-06 | J108: 7.224086077e-07 | K108: 2.748024197e-05 | L108: 3.674268587e-07 | O108: 99 | P108: 0 | Q108: 3.03847717e-85 | R108: 2.592864701e-21 | S108: 1 | T108: 1 | U108: 1 | V108: 1 | W108: 1 | X108: 1 | Y108: 1 | Z108: 1 | AC108: 99 | AD108: 1 | AE108: 3.03847717e-85 | AF108: 7.479283884e-07 | AG108: 2.717189432e-06 | AH108: 7.051253863e-06 | AI108: 1.600971461e-05 | AJ108: 6.535402628e-05 | AK108: 7.224086077e-07 | AL108: 1.37070619e-06 | AM108: 1.356264937e-09 | AP108: 99 | AQ108: 1 | AR108: 0.9866666667 | AS108: 1 | AT108: 0.9898989899 | AU108: 1 | AV108: 1 | AW108: 1 | AX108: 1 | AY108: 1 | AZ108: 1
B109: 100 | C109: 1 | D109: 5.909295649e-87 | E109: 0.02439028298 | F109: 0.02439038568 | G109: 0.02439061198 | H109: 0.0243910763 | I109: 0 | J109: 0.1166533911 | K109: 0 | L109: 0.01741039779 | O109: 100 | P109: 0 | Q109: 5.909295649e-87 | R109: 1.007793539e-21 | S109: 1 | T109: 1 | U109: 1 | V109: 1 | W109: 1 | X109: 1 | Y109: 1 | Z109: 1 | AC109: 100 | AD109: 1 | AE109: 5.909295649e-87 | AF109: 0.02439028298 | AG109: 0.02439038568 | AH109: 0.02439061198 | AI109: 0.0243910763 | AJ109: 0.1519503804 | AK109: 0.1166533911 | AL109: 0.08328898724 | AM109: 0.02539015777 | AP109: 100 | AQ109: 0 | AR109: 0 | AS109: 0 | AT109: 0 | AU109: 0 | AV109: 0 | AW109: 0 | AX109: 0 | AY109: 0 | AZ109: 0
B110: Total | C110: =SUBTOTAL(109,FitnessData!$C$10:$C$109) -> 100 | D110: =SUBTOTAL(109,FitnessData!$D$10:$D$109) -> 0.539894228 | E110: =SUBTOTAL(109,FitnessData!$E$10:$E$109) -> 1 | F110: =SUBTOTAL(109,FitnessData!$F$10:$F$109) -> 1 | G110: =SUBTOTAL(109,FitnessData!$G$10:$G$109) -> 1 | H110: =SUBTOTAL(109,FitnessData!$H$10:$H$109) -> 1 | I110: =SUBTOTAL(109,FitnessData!$I$10:$I$109) -> 0.9756096143 | J110: =SUBTOTAL(109,FitnessData!$J$10:$J$109) -> 1 | K110: =SUBTOTAL(109,FitnessData!$K$10:$K$109) -> 0.9584937847 | L110: =SUBTOTAL(109,FitnessData!$L$10:$L$109) -> 1 | O110: Total | P110: =SUBTOTAL(109,FitnessData!P$10:P$109) -> 39.89422804 | Q110: =SUBTOTAL(109,FitnessData!Q$10:Q$109) -> 0.539894228 | R110: =SUBTOTAL(109,FitnessData!R$10:R$109) -> 0.6737124337 | S110: =SUBTOTAL(109,FitnessData!S$10:S$109) -> 100 | T110: =SUBTOTAL(109,FitnessData!T$10:T$109) -> 100 | U110: =SUBTOTAL(109,FitnessData!U$10:U$109) -> 100 | V110: =SUBTOTAL(109,FitnessData!V$10:V$109) -> 100 | W110: =SUBTOTAL(109,FitnessData!W$10:W$109) -> 100 | X110: =SUBTOTAL(109,FitnessData!X$10:X$109) -> 100 | Y110: =SUBTOTAL(109,FitnessData!Y$10:Y$109) -> 100 | Z110: =SUBTOTAL(109,FitnessData!Z$10:Z$109) -> 100 | AC110: Total | AD110: =SUBTOTAL(109,FitnessData!AD$10:AD$109) -> 100 | AE110: =SUBTOTAL(109,FitnessData!AE$10:AE$109) -> 0.539894228 | AF110: =SUBTOTAL(109,FitnessData!AF$10:AF$109) -> 1 | AG110: =SUBTOTAL(109,FitnessData!AG$10:AG$109) -> 1 | AH110: =SUBTOTAL(109,FitnessData!AH$10:AH$109) -> 1 | AI110: =SUBTOTAL(109,FitnessData!AI$10:AI$109) -> 1 | AJ110: =SUBTOTAL(109,FitnessData!AJ$10:AJ$109) -> 1 | AK110: =SUBTOTAL(109,FitnessData!AK$10:AK$109) -> 1 | AL110: =SUBTOTAL(109,FitnessData!AL$10:AL$109) -> 1 | AM110: =SUBTOTAL(109,FitnessData!AM$10:AM$109) -> 1 | AP110: Total | AQ110: =SUBTOTAL(109,FitnessData!AQ$10:AQ$109) -> 99 | AR110: =SUBTOTAL(109,FitnessData!AR$10:AR$109) -> 37 | AS110: =SUBTOTAL(109,FitnessData!AS$10:AS$109) -> 37 | AT110: =SUBTOTAL(109,FitnessData!AT$10:AT$109) -> 49 | AU110: =SUBTOTAL(109,FitnessData!AU$10:AU$109) -> 49 | AV110: =SUBTOTAL(109,FitnessData!AV$10:AV$109) -> 99 | AW110: =SUBTOTAL(109,FitnessData!AW$10:AW$109) -> 99 | AX110: =SUBTOTAL(109,FitnessData!AX$10:AX$109) -> 99 | AY110: =SUBTOTAL(109,FitnessData!AY$10:AY$109) -> 99 | AZ110: =SUBTOTAL(109,FitnessData!AZ$10:AZ$109) -> 99
B111: Average: | C111: =SUMPRODUCT($B$10:$B$109,C10:C109)/C110 -> 50.5 | D111: 4.682293492 | E111: 26.49442875 | F111: 29.89311636 | G111: 32.32592819 | H111: 34.49579051 | I111: 28.14043383 | J111: 33.4985312 | K111: 39.56677683 | L111: 31.86363394 | O111: Average: | P111: =SUMPRODUCT($O$10:$O$109,P10:P109)/P110 -> 1 | Q111: =SUMPRODUCT($O$10:$O$109,Q10:Q109)/Q110 -> 4.682293492 | R111: 10.35312731 | S111: 50.5 | T111: 50.5 | U111: 50.5 | V111: 50.5 | W111: 50.5 | X111: 50.5 | Y111: 50.5 | Z111: 50.5 | AC111: Average: | AD111: =SUMPRODUCT($AC$10:$AC$109,AD10:AD109)/AD110 -> 50.5 | AE111: 4.682293492 | AF111: 26.49442875 | AG111: 29.89311636 | AH111: 32.32592819 | AI111: 34.49579051 | AJ111: 38.3213435 | AK111: 33.4985312 | AL111: 29.38835603 | AM111: 19.69835739 | AP111: Average: | AQ111: =SUMPRODUCT($AP$10:$AP$109,AQ10:AQ109)/AQ110 -> 50 | AR111: 74.66666667 | AS111: 80.2972973 | AT111: 66.66666667 | AU111: 75 | AV111: 50 | AW111: 50 | AX111: 50 | AY111: 50 | AZ111: 50

Sheet ResultsCM (hidden)
A1: Inputs - Case 1 | B1: 0 | J1: General data - Case 1 | T1: Last Cycle data - Case Case 1
A2: T1 No. of model cycles | B2: 1000
A3: T2 Cycle Duration(days): | B3: 7 | H3: Fit Lvl. | J3: Notes at Start | K3: New Notes | L3: Notes from Outside | M3: Ageing Profile | N3: CE Profile | P3: Notes Value | R3: NCB Fit/Unfit Threshold | T3: Notes In | V3: Recirc Fit | W3: Recirc Unfit | Y3: NCB Sensor Profile | Z3: NCB Sensor Threshold | AB3: NCB To Sort | AC3: NCB Fit | AD3: NCB UnFit | AE3: NCB Correct Fit | AF3: NCB Correct UnFit | AG3: NCB False Fit | AH3: NCB False UnFit | AJ3: Notes after sorting, growth and in and outflows | AL3: Notes After ageing | AN3: Fit at Threshold | AO3: 1-Unfit at Threshold | AP3: CF at Threshold | AQ3: CU at Threshold | AR3: FF at Threshold | AS3: FU at Threshold | AU3: FFrel at Threshold | AV3: FUrel at Threshold | AW3: FU Costs at Threshold | AX3: FU Increase per 1% FF reduction
A4: T3 Note Life Calculation: | B4: Ideal | H4: 1 | J4: 0.0002814099095 | K4: 0.1477853475 | L4: 0.0002450024616 | M4: 0.6210219268 | N4: 0 | P4: 0.05 | R4: 0 | T4: 0.0028884822 | V4: 0.002953735384 | W4: 3.407296767e-13 | Y4: 2.438960746e-07 | Z4: 0 | AB4: 0.002869521604 | AC4: 0.002869520229 | AD4: 1.375026764e-09 | AE4: 0.002869520229 | AF4: 0 | AG4: 0 | AH4: 1.375026764e-09 | AJ4: 0.004651175869 | AL4: 0.0028884822 | AN4: 0.06522904765 | AO4: 0.9347709524 | AP4: 0.06522904312 | AQ4: 0.07392987556 | AR4: 4.534133921e-09 | AS4: 0.8608410768 | AU4: 6.951096305e-08 | AV4: 0.9209112399 | AW4: 14935442.42
A5: T4 Show Calculation Steps: | B5: 0 | H5: 2 | J5: 0.001415713811 | K5: 0.1448590015 | L5: 0.001232662219 | M5: 0.2958479457 | N5: 0.0002061430633 | P5: 0.0492 | R5: 0 | T5: 0.006455183031 | V5: 0.006600726964 | W5: 1.531798177e-12 | Y5: 3.961299091e-07 | Z5: 0 | AB5: 0.006412534016 | AC5: 0.006412528928 | AD5: 5.08724376e-09 | AE5: 0.006412528928 | AF5: 0 | AG5: 0 | AH5: 5.08724376e-09 | AJ5: 0.00817948409 | AL5: 0.006455183031 | AN5: 0.07467174517 | AO5: 0.9253282548 | AP5: 0.07467173752 | AQ5: 0.07392987244 | AR5: 7.656655544e-09 | AS5: 0.8513983824 | AU5: 1.025375197e-07 | AV5: 0.9201041662 | AW5: 14706329.39 | AX5: 24437.11366
A6: T5 Steady State Correlation Factor: | B6: 0.999999995 | H6: 3 | J6: 0.003728608244 | K6: 0.13642307 | L6: 0.003246972665 | M6: 0.07046933706 | N6: 0.0004122861266 | P6: 0.0484 | R6: 0 | T6: 0.009900529912 | V6: 0.01012325374 | W6: 4.680227741e-12 | Y6: 6.369825179e-07 | Z6: 0 | AB6: 0.009834630233 | AC6: 0.00983461744 | AD6: 1.279296031e-08 | AE6: 0.00983461744 | AF6: 0 | AG6: 0 | AH6: 1.279296031e-08 | AJ6: 0.01152037422 | AL6: 0.009900529912 | AN6: 0.08499178942 | AO6: 0.9150082106 | AP6: 0.08499177661 | AQ6: 0.07392986729 | AR6: 1.280754249e-08 | AS6: 0.8410783433 | AU6: 1.506915265e-07 | AV6: 0.9192030558 | AW6: 14457606.61 | AX6: 18713.09225
A7: T6 Quick Finish if Steady State: | B7: TRUE | H7: 4 | J7: 0.006942301011 | K7: 0.1234406984 | L7: 0.006046948551 | M7: 0.01119026973 | N7: 0.0006184291899 | P7: 0.0476 | R7: 0 | T7: 0.01303776698 | V7: 0.01333034045 | W7: 1.215782665e-11 | Y7: 1.014085207e-06 | Z7: 0 | AB7: 0.01295027987 | AC7: 0.01295025252 | AD7: 2.735687962e-08 | AE7: 0.01295025252 | AF7: 0 | AG7: 0 | AH7: 2.735687962e-08 | AJ7: 0.01449875966 | AL7: 0.01303776698 | AN7: 0.09619906761 | AO7: 0.9038009324 | AP7: 0.09619904639 | AQ7: 0.07392985887 | AR7: 2.122175175e-08 | AS7: 0.8298710735 | AU7: 2.206024681e-07 | AV7: 0.9182011699 | AW7: 14189413.06 | AX7: 14330.88846
H8: 5 | J8: 0.01042520892 | K8: 0.1073141877 | L8: 0.00908380818 | M8: 0.00133273004 | N8: 0.0008245722531 | P8: 0.0468 | R8: 0 | T8: 0.01577790153 | V8: 0.01613101239 | W8: 2.874035838e-11 | Y8: 1.598374111e-06 | Z8: 0 | AB8: 0.01567110202 | AC8: 0.01567104878 | AD8: 5.324528217e-08 | AE8: 0.01567104878 | AF8: 0 | AG8: 0 | AH8: 5.324528217e-08 | AJ8: 0.01704250401 | AL8: 0.01577790153 | AN8: 0.1082947329 | AO8: 0.8917052671 | AP8: 0.108294698 | AQ8: 0.07392984526 | AR8: 3.483312755e-08 | AS8: 0.8177754219 | AU8: 3.216511702e-07 | AV8: 0.9170916131 | AW8: 13902126.22 | AX8: 10980.41628
H9: 6 | J9: 0.01364628151 | K9: 0.08963634429 | L9: 0.01189607829 | M9: 0.0001269795566 | N9: 0.001030715316 | P9: 0.046 | R9: 0 | T9: 0.01807255253 | V9: 0.01847584367 | W9: 6.367920713e-11 | Y9: 2.494247129e-06 | Z9: 0 | AB9: 0.01794907995 | AC9: 0.0179489828 | AD9: 9.715018335e-08 | AE9: 0.0179489828 | AF9: 0 | AG9: 0 | AH9: 9.715018335e-08 | AJ9: 0.01912234106 | AL9: 0.01807255253 | AN9: 0.1212710589 | AO9: 0.8787289411 | AP9: 0.1212710022 | AQ9: 0.07392982346 | AR9: 5.66378705e-08 | AS9: 0.8047991177 | AU9: 4.670353424e-07 | AV9: 0.915867317 | AW9: 13596360.59 | AX9: 8421.110247
H10: 7 | J10: 0.01637118061 | K10: 0.07193485127 | L10: 0.01428001979 | M10: 1.008194165e-05 | N10: 0.00123685838 | P10: 0.0452 | R10: 0 | T10: 0.01991206894 | V10: 0.02035502924 | W10: 1.343932751e-10 | Y10: 3.853519674e-06 | Z10: 0 | AB10: 0.01977468817 | AC10: 0.0197745193 | AD10: 1.688739677e-07 | AE10: 0.0197745193 | AF10: 0 | AG10: 0 | AH10: 1.688739677e-07 | AJ10: 0.02074693767 | AL10: 0.01991206894 | AN10: 0.1351115301 | AO10: 0.8648884699 | AP10: 0.1351114389 | AQ10: 0.07392978887 | AR10: 9.12288663e-08 | AS10: 0.790958681 | AU10: 6.752115548e-07 | AV10: 0.9145210146 | AW10: 13272959.87 | AX10: 6467.128703
A11: P1 BN Costs | B11: 50 | H11: 8 | J11: 0.01858220723 | K11: 0.05546548115 | L11: 0.01621983196 | M11: 6.8613214e-07 | N11: 0.001443001443 | P11: 0.0444 | R11: 0 | T11: 0.02132010495 | V11: 0.02179283312 | W11: 2.729514044e-10 | Y11: 5.894306776e-06 | Z11: 0 | AB11: 0.02117149891 | AC11: 0.02117121636 | AD11: 2.825495108e-07 | AE11: 0.02117121636 | AF11: 0 | AG11: 0 | AH11: 2.825495108e-07 | AJ11: 0.0219549993 | AL11: 0.02132010495 | AN11: 0.1497911614 | AO11: 0.8502088386 | AP11: 0.1497910159 | AQ11: 0.07392973452 | AR11: 1.455715821e-07 | AS11: 0.776279104 | AU11: 9.718302516e-07 | AV11: 0.9130452059 | AW11: 12932982.78 | AX11: 4975.440771
A12: P2 NewNoteFitLevel | B12: 1 | H12: 9 | J12: 0.02033524388 | K12: 0.04108983905 | L12: 0.01776329708 | M12: 4.085821598e-08 | N12: 0.001649144506 | P12: 0.0436 | R12: 0 | T12: 0.0223444352 | V12: 0.02283819165 | W12: 5.373464588e-10 | Y12: 8.926165718e-06 | Z12: 0 | AB12: 0.02218705329 | AC12: 0.02218659496 | AD12: 4.583292067e-07 | AE12: 0.02218659496 | AF12: 0 | AG12: 0 | AH12: 4.583292067e-07 | AJ12: 0.02280462847 | AL12: 0.0223444352 | AN12: 0.1652770316 | AO12: 0.8347229684 | AP12: 0.1652768015 | AQ12: 0.07392964998 | AR12: 2.301167811e-07 | AS12: 0.7607933184 | AU12: 1.392309499e-06 | AV12: 0.9114321125 | AW12: 12577683.36 | AX12: 3836.321064
A13: P3 NewNoteStDev | B13: 5 | H13: 10 | J13: 0.02168612694 | K13: 0.02924652801 | L13: 0.01895796994 | M13: 2.162711123e-09 | N13: 0.00185528757 | P13: 0.0428 | R13: 0 | T13: 0.02304648864 | V13: 0.02355400654 | W13: 1.030948256e-09 | Y13: 1.338302258e-05 | Z13: 0 | AB13: 0.02288245963 | AC13: 0.02288173492 | AD13: 7.247159128e-07 | AE13: 0.02288173492 | AF13: 0 | AG13: 0 | AH13: 7.247159128e-07 | AJ13: 0.02336251904 | AL13: 0.02304648864 | AN13: 0.1815290044 | AO13: 0.8184709956 | AP13: 0.181528644 | AQ13: 0.07392951972 | AR13: 3.603762154e-07 | AS13: 0.7445414759 | AU13: 1.98522664e-06 | AV13: 0.909673623 | AW13: 12208486.37 | AX13: 2965.826689
A14: P4 NewNoteDistribution | H14: 11 | J14: 0.02268340466 | K14: 0.02000057186 | L14: 0.01984509596 | M14: 1.030291549e-10 | N14: 0.002061430633 | P14: 0.042 | R14: 0 | T14: 0.02349166426 | V14: 0.02400723804 | W14: 1.935774868e-09 | Y14: 1.986554714e-05 | Z14: 0 | AB14: 0.02332276911 | AC14: 0.02332164737 | AD14: 1.121739927e-06 | AE14: 0.02332164737 | AF14: 0 | AG14: 0 | AH14: 1.121739927e-06 | AJ14: 0.02369486684 | AL14: 0.02349166426 | AN14: 0.1985006044 | AO14: 0.8014993956 | AP14: 0.1985000452 | AQ14: 0.07392932097 | AR14: 5.591254534e-07 | AS14: 0.7275700747 | AU14: 2.816744338e-06 | AV14: 0.9077612268 | AW14: 11826958.97 | AX14: 2299.886335
H15: 12 | J15: 0.02337949733 | K15: 0.01314131213 | L15: 0.02046943093 | M15: 4.461994966e-12 | N15: 0.002267573696 | P15: 0.0412 | R15: 0 | T15: 0.02374181658 | V15: 0.02426121755 | W15: 3.568865786e-09 | Y15: 2.919469258e-05 | Z15: 0 | AB15: 0.02356950746 | AC15: 0.02356780226 | AD15: 1.705207761e-06 | AE15: 0.02356780226 | AF15: 0 | AG15: 0 | AH15: 1.705207761e-06 | AJ15: 0.02386102767 | AL15: 0.02374181658 | AN15: 0.2161400084 | AO15: 0.7838599916 | AP15: 0.2161391489 | AQ15: 0.07392902065 | AR15: 8.594434589e-07 | AS15: 0.709930971 | AU15: 3.976327499e-06 | AV15: 0.905685937 | AW15: 11434779.74 | AX15: 1789.686068
A16: C1 Distribution at beginning | B16: 10%UnfitInCircOld | H16: 13 | J16: 0.02383332619 | K16: 0.00829589543 | L16: 0.02088155373 | M16: 1.771370687e-13 | N16: 0.002473716759 | P16: 0.0404 | R16: 0 | T16: 0.02385049384 | V16: 0.0243707756 | W16: 6.476784858e-09 | Y16: 4.247802706e-05 | Z16: 0 | AB16: 0.023675942 | AC16: 0.02367338974 | AD16: 2.552260237e-06 | AE16: 0.02367338974 | AF16: 0 | AG16: 0 | AH16: 2.552260237e-06 | AJ16: 0.02391011228 | AL16: 0.02385049384 | AN16: 0.2343911092 | AO16: 0.7656088908 | AP16: 0.2343898004 | AQ16: 0.07392857124 | AR16: 1.308851255e-06 | AS16: 0.6916803195 | AU16: 5.584048214e-06 | AV16: 0.9034382018 | AW16: 11033706.23 | AX16: 1398.088112
A17: C2 Notes In Circulation | B17: 1000000000 | H17: 14 | J17: 0.02410394287 | K17: 0.005031714928 | L17: 0.02113232274 | M17: 6.491240872e-15 | N17: 0.002679859823 | P17: 0.0396 | R17: 0 | T17: 0.02386080831 | V17: 0.02438006207 | W17: 1.159226567e-08 | Y17: 6.119019301e-05 | Z17: 0 | AB17: 0.02368496384 | AC17: 0.02368119536 | AD17: 3.768481205e-06 | AE17: 0.02368119536 | AF17: 0 | AG17: 0 | AH17: 3.768481205e-06 | AJ17: 0.02388007945 | AL17: 0.02386080831 | AN17: 0.253194609 | AO17: 0.746805391 | AP17: 0.2531926341 | AQ17: 0.07392790522 | AR17: 1.974870903e-06 | AS17: 0.6728774858 | AU17: 7.799814185e-06 | AV17: 0.9010078046 | AW17: 10625542.36 | AX17: 1096.865478
A18: C3 Annual Change in Circ Volume | B18: 0.05 | H18: 15 | J18: 0.02424314919 | K18: 0.002932223081 | L18: 0.02126646091 | M18: 2.208825019e-16 | N18: 0.002886002886 | P18: 0.0388 | R18: 0 | T18: 0.02380536276 | V18: 0.02432246922 | W18: 2.04908037e-08 | Y18: 8.72682695e-05 | Z18: 0 | AB18: 0.02362901328 | AC18: 0.02362351648 | AD18: 5.496795598e-06 | AE18: 0.02362351648 | AF18: 0 | AG18: 0 | AH18: 5.496795598e-06 | AJ18: 0.02379856563 | AL18: 0.02380536276 | AN18: 0.2724890991 | AO18: 0.7275109009 | AP18: 0.2724861467 | AQ18: 0.07392692771 | AR18: 2.952388834e-06 | AS18: 0.6535839732 | AU18: 1.083488787e-05 | AV18: 0.8983837526 | AW18: 10212106.73 | AX18: 864.576036
A19: C4 NotesFromOutsidePerYear | B19: 0 | H19: 16 | J19: 0.024291746 | K19: 0.001641746913 | L19: 0.02131930767 | M19: 7.015064643e-18 | N19: 0.003092145949 | P19: 0.038 | R19: 0 | T19: 0.02370748171 | V19: 0.02422188945 | W19: 3.580595276e-08 | Y19: 0.0001232219168 | Z19: 0 | AB19: 0.02353130157 | AC19: 0.02352337318 | AD19: 7.928384158e-06 | AE19: 0.02352337318 | AF19: 0 | AG19: 0 | AH19: 7.928384158e-06 | AJ19: 0.02368464802 | AL19: 0.02370748171 | AN19: 0.2922120888 | AO19: 0.7077879112 | AP19: 0.2922077155 | AQ19: 0.07392550683 | AR19: 4.373270458e-06 | AS19: 0.6338624044 | AU19: 1.496608329e-05 | AV19: 0.8955541545 | AW19: 9795202.944 | AX19: 684.9344562
A20: C5 OutsideNoteProfile | B20: 15%UnfitInCirc | H20: 17 | J20: 0.02427942372 | K20: 0.0008831686199 | L20: 0.02131673791 | M20: 2.088686782e-19 | N20: 0.003298289013 | P20: 0.0372 | R20: 0 | T20: 0.02358304399 | V20: 0.02409458812 | W20: 6.189342462e-08 | Y20: 0.0001722568939 | Z20: 0 | AB20: 0.02340763046 | AC20: 0.02339631465 | AD20: 1.131581368e-05 | AE20: 0.02339631465 | AF20: 0 | AG20: 0 | AH20: 1.131581368e-05 | AJ20: 0.02355088437 | AL20: 0.02358304399 | AN20: 0.3123009487 | AO20: 0.6876990513 | AP20: 0.31229453 | AQ20: 0.07392346137 | AR20: 6.418730226e-06 | AS20: 0.6137755899 | AU20: 2.055302826e-05 | AV20: 0.8925060879 | AW20: 9376592.65 | AX20: 545.5694672
A21: C6 NotesLeavingPerYear | B21: 0 | H21: 18 | J21: 0.02422652429 | K21: 0.0004564668798 | L21: 0.02127670088 | M21: 5.853101031e-21 | N21: 0.003504432076 | P21: 0.0364 | R21: 0 | T21: 0.02344238898 | V21: 0.02395115212 | W21: 1.058802886e-07 | Y21: 0.0002384088201 | Z21: 0 | AB21: 0.02326828521 | AC21: 0.02325229669 | AD21: 1.598852152e-05 | AE21: 0.02325229669 | AF21: 0 | AG21: 0 | AH21: 1.598852152e-05 | AJ21: 0.0234051979 | AL21: 0.02344238898 | AN21: 0.3326937432 | AO21: 0.6673062568 | AP21: 0.3326844082 | AQ21: 0.07392054509 | AR21: 9.335005187e-06 | AS21: 0.5933857117 | AU21: 2.805885406e-05 | AV21: 0.8892254578 | AW21: 8957972.196 | AX21: 437.0778339
H22: 19 | J22: 0.02414623317 | K22: 0.0002266747442 | L22: 0.02121112539 | M22: 1.549084609e-22 | N22: 0.003710575139 | P22: 0.0356 | R22: 0 | T22: 0.02329198 | V22: 0.02379819045 | W22: 1.793025427e-07 | Y22: 0.0003266819056 | Z22: 0 | AB22: 0.02311968672 | AC22: 0.02309731603 | AD22: 2.237068316e-05 | AE22: 0.02309731603 | AF22: 0 | AG22: 0 | AH22: 2.237068316e-05 | AJ22: 0.02325239337 | AL22: 0.02329198 | AN22: 0.3533299314 | AO22: 0.6466700686 | AP22: 0.3533164785 | AQ22: 0.0739164272 | AR22: 1.345290038e-05 | AS22: 0.5727536414 | AU22: 3.807461295e-05 | AV22: 0.8856968479 | AW22: 8540953.142 | AX22: 352.3057957
A23: N1 AgeingModel | B23: Poisson | H23: 20 | J23: 0.02404655606 | K23: 0.0001081496747 | L23: 0.02112763305 | M23: 3.884035241e-24 | N23: 0.003916718202 | P23: 0.0348 | R23: 0 | T23: 0.02313569113 | V23: 0.02363965009 | W23: 3.00629684e-07 | Y23: 0.0004431848412 | Z23: 0 | AB23: 0.02296566996 | AC23: 0.02293466864 | AD23: 3.100131267e-05 | AE23: 0.02293466864 | AF23: 0 | AG23: 0 | AH23: 3.100131267e-05 | AJ23: 0.02309525293 | AL23: 0.02313569113 | AN23: 0.3741509278 | AO23: 0.6258490722 | AP23: 0.3741317161 | AQ23: 0.07391066834 | AR23: 1.921175921e-05 | AS23: 0.5519384038 | AU23: 5.134761877e-05 | AV23: 0.8819033668 | AW23: 8127046.966 | AX23: 285.8042257
A24: N2 Theor. Note Life Soil | B24: 24 | H24: 21 | J24: 0.02393191843 | K24: 4.957646102e-05 | L24: 0.0210309214 | M24: 9.251556164e-26 | N24: 0.004122861266 | P24: 0.034 | R24: 0 | T24: 0.02297570964 | V24: 0.02347773938 | W24: 4.991079671e-07 | Y24: 0.000595253242 | Z24: 0 | AB24: 0.02280838112 | AC24: 0.02276582494 | AD24: 4.255618086e-05 | AE24: 0.02276582494 | AF24: 0 | AG24: 0 | AH24: 4.255618086e-05 | AJ24: 0.02293525717 | AL24: 0.02297570964 | AN24: 0.3951005166 | AO24: 0.6048994834 | AP24: 0.3950733283 | AQ24: 0.07390269175 | AR24: 2.718834714e-05 | AS24: 0.5309967916 | AU24: 6.881374738e-05 | AV24: 0.8778264922 | AW24: 7717653.949 | AX24: 233.4160391
A25: N3 Defect Likelihood | B25: 0.1 | H25: 22 | J25: 0.02380438628 | K25: 2.183504275e-05 | L25: 0.02092381586 | M25: 2.098732648e-27 | N25: 0.004329004329 | P25: 0.0332 | R25: 0 | T25: 0.02281311381 | V25: 0.0233135197 | W25: 8.205355838e-07 | Y25: 0.0007915451583 | Z25: 0 | AB25: 0.02264885267 | AC25: 0.0225909819 | AD25: 5.787077041e-05 | AE25: 0.0225909819 | AF25: 0 | AG25: 0 | AH25: 5.787077041e-05 | AJ25: 0.02277301626 | AL25: 0.02281311381 | AN25: 0.4161251252 | AO25: 0.5838748748 | AP25: 0.4160869942 | AQ25: 0.07389174909 | AR25: 3.813100874e-05 | AS25: 0.5099831257 | AU25: 9.163351701e-05 | AV25: 0.8734459175 | AW25: 7314056.091 | AX25: 191.9640207
A26: N4 Defect Profile | B26: IncreaseFrom1 | H26: 23 | J26: 0.02366453888 | K26: 9.239762159e-06 | L26: 0.02080801664 | M26: 4.544604156e-29 | N26: 0.004535147392 | P26: 0.0324 | R26: 0 | T26: 0.02264820846 | V26: 0.02314725006 | W26: 1.33582433e-06 | Y26: 0.001042093481 | Z26: 0 | AB26: 0.02248733822 | AC26: 0.02240937521 | AD26: 7.796301251e-05 | AE26: 0.02240937521 | AF26: 0 | AG26: 0 | AH26: 7.796301251e-05 | AJ26: 0.02260849993 | AL26: 0.02264820846 | AN26: 0.4371739662 | AO26: 0.5628260338 | AP26: 0.4371209669 | AQ26: 0.07387688084 | AR26: 5.299925106e-05 | AS26: 0.488949153 | AU26: 0.0001212314894 | AV26: 0.8687394036 | AW26: 6917413.735 | AX26: 159.014738
A27: N5 Fit/Unfit Threshold | B27: 50 | H27: 24 | J27: 0.0235120423 | K27: 3.756606957e-06 | L27: 0.02068458202 | M27: 9.413038802e-31 | N27: 0.004741290456 | P27: 0.0316 | R27: 0 | T27: 0.0224806968 | V27: 0.02297856439 | W27: 2.153513402e-06 | Y27: 0.001358296923 | Z27: 0 | AB27: 0.02232348525 | AC27: 0.02221943129 | AD27: 0.0001040539621 | AE27: 0.02221943129 | AF27: 0 | AG27: 0 | AH27: 0.0001040539621 | AJ27: 0.02244113998 | AL27: 0.0224806968 | AN27: 0.4581990621 | AO27: 0.5418009379 | AP27: 0.4581260535 | AQ27: 0.07385687149 | AR27: 7.300861008e-05 | AS27: 0.4679440664 | AU27: 0.0001593381919 | AV27: 0.8636826437 | AW27: 6528765.466 | AX27: 132.7000133
H28: 25 | J28: 0.02334599184 | K28: 1.467435244e-06 | L28: 0.02055420629 | M28: 1.868444623e-32 | N28: 0.004947433519 | P28: 0.0308 | R28: 0 | T28: 0.02230975101 | V28: 0.02280654561 | W28: 3.43778684e-06 | Y28: 0.001752830049 | Z28: 0 | AB28: 0.02215640751 | AC28: 0.02201882364 | AD28: 0.0001375838755 | AE28: 0.02201882364 | AF28: 0 | AG28: 0 | AH28: 0.0001375838755 | AJ28: 0.02226985921 | AL28: 0.02230975101 | AN28: 0.4791551728 | AO28: 0.5208448272 | AP28: 0.4790554926 | AQ28: 0.07383019983 | AR28: 9.968026306e-05 | AS28: 0.4470146274 | AU28: 0.0002080333652 | AV28: 0.8582491445 | AW28: 6149030.763 | AX28: 111.5818847
A29: R1 Recirc Volume | B29: 2000000000 | H29: 26 | J29: 0.02316509709 | K29: 5.507447339e-07 | L29: 0.02041735625 | M29: 3.560425032e-34 | N29: 0.005153576582 | P29: 0.03 | R29: 0 | T29: 0.02213402606 | V29: 0.02262974177 | W29: 5.434001394e-06 | Y29: 0.002239453029 | Z29: 0 | AB29: 0.02198470142 | AC29: 0.02180448104 | AD29: 0.0001802203797 | AE29: 0.02180448104 | AF29: 0 | AG29: 0 | AH29: 0.0001802203797 | AJ29: 0.02209306288 | AL29: 0.02213402606 | AN29: 0.4999996454 | AO29: 0.5000003546 | AP29: 0.499864751 | AQ29: 0.07379498574 | AR29: 0.0001348943576 | AS29: 0.4262053689 | AU29: 0.0002697889066 | AV29: 0.8524101332 | AW29: 5779014.843 | AX29: 94.55040249
A30: R2 % of Presorted Recirc fit sent back to NCB | B30: 0.25 | H30: 27 | J30: 0.02296777376 | K30: 1.985957644e-07 | L30: 0.02027432109 | M30: 6.52364202e-36 | N30: 0.005359719645 | P30: 0.0292 | R30: 0 | T30: 0.02195164668 | V30: 0.0224461544 | W30: 8.504231668e-06 | Y30: 0.002832703774 | Z30: 0 | AB30: 0.02180643584 | AC30: 0.02157258122 | AD30: 0.0002338546171 | AE30: 0.02157258122 | AF30: 0 | AG30: 0 | AH30: 0.0002338546171 | AJ30: 0.02190861557 | AL30: 0.02195164668 | AN30: 0.5206922088 | AO30: 0.4793077912 | AP30: 0.5205112634 | AQ30: 0.07374893465 | AR30: 0.0001809454476 | AS30: 0.4055588565 | AU30: 0.0003475094202 | AV30: 0.8461344964 | AW30: 5419415.119 | AX30: 80.74620824
A31: R3 Recirc Threshold | B31: 70 | H31: 28 | J31: 0.02275218751 | K31: 6.880465647e-08 | L31: 0.02012521491 | M31: 1.151033546e-37 | N31: 0.005565862709 | P31: 0.0284 | R31: 0 | T31: 0.02176018638 | V31: 0.0222532187 | W31: 1.317582899e-05 | Y31: 0.003547459285 | Z31: 0 | AB31: 0.02161913411 | AC31: 0.02131855361 | AD31: 0.0003005804964 | AE31: 0.02131855361 | AF31: 0 | AG31: 0 | AH31: 0.0003005804964 | AJ31: 0.02171381829 | AL31: 0.02176018638 | AN31: 0.5411947365 | AO31: 0.4588052635 | AP31: 0.5409541387 | AQ31: 0.07368928232 | AR31: 0.0002405977745 | AS31: 0.3851159812 | AU31: 0.000444567839 | AV31: 0.8393887599 | AW31: 5070828.71 | AX31: 69.50181729
A32: R4 Recirc Sensor SD | B32: 10 | H32: 29 | J32: 0.02251627836 | K32: 2.290308056e-08 | L32: 0.01996995572 | M32: 1.958355685e-39 | N32: 0.005772005772 | P32: 0.0276 | R32: 0 | T32: 0.02155665145 | V32: 0.02204778812 | W32: 2.020636851e-05 | Y32: 0.004398359598 | Z32: 0 | AB32: 0.021419761 | AC32: 0.02103710938 | AD32: 0.0003826516188 | AE32: 0.02103710938 | AF32: 0 | AG32: 0 | AH32: 0.0003826516188 | AJ32: 0.02150539585 | AL32: 0.02155665145 | AN32: 0.5614709952 | AO32: 0.4385290048 | AP32: 0.5611538578 | AQ32: 0.07361274265 | AR32: 0.0003171374494 | AS32: 0.3649162621 | AU32: 0.000564833183 | AV32: 0.8321371179 | AW32: 4733760.498 | AX32: 60.29702203
H33: 30 | J33: 0.02225778194 | K33: 7.324840822e-09 | L33: 0.01980823492 | M33: 3.217030652e-41 | N33: 0.005978148835 | P33: 0.0268 | R33: 0 | T33: 0.02133747921 | V33: 0.02182613293 | W33: 3.066846274e-05 | Y33: 0.005399096651 | Z33: 0 | AB33: 0.02120472369 | AC33: 0.02072231343 | AD33: 0.0004824102619 | AE33: 0.02072231343 | AF33: 0 | AG33: 0 | AH33: 0.0004824102619 | AJ33: 0.02127950275 | AL33: 0.02133747921 | AN33: 0.5814864023 | AO33: 0.4185135977 | AP33: 0.5810719844 | AQ33: 0.07351546218 | AR33: 0.0004144179126 | AS33: 0.3449981355 | AU33: 0.0007126871944 | AV33: 0.8243415206 | AW33: 4408631.273 | AX33: 52.7249628
A34: F1 NCB Sorting Costs | B34: 10 | H34: 31 | J34: 0.02197425718 | K34: 2.250767848e-09 | L34: 0.01963948499 | M34: 5.108525525e-43 | N34: 0.006184291899 | P34: 0.026 | R34: 0 | T34: 0.0210985583 | V34: 0.02158396047 | W34: 4.605750999e-05 | Y34: 0.006561581477 | Z34: 0 | AB34: 0.02096989456 | AC34: 0.02036771133 | AD34: 0.0006021832314 | AE34: 0.02036771133 | AF34: 0 | AG34: 0 | AH34: 0.0006021832314 | AJ34: 0.02103175468 | AL34: 0.0210985583 | AN34: 0.601207804 | AO34: 0.398792196 | AP34: 0.6006709096 | AQ34: 0.07339298565 | AR34: 0.0005368944478 | AS34: 0.3253992103 | AU34: 0.0008930264114 | AV34: 0.8159618308 | AW34: 4095785.581 | AX34: 46.46626492
A35: F2 NoteValue at Threshold | B35: 0.2 | H35: 32 | J35: 0.02166312587 | K35: 6.644945676e-10 | L35: 0.01946285028 | M35: 7.850467093e-45 | N35: 0.006390434962 | P35: 0.0252 | R35: 0 | T35: 0.02083527829 | V35: 0.02131646444 | W35: 6.842420392e-05 | Y35: 0.00789501583 | Z35: 0 | AB35: 0.02071066278 | AC35: 0.01996652206 | AD35: 0.0007441407228 | AE35: 0.01996652206 | AF35: 0 | AG35: 0 | AH35: 0.0007441407228 | AJ35: 0.02075729282 | AL35: 0.02083527829 | AN35: 0.6206032915 | AO35: 0.3793967085 | AP35: 0.6199136484 | AQ35: 0.07324023703 | AR35: 0.0006896430638 | AS35: 0.3061564715 | AU35: 0.001111246223 | AV35: 0.8069560558 | AW35: 3795498.985 | AX35: 41.26928205
A36: F3 Annual NCB Sorting Volume | B36: 5000000000 | H36: 33 | J36: 0.02132172772 | K36: 1.884865597e-10 | L36: 0.01927716428 | M36: 1.16871103e-46 | N36: 0.006596578025 | P36: 0.0244 | R36: 0 | T36: 0.0205426154 | V36: 0.02101841 | W36: 0.0001005311684 | Y36: 0.009404907738 | Z36: 0 | AB36: 0.02042202155 | AC36: 0.01951190471 | AD36: 0.000910116841 | AE36: 0.01951190471 | AF36: 0 | AG36: 0 | AH36: 0.000910116841 | AJ36: 0.02045088765 | AL36: 0.0205426154 | AN36: 0.6396420611 | AO36: 0.3603579389 | AP36: 0.6387637023 | AQ36: 0.07305152128 | AR36: 0.0008783588153 | AS36: 0.2873064176 | AU36: 0.001373203654 | AV36: 0.7972806663 | AW36: 3507984.52 | AX36: 36.93496888
A37: F4 NCB Sorts 3POnly | B37: FALSE | H37: 34 | J37: 0.02094739274 | K37: 5.136858007e-11 | L37: 0.0190809361 | M37: 1.687154391e-48 | N37: 0.006802721088 | P37: 0.0236 | R37: 0 | T37: 0.02021526028 | V37: 0.02068426104 | W37: 0.0001460289987 | Y37: 0.01109208347 | Z37: 0 | AB37: 0.02009869668 | AC37: 0.01899730234 | AD37: 0.001101394342 | AE37: 0.01899730234 | AF37: 0 | AG37: 0 | AH37: 0.001101394342 | AJ37: 0.02010708765 | AL37: 0.02021526028 | AN37: 0.6582943289 | AO37: 0.3417056711 | AP37: 0.6571850002 | AQ37: 0.07282055141 | AR37: 0.001109328683 | AS37: 0.2688851197 | AU37: 0.001685156068 | AV37: 0.7868910072 | AW37: 3233398.197 | AX37: 33.30526903
A38: F5 SD of NCB Sensor | B38: 10 | H38: 35 | J38: 0.02053753156 | K38: 1.345064019e-11 | L38: 0.01887234847 | M38: 2.363945899e-50 | N38: 0.007008864152 | P38: 0.0228 | R38: 0 | T38: 0.01984779234 | V38: 0.02030835416 | W38: 0.0002096409579 | Y38: 0.01295175957 | Z38: 0 | AB38: 0.0197353209 | AC38: 0.01841685935 | AD38: 0.001318461556 | AE38: 0.01841685935 | AF38: 0 | AG38: 0 | AH38: 0.001318461556 | AJ38: 0.01972041668 | AL38: 0.01984779234 | AN38: 0.6765312995 | AO38: 0.3234687005 | AP38: 0.675141925 | AQ38: 0.07254050555 | AR38: 0.001389374542 | AS38: 0.2509281949 | AU38: 0.002053673707 | AV38: 0.7757418092 | AW38: 2971843.499 | AX38: 30.25417728
H39: 36 | J39: 0.02008974297 | K39: 3.383892597e-12 | L39: 0.0186492695 | M39: 3.217593029e-52 | N39: 0.007215007215 | P39: 0.022 | R39: 0 | T39: 0.01943490212 | V39: 0.01988512155 | W39: 0.0002973375104 | Y39: 0.01497274656 | Z39: 0 | AB39: 0.01932665536 | AC39: 0.01776589924 | AD39: 0.001560756121 | AE39: 0.01776589924 | AF39: 0 | AG39: 0 | AH39: 0.001560756121 | AJ39: 0.0192856201 | AL39: 0.01943490212 | AN39: 0.6943251921 | AO39: 0.3056748079 | AP39: 0.6925994295 | AQ39: 0.07220411752 | AR39: 0.001725762576 | AS39: 0.2334706904 | AU39: 0.002485524933 | AV39: 0.7637878044 | AW39: 2723374.874 | AX39: 27.68084026
A40: S1 TargetFFRate | B40: 0 | H40: 37 | J40: 0.01960193635 | K40: 8.179342725e-13 | L40: 0.01840928014 | M40: 4.2578488e-54 | N40: 0.007421150278 | P40: 0.0212 | R40: 0 | T40: 0.01897165936 | V40: 0.01940936071 | W40: 0.0004164721166 | Y40: 0.0171368592 | Z40: 0 | AB40: 0.01886785555 | AC40: 0.01704143799 | AD40: 0.001826417561 | AE40: 0.01704143799 | AF40: 0 | AG40: 0 | AH40: 0.001826417561 | AJ40: 0.01879795506 | AL40: 0.01897165936 | AN40: 0.7116493192 | AO40: 0.2883506808 | AP40: 0.7095232424 | AQ40: 0.07180380335 | AR40: 0.002126076744 | AS40: 0.2165468775 | AU40: 0.00298753429 | AV40: 0.7509844501 | AW40: 2488000.28 | AX40: 25.50421445
A41: S2 TargetShredRate | B41: 0 | H41: 38 | J41: 0.01907246536 | K41: 1.899540084e-13 | L41: 0.0181497193 | M41: 5.482140159e-56 | N41: 0.007627293342 | P41: 0.0204 | R41: 0 | T41: 0.01845381878 | V41: 0.01887654431 | W41: 0.0005758393063 | Y41: 0.0194186055 | Z41: 0 | AB41: 0.01835477396 | AC41: 0.01624269617 | AD41: 0.002112077786 | AE41: 0.01624269617 | AF41: 0 | AG41: 0 | AH41: 0.002112077786 | AJ41: 0.01825351449 | AL41: 0.01845381878 | AN41: 0.7284782145 | AO41: 0.2715217855 | AP41: 0.7258801589 | AQ41: 0.07133182452 | AR41: 0.002598055573 | AS41: 0.200189961 | AU41: 0.00356641492 | AV41: 0.7372887616 | AW41: 2265682.893 | AX41: 23.65891655
A42: S3 TargetOPThreshold | B42: 50 | H42: 39 | J42: 0.01850026727 | K42: 4.238446832e-14 | L42: 0.01786774781 | M42: 6.872712261e-58 | N42: 0.007833436405 | P42: 0.0196 | R42: 0 | T42: 0.01787814966 | V42: 0.0182831566 | W42: 0.0007856068715 | Y42: 0.0217852177 | Z42: 0 | AB42: 0.01778428496 | AC42: 0.01537156108 | AD42: 0.002412723888 | AE42: 0.01537156108 | AF42: 0 | AG42: 0 | AH42: 0.002412723888 | AJ42: 0.01764956754 | AL42: 0.01787814966 | AN42: 0.7447878021 | AO42: 0.2552121979 | AP42: 0.7416384084 | AQ42: 0.07078048646 | AR42: 0.003149393634 | AS42: 0.1844317115 | AU42: 0.004228578428 | AV42: 0.7226602528 | AW42: 2056342.126 | AX42: 22.09198877
A43: S4 TargetUnfitInCirc | B43: 0 | H43: 40 | J43: 0.01788500084 | K43: 9.086429001e-15 | L43: 0.01756043212 | M43: 8.395086558e-60 | N43: 0.008039579468 | P43: 0.0188 | R43: 0 | T43: 0.01724276834 | V43: 0.01762703698 | W43: 0.001057068894 | Y43: 0.02419707245 | Z43: 0 | AB43: 0.01715461157 | AC43: 0.01443294232 | AD43: 0.002721669255 | AE43: 0.01443294232 | AF43: 0 | AG43: 0 | AH43: 0.002721669255 | AJ43: 0.01698489252 | AL43: 0.01724276834 | AN43: 0.7605555981 | AO43: 0.2394444019 | AP43: 0.7567680868 | AQ43: 0.07014236877 | AR43: 0.003787511324 | AS43: 0.1693020331 | AU43: 0.004979926955 | AV43: 0.7070619809 | AW43: 1859854.129 | AX43: 20.76036796
H44: 41 | J44: 0.01722717418 | K44: 1.871578106e-15 | L44: 0.01722484746 | M44: 9.998314894e-62 | N44: 0.008245722531 | P44: 0.018 | R44: 0 | T44: 0.01654744722 | V44: 0.01690770479 | W44: 0.00140216872 | Y44: 0.02660852499 | Z44: 0 | AB44: 0.01646562734 | AC44: 0.01343496191 | AD44: 0.003030665432 | AE44: 0.01343496191 | AF44: 0 | AG44: 0 | AH44: 0.003030665432 | AJ44: 0.01626007303 | AL44: 0.01654744722 | AN44: 0.7757609364 | AO44: 0.2242390636 | AP44: 0.7712416373 | AQ44: 0.069410581 | AR44: 0.0045192991 | AS44: 0.1548284826 | AU44: 0.005825633759 | AV44: 0.690461689 | AW44: 1676051.958 | AX44: 19.62889718
H45: 42 | J45: 0.01652825305 | K45: 3.703828724e-16 | L45: 0.01685819908 | M45: 1.161728323e-63 | N45: 0.008451865595 | P45: 0.0172 | R45: 0 | T45: 0.01579386954 | V45: 0.01612663529 | W45: 0.001832754459 | Y45: 0.02896915528 | Z45: 0 | AB45: 0.01571910327 | AC45: 0.01238892638 | AD45: 0.003330176889 | AE45: 0.01238892638 | AF45: 0 | AG45: 0 | AH45: 0.003330176889 | AJ45: 0.01547772492 | AL45: 0.01579386954 | AN45: 0.790385206 | AO45: 0.209614794 | AP45: 0.7850343613 | AQ45: 0.06857903541 | AR45: 0.005350844689 | AS45: 0.1410357586 | AU45: 0.006769920095 | AV45: 0.6728330377 | AW45: 1504725.607 | AX45: 18.66875613
H46: 43 | J46: 0.01579073954 | K46: 7.04242216e-17 | L46: 0.01645795868 | M46: 1.317701107e-65 | N46: 0.008658008658 | P46: 0.0164 | R46: 0 | T46: 0.01498579861 | V46: 0.01528745509 | W46: 0.002359556724 | Y46: 0.03122539334 | Z46: 0 | AB46: 0.01491886852 | AC46: 0.01130904461 | AD46: 0.003609823914 | AE46: 0.01130904461 | AF46: 0 | AG46: 0 | AH46: 0.003609823914 | AJ46: 0.01464262224 | AL46: 0.01498579861 | AN46: 0.8044120905 | AO46: 0.1955879095 | AP46: 0.7981249365 | AQ46: 0.06764272608 | AR46: 0.006287154021 | AS46: 0.1279451834 | AU46: 0.007815837299 | AV46: 0.6541569146 | AW46: 1345622.111 | AX46: 17.85621557
H47: 44 | J47: 0.01501821193 | K47: 1.286534498e-17 | L47: 0.01602201144 | M47: 1.4598562e-67 | N47: 0.008864151721 | P47: 0.0156 | R47: 0 | T47: 0.01412913295 | V47: 0.01439602745 | W47: 0.002990919423 | Y47: 0.03332246029 | Z47: 0 | AB47: 0.01407085707 | AC47: 0.01021188065 | AD47: 0.003858976421 | AE47: 0.01021188065 | AF47: 0 | AG47: 0 | AH47: 0.003858976421 | AJ47: 0.01376169576 | AL47: 0.01412913295 | AN47: 0.817827799 | AO47: 0.182172201 | AP47: 0.8104959206 | AQ47: 0.06659800169 | AR47: 0.007331878408 | AS47: 0.1155741993 | AU47: 0.008965063816 | AV47: 0.6344228081 | AW47: 1198445.873 | AX47: 17.17164214
H48: 45 | J48: 0.01421531748 | K48: 2.258130505e-18 | L48: 0.01554880744 | M48: 1.580589257e-69 | N48: 0.009070294785 | P48: 0.0148 | R48: 0 | T48: 0.01323182664 | V48: 0.01346040435 | W48: 0.003731366396 | Y48: 0.03520653268 | Z48: 0 | AB48: 0.01318302031 | AC48: 0.009115563667 | AD48: 0.004067456638 | AE48: 0.009115563667 | AF48: 0 | AG48: 0 | AH48: 0.004067456638 | AJ48: 0.01284388727 | AL48: 0.01323182664 | AN48: 0.8306212772 | AO48: 0.1693787228 | AP48: 0.8221342156 | AQ48: 0.06544281847 | AR48: 0.008487061626 | AS48: 0.1039359043 | AU48: 0.01021772721 | AV48: 0.6136302282 | AW48: 1062859.414 | AX48: 16.59869685
H49: 46 | J49: 0.01338771281 | K49: 3.808069447e-19 | L49: 0.01503750935 | M49: 1.673278134e-71 | N49: 0.009276437848 | P49: 0.014 | R49: 0 | T49: 0.01230366594 | V49: 0.01249063276 | W49: 0.004580142073 | Y49: 0.03682701403 | Z49: 0 | AB49: 0.01226509722 | AC49: 0.008038811378 | AD49: 0.004226285838 | AE49: 0.008038811378 | AF49: 0 | AG49: 0 | AH49: 0.004226285838 | AJ49: 0.01189985662 | AL49: 0.01230366594 | AN49: 0.8427843913 | AO49: 0.1572156087 | AP49: 0.8330314704 | AQ49: 0.06417695917 | AR49: 0.009752920922 | AS49: 0.09303864951 | AU49: 0.01157226097 | AV49: 0.5917901555 | AW49: 938484.6495 | AX49: 16.12368276
H50: 47 | J50: 0.0125419497 | K50: 6.170053117e-20 | L50: 0.01448812719 | M50: 1.732893719e-73 | N50: 0.009482580911 | P50: 0.0132 | R50: 0 | T50: 0.01135590784 | V50: 0.01149841642 | W50: 0.005529912163 | Y50: 0.03813878155 | Z50: 0 | AB50: 0.01132824874 | AC50: 0.006999854289 | AD50: 0.00432839445 | AE50: 0.006999854289 | AF50: 0 | AG50: 0 | AH50: 0.00432839445 | AJ50: 0.01094155457 | AL50: 0.01135590784 | AN50: 0.8543120743 | AO50: 0.1456879257 | AP50: 0.8431843989 | AQ50: 0.06280220465 | AR50: 0.01112767545 | AS50: 0.08288572104 | AU50: 0.01302530513 | AV50: 0.5689264958 | AW50: 824904.8189 | AX50: 15.73500679
H51: 48 | J51: 0.01168530814 | K51: 9.605083983e-21 | L51: 0.0139016299 | M51: 1.756449603e-75 | N51: 0.009688723974 | P51: 0.0124 | R51: 0 | T51: 0.01040080201 | V51: 0.01049664957 | W51: 0.006565837409 | Y51: 0.0391042694 | Z51: 0 | AB51: 0.01038457841 | AC51: 0.006015367872 | AD51: 0.004369210537 | AE51: 0.006015367872 | AF51: 0 | AG51: 0 | AH51: 0.004369210537 | AJ51: 0.00998169055 | AL51: 0.01040080201 | AN51: 0.8652024301 | AO51: 0.1347975699 | AP51: 0.852594996 | AQ51: 0.06132244594 | AR51: 0.01260743415 | AS51: 0.07347512391 | AU51: 0.01457165828 | AV51: 0.5450775114 | AW51: 721667.125 | AX51: 15.42272832
H52: 49 | J52: 0.01082558316 | K52: 1.436619149e-21 | L52: 0.01328002361 | M52: 1.743235573e-77 | N52: 0.009894867038 | P52: 0.0116 | R52: 0 | T52: 0.009451031849 | V52: 0.009498853977 | W52: 0.007665227793 | Y52: 0.03969525475 | Z52: 0 | AB52: 0.009446575566 | AC52: 0.005099524457 | AD52: 0.004347051108 | AE52: 0.005099524457 | AF52: 0 | AG52: 0 | AH52: 0.004347051108 | AJ52: 0.009033137404 | AL52: 0.009451031849 | AN52: 0.8754567895 | AO52: 0.1245432105 | AP52: 0.8612706367 | AQ52: 0.05974372731 | AR52: 0.01418615278 | AS52: 0.06479948322 | AU52: 0.01620428667 | AV52: 0.520297196 | AW52: 628286.1095 | AX52: 15.1781725
H53: 50 | J53: 0.009970835595 | K53: 2.06447846e-22 | L53: 0.01262638715 | M53: 1.694812362e-79 | N53: 0.0101010101 | P53: 0.0108 | R53: 0 | T53: 0.008519120522 | V53: 0.008518562121 | W53: 0.008797939241 | Y53: 0.03989422804 | Z53: 0 | AB53: 0.008526527426 | AC53: 0.004263263713 | AD53: 0.004263263713 | AE53: 0.004263263713 | AF53: 0 | AG53: 0 | AH53: 0.004263263713 | AJ53: 0.008108323973 | AL53: 0.008519120522 | AN53: 0.8850797143 | AO53: 0.1149202857 | AP53: 0.8692240478 | AQ53: 0.05807421363 | AR53: 0.01585566646 | AS53: 0.05684607209 | AU53: 0.01791439371 | AV53: 0.4946565503 | AW53: 544247.7507 | AX53: 14.99359113
H54: 51 | J54: 0.009129121301 | K54: 2.850409664e-23 | L54: 0.01194485744 | M54: 1.614779556e-81 | N54: 0.01030715316 | P54: 0 | R54: 1 | T54: 0.007616852539 | V54: 0.007568696334 | W54: 0.009927590896 | Y54: 0.03969525475 | Z54: 0.5 | AB54: 0.007635950641 | AC54: 0.003513851921 | AD54: 0.00412209872 | AE54: 0 | AF54: 0.00412209872 | AG54: 0.003513851921 | AH54: 0 | AJ54: 0.007218667511 | AL54: 0.007616852539 | AN54: 0.8940789498 | AO54: 0.1059210502 | AP54: 0.8764731492 | AQ54: 0.05632407954 | AR54: 0.01760580055 | AS54: 0.04959697068 | AU54: 0.01969155024 | AV54: 0.4682447028 | AW54: 469014.2278 | AX54: 14.86185773
H55: 52 | J55: 0.008308214956 | K55: 3.781224197e-24 | L55: 0.01124056035 | M55: 1.508358899e-83 | N55: 0.01051329623 | P55: 0 | R55: 1 | T55: 0.006754759429 | V55: 0.006660994422 | W55: 0.01101356917 | Y55: 0.0391042694 | Z55: 0.5 | AB55: 0.006785090431 | AC55: 0.002854760919 | AD55: 0.003930329511 | AE55: 0 | AF55: 0.003930329511 | AG55: 0.002854760919 | AH55: 0 | AJ55: 0.006374093016 | AL55: 0.006754759429 | AN55: 0.9024653242 | AO55: 0.09753467584 | AP55: 0.8830407658 | AQ55: 0.05450532178 | AR55: 0.01942455832 | AS55: 0.04302935407 | AU55: 0.0215238833 | AV55: 0.4411698065 | AW55: 402029.2562 | AX55: 14.77618716
H56: 53 | J56: 0.00751534617 | K56: 4.81932035e-25 | L56: 0.01051948629 | M56: 1.381856577e-85 | N56: 0.01071943929 | P56: 0 | R56: 1 | T56: 0.00594170964 | V56: 0.005805526812 | W56: 0.01201366406 | Y56: 0.03813878155 | Z56: 0.5 | AB56: 0.005982526657 | AC56: 0.002285855102 | AD56: 0.003696671555 | AE56: 0 | AF56: 0.003696671555 | AG56: 0.002285855102 | AH56: 0 | AJ56: 0.005582675175 | AL56: 0.00594170964 | AN56: 0.9102525982 | AO56: 0.08974740184 | AP56: 0.8889542184 | AQ56: 0.05263150037 | AR56: 0.02129837972 | AS56: 0.03711590147 | AU56: 0.02339831797 | AV56: 0.4135596207 | AW56: 342723.8673 | AX56: 14.72987362
H57: 54 | J57: 0.00675696455 | K57: 5.901567566e-26 | L57: 0.009788314227 | M57: 1.242077584e-87 | N57: 0.01092558235 | P57: 0 | R57: 1 | T57: 0.005184629824 | V57: 0.005010339492 | W57: 0.01288707704 | Y57: 0.03682701403 | Z57: 0.5 | AB57: 0.005234912705 | AC57: 0.001803837103 | AD57: 0.003431075602 | AE57: 0 | AF57: 0.003431075602 | AG57: 0.001803837103 | AH57: 0 | AJ57: 0.004850423458 | AL57: 0.005184629824 | AN57: 0.9174572683 | AO57: 0.08254273167 | AP57: 0.8942448067 | AQ57: 0.05071741847 | AR57: 0.02321246162 | AS57: 0.03182531319 | AU57: 0.02530086406 | AV57: 0.3855616667 | AW57: 290522.481 | AX57: 14.71604509
H58: 55 | J58: 0.006038548153 | K58: 6.943480056e-27 | L58: 0.009054192383 | M58: 1.095762889e-89 | N58: 0.01113172542 | P58: 0 | R58: 1 | T58: 0.004488369015 | V58: 0.00428124268 | W58: 0.01359747003 | Y58: 0.03520653268 | Z58: 0.5 | AB58: 0.004546857104 | AC58: 0.0014028761 | AD58: 0.003143981004 | AE58: 0 | AF58: 0.003143981004 | AG58: 0.0014028761 | AH58: 0 | AJ58: 0.004181214319 | AL58: 0.004488369015 | AN58: 0.9240983291 | AO58: 0.07590167087 | AP58: 0.8989472029 | AQ58: 0.04877875382 | AR58: 0.02515112627 | AS58: 0.02712291704 | AU58: 0.02721693729 | AV58: 0.3573428191 | AW58: 244849.0988 | AX58: 14.72743688
A59: Results - Case Case 1 | H59: 56 | J59: 0.00536446601 | K59: 7.849016135e-28 | L59: 0.008324487581 | M59: 9.491077547e-92 | N59: 0.01133786848 | P59: 0 | R59: 1 | T59: 0.003855701732 | V59: 0.00362174959 | W59: 0.01411570703 | Y59: 0.03332246029 | Z59: 0.5 | AB59: 0.00392094221 | AC59: 0.001075330626 | AD59: 0.002845611584 | AE59: 0 | AF59: 0.002845611584 | AG59: 0.001075330626 | AH59: 0 | AJ59: 0.003576859203 | AL59: 0.003855701732 | AN59: 0.930197 | AO59: 0.06980299998 | AP59: 0.9030987778 | AQ59: 0.04683165793 | AR59: 0.02709822217 | AS59: 0.02297134206 | AU59: 0.02913170239 | AV59: 0.3290881776 | AW59: 205133.4398 | AX59: 14.75619201
A60: No of cycles run | B60: 135 | H60: 57 | J60: 0.004737900733 | K60: 8.524746476e-29 | L60: 0.007606518737 | M60: 8.074006941e-94 | N60: 0.01154401154 | P60: 0 | R60: 1 | T60: 0.00328745277 | V60: 0.003033155063 | W60: 0.01442197748 | Y60: 0.03122539334 | Z60: 0.5 | AB60: 0.003357861126 | AC60: 0.0008124803418 | AD60: 0.002545380785 | AE60: 0 | AF60: 0.002545380785 | AG60: 0.0008124803418 | AH60: 0 | AJ60: 0.00303728512 | AL60: 0.00328745277 | AN60: 0.9357764249 | AO60: 0.06422357514 | AP60: 0.9067388851 | AQ60: 0.0448923403 | AR60: 0.02903753979 | AS60: 0.01933123484 | AU60: 0.0310304246 | AV60: 0.3009990459 | AW60: 170816.8402 | AX60: 14.79370262
A61: Days until SS | B61: 945 | H61: 58 | J61: 0.004160832198 | K61: 8.895614271e-30 | L61: 0.006907291493 | M61: 6.748012624e-96 | N61: 0.01175015461 | P61: 0 | R61: 1 | T61: 0.002782717181 | V61: 0.002514732111 | W61: 0.01450707579 | Y61: 0.02896915528 | Z61: 0.5 | AB61: 0.002856645134 | AC61: 0.0006051956935 | AD61: 0.002251449441 | AE61: 0 | AF61: 0.002251449441 | AG61: 0.0006051956935 | AH61: 0 | AJ61: 0.002560797223 | AL61: 0.002782717181 | AN61: 0.9408613513 | AO61: 0.05913864873 | AP61: 0.9099081273 | AQ61: 0.04297665612 | AR61: 0.03095322398 | AS61: 0.01616199261 | AU61: 0.03289881547 | AV61: 0.2732898529 | AW61: 141357.7505 | AX61: 14.83051186
A62: NCB Threshold | B62: 50 | H62: 59 | J62: 0.00363407848 | K62: 8.918640011e-31 | L62: 0.006233251248 | M62: 5.542548683e-98 | N62: 0.01195629767 | P62: 0 | R62: 1 | T62: 0.002339144166 | V62: 0.002064016696 | W62: 0.01437272842 | Y62: 0.02660852499 | Z62: 0.5 | AB62: 0.00241494967 | AC62: 0.000444495939 | AD62: 0.001970453731 | AE62: 0 | AF62: 0.001970453731 | AG62: 0.000444495939 | AH62: 0 | AJ62: 0.002144390318 | AL62: 0.002339144166 | AN62: 0.945477798 | AO62: 0.05452220201 | AP62: 0.9126476327 | AQ62: 0.04109971479 | AR62: 0.03283016531 | AS62: 0.01342248723 | AU62: 0.03472335932 | AV62: 0.2461838798 | AW62: 116236.6799 | AX62: 14.85630132
A63: Avg. Soil Level of circulation incl. defects | B63: 27.37967863 | H63: 60 | J63: 0.00315738611 | K63: 8.591115284e-32 | L63: 0.005590070332 | M63: 4.475268828e-100 | N63: 0.01216244073 | P63: 0 | R63: 1 | T63: 0.001953253332 | V63: 0.001677147721 | W63: 0.01403098473 | Y63: 0.02419707245 | Z63: 0.5 | AB63: 0.00202936726 | AC63: 0.000321969778 | AD63: 0.001707397482 | AE63: 0 | AF63: 0.001707397482 | AG63: 0.000321969778 | AH63: 0 | AJ63: 0.001784077943 | AL63: 0.001953253332 | AN63: 0.9496527181 | AO63: 0.05034728189 | AP63: 0.9149983637 | AQ63: 0.03927552568 | AR63: 0.03465435441 | AS63: 0.01107175621 | AU63: 0.03649160767 | AV63: 0.2199077247 | AW63: 94960.46683 | AX63: 14.85999127
H64: 61 | J64: 0.002729558845 | K64: 7.95112681e-33 | L64: 0.004982481963 | M64: 3.553280574e-102 | N64: 0.0123685838 | P64: 0 | R64: 1 | T64: 0.001620754958 | V64: 0.001349229872 | W64: 0.01350280103 | Y64: 0.0217852177 | Z64: 0.5 | AB64: 0.001695739642 | AC64: 0.0002300543177 | AD64: 0.001465685325 | AE64: 0 | AF64: 0.001465685325 | AG64: 0.0002300543177 | AH64: 0 | AJ64: 0.001475212526 | AL64: 0.001620754958 | AN64: 0.953413666 | AO64: 0.04658633398 | AP64: 0.9170004804 | AQ64: 0.03751669447 | AR64: 0.03641318562 | AS64: 0.009069639513 | AU64: 0.03819243097 | AV64: 0.194684551 | AW64: 77065.78342 | AX64: 14.82997897
A65: % Fit in circulation | B65: 0.9318731209 | H65: 62 | J65: 0.002348612463 | K65: 7.070270566e-34 | L65: 0.004414169444 | M65: 2.774989155e-104 | N65: 0.01257472686 | P65: 0 | R65: 1 | T65: 0.001336851543 | V65: 0.001074690777 | W65: 0.01281603003 | Y65: 0.0194186055 | Z65: 0.5 | AB65: 0.001409447428 | AC65: 0.0001621846507 | AD65: 0.001247262777 | AE65: 0 | AF65: 0.001247262777 | AG65: 0.0001621846507 | AH65: 0 | AJ65: 0.001212776649 | AL65: 0.001336851543 | AN65: 0.956788475 | AO65: 0.04321152504 | AP65: 0.9186927754 | AQ65: 0.03583418052 | AR65: 0.03809569957 | AS65: 0.007377344522 | AU65: 0.03981621912 | AV65: 0.170726317 | AW65: 62121.81686 | AX65: 14.7545318
A66: % Unfit in circulation | B66: 0.06812687905 | H66: 63 | J66: 0.002011942907 | K66: 6.040482191e-35 | L66: 0.003887714172 | M66: 2.13221613e-106 | N66: 0.01278086992 | P66: 0 | R66: 1 | T66: 0.001096504519 | V66: 0.0008476098389 | W66: 0.01200307319 | Y66: 0.0171368592 | Z66: 0.5 | AB66: 0.001165662615 | AC66: 0.000112836706 | AD66: 0.001052825909 | AE66: 0 | AF66: 0.001052825909 | AG66: 0.000112836706 | AH66: 0 | AJ66: 0.0009916325313 | AL66: 0.001096504519 | AN66: 0.9598049517 | AO66: 0.04019504829 | AP66: 0.9201121937 | AQ66: 0.03423712209 | AR66: 0.03969275801 | AS66: 0.005957926205 | AU66: 0.04135502524 | AV66: 0.1482253775 | AW66: 49732.10676 | AX66: 14.6223356
A67: Share of Defects in circulation | B67: 0.01536225282 | H67: 64 | J67: 0.001716495995 | K67: 4.958329724e-36 | L67: 0.003404601148 | M67: 1.612323925e-108 | N67: 0.01298701299 | P67: 0 | R67: 1 | T67: 0.0008946567083 | V67: 0.0006620028645 | W67: 0.01109845761 | Y67: 0.01497274656 | Z67: 0.5 | AB67: 0.0009595560275 | AC67: 7.749053913e-05 | AD67: 0.0008820654884 | AE67: 0 | AF67: 0.0008820654884 | AG67: 7.749053913e-05 | AH67: 0 | AJ67: 0.0008067233848 | AL67: 0.0008946567083 | AN67: 0.9624905937 | AO67: 0.03750940632 | AP67: 0.9212934457 | AQ67: 0.03273273217 | AR67: 0.04119714793 | AS67: 0.004776674157 | AU67: 0.04280264992 | AV67: 0.1273460346 | AW67: 39535.55043 | AX67: 14.4231742
A68: Avg. Fitness Level of Unfit excl. defects | B68: 56.05909316 | H68: 65 | J68: 0.001458928756 | K68: 3.910456143e-37 | L68: 0.002965276238 | M68: 1.20014563e-110 | N68: 0.01319315605 | P68: 0 | R68: 1 | T68: 0.0007264069017 | V68: 0.0005120534326 | W68: 0.01013657059 | Y68: 0.01295175957 | Z68: 0.5 | AB68: 0.0007864574897 | AC68: 5.254102381e-05 | AD68: 0.0007339164659 | AE68: 0 | AF68: 0.0007339164659 | AG68: 5.254102381e-05 | AH68: 0 | AJ68: 0.0006532256671 | AL68: 0.0007264069017 | AN68: 0.9648723329 | AO68: 0.03512766713 | AP68: 0.922268717 | AQ68: 0.03132626419 | AR68: 0.0426036159 | AS68: 0.003801402934 | AU68: 0.04415466633 | AV68: 0.1082167774 | AW68: 31206.61991 | AX68: 14.14868719
A69: Correct Fit at NCB | B69: 0.8692240478 | H69: 66 | J69: 0.00123575484 | K69: 2.963109195e-38 | L69: 0.002569246026 | M69: 8.795939126e-113 | N69: 0.01339929911 | P69: 0 | R69: 1 | T69: 0.0005871375577 | V69: 0.0003922879231 | W69: 0.00914973109 | Y69: 0.01109208347 | Z69: 0.5 | AB69: 0.0006419708833 | AC69: 3.51795497e-05 | AD69: 0.0006067913336 | AE69: 0 | AF69: 0.0006067913336 | AG69: 3.51795497e-05 | AH69: 0 | AJ69: 0.000526655268 | AL69: 0.0005871375577 | AN69: 0.96697631 | AO69: 0.03302369003 | AP69: 0.9230674732 | AQ69: 0.03002104337 | AR69: 0.04390883672 | AS69: 0.003002646656 | AU69: 0.0454083893 | AV69: 0.09092402009 | AW69: 24454.86057 | AX69: 13.79312474
A70: Correct Unfit at NCB | B70: 0.05807421363 | H70: 67 | J70: 0.001043469006 | K70: 2.157228323e-39 | L70: 0.002215208889 | M70: 6.348920708e-115 | N70: 0.01360544218 | P70: 0 | R70: 1 | T70: 0.0004725998249 | V70: 0.0002976960261 | W70: 0.008166711866 | Y70: 0.009404907738 | Z70: 0.5 | AB70: 0.0005220490857 | AC70: 2.326535909e-05 | AD70: 0.0004987837266 | AE70: 0 | AF70: 0.0004987837266 | AG70: 2.326535909e-05 | AH70: 0 | AJ70: 0.0004229331997 | AL70: 0.0004725998249 | AN70: 0.9688276807 | AO70: 0.03117231932 | AP70: 0.9237163572 | AQ70: 0.02881855658 | AR70: 0.04511132352 | AS70: 0.002353762741 | AU70: 0.04656279379 | AV70: 0.07550810439 | AW70: 19023.76163 | AX70: 13.35399831
A71: False Fit absolute at NCB | B71: 0.01585566646 | H71: 68 | J71: 0.0008786481754 | K71: 1.508942851e-40 | L71: 0.001901205094 | M71: 4.514261614e-117 | N71: 0.01381158524 | P71: 0 | R71: 1 | T71: 0.0003789619976 | V71: 0.0002238020592 | W71: 0.007211759294 | Y71: 0.00789501583 | Z71: 0.5 | AB71: 0.0004230353075 | AC71: 1.519979359e-05 | AD71: 0.0004078355139 | AE71: 0 | AF71: 0.0004078355139 | AG71: 1.519979359e-05 | AH71: 0 | AJ71: 0.0003384176827 | AL71: 0.0003789619976 | AN71: 0.9704504555 | AO71: 0.02954954452 | AP71: 0.9242391669 | AQ71: 0.02771859156 | AR71: 0.04621128854 | AS71: 0.00183095296 | AU71: 0.04761839028 | AV71: 0.06196213817 | AW71: 14689.10306 | AX71: 12.83252298
A72: False Unfit absolute at NCB | B72: 0.05684607209 | H72: 69 | J72: 0.0007380286755 | K72: 1.01409278e-41 | L72: 0.001624774084 | M72: 3.162564816e-119 | N72: 0.0140177283 | P72: 0 | R72: 1 | T72: 0.0003028283408 | V72: 0.000166694622 | W72: 0.006304098933 | Y72: 0.006561581477 | Z72: 0.5 | AB72: 0.0003416778046 | AC72: 9.811811114e-06 | AD72: 0.0003318659935 | AE72: 0 | AF72: 0.0003318659935 | AG72: 9.811811114e-06 | AH72: 0 | AJ72: 0.0002699098528 | AL72: 0.0003028283408 | AN72: 0.9718673729 | AO72: 0.02813262713 | AP72: 0.9246569076 | AQ72: 0.02671941479 | AR72: 0.04721046531 | AS72: 0.001413212342 | AU72: 0.04857706579 | AV72: 0.05023392716 | AW72: 11256.89094 | AX72: 12.23376522
A73: False Fit relative at NCB | B73: 0.01791439371 | H73: 70 | J73: 0.0006185609474 | K73: 6.548032257e-43 | L73: 0.001383108535 | M73: 2.183493824e-121 | N73: 0.01422387137 | P73: 0 | R73: 1 | T73: 0.0002412352256 | V73: 0.0001230231417 | W73: 0.005457869886 | Y73: 0.005399096651 | Z73: 0.5 | AB73: 0.0002751246515 | AC73: 6.259122124e-06 | AD73: 0.0002688655294 | AE73: 0 | AF73: 0.0002688655294 | AG73: 6.259122124e-06 | AH73: 0 | AJ73: 0.0002146399711 | AL73: 0.0002412352256 | AN73: 0.9730998052 | AO73: 0.02690019483 | AP73: 0.9249879018 | AQ73: 0.02581797673 | AR73: 0.04811190337 | AS73: 0.001082218101 | AU73: 0.04944190011 | AV73: 0.04023086479 | AW73: 8560.994512 | AX73: 11.56644927
A74: False Unfit relative at NCB | B74: 0.4946565503 | H74: 71 | J74: 0.0005174441702 | K74: 4.062301475e-44 | L74: 0.001173196876 | M74: 1.485988852e-123 | N74: 0.01443001443 | P74: 0 | R74: 1 | T74: 0.0001916309732 | V74: 8.996993876e-05 | W74: 0.004682402272 | Y74: 0.004398359598 | Z74: 0.5 | AB74: 0.0002209045138 | AC74: 3.946331139e-06 | AD74: 0.0002169581827 | AE74: 0 | AF74: 0.0002169581827 | AG74: 3.946331139e-06 | AH74: 0 | AJ74: 0.0001702402406 | AL74: 0.0001916309732 | AN74: 0.9741676955 | AO74: 0.02583230451 | AP74: 0.9252479485 | AQ74: 0.02501013309 | AR74: 0.048919747 | AS74: 0.0008221714199 | AU74: 0.05021696699 | AV74: 0.03182725798 | AW74: 6460.594316 | AX74: 10.84242805
A75: NCB ShredRate | B75: 0.1149202857 | H75: 72 | J75: 0.0004321439066 | K75: 2.42137309e-45 | L75: 0.0009919483457 | M75: 9.970543356e-126 | N75: 0.01463615749 | P75: 0 | R75: 1 | T75: 0.0001518449515 | V75: 6.520581459e-05 | W75: 0.003982739566 | Y75: 0.003547459285 | Z75: 0.5 | AB75: 0.0001768983949 | AC75: 2.459497548e-06 | AD75: 0.0001744388973 | AE75: 0 | AF75: 0.0001744388973 | AG75: 2.459497548e-06 | AH75: 0 | AJ75: 0.0001347093553 | AL75: 0.0001518449515 | AN75: 0.9750895234 | AO75: 0.02491047659 | AP75: 0.925450515 | AQ75: 0.02429087167 | AR75: 0.04963900842 | AS75: 0.0006196049169 | AU75: 0.05090712927 | AV75: 0.02487326626 | AW75: 4837.541729 | AX75: 10.07587903
A76: Fitness decrease per model cycle | B76: 0.4763888889 | H76: 73 | J76: 0.0003603961277 | K76: 1.38669035e-46 | L76: 0.0008362971356 | M76: 6.597022321e-128 | N76: 0.01484230056 | P76: 0 | R76: 1 | T76: 0.0001200504719 | V76: 4.68360896e-05 | W76: 0.003360308578 | Y76: 0.002832703774 | Z76: 0.5 | AB76: 0.0001413063138 | AC76: 1.515384456e-06 | AD76: 0.0001397909294 | AE76: 0 | AF76: 0.0001397909294 | AG76: 1.515384456e-06 | AH76: 0 | AJ76: 0.0001063728621 | AL76: 0.0001200504719 | AN76: 0.9758822968 | AO76: 0.02411770317 | AP76: 0.925606952 | AQ76: 0.02365453524 | AR76: 0.05027534485 | AS76: 0.0004631679251 | AU76: 0.05151783675 | AV76: 0.01920447904 | AW76: 3593.718411 | AX76: 9.282328243
H77: 74 | J77: 0.0003002009032 | K77: 7.630016827e-48 | L77: 0.0007032843486 | M77: 4.305134429e-130 | N77: 0.01504844362 | P77: 0 | R77: 1 | T77: 9.472503696e-05 | V77: 3.334270975e-05 | W77: 0.002813651005 | Y77: 0.002239453029 | Z77: 0.5 | AB77: 0.0001126119202 | AC77: 9.231402615e-07 | AD77: 0.00011168878 | AE77: 0 | AF77: 0.00011168878 | AG77: 9.231402615e-07 | AH77: 0 | AJ77: 8.384242625e-05 | AL77: 9.472503696e-05 | AN77: 0.9765615668 | AO77: 0.02343843321 | AP77: 0.9257267194 | AQ77: 0.02309503266 | AR77: 0.05083484743 | AS77: 0.0003434005478 | AU77: 0.05205493352 | AV77: 0.01465117334 | AW77: 2648.469729 | AX77: 8.477626278
A78: Annual NCB sorting (Millions / Costs in EUR) | B78: 5000 | C78: 50000000 | H78: 75 | J78: 0.0002498087467 | K78: 4.033663999e-49 | L78: 0.0005901183144 | M78: 2.771511091e-132 | N78: 0.01525458668 | P78: 0 | R78: 1 | T78: 7.461056356e-05 | V78: 2.35266801e-05 | W78: 0.002339147503 | Y78: 0.001752830049 | Z78: 0.5 | AB78: 8.954721267e-05 | AC78: 5.560582215e-07 | AD78: 8.899115445e-05 | AE78: 0 | AF78: 8.899115445e-05 | AG78: 5.560582215e-07 | AH78: 0 | AJ78: 6.597620774e-05 | AL78: 7.461056356e-05 | AN78: 0.9771414621 | AO78: 0.02285853792 | AP78: 0.925817614 | AQ78: 0.022606032 | AR78: 0.0513238481 | AS78: 0.0002525059202 | AU78: 0.05252448094 | AV78: 0.0110464598 | AW78: 1936.170882 | AX78: 7.676995753
A79: Annual unfit note volume (Millions) | B79: 574.6014286 | H79: 76 | J79: 0.0002077021844 | K79: 2.048812253e-50 | L79: 0.0004942151072 | M79: 1.760422786e-134 | N79: 0.01546072975 | P79: 0 | R79: 1 | T79: 5.867540472e-05 | V79: 1.645380206e-05 | W79: 0.001931684692 | Y79: 0.001358296923 | Z79: 0.5 | AB79: 7.10588402e-05 | AC79: 3.312186149e-07 | AD79: 7.072762159e-05 | AE79: 0 | AF79: 7.072762159e-05 | AG79: 3.312186149e-07 | AH79: 0 | AJ79: 5.184181155e-05 | AL79: 5.867540472e-05 | AN79: 0.9776347403 | AO79: 0.02236525974 | AP79: 0.9258859915 | AQ79: 0.02218113133 | AR79: 0.05174874876 | AS79: 0.0001841284065 | AU79: 0.05293260011 | AV79: 0.008232786414 | AW79: 1403.969061 | AX79: 6.89424445
A80: Annual false unfit volume (Millions / Value in EUR) | B80: 284.2303605 | C80: 4735871.89 | H80: 77 | J80: 0.0001725746438 | K80: 9.998453416e-52 | L80: 0.0004132219495 | M80: 1.103481388e-136 | N80: 0.01566687281 | P80: 0 | R80: 1 | T80: 4.607932919e-05 | V80: 1.14055747e-05 | W80: 0.001585234213 | Y80: 0.001042093481 | Z80: 0.5 | AB80: 5.627691282e-05 | AC80: 1.951105825e-07 | AD80: 5.608180224e-05 | AE80: 0 | AF80: 5.608180224e-05 | AG80: 1.951105825e-07 | AH80: 0 | AJ80: 4.068267938e-05 | AL80: 4.607932919e-05 | AN80: 0.9780528518 | AO80: 0.02194714816 | AP80: 0.9259369762 | AQ80: 0.02181400447 | AR80: 0.05211587562 | AS80: 0.000133143686 | AU80: 0.0532853368 | AV80: 0.006066559763 | AW80: 1009.730397 | AX80: 6.141200292
A81: Annual fit notes put on stock (Millions / Value in EUR) | B81: 0 | C81: 0 | H81: 78 | J81: 0.0001433082858 | K81: 4.688044365e-53 | L81: 0.00034502658 | M81: 6.827094445e-139 | N81: 0.01587301587 | P81: 0 | R81: 1 | T81: 3.614209801e-05 | V81: 7.836214814e-06 | W81: 0.001293329152 | Y81: 0.0007915451583 | Z81: 0.5 | AB81: 4.448683028e-05 | AC81: 1.136696493e-07 | AD81: 4.437316063e-05 | AE81: 0 | AF81: 4.437316063e-05 | AG81: 1.136696493e-07 | AH81: 0 | AJ81: 3.188833313e-05 | AL81: 3.614209801e-05 | AN81: 0.9784060144 | AO81: 0.0215939856 | AP81: 0.9259746549 | AQ81: 0.02149852062 | AR81: 0.05243135947 | AS81: 9.546497971e-05 | AU81: 0.05358854985 | AV81: 0.004420905963 | AW81: 720.207357 | AX81: 5.427384553
A82: Annual note volume change due to circulation increase / decrease (Millions) | B82: 48.81299781 | H82: 79 | J82: 0.0001189519756 | K82: 2.111926594e-54 | L82: 0.000287755718 | M82: 4.169681971e-141 | N82: 0.01607915894 | P82: 0 | R82: 1 | T82: 2.831588555e-05 | V82: 5.336064069e-06 | W82: 0.001049435723 | Y82: 0.000595253242 | Z82: 0.5 | AB82: 3.510432961e-05 | AC82: 6.54981251e-08 | AD82: 3.503883149e-05 | AE82: 0 | AF82: 3.503883149e-05 | AG82: 6.54981251e-08 | AH82: 0 | AJ82: 2.496854878e-05 | AL82: 2.831588555e-05 | AN82: 0.9787032938 | AO82: 0.02129670619 | AP82: 0.9260022518 | AQ82: 0.02122883808 | AR82: 0.05270104201 | AS82: 6.786810379e-05 | AU82: 0.05384782328 | AV82: 0.003186788754 | AW82: 509.4310108 | AX82: 4.75990613
A83: Annual net inflows (outflows if negative) (Millions) | B83: 0 | C83: 0 | H83: 80 | J83: 9.870021979e-05 | K83: 9.141009196e-56 | L83: 0.000239765554 | M83: 2.514417925e-143 | N83: 0.016285302 | P83: 0 | R83: 1 | T83: 2.216151509e-05 | V83: 3.601171783e-06 | W83: 0.00084722689 | Y83: 0.0004431848412 | Z83: 0.5 | AB83: 2.765373629e-05 | AC83: 3.732972418e-08 | AD83: 2.761640656e-05 | AE83: 0 | AF83: 2.761640656e-05 | AG83: 3.732972418e-08 | AH83: 0 | AJ83: 1.953131248e-05 | AL83: 2.216151509e-05 | AN83: 0.9789526898 | AO83: 0.02104731019 | AP83: 0.9260222832 | AQ83: 0.02099947351 | AR83: 0.05293040659 | AS83: 4.783667953e-05 | AU83: 0.054068401 | AV83: 0.002272816769 | AW83: 357.3235273 | AX83: 4.143537295
A84: Annual New Note Volume (Millions, value) | B84: 623.4144264 | C84: 31170721.32 | H84: 81 | J84: 8.187359383e-05 | K84: 3.801348559e-57 | L84: 0.0001996268416 | M84: 1.497300952e-145 | N84: 0.01649144506 | P84: 0 | R84: 1 | T84: 1.732829588e-05 | V84: 2.408538713e-06 | W84: 0.0006807699017 | Y84: 0.0003266819056 | Z84: 0.5 | AB84: 2.174926066e-05 | AC84: 2.10446545e-08 | AD84: 2.1728216e-05 | AE84: 0 | AF84: 2.1728216e-05 | AG84: 2.10446545e-08 | AH84: 0 | AJ84: 1.526426865e-05 | AL84: 1.732829588e-05 | AN84: 0.9791612236 | AO84: 0.02083877637 | AP84: 0.9260366922 | AQ84: 0.02080534865 | AR84: 0.05312453144 | AS84: 3.342771483e-05 | AU84: 0.05425514222 | AV84: 0.001604111213 | AW84: 248.5193157 | AX84: 3.580920942
H85: 82 | J85: 6.790095263e-05 | K85: 1.518831031e-58 | L85: 0.0001661067338 | M85: 8.806142431e-148 | N85: 0.01669758813 | P85: 0 | R85: 1 | T85: 1.353713896e-05 | V85: 1.596344916e-06 | W85: 0.0005446422265 | Y85: 0.0002384088201 | Z85: 0.5 | AB85: 1.707909492e-05 | AC85: 1.173569407e-08 | AD85: 1.706735923e-05 | AE85: 0 | AF85: 1.706735923e-05 | AG85: 1.173569407e-08 | AH85: 0 | AJ85: 1.191929326e-05 | AL85: 1.353713896e-05 | AN85: 0.9793350256 | AO85: 0.02066497438 | AP85: 0.926046963 | AQ85: 0.02064181748 | AR85: 0.05328806262 | AS85: 2.315690067e-05 | AU85: 0.05441249544 | AV85: 0.001120586953 | AW85: 171.3783751 | AX85: 3.072858959
H86: 83 | J86: 5.630354158e-05 | K86: 5.830549015e-60 | L86: 0.000138149055 | M86: 5.116034644e-150 | N86: 0.01690373119 | P86: 0 | R86: 1 | T86: 1.056657584e-05 | V86: 1.048426439e-06 | W86: 0.0004339907699 | Y86: 0.0001722568939 | Z86: 0.5 | AB86: 1.339202078e-05 | AC86: 6.474026162e-09 | AD86: 1.338554676e-05 | AE86: 0 | AF86: 1.338554676e-05 | AG86: 6.474026162e-09 | AH86: 0 | AJ86: 9.299795843e-06 | AL86: 1.056657584e-05 | AN86: 0.9794794212 | AO86: 0.02052057877 | AP86: 0.9260542176 | AQ86: 0.02050467644 | AR86: 0.05342520366 | AS86: 1.59023388e-05 | AU86: 0.05454448813 | AV86: 0.0007749459202 | AW86: 117.1724072 | AX86: 2.618637836
H87: 84 | J87: 4.66810043e-05 | K87: 2.150491154e-61 | L87: 0.0001148542801 | M87: 2.93641212e-152 | N87: 0.01710987425 | P87: 0 | R87: 1 | T87: 8.241290361e-06 | V87: 6.822784056e-07 | W87: 0.000344548321 | Y87: 0.0001232219168 | Z87: 0.5 | AB87: 1.048622344e-05 | AC87: 3.533115563e-09 | AD87: 1.048269032e-05 | AE87: 0 | AF87: 1.048269032e-05 | AG87: 3.533115563e-09 | AH87: 0 | AJ87: 7.250357435e-06 | AL87: 8.241290361e-06 | AN87: 0.9795990139 | AO87: 0.02040098607 | AP87: 0.9260592949 | AQ87: 0.02039016107 | AR87: 0.05353971903 | AS87: 1.082500495e-05 | AU87: 0.0546547294 | AV87: 0.0005306118492 | AW87: 79.42282197 | AX87: 2.216357455
A88: Total Annual Costs (costs for new notes + sorting) | B88: 81170721.32 | H88: 85 | J88: 3.869920137e-05 | K88: 7.620686409e-63 | L88: 9.546011986e-05 | M88: 1.665326318e-154 | N88: 0.01731601732 | P88: 0 | R88: 1 | T88: 6.422787375e-06 | V88: 4.39918639e-07 | W88: 0.0002726194439 | Y88: 8.72682695e-05 | Z88: 0.5 | AB88: 8.200013487e-06 | AC88: 1.907561585e-09 | AD88: 8.198105925e-06 | AE88: 0 | AF88: 8.198105925e-06 | AG88: 1.907561585e-09 | AH88: 0 | AJ88: 5.648336048e-06 | AL88: 6.422787375e-06 | AN88: 0.9796977641 | AO88: 0.02030223589 | AP88: 0.9260628159 | AQ88: 0.02029493186 | AR88: 0.05363494823 | AS88: 7.304026882e-06 | AU88: 0.05474642303 | AV88: 0.0003597646546 | AW88: 53.36961605 | AX88: 1.863239569
H89: 86 | J89: 3.207970562e-05 | K89: 2.594649756e-64 | L89: 7.932330493e-05 | M89: 9.333446521e-157 | N89: 0.01752216038 | P89: 0 | R89: 1 | T89: 5.001851317e-06 | V89: 2.81025596e-07 | W89: 0.0002150459833 | Y89: 6.119019301e-05 | Z89: 0.5 | AB89: 6.404176998e-06 | AC89: 1.018959573e-09 | AD89: 6.403158038e-06 | AE89: 0 | AF89: 6.403158038e-06 | AG89: 1.018959573e-09 | AH89: 0 | AJ89: 4.397107128e-06 | AL89: 5.001851317e-06 | AN89: 0.9797790631 | AO89: 0.0202209369 | AP89: 0.9260652351 | AQ89: 0.02021605211 | AR89: 0.05371382798 | AS89: 4.884783055e-06 | AU89: 0.05482238803 | AV89: 0.0002415705603 | AW89: 35.5509144 | AX89: 1.555901908
H90: 87 | J90: 2.659081352e-05 | K90: 8.487731132e-66 | L90: 6.590291515e-05 | M90: 5.170174672e-159 | N90: 0.01772830344 | P90: 0 | R90: 1 | T90: 3.892485515e-06 | V90: 1.778523003e-07 | W90: 0.0001691602688 | Y90: 4.247802706e-05 | Z90: 0.5 | AB90: 4.995700293e-06 | AC90: 5.385351601e-10 | AD90: 4.995161757e-06 | AE90: 0 | AF90: 4.995161757e-06 | AG90: 5.385351601e-10 | AH90: 0 | AJ90: 3.420647871e-06 | AL90: 3.892485515e-06 | AN90: 0.9798458019 | AO90: 0.02015419814 | AP90: 0.926066882 | AQ90: 0.02015096027 | AR90: 0.05377891982 | AS90: 3.237868363e-06 | AU90: 0.0548850847 | AV90: 0.0001606547847 | AW90: 23.47445138 | AX90: 1.290591382
A91: NoteLifeTime (Months, Simple) | B91: 20.88404136 | H91: 88 | J91: 2.203990319e-05 | K91: 2.667673696e-67 | L91: 5.474542046e-05 | M91: 2.831050307e-161 | N91: 0.01793444651 | P91: 0 | R91: 1 | T91: 3.027064178e-06 | V91: 1.115045344e-07 | W91: 0.000132732185 | Y91: 2.919469258e-05 | Z91: 0.5 | AB91: 3.892645154e-06 | AC91: 2.816252626e-10 | AD91: 3.892363528e-06 | AE91: 0 | AF91: 3.892363528e-06 | AG91: 2.816252626e-10 | AH91: 0 | AJ91: 2.659216026e-06 | AL91: 3.027064178e-06 | AN91: 0.979900434 | AO91: 0.02009956597 | AP91: 0.9260679928 | AQ91: 0.02009743888 | AR91: 0.05383244122 | AS91: 2.127096588e-06 | AU91: 0.05493664392 | AV91: 0.0001058279861 | AW91: 15.3641672 | AX91: 1.063375209
A92: NoteLifeTime (Months,ECB) | B92: 20.01329454 | H92: 89 | J92: 1.826697182e-05 | K92: 8.055676543e-69 | L92: 4.547146558e-05 | M92: 1.532591943e-163 | N92: 0.01814058957 | P92: 0 | R92: 1 | T92: 2.352469174e-06 | V92: 6.925109251e-08 | W92: 0.0001039145992 | Y92: 1.986554714e-05 | Z92: 0.5 | AB92: 3.02997986e-06 | AC92: 1.457309537e-10 | AD92: 3.029834129e-06 | AE92: 0 | AF92: 3.029834129e-06 | AG92: 1.457309537e-10 | AH92: 0 | AJ92: 2.065913513e-06 | AL92: 2.352469174e-06 | AN92: 0.9799450333 | AO92: 0.02005496672 | AP92: 0.926068735 | AQ92: 0.02005358184 | AR92: 0.05387629826 | AS92: 1.384883451e-06 | AU92: 0.05497889823 | AV92: 6.905438788e-05 | AW92: 9.967201793 | AX92: 0.870292212
H93: 90 | J93: 1.513919425e-05 | K93: 2.337219784e-70 | L93: 3.776434289e-05 | M93: 8.203480596e-166 | N93: 0.01834673263 | P93: 0 | R93: 1 | T93: 1.827021073e-06 | V93: 4.260355519e-08 | W93: 8.119025522e-05 | Y93: 1.338302258e-05 | Z93: 0.5 | AB93: 2.356199601e-06 | AC93: 7.462376738e-11 | AD93: 2.356124977e-06 | AE93: 0 | AF93: 2.356124977e-06 | AG93: 7.462376738e-11 | AH93: 0 | AJ93: 1.603961051e-06 | AL93: 1.827021073e-06 | AN93: 0.979981345 | AO93: 0.02001865504 | AP93: 0.9260692263 | AQ93: 0.02001776149 | AR93: 0.05391211861 | AS93: 8.935561053e-07 | AU93: 0.05501341315 | AV93: 4.463617078e-05 | AW93: 6.408710899 | AX93: 0.7074684407
A94: Notes In Circulation | B94: 1000000000 | H94: 91 | J94: 1.254635775e-05 | K94: 6.515163346e-72 | L94: 3.136004156e-05 | M94: 4.342274451e-168 | N94: 0.0185528757 | P94: 0 | R94: 1 | T94: 1.418047273e-06 | V94: 2.596191283e-08 | W94: 6.332213679e-05 | Y94: 8.926165718e-06 | Z94: 0.5 | AB94: 1.830595527e-06 | AC94: 3.781553976e-11 | AD94: 1.830557712e-06 | AE94: 0 | AF94: 1.830557712e-06 | AG94: 3.781553976e-11 | AH94: 0 | AJ94: 1.244541385e-06 | AL94: 1.418047273e-06 | AN94: 0.9800108323 | AO94: 0.01998916774 | AP94: 0.9260695486 | AQ94: 0.0199885964 | AR94: 0.0539412837 | AS94: 5.713448125e-07 | AU94: 0.05504151783 | AV94: 2.858272139e-05 | AW94: 4.083989576 | AX94: 0.5712020356
A95: Notes Unprocessed Per Cycle | B95: 875976597.6 | H95: 92 | J95: 1.039704317e-05 | K95: 1.744935122e-73 | L95: 2.603873035e-05 | M95: 2.273199232e-170 | N95: 0.01875901876 | P95: 0 | R95: 1 | T95: 1.099958856e-06 | V95: 1.567068975e-08 | W95: 4.930845735e-05 | Y95: 5.894306776e-06 | Z95: 0.5 | AB95: 1.421054505e-06 | AC95: 1.896503677e-11 | AD95: 1.42103554e-06 | AE95: 0 | AF95: 1.42103554e-06 | AG95: 1.896503677e-11 | AH95: 0 | AJ95: 9.650955012e-07 | AL95: 1.099958856e-06 | AN95: 0.9800347171 | AO95: 0.01996528291 | AP95: 0.9260697579 | AQ95: 0.01996492089 | AR95: 0.0539649592 | AS95: 3.620166412e-07 | AU95: 0.05506433421 | AV95: 1.813230711e-05 | AW95: 2.57928373 | AX95: 0.4580223598
A96: Notes From Outside Per Cycle | B96: 0 | H96: 93 | J96: 8.615437803e-06 | K96: 4.490156523e-75 | L96: 2.16175183e-05 | M96: 1.177094409e-172 | N96: 0.01896516182 | P96: 0 | R96: 1 | T96: 8.527322617e-07 | V96: 9.368960061e-09 | W96: 3.834280808e-05 | Y96: 3.853519674e-06 | Z96: 0.5 | AB96: 1.102291446e-06 | AC96: 9.41346475e-12 | AD96: 1.102282033e-06 | AE96: 0 | AF96: 1.102282033e-06 | AG96: 9.41346475e-12 | AH96: 0 | AJ96: 7.479786244e-07 | AL96: 8.527322617e-07 | AN96: 0.9800540161 | AO96: 0.01994598388 | AP96: 0.9260698926 | AQ96: 0.01994575658 | AR96: 0.05398412352 | AS96: 2.27299826e-07 | AU96: 0.05508280424 | AV96: 1.139576906e-05 | AW96: 1.614354423 | AX96: 0.3647280705
A97: Notes leaving per cycle | B97: 0 | H97: 94 | J97: 7.138680625e-06 | K97: 1.110125037e-76 | L97: 1.794433666e-05 | M97: 6.029620405e-175 | N97: 0.01917130489 | P97: 0 | R97: 1 | T97: 6.607122178e-07 | V97: 5.548044879e-09 | W97: 2.977955365e-05 | Y97: 2.494247129e-06 | Z97: 0.5 | AB97: 8.544330124e-07 | AC97: 4.624656196e-12 | AD97: 8.544283877e-07 | AE97: 0 | AF97: 8.544283877e-07 | AG97: 4.624656196e-12 | AH97: 0 | AJ97: 5.794013224e-07 | AL97: 6.607122178e-07 | AN97: 0.9800695722 | AO97: 0.0199304278 | AP97: 0.9260699785 | AQ97: 0.01993028639 | AR97: 0.05399959371 | AS97: 1.414155341e-07 | AU97: 0.05509771474 | AV97: 7.09545904e-06 | AW97: 1.001311759 | AX97: 0.2884082956
A98: Notes Recirculated Per Cycle | B98: 38356164.38 | H98: 95 | J98: 5.91465417e-06 | K98: 2.637002461e-78 | L98: 1.489279241e-05 | M98: 3.055791665e-177 | N98: 0.01937744795 | P98: 0 | R98: 1 | T98: 5.116690387e-07 | V98: 3.254088197e-09 | W98: 2.310427038e-05 | Y98: 1.598374111e-06 | Z98: 0.5 | AB98: 6.618858397e-07 | AC98: 2.248871729e-12 | AD98: 6.618835908e-07 | AE98: 0 | AF98: 6.618835908e-07 | AG98: 2.248871729e-12 | AH98: 0 | AJ98: 4.485961089e-07 | AL98: 5.116690387e-07 | AN98: 0.9800820817 | AO98: 0.01991791833 | AP98: 0.9260700327 | AQ98: 0.01991783115 | AR98: 0.05401204894 | AS98: 8.717867417e-08 | AU98: 0.05510971984 | AV98: 4.376896858e-06 | AW98: 0.6154551569 | AX98: 0.2264504973
A99: Recirculation Fit Per Cycle | B99: 37510655.28 | H99: 96 | J99: 4.900150045e-06 | K99: 6.018349345e-80 | L99: 1.235785539e-05 | M99: 1.532363364e-179 | N99: 0.01958359101 | P99: 0 | R99: 1 | T99: 3.960570074e-07 | V99: 1.890413347e-09 | W99: 1.790884e-05 | Y99: 1.014085207e-06 | Z99: 0.5 | AB99: 5.124344267e-07 | AC99: 1.082494514e-12 | AD99: 5.124333442e-07 | AE99: 0 | AF99: 5.124333442e-07 | AG99: 1.082494514e-12 | AH99: 0 | AJ99: 3.471621507e-07 | AL99: 3.960570074e-07 | AN99: 0.9800921179 | AO99: 0.01990788208 | AP99: 0.9260700667 | AQ99: 0.01990782883 | AR99: 0.05402205127 | AS99: 5.325087372e-08 | AU99: 0.05511936101 | AV99: 2.674863831e-06 | AW99: 0.3748580072 | AX99: 0.1765380561
A100: Recirculation Unfit Per Cycle | B100: 845509.1012 | H100: 97 | J100: 4.059346193e-06 | K100: 1.319691661e-81 | L100: 1.025225462e-05 | M100: 7.604175838e-182 | N100: 0.01978973408 | P100: 0 | R100: 1 | T100: 3.064314926e-07 | V100: 1.087730599e-09 | W100: 1.387071493e-05 | Y100: 6.369825179e-07 | Z100: 0.5 | AB100: 3.965238769e-07 | AC100: 5.158012147e-13 | AD100: 3.965233611e-07 | AE100: 0 | AF100: 3.965233611e-07 | AG100: 5.158012147e-13 | AH100: 0 | AJ100: 2.68550474e-07 | AL100: 3.064314926e-07 | AN100: 0.9801001516 | AO100: 0.01989984839 | AP100: 0.9260700877 | AQ100: 0.01989981616 | AR100: 0.05403006394 | AS100: 3.222814173e-08 | AU100: 0.05512708456 | AV100: 1.619516948e-06 | AW100: 0.2262390794 | AX100: 0.1366401152
A101: Recirculation Unfit Rate | B101: 0.02204363014 | H101: 98 | J101: 3.362543729e-06 | K101: 2.780326329e-83 | L101: 8.503474267e-06 | M101: 3.734582349e-184 | N101: 0.01999587714 | P101: 0 | R101: 1 | T101: 2.369912316e-07 | V101: 6.199027893e-10 | W101: 1.073583426e-05 | Y101: 3.961299091e-07 | Z101: 0.5 | AB101: 3.066909842e-07 | AC101: 2.433065917e-13 | AD101: 3.066907409e-07 | AE101: 0 | AF101: 3.066907409e-07 | AG101: 2.433065917e-13 | AH101: 0 | AJ101: 2.076598978e-07 | AL101: 2.369912316e-07 | AN101: 0.9801065679 | AO101: 0.01989343215 | AP101: 0.9260701006 | AQ101: 0.01989341282 | AR101: 0.05403646728 | AS101: 1.932524602e-08 | AU101: 0.05513325698 | AV101: 9.714385071e-07 | AW101: 0.1352965222 | AX101: 0.1049958011
A102: NotesSorted At NCB Per Cycle | B102: 95890410.96 | H102: 99 | J102: 2.785119573e-06 | K102: 5.627911935e-85 | L102: 7.051253863e-06 | M102: 1.815421975e-186 | N102: 0.0202020202 | P102: 0 | R102: 1 | T102: 1.832192139e-07 | V102: 3.499173587e-10 | W102: 8.304674171e-06 | Y102: 2.438960746e-07 | Z102: 0.5 | AB102: 2.371140302e-07 | AC102: 1.136210779e-13 | AD102: 2.371139166e-07 | AE102: 0 | AF102: 2.371139166e-07 | AG102: 1.136210779e-13 | AH102: 0 | AJ102: 1.605201496e-07 | AL102: 1.832192139e-07 | AN102: 0.9801116809 | AO102: 0.01988831913 | AP102: 0.9260701084 | AQ102: 0.01988830765 | AR102: 0.05404157244 | AS102: 1.148115772e-08 | AU102: 0.05513817813 | AV102: 5.772814509e-07 | AW102: 0.08017003095 | AX102: 0.08009458022
A103: Circulated Notes Sorted At NCB Per Cycle (Excl. RecircUnfit) | B103: 85667238.04 | H103: 100 | J103: 0 | K103: 0 | L103: 0.02439061198 | M103: 8.735826844e-189 | N103: 0 | P103: 0 | R103: 1 | T103: 0.01536225282 | V103: 0 | W103: 0.6969008037 | Z103: 0.5 | AB103: 0.01986929888 | AC103: 0 | AD103: 0.01986929888 | AE103: 0 | AF103: 0.01986929888 | AG103: 0 | AH103: 0 | AJ103: 0.01344436253 | AL103: 0.01536225282 | AN103: 0.9801157463 | AO103: 0.01988425371 | AP103: 0.9260701131 | AQ103: 0.01988424695 | AR103: 0.05404563314 | AS103: 6.757830554e-09 | AU103: 0.0551420925 | AV103: 3.398583951e-07 | AW103: 0.04706874363 | AX103: 0.060654207
A104: Recirc Fit Sorted At NCB Per Cycle | B104: 9377663.821
A105: NCB Fit Per Cycle | B105: 84870657.53
A106: NCB Unfit Per Cycle | B106: 11019753.43
A107: Notes put on stock per cycle | B107: 0
A108: Note Change Due To Growth/Decrease Per Cycle | B108: 936139.6841
A109: New notes added per cycle | B109: 11955893.11
A110: Avg. Note Return Time to NCB | B110: 73
A111: Return time Recirc | B111: 182.5
A112: Avg. Note Return Time to either NCB or Recirc | B112: 56.44096085
A116: Steady State reached | B116: TRUE
A121: Inputs - Case 2 | B121: 0 | J121: General data - Case 2 | T121: Last Cycle data - Case Case 2
A122: T1 No. of model cycles | B122: 1000
A123: T2 Cycle Duration(days): | B123: 7 | H123: Fit Lvl. | J123: Notes at Start | K123: New Notes | L123: Notes from Outside | M123: Ageing Profile | N123: CE Profile | P123: Notes Value | R123: NCB Fit/Unfit Threshold | T123: Notes In | V123: Recirc Fit | W123: Recirc Unfit | Y123: NCB Sensor Profile | Z123: NCB Sensor Threshold | AB123: NCB To Sort | AC123: NCB Fit | AD123: NCB UnFit | AE123: NCB Correct Fit | AF123: NCB Correct UnFit | AG123: NCB False Fit | AH123: NCB False UnFit | AJ123: Notes after sorting, growth and in and outflows | AL123: Notes After ageing | AN123: Fit at Threshold | AO123: 1-Unfit at Threshold | AP123: CF at Threshold | AQ123: CU at Threshold | AR123: FF at Threshold | AS123: FU at Threshold | AU123: FFrel at Threshold | AV123: FUrel at Threshold | AW123: FU Costs at Threshold | AX123: FU Increase per 1% FF reduction
A124: T3 Note Life Calculation: | B124: Ideal | H124: 1 | J124: 0.0002814099095 | K124: 0.1477853475 | L124: 0.0003329995854 | M124: 0.6210219268 | N124: 0 | P124: 0.05 | R124: 0 | T124: 0.002434531358 | V124: 0.002542415212 | W124: 1.499067192e-13 | Y124: 2.438960746e-07 | Z124: 0 | AB124: 0.00224220441 | AC124: 0.002242203336 | AD124: 1.074426856e-09 | AE124: 0.002242203336 | AF124: 0 | AG124: 0 | AH124: 1.074426856e-09 | AJ124: 0.003920201934 | AL124: 0.002434531358 | AN124: 0.05152513909 | AO124: 0.9484748609 | AP124: 0.05152513194 | AQ124: 0.2124420401 | AR124: 7.144910931e-09 | AS124: 0.7360328208 | AU124: 1.386684453e-07 | AV124: 0.7760172158 | AW124: 10284479.76
A125: T4 Show Calculation Steps: | B125: 0 | H125: 2 | J125: 0.001415713811 | K125: 0.1448590015 | L125: 0.00167511526 | M125: 0.2958479457 | N125: 0.0002061430633 | P125: 0.0492 | R125: 0 | T125: 0.005442238605 | V125: 0.00568355361 | W125: 6.741951757e-13 | Y125: 3.961299091e-07 | Z125: 0 | AB125: 0.005012434203 | AC125: 0.005012430227 | AD125: 3.976505163e-09 | AE125: 0.005012430227 | AF125: 0 | AG125: 0 | AH125: 3.976505163e-09 | AJ125: 0.006896407247 | AL125: 0.005442238605 | AN125: 0.05901422597 | AO125: 0.940985774 | AP125: 0.05901421388 | AQ125: 0.2124420352 | AR125: 1.209003032e-08 | AS125: 0.7285437389 | AU125: 2.048663711e-07 | AV125: 0.7742345942 | AW125: 10134037.81 | AX125: 26928.66278
A126: T5 Steady State Correlation Factor: | B126: 0.999999995 | H126: 3 | J126: 0.003728608244 | K126: 0.13642307 | L126: 0.004411191045 | M126: 0.07046933706 | N126: 0.0004122861266 | P126: 0.0484 | R126: 0 | T126: 0.008350465765 | V126: 0.008720985132 | W126: 2.06092731e-12 | Y126: 6.369825179e-07 | Z126: 0 | AB126: 0.007691202927 | AC126: 0.007691192923 | AD126: 1.00047741e-08 | AE126: 0.007691192923 | AF126: 0 | AG126: 0 | AH126: 1.00047741e-08 | AJ126: 0.009717925156 | AL126: 0.008350465765 | AN126: 0.06720633476 | AO126: 0.9327936652 | AP126: 0.0672063145 | AQ126: 0.212442027 | AR126: 2.02659527e-08 | AS126: 0.7203516382 | AU126: 3.015482509e-07 | AV126: 0.7722518549 | AW126: 9970595.243 | AX126: 20507.86798
A127: T6 Quick Finish if Steady State: | B127: TRUE | H127: 4 | J127: 0.006942301011 | K127: 0.1234406984 | L127: 0.008211349455 | M127: 0.01119026973 | N127: 0.0006184291899 | P127: 0.0476 | R127: 0 | T127: 0.0110028501 | V127: 0.01149140609 | W127: 5.35721167e-12 | Y127: 1.014085207e-06 | Z127: 0 | AB127: 0.01013448995 | AC127: 0.01013446854 | AD127: 2.140865095e-08 | AE127: 0.01013446854 | AF127: 0 | AG127: 0 | AH127: 2.140865095e-08 | AJ127: 0.01223818925 | AL127: 0.0110028501 | AN127: 0.07611105956 | AO127: 0.9238889404 | AP127: 0.07611102591 | AQ127: 0.2124420136 | AR127: 3.365298719e-08 | AS127: 0.7114469268 | AU127: 4.421563355e-07 | AV127: 0.770056763 | AW127: 9794215.159 | AX127: 15611.42055
H128: 5 | J128: 0.01042520892 | K128: 0.1073141877 | L128: 0.01232667185 | M128: 0.00133273004 | N128: 0.0008245722531 | P128: 0.0468 | R128: 0 | T128: 0.01332526806 | V128: 0.01391738354 | W128: 1.267472144e-11 | Y128: 1.598374111e-06 | Z128: 0 | AB128: 0.01227400568 | AC128: 0.01227396397 | AD128: 4.170305922e-08 | AE128: 0.01227396397 | AF128: 0 | AG128: 0 | AH128: 4.170305922e-08 | AJ128: 0.01439722018 | AL128: 0.01332526806 | AN128: 0.08573122563 | AO128: 0.9142687744 | AP128: 0.08573117027 | AQ128: 0.2124419919 | AR128: 5.536118966e-08 | AS128: 0.7018267825 | AU128: 6.457529243e-07 | AV128: 0.7676372661 | AW128: 9605115.423 | AX128: 11883.77891
H129: 6 | J129: 0.01364628151 | K129: 0.08963634429 | L129: 0.01612731626 | M129: 0.0001269795566 | N129: 0.001030715316 | P129: 0.046 | R129: 0 | T129: 0.01527763679 | V129: 0.01595702684 | W129: 2.811222813e-11 | Y129: 2.494247129e-06 | Z129: 0 | AB129: 0.01407280597 | AC129: 0.0140727298 | AD129: 7.61696802e-08 | AE129: 0.0140727298 | AF129: 0 | AG129: 0 | AH129: 7.61696802e-08 | AJ129: 0.01617096532 | AL129: 0.01527763679 | AN129: 0.09606275844 | AO129: 0.9039372416 | AP129: 0.09606266822 | AQ129: 0.212441957 | AR129: 9.022377655e-08 | AS129: 0.6914952845 | AU129: 9.392170079e-07 | AV129: 0.7649815194 | AW129: 9403668.181 | AX129: 9049.648147
H130: 7 | J130: 0.01637118061 | K130: 0.07193485127 | L130: 0.01933511997 | M130: 1.008194165e-05 | N130: 0.00123685838 | P130: 0.0452 | R130: 0 | T130: 0.01685230268 | V130: 0.01760230748 | W130: 5.940540722e-11 | Y130: 3.853519674e-06 | Z130: 0 | AB130: 0.0155238103 | AC130: 0.01552367773 | AD130: 1.325718725e-07 | AE130: 0.01552367773 | AF130: 0 | AG130: 0 | AH130: 1.325718725e-07 | AJ130: 0.01756711807 | AL130: 0.01685230268 | AN130: 0.107094736 | AO130: 0.892905264 | AP130: 0.1070945903 | AQ130: 0.2124419016 | AR130: 1.456730977e-07 | AS130: 0.6804633625 | AU130: 1.360226499e-06 | AV130: 0.7620778932 | AW130: 9190395.178 | AX130: 6896.818937
A131: P1 BN Costs | B131: 50 | H131: 8 | J131: 0.01858220723 | K131: 0.05546548115 | L131: 0.02192897857 | M131: 6.8613214e-07 | N131: 0.001443001443 | P131: 0.0444 | R131: 0 | T131: 0.01806945832 | V131: 0.0188742753 | W131: 1.20834817e-10 | Y131: 5.894306776e-06 | Z131: 0 | AB131: 0.01664558296 | AC131: 0.01664536081 | AD131: 2.221477724e-07 | AE131: 0.01664536081 | AF131: 0 | AG131: 0 | AH131: 2.221477724e-07 | AJ131: 0.01861845917 | AL131: 0.01806945832 | AN131: 0.1188096204 | AO131: 0.8811903796 | AP131: 0.1188093874 | AQ131: 0.2124418142 | AR131: 2.330182012e-07 | AS131: 0.6687485654 | AU131: 1.961273847e-06 | AV131: 0.7589149642 | AW131: 8965959.055 | AX131: 5262.362514
A132: P2 NewNoteFitLevel | B132: 1 | H132: 9 | J132: 0.02033524388 | K132: 0.04108983905 | L132: 0.02397536184 | M132: 4.085821598e-08 | N132: 0.001649144506 | P132: 0.0436 | R132: 0 | T132: 0.01896940295 | V132: 0.0198149783 | W132: 2.383068933e-10 | Y132: 8.926165718e-06 | Z132: 0 | AB132: 0.01747520688 | AC132: 0.01747484588 | AD132: 3.609942069e-07 | AE132: 0.01747484588 | AF132: 0 | AG132: 0 | AH132: 3.609942069e-07 | AJ132: 0.01937389441 | AL132: 0.01896940295 | AN132: 0.1311836577 | AO132: 0.8688163423 | AP132: 0.1311832884 | AQ132: 0.212441678 | AR132: 3.692855036e-07 | AS132: 0.6563746643 | AU132: 2.815026734e-06 | AV132: 0.7554814894 | AW132: 8731150.969 | AX132: 4021.625924
A133: P3 NewNoteStDev | B133: 5 | H133: 10 | J133: 0.02168612694 | K133: 0.02924652801 | L133: 0.0255408566 | M133: 2.162711123e-09 | N133: 0.00185528757 | P133: 0.0428 | R133: 0 | T133: 0.01960373221 | V133: 0.02047826361 | W133: 4.58158225e-10 | Y133: 1.338302258e-05 | Z133: 0 | AB133: 0.01806017086 | AC133: 0.01805959887 | AD133: 5.719880387e-07 | AE133: 0.01805959887 | AF133: 0 | AG133: 0 | AH133: 5.719880387e-07 | AJ133: 0.01988936206 | AL133: 0.01960373221 | AN133: 0.1441874262 | AO133: 0.8558125738 | AP133: 0.1441868463 | AQ133: 0.2124414674 | AR133: 5.798382054e-07 | AS133: 0.6433711064 | AU133: 4.021420042e-06 | AV133: 0.7517663634 | AW133: 8486875.07 | AX133: 3079.531338
A134: P4 NewNoteDistribution | H134: 11 | J134: 0.02268340466 | K134: 0.02000057186 | L134: 0.02668333429 | M134: 1.030291549e-10 | N134: 0.002061430633 | P134: 0.042 | R134: 0 | T134: 0.02002719285 | V134: 0.02092127249 | W134: 8.622854641e-10 | Y134: 1.986554714e-05 | Z134: 0 | AB134: 0.01845086887 | AC134: 0.01844998145 | AD134: 8.874193368e-07 | AE134: 0.01844998145 | AF134: 0 | AG134: 0 | AH134: 8.874193368e-07 | AJ134: 0.02022019205 | AL134: 0.02002719285 | AN134: 0.1577865081 | AO134: 0.8422134919 | AP134: 0.1577856061 | AQ134: 0.2124411452 | AR134: 9.020575453e-07 | AS134: 0.6297723467 | AU134: 5.716949795e-06 | AV134: 0.7477585585 | AW134: 8234130.476 | AX134: 2363.747897
H135: 12 | J135: 0.02337949733 | K135: 0.01314131213 | L135: 0.02746503369 | M135: 4.461994966e-12 | N135: 0.002267573696 | P135: 0.0412 | R135: 0 | T135: 0.02029137014 | V135: 0.0211978485 | W135: 1.593895149e-09 | Y135: 2.919469258e-05 | Z135: 0 | AB135: 0.01869478661 | AC135: 0.01869343408 | AD135: 1.352531243e-06 | AE135: 0.01869343408 | AF135: 0 | AG135: 0 | AH135: 1.352531243e-06 | AJ135: 0.02041578366 | AL135: 0.02029137014 | AN135: 0.1719422562 | AO135: 0.8280577438 | AP135: 0.1719408657 | AQ135: 0.2124406568 | AR135: 1.39045101e-06 | AS135: 0.615617087 | AU135: 8.086732378e-06 | AV135: 0.7434470502 | AW135: 7973991.467 | AX135: 1819.368752
A136: C1 Distribution at beginning | B136: 10%UnfitInCircOld | H136: 13 | J136: 0.02383332619 | K136: 0.00829589543 | L136: 0.02795564308 | M136: 1.771370687e-13 | N136: 0.002473716759 | P136: 0.0404 | R136: 0 | T136: 0.02044069754 | V136: 0.02135437062 | W136: 2.900863067e-09 | Y136: 4.247802706e-05 | Z136: 0 | AB136: 0.01883282661 | AC136: 0.01883079643 | AD136: 2.030173689e-06 | AE136: 0.01883079643 | AF136: 0 | AG136: 0 | AH136: 2.030173689e-06 | AJ136: 0.02051676037 | AL136: 0.02044069754 | AN136: 0.1866126209 | AO136: 0.8133873791 | AP136: 0.1866104972 | AQ136: 0.2124399236 | AR136: 2.123649669e-06 | AS136: 0.6009474555 | AU136: 1.137998952e-05 | AV136: 0.7388207279 | AW136: 7707586.69 | AX136: 1404.78622
A137: C2 Notes In Circulation | B137: 1000000000 | H137: 14 | J137: 0.02410394287 | K137: 0.005031714928 | L137: 0.02822475702 | M137: 6.491240872e-15 | N137: 0.002679859823 | P137: 0.0396 | R137: 0 | T137: 0.02051068682 | V137: 0.02142790474 | W137: 5.207911108e-09 | Y137: 6.119019301e-05 | Z137: 0 | AB137: 0.01889767802 | AC137: 0.01889467123 | AD137: 3.006782906e-06 | AE137: 0.01889467123 | AF137: 0 | AG137: 0 | AH137: 3.006782906e-06 | AJ137: 0.02055423197 | AL137: 0.02051068682 | AN137: 0.2017530065 | AO137: 0.7982469935 | AP137: 0.2017497926 | AQ137: 0.2124388334 | AR137: 3.213868013e-06 | AS137: 0.5858081601 | AU137: 1.592971559e-05 | AV137: 0.733868295 | AW137: 7436078.152 | AX137: 1088.512329
A138: C3 Annual Change in Circ Volume | B138: 0.05 | H138: 15 | J138: 0.02424314919 | K138: 0.002932223081 | L138: 0.0283331243 | M138: 2.208825019e-16 | N138: 0.002886002886 | P138: 0.0388 | R138: 0 | T138: 0.0205278931 | V138: 0.02144616689 | W138: 9.235307183e-09 | Y138: 8.72682695e-05 | Z138: 0 | AB138: 0.01891378423 | AC138: 0.01890938433 | AD138: 4.399896206e-06 | AE138: 0.01890938433 | AF138: 0 | AG138: 0 | AH138: 4.399896206e-06 | AJ138: 0.02055052209 | AL138: 0.0205278931 | AN138: 0.2173171236 | AO138: 0.7826828764 | AP138: 0.2173123041 | AQ138: 0.2124372277 | AR138: 4.819522389e-06 | AS138: 0.5702456487 | AU138: 2.21773706e-05 | AV138: 0.7285781584 | AW138: 7160640.727 | AX138: 846.7395563
A139: C4 NotesFromOutsidePerYear | B139: 0 | H139: 16 | J139: 0.024291746 | K139: 0.001641746913 | L139: 0.02832817957 | M139: 7.015064643e-18 | N139: 0.003092145949 | P139: 0.038 | R139: 0 | T139: 0.02051098196 | V139: 0.02142863731 | W139: 1.619168722e-08 | Y139: 0.0001232219168 | Z139: 0 | AB139: 0.01889832538 | AC139: 0.01889195798 | AD139: 6.367398892e-06 | AE139: 0.01889195798 | AF139: 0 | AG139: 0 | AH139: 6.367398892e-06 | AJ139: 0.02052068497 | AL139: 0.02051098196 | AN139: 0.2332578069 | AO139: 0.7667421931 | AP139: 0.233250645 | AQ139: 0.2124348854 | AR139: 7.161833127e-06 | AS139: 0.5543073077 | AU139: 3.07035088e-05 | AV139: 0.7229383131 | AW139: 6882442.859 | AX139: 661.4771077
A140: C5 OutsideNoteProfile | B140: 5%UnfitInCirc | H140: 17 | J140: 0.02427942372 | K140: 0.0008831686199 | L140: 0.0282438908 | M140: 2.088686782e-19 | N140: 0.003298289013 | P140: 0.0372 | R140: 0 | T140: 0.02047230608 | V140: 0.02138820665 | W140: 2.808340176e-08 | Y140: 0.0001722568939 | Z140: 0 | AB140: 0.01886267022 | AC140: 0.01885355155 | AD140: 9.118670174e-06 | AE140: 0.01885355155 | AF140: 0 | AG140: 0 | AH140: 9.118670174e-06 | AJ140: 0.02047425819 | AL140: 0.02047230608 | AN140: 0.2495277744 | AO140: 0.7504722256 | AP140: 0.2495172281 | AQ140: 0.2124315009 | AR140: 1.054636244e-05 | AS140: 0.5380407247 | AU140: 4.226528475e-05 | AV140: 0.7169362254 | AW140: 6602629.006 | AX140: 519.1319865
A141: C6 NotesLeavingPerYear | B141: 0 | H141: 18 | J141: 0.02422652429 | K141: 0.0004564668798 | L141: 0.02810284099 | M141: 5.853101031e-21 | N141: 0.003504432076 | P141: 0.0364 | R141: 0 | T141: 0.02041954678 | V141: 0.02133289001 | W141: 4.820462804e-08 | Y141: 0.0002384088201 | Z141: 0 | AB141: 0.0188138878 | AC141: 0.01880096006 | AD141: 1.292773607e-05 | AE141: 0.01880096006 | AF141: 0 | AG141: 0 | AH141: 1.292773607e-05 | AJ141: 0.02041688758 | AL141: 0.02041954678 | AN141: 0.266080306 | AO141: 0.733919694 | AP141: 0.2660649154 | AQ141: 0.2124266567 | AR141: 1.53905532e-05 | AS141: 0.5214930373 | AU141: 5.784176e-05 | AV141: 0.7105587186 | AW141: 6322304.281 | AX141: 409.4319638
H142: 19 | J142: 0.02414623317 | K142: 0.0002266747442 | L142: 0.02791884083 | M142: 1.549084609e-22 | N142: 0.003710575139 | P142: 0.0356 | R142: 0 | T142: 0.02035715345 | V142: 0.02126733 | W142: 8.190413291e-08 | Y142: 0.0003266819056 | Z142: 0 | AB142: 0.01875607315 | AC142: 0.01873792471 | AD142: 1.814843665e-05 | AE142: 0.01873792471 | AF142: 0 | AG142: 0 | AH142: 1.814843665e-05 | AJ142: 0.02035164375 | AL142: 0.02035715345 | AN142: 0.2828698259 | AO142: 0.7171301741 | AP142: 0.2828475675 | AQ142: 0.2124197888 | AR142: 2.225841672e-05 | AS142: 0.5047103853 | AU142: 7.868784394e-05 | AV142: 0.7037918686 | AW142: 6042521.565 | AX142: 324.6101269
A143: N1 AgeingModel | B143: Poisson | H143: 20 | J143: 0.02404655606 | K143: 0.0001081496747 | L143: 0.02769930579 | M143: 3.884035241e-24 | N143: 0.003916718202 | P143: 0.0348 | R143: 0 | T143: 0.02028746791 | V143: 0.02119397076 | W143: 1.377696267e-07 | Y143: 0.0004431848412 | Z143: 0 | AB143: 0.01869138283 | AC143: 0.01866615137 | AD143: 2.523146089e-05 | AE143: 0.01866615137 | AF143: 0 | AG143: 0 | AH143: 2.523146089e-05 | AJ143: 0.02027998653 | AL143: 0.02028746791 | AN143: 0.2998523805 | AO143: 0.7001476195 | AP143: 0.299820477 | AQ143: 0.2124101437 | AR143: 3.190355042e-05 | AS143: 0.4877374758 | AU143: 0.0001063975226 | AV143: 0.6966209157 | AW143: 5764271.283 | AX143: 258.7887447
A144: N2 Theor. Note Life Soil | B144: 24 | H144: 21 | J144: 0.02393191843 | K144: 4.957646102e-05 | L144: 0.02744720337 | M144: 9.251556164e-26 | N144: 0.004122861266 | P144: 0.034 | R144: 0 | T144: 0.02021152624 | V144: 0.02111389527 | W144: 2.294335488e-07 | Y144: 0.000595253242 | Z144: 0 | AB144: 0.01862077356 | AC144: 0.01858603067 | AD144: 3.474288697e-05 | AE144: 0.01858603067 | AF144: 0 | AG144: 0 | AH144: 3.474288697e-05 | AJ144: 0.02020241462 | AL144: 0.02021152624 | AN144: 0.3169860071 | AO144: 0.6830139929 | AP144: 0.3169406854 | AQ144: 0.2123967256 | AR144: 4.532162537e-05 | AS144: 0.4706172673 | AU144: 0.0001429767383 | AV144: 0.6890301987 | AW144: 5488473.863 | AX144: 207.5144795
A145: N3 Defect Likelihood | B145: 0.1 | H145: 22 | J145: 0.02380438628 | K145: 2.183504275e-05 | L145: 0.02716256804 | M145: 2.098732648e-27 | N145: 0.004329004329 | P145: 0.0332 | R145: 0 | T145: 0.02012958777 | V145: 0.02102737763 | W145: 3.782901416e-07 | Y145: 0.0007915451583 | Z145: 0 | AB145: 0.01854448959 | AC145: 0.018497106 | AD145: 4.73835878e-05 | AE145: 0.018497106 | AF145: 0 | AG145: 0 | AH145: 4.73835878e-05 | AJ145: 0.02011887122 | AL145: 0.02012958777 | AN145: 0.3342309947 | AO145: 0.6657690053 | AP145: 0.3341671813 | AQ145: 0.2123782339 | AR145: 6.381334175e-05 | AS145: 0.4533907714 | AU145: 0.000190925865 | AV145: 0.6810031224 | AW145: 5215974.796 | AX145: 167.4081868
A146: N4 Defect Profile | B146: IncreaseFrom1 | H146: 23 | J146: 0.02366453888 | K146: 9.239762159e-06 | L146: 0.02684362103 | M146: 4.544604156e-29 | N146: 0.004535147392 | P146: 0.0324 | R146: 0 | T146: 0.0200414596 | V146: 0.02093422188 | W146: 6.175286387e-07 | Y146: 0.001042093481 | Z146: 0 | AB146: 0.018462362 | AC146: 0.01839835347 | AD146: 6.400852539e-05 | AE146: 0.01839835347 | AF146: 0 | AG146: 0 | AH146: 6.400852539e-05 | AJ146: 0.0200289796 | AL146: 0.0200414596 | AN146: 0.3515500436 | AO146: 0.6484499564 | AP146: 0.351460985 | AQ146: 0.2123529887 | AR146: 8.90585817e-05 | AS146: 0.4360969677 | AU146: 0.0002533311638 | AV146: 0.6725221637 | AW146: 4947542.122 | AX146: 135.9012594
A147: N5 Fit/Unfit Threshold | B147: 50 | H147: 24 | J147: 0.0235120423 | K147: 3.756606957e-06 | L147: 0.0264875532 | M147: 9.413038802e-31 | N147: 0.004741290456 | P147: 0.0316 | R147: 0 | T147: 0.01994668196 | V147: 0.02083395521 | W147: 9.980372422e-07 | Y147: 0.001358296923 | Z147: 0 | AB147: 0.01837397985 | AC147: 0.01828833527 | AD147: 8.564457481e-05 | AE147: 0.01828833527 | AF147: 0 | AG147: 0 | AH147: 8.564457481e-05 | AJ147: 0.01993216927 | AL147: 0.01994668196 | AN147: 0.3689083331 | AO147: 0.6310916669 | AP147: 0.368785131 | AQ147: 0.2123188452 | AR147: 0.0001232020657 | AS147: 0.4187728217 | AU147: 0.0003339639 | AV147: 0.6635689293 | AW147: 4683866.076 | AX147: 111.0372137
H148: 25 | J148: 0.02334599184 | K148: 1.467435244e-06 | L148: 0.02609105122 | M148: 1.868444623e-32 | N148: 0.004947433519 | P148: 0.0308 | R148: 0 | T148: 0.01984462566 | V148: 0.02072592952 | W148: 1.596922302e-06 | Y148: 0.001752830049 | Z148: 0 | AB148: 0.01827878065 | AC148: 0.01816527554 | AD148: 0.0001135051104 | AE148: 0.01816527554 | AF148: 0 | AG148: 0 | AH148: 0.0001135051104 | AJ148: 0.01982773742 | AL148: 0.01984462566 | AN148: 0.3862735086 | AO148: 0.6137264914 | AP148: 0.3861045584 | AQ148: 0.212273097 | AR148: 0.0001689502229 | AS148: 0.4014533944 | AU148: 0.0004373849596 | AV148: 0.654124272 | AW148: 4425560.59 | AX148: 91.32238052
A149: R1 Recirc Volume | B149: 5000000000 | H149: 26 | J149: 0.02316509709 | K149: 5.507447339e-07 | L149: 0.02565065275 | M149: 3.560425032e-34 | N149: 0.005153576582 | P149: 0.03 | R149: 0 | T149: 0.01973453809 | V149: 0.02060936885 | W149: 2.529619345e-06 | Y149: 0.002239453029 | Z149: 0 | AB149: 0.01817609371 | AC149: 0.01802709453 | AD149: 0.0001489991812 | AE149: 0.01802709453 | AF149: 0 | AG149: 0 | AH149: 0.0001489991812 | AJ149: 0.01971487408 | AL149: 0.01973453809 | AN149: 0.4036156038 | AO149: 0.5963843962 | AP149: 0.4033859256 | AQ149: 0.2122123691 | AR149: 0.0002296782042 | AS149: 0.3841720272 | AU149: 0.0005690518456 | AV149: 0.6441684752 | AW149: 4173166.288 | AX149: 75.61352013
A150: R2 % of Presorted Recirc fit sent back to NCB | B150: 0.25 | H150: 27 | J150: 0.02296777376 | K150: 1.985957644e-07 | L150: 0.02516300326 | M150: 6.52364202e-36 | N150: 0.005359719645 | P150: 0.0292 | R150: 0 | T150: 0.01961556116 | V150: 0.02048338739 | W150: 3.966845168e-06 | Y150: 0.002832703774 | Z150: 0 | AB150: 0.01806515797 | AC150: 0.01787142522 | AD150: 0.0001937327416 | AE150: 0.01787142522 | AF150: 0 | AG150: 0 | AH150: 0.0001937327416 | AJ150: 0.01959266919 | AL150: 0.01961556116 | AN150: 0.4209069115 | AO150: 0.5790930885 | AP150: 0.4205973665 | AQ150: 0.2121325023 | AR150: 0.0003095450006 | AS150: 0.3669605862 | AU150: 0.0007354238956 | AV150: 0.633681516 | AW150: 3927154.637 | AX150: 63.03317908
A151: R3 Recirc Threshold | B151: 70 | H151: 28 | J151: 0.02275218751 | K151: 6.880465647e-08 | L151: 0.02462506396 | M151: 1.151033546e-37 | N151: 0.005565862709 | P151: 0.0284 | R151: 0 | T151: 0.0194867353 | V151: 0.02034699255 | W151: 6.157943131e-06 | Y151: 0.003547459285 | Z151: 0 | AB151: 0.01794512748 | AC151: 0.01769562834 | AD151: 0.0002494991381 | AE151: 0.01769562834 | AF151: 0 | AG151: 0 | AH151: 0.0002494991381 | AJ151: 0.01946011132 | AL151: 0.0194867353 | AN151: 0.4381218182 | AO151: 0.5618781818 | AP151: 0.4377082047 | AQ151: 0.2120284338 | AR151: 0.0004136135024 | AS151: 0.3498497481 | AU151: 0.0009440604994 | AV151: 0.6226434117 | AW151: 3687932.883 | AX151: 52.90588581
A152: R4 Recirc Sensor SD | B152: 10 | H152: 29 | J152: 0.02251627836 | K152: 2.290308056e-08 | L152: 0.0240342984 | M152: 1.958355685e-39 | N152: 0.005772005772 | P152: 0.0276 | R152: 0 | T152: 0.01934699798 | V152: 0.02019908196 | W152: 9.462485093e-06 | Y152: 0.004398359598 | Z152: 0 | AB152: 0.01781507252 | AC152: 0.01749681657 | AD152: 0.0003182559478 | AE152: 0.01749681657 | AF152: 0 | AG152: 0 | AH152: 0.0003182559478 | AJ152: 0.01931608442 | AL152: 0.01934699798 | AN152: 0.4552366154 | AO152: 0.5447633846 | AP152: 0.4546886443 | AQ152: 0.2118940762 | AR152: 0.0005479710824 | AS152: 0.3328693084 | AU152: 0.001203706081 | AV152: 0.611034658 | AW152: 3455849.456 | AX152: 44.70999872
H153: 30 | J153: 0.02225778194 | K153: 7.324840822e-09 | L153: 0.02338884917 | M153: 3.217030652e-41 | N153: 0.005978148835 | P153: 0.0268 | R153: 0 | T153: 0.01919518164 | V153: 0.02003843933 | W153: 1.439227472e-05 | Y153: 0.005399096651 | Z153: 0 | AB153: 0.01767398084 | AC153: 0.01727189545 | AD153: 0.0004020853963 | AE153: 0.01727189545 | AF153: 0 | AG153: 0 | AH153: 0.0004020853963 | AJ153: 0.01915936592 | AL153: 0.01919518164 | AN153: 0.4722293025 | AO153: 0.5277706975 | AP153: 0.4715094575 | AQ153: 0.2117222023 | AR153: 0.0007198449739 | AS153: 0.3160484953 | AU153: 0.001524354736 | AV153: 0.5988367614 | AW153: 3231199.541 | AX153: 38.04131556
A154: F1 NCB Sorting Costs | B154: 10 | H154: 31 | J154: 0.02197425718 | K154: 2.250767848e-09 | L154: 0.0226877064 | M154: 5.108525525e-43 | N154: 0.006184291899 | P154: 0.026 | R154: 0 | T154: 0.0190300142 | V154: 0.01986373243 | W154: 2.166608832e-05 | Y154: 0.006561581477 | Z154: 0 | AB154: 0.0175207624 | AC154: 0.01701762638 | AD154: 0.0005031360215 | AE154: 0.01701762638 | AF154: 0 | AG154: 0 | AH154: 0.0005031360215 | AJ154: 0.01898862884 | AL154: 0.0190300142 | AN154: 0.4890793888 | AO154: 0.5109206112 | AP154: 0.4881416833 | AQ154: 0.2115043418 | AR154: 0.0009377054398 | AS154: 0.2994162694 | AU154: 0.001917286766 | AV154: 0.5860328646 | AW154: 3014230.547 | AX154: 32.5855256
A155: F2 NoteValue at Threshold | B155: 0.2 | H155: 32 | J155: 0.02166312587 | K155: 6.644945676e-10 | L155: 0.02193086344 | M155: 7.850467093e-45 | N155: 0.006390434962 | P155: 0.0252 | R155: 0 | T155: 0.01885012454 | V155: 0.01967351536 | W155: 3.227950622e-05 | Y155: 0.00789501583 | Z155: 0 | AB155: 0.01735425958 | AC155: 0.0167307155 | AD155: 0.0006235440848 | AE155: 0.0167307155 | AF155: 0 | AG155: 0 | AH155: 0.0006235440848 | AJ155: 0.01880244973 | AL155: 0.01885012454 | AN155: 0.5057677068 | AO155: 0.4942322932 | AP155: 0.5045563582 | AQ155: 0.2112306987 | AR155: 0.001211348582 | AS155: 0.2830015945 | AU155: 0.002395069053 | AV155: 0.5726084645 | AW155: 2805147.275 | AX155: 28.09731649
A156: F3 Annual NCB Sorting Volume | B156: 2000000000 | H156: 33 | J156: 0.02132172772 | K156: 1.884865597e-10 | L156: 0.02111945212 | M156: 1.16871103e-46 | N156: 0.006596578025 | P156: 0.0244 | R156: 0 | T156: 0.0186540545 | V156: 0.01946623699 | W156: 4.759191844e-05 | Y156: 0.009404907738 | Z156: 0 | AB156: 0.01717326494 | AC156: 0.01640793045 | AD156: 0.0007653344993 | AE156: 0.01640793045 | AF156: 0 | AG156: 0 | AH156: 0.0007653344993 | AJ156: 0.01859932408 | AL156: 0.0186540545 | AN156: 0.5222762411 | AO156: 0.4777237589 | AP156: 0.5207242913 | AQ156: 0.2108900975 | AR156: 0.001551949778 | AS156: 0.2668336615 | AU156: 0.00297151135 | AV156: 0.5585522103 | AW156: 2604116.599 | AX156: 24.3844949
A157: F4 NCB Sorts 3POnly | B157: FALSE | H157: 34 | J157: 0.02094739274 | K157: 5.136858007e-11 | L157: 0.02025584761 | M157: 1.687154391e-48 | N157: 0.006802721088 | P157: 0.0236 | R157: 0 | T157: 0.01844027909 | V157: 0.01924025689 | W157: 6.943209953e-05 | Y157: 0.01109208347 | Z157: 0 | AB157: 0.01697654769 | AC157: 0.0160462449 | AD157: 0.000930302789 | AE157: 0.0160462449 | AF157: 0 | AG157: 0 | AH157: 0.000930302789 | AJ157: 0.01837769059 | AL157: 0.01844027909 | AN157: 0.5385879792 | AO157: 0.4614120208 | AP157: 0.536615901 | AQ157: 0.210469969 | AR157: 0.001972078246 | AS157: 0.2509420518 | AU157: 0.003661571223 | AV157: 0.5438567711 | AW157: 2411271.549 | AX157: 21.29589
A158: F5 SD of NCB Sensor | B158: 10 | H158: 35 | J158: 0.02053753156 | K158: 1.345064019e-11 | L158: 0.01934373304 | M158: 2.363945899e-50 | N158: 0.007008864152 | P158: 0.0228 | R158: 0 | T158: 0.01820723574 | V158: 0.01899386982 | W158: 0.0001002224923 | Y158: 0.01295175957 | Z158: 0 | AB158: 0.01676289 | AC158: 0.01564300823 | AD158: 0.001119881766 | AE158: 0.01564300823 | AF158: 0 | AG158: 0 | AH158: 0.001119881766 | AJ158: 0.01813596487 | AL158: 0.01820723574 | AN158: 0.5546867869 | AO158: 0.4453132131 | AP158: 0.5522011236 | AQ158: 0.2099563839 | AR158: 0.002485663324 | AS158: 0.2353568292 | AU158: 0.004481201613 | AV158: 0.5285197525 | AW158: 2226714.701 | AX158: 18.71211566
H159: 36 | J159: 0.02008974297 | K159: 3.383892597e-12 | L159: 0.01838811431 | M159: 3.217593029e-52 | N159: 0.007215007215 | P159: 0.022 | R159: 0 | T159: 0.01795336326 | V159: 0.01872533952 | W159: 0.0001431203818 | Y159: 0.01497274656 | Z159: 0 | AB159: 0.01653113344 | AC159: 0.01519613433 | AD159: 0.00133499911 | AE159: 0.01519613433 | AF159: 0 | AG159: 0 | AH159: 0.00133499911 | AJ159: 0.01787258322 | AL159: 0.01795336326 | AN159: 0.570557309 | AO159: 0.429442691 | AP159: 0.5674494052 | AQ159: 0.2093341435 | AR159: 0.003107903738 | AS159: 0.2201085475 | AU159: 0.005447136842 | AV159: 0.5125446354 | AW159: 2050520.842 | AX159: 16.53849716
A160: S1 TargetFFRate | B160: 0 | H160: 37 | J160: 0.01960193635 | K160: 8.179342725e-13 | L160: 0.01739527778 | M160: 4.2578488e-54 | N160: 0.007421150278 | P160: 0.0212 | R160: 0 | T160: 0.01767715028 | V160: 0.01843294168 | W160: 0.0002021713832 | Y160: 0.0171368592 | Z160: 0 | AB160: 0.01628023502 | AC160: 0.01470430038 | AD160: 0.001575934639 | AE160: 0.01470430038 | AF160: 0 | AG160: 0 | AH160: 0.001575934639 | AJ160: 0.01758605569 | AL160: 0.01767715028 | AN160: 0.5861848956 | AO160: 0.4138151044 | AP160: 0.582329783 | AQ160: 0.2085869347 | AR160: 0.003855112582 | AS160: 0.2052281697 | AU160: 0.00657661535 | AV160: 0.4959417081 | AW160: 1882738.907 | AX160: 14.69963986
A161: S2 TargetShredRate | B161: 0 | H161: 38 | J161: 0.01907246536 | K161: 1.899540084e-13 | L161: 0.01637268651 | M161: 5.482140159e-56 | N161: 0.007627293342 | P161: 0.0204 | R161: 0 | T161: 0.01737719226 | V161: 0.01811501554 | W161: 0.0002824670926 | Y161: 0.0194186055 | Z161: 0 | AB161: 0.01600933129 | AC161: 0.01416714282 | AD161: 0.001842188472 | AE161: 0.01416714282 | AF161: 0 | AG161: 0 | AH161: 0.001842188472 | AJ161: 0.01727502713 | AL161: 0.01737719226 | AN161: 0.6015555529 | AO161: 0.3984444471 | AP161: 0.59681106 | AQ161: 0.2076975543 | AR161: 0.00474449293 | AS161: 0.1907468927 | AU161: 0.007887040368 | AV161: 0.4787289524 | AW161: 1723393.206 | AX161: 13.13524656
A162: S3 TargetOPThreshold | B162: 50 | H162: 39 | J162: 0.01850026727 | K162: 4.238446832e-14 | L162: 0.01532881476 | M162: 6.872712261e-58 | N162: 0.007833436405 | P162: 0.0196 | R162: 0 | T162: 0.01705225494 | V162: 0.01777002259 | W162: 0.0003902944797 | Y162: 0.0217852177 | Z162: 0 | AB162: 0.01571780779 | AC162: 0.01358543472 | AD162: 0.00213237307 | AE162: 0.01358543472 | AF162: 0 | AG162: 0 | AH162: 0.00213237307 | AJ162: 0.01693834384 | AL162: 0.01705225494 | AN162: 0.6166559154 | AO162: 0.3833440846 | AP162: 0.6108620734 | AQ162: 0.2066482053 | AR162: 0.005793841945 | AS162: 0.1766958793 | AU162: 0.009395583178 | AV162: 0.4609328444 | AW162: 1572484.018 | AX162: 11.79688631
A163: S4 TargetUnfitInCirc | B163: 0 | H163: 40 | J163: 0.01788500084 | K163: 9.086429001e-15 | L163: 0.01427292484 | M163: 8.395086558e-60 | N163: 0.008039579468 | P163: 0.0188 | R163: 0 | T163: 0.01670134151 | V163: 0.01739661009 | W163: 0.0005332599184 | Y163: 0.02419707245 | Z163: 0 | AB163: 0.01540536969 | AC163: 0.01296122685 | AD163: 0.00244414284 | AE163: 0.01296122685 | AF163: 0 | AG163: 0 | AH163: 0.00244414284 | AJ163: 0.01657512229 | AL163: 0.01670134151 | AN163: 0.6314732367 | AO163: 0.3685267633 | AP163: 0.6244520518 | AQ163: 0.2054208623 | AR163: 0.00702118492 | AS163: 0.163105901 | AU163: 0.01111873713 | AV163: 0.4425890253 | AW163: 1429987.623 | AX163: 10.64549056
H164: 41 | J164: 0.01722717418 | K164: 1.871578106e-15 | L164: 0.01321479543 | M164: 9.998314894e-62 | N164: 0.008245722531 | P164: 0.018 | R164: 0 | T164: 0.01632375945 | V164: 0.01699367645 | W164: 0.0007203661514 | Y164: 0.02660852499 | Z164: 0 | AB164: 0.01507210852 | AC164: 0.01229793434 | AD164: 0.002774174184 | AE164: 0.01229793434 | AF164: 0 | AG164: 0 | AH164: 0.002774174184 | AJ164: 0.01618481562 | AL164: 0.01632375945 | AN164: 0.6459953965 | AO164: 0.3540046035 | AP164: 0.6375510517 | AQ164: 0.2039977025 | AR164: 0.008444344753 | AS164: 0.150006901 | AU164: 0.01307183426 | AV164: 0.4237427975 | AW164: 1295855.896 | AX164: 9.649406332
H165: 42 | J165: 0.01652825305 | K165: 3.703828724e-16 | L165: 0.01216441459 | M165: 1.161728323e-63 | N165: 0.008451865595 | P165: 0.0172 | R165: 0 | T165: 0.01591918246 | V165: 0.01656043473 | W165: 0.0009620166493 | Y165: 0.02896915528 | Z165: 0 | AB165: 0.01471855871 | AC165: 0.01160035259 | AD165: 0.003118206122 | AE165: 0.01160035259 | AF165: 0 | AG165: 0 | AH165: 0.003118206122 | AJ165: 0.01576727308 | AL165: 0.01591918246 | AN165: 0.6602109186 | AO165: 0.3397890814 | AP165: 0.6501304619 | AQ165: 0.2023615906 | AR165: 0.01008045666 | AS165: 0.1374274908 | AU165: 0.01526853976 | AV165: 0.4044494021 | AW165: 1170015.569 | AX165: 8.782877513
H166: 43 | J166: 0.01579073954 | K166: 7.04242216e-17 | L166: 0.0111316543 | M166: 1.317701107e-65 | N166: 0.008658008658 | P166: 0.0164 | R166: 0 | T166: 0.01548770276 | V166: 0.01609647054 | W166: 0.001269919587 | Y166: 0.03122539334 | Z166: 0 | AB166: 0.01434573733 | AC166: 0.01087459033 | AD166: 0.003471146997 | AE166: 0.01087459033 | AF166: 0 | AG166: 0 | AH166: 0.003471146997 | AJ166: 0.01532278733 | AL166: 0.01548770276 | AN166: 0.6741089976 | AO166: 0.3258910024 | AP166: 0.6621635554 | AQ166: 0.200496605 | AR166: 0.01194544223 | AS166: 0.1253943973 | AU166: 0.01772034237 | AV166: 0.3847740392 | AW166: 1052367.32 | AX166: 8.02485602
H167: 44 | J167: 0.01501821193 | K167: 1.286534498e-17 | L167: 0.01012594581 | M167: 1.4598562e-67 | N167: 0.008864151721 | P167: 0.0156 | R167: 0 | T167: 0.01502986875 | V167: 0.01560179072 | W167: 0.001656863877 | Y167: 0.03332246029 | Z167: 0 | AB167: 0.01395516052 | AC167: 0.01012791424 | AD167: 0.003827246282 | AE167: 0.01012791424 | AF167: 0 | AG167: 0 | AH167: 0.003827246282 | AJ167: 0.01485212489 | AL167: 0.01502986875 | AN167: 0.6876795304 | AO167: 0.3123204696 | AP167: 0.6736260697 | AQ167: 0.1983885865 | AR167: 0.01405346076 | AS167: 0.1139318831 | AU167: 0.0204360609 | AV167: 0.3647915977 | AW167: 942784.8276 | AX167: 7.358067973
H168: 45 | J168: 0.01421531748 | K168: 2.258130505e-18 | L168: 0.009155975265 | M168: 1.580589257e-69 | N168: 0.009070294785 | P168: 0.0148 | R168: 0 | T168: 0.01454670417 | V168: 0.01507685954 | W168: 0.002136343154 | Y168: 0.03520653268 | Z168: 0 | AB168: 0.01354883108 | AC168: 0.009368508087 | AD168: 0.004180322994 | AE168: 0.009368508087 | AF168: 0 | AG168: 0 | AH168: 0.004180322994 | AJ168: 0.01435653624 | AL168: 0.01454670417 | AN168: 0.7009131489 | AO168: 0.2990868511 | AP168: 0.6844967897 | AQ168: 0.1960256881 | AR168: 0.01641635921 | AS168: 0.103061163 | AU168: 0.02342138856 | AV168: 0.3445860714 | AW168: 841113.9275 | AX168: 6.768277581
H169: 46 | J169: 0.01338771281 | K169: 3.808069447e-19 | L169: 0.008229418035 | M169: 1.673278134e-71 | N169: 0.009276437848 | P169: 0.014 | R169: 0 | T169: 0.01403970598 | V169: 0.01452262052 | W169: 0.002722010735 | Y169: 0.03682701403 | Z169: 0 | AB169: 0.01312919331 | AC169: 0.008605158744 | AD169: 0.004524034564 | AE169: 0.008605158744 | AF169: 0 | AG169: 0 | AH169: 0.004524034564 | AJ169: 0.01383774335 | AL169: 0.01403970598 | AN169: 0.7138012525 | AO169: 0.2861987475 | AP169: 0.6947581084 | AQ169: 0.1933989032 | AR169: 0.01904314406 | AS169: 0.09279984432 | AU169: 0.02667849628 | AV169: 0.3242496521 | AW169: 747172.0337 | AX169: 6.243704844
H170: 47 | J170: 0.0125419497 | K170: 6.170053117e-20 | L170: 0.007352727235 | M170: 1.732893719e-73 | N170: 0.009482580911 | P170: 0.0132 | R170: 0 | T170: 0.01351082 | V170: 0.01394050311 | W170: 0.003426959583 | Y170: 0.03813878155 | Z170: 0 | AB170: 0.01269905391 | AC170: 0.007846890462 | AD170: 0.004852163448 | AE170: 0.007846890462 | AF170: 0 | AG170: 0 | AH170: 0.004852163448 | AJ170: 0.01329790476 | AL170: 0.01351082 | AN170: 0.7263360366 | AO170: 0.2736639634 | AP170: 0.7043965368 | AQ170: 0.1905025475 | AR170: 0.02193949977 | AS170: 0.0831614159 | AU170: 0.03020571562 | AV170: 0.3038815008 | AW170: 660747.9342 | AX170: 5.774563307
H171: 48 | J171: 0.01168530814 | K171: 9.605083983e-21 | L171: 0.006530987326 | M171: 1.756449603e-75 | N171: 0.009688723974 | P171: 0.0124 | R171: 0 | T171: 0.01296239551 | V171: 0.01333241517 | W171: 0.004262835651 | Y171: 0.0391042694 | Z171: 0 | AB171: 0.01226147061 | AC171: 0.007102575904 | AD171: 0.005158894708 | AE171: 0.007102575904 | AF171: 0 | AG171: 0 | AH171: 0.005158894708 | AJ171: 0.01273956026 | AL171: 0.01296239551 | AN171: 0.7385105171 | AO171: 0.2614894829 | AP171: 0.7134031395 | AQ171: 0.1873346697 | AR171: 0.02510737756 | AS171: 0.0741548132 | AU171: 0.0339973189 | AV171: 0.2835862168 | AW171: 581602.0799 | AX171: 5.352691833
H172: 49 | J172: 0.01082558316 | K172: 1.436619149e-21 | L172: 0.005767838507 | M172: 1.743235573e-77 | N172: 0.009894867038 | P172: 0.0116 | R172: 0 | T172: 0.01239712206 | V172: 0.01270072334 | W172: 0.005238809961 | Y172: 0.03969525475 | Z172: 0 | AB172: 0.01181961352 | AC172: 0.006380556406 | AD172: 0.005439057118 | AE172: 0.006380556406 | AF172: 0 | AG172: 0 | AH172: 0.005439057118 | AJ172: 0.01216555956 | AL172: 0.01239712206 | AN172: 0.7503185481 | AO172: 0.2496814519 | AP172: 0.7217738712 | AQ172: 0.1838973704 | AR172: 0.02854467688 | AS172: 0.06578408152 | AU172: 0.03804341096 | AV172: 0.2634720401 | AW172: 509467.4488 | AX172: 4.971260266
H173: 50 | J173: 0.009970835595 | K173: 2.06447846e-22 | L173: 0.005065471897 | M173: 1.694812362e-79 | N173: 0.0101010101 | P173: 0.0108 | R173: 0 | T173: 0.01181795364 | V173: 0.01204822486 | W173: 0.006360453213 | Y173: 0.03989422804 | Z173: 0 | AB173: 0.01137660738 | AC173: 0.005688303691 | AD173: 0.005688303691 | AE173: 0.005688303691 | AF173: 0 | AG173: 0 | AH173: 0.005688303691 | AJ173: 0.01157898089 | AL173: 0.01181795364 | AN173: 0.7617548337 | AO173: 0.2382451663 | AP173: 0.7295097957 | AQ173: 0.1801970093 | AR173: 0.03224503796 | AS173: 0.05804815703 | AU173: 0.04232994204 | AV173: 0.2436488342 | AW173: 444051.0385 | AX173: 4.624533351
H174: 51 | J174: 0.009129121301 | K174: 2.850409664e-23 | L174: 0.00442469022 | M174: 1.614779556e-81 | N174: 0.01030715316 | P174: 0 | R174: 1 | T174: 0.01122802675 | V174: 0.01137811468 | W174: 0.007628575208 | Y174: 0.03969525475 | Z174: 0.5 | AB174: 0.0109353655 | AC174: 0.005032150791 | AD174: 0.005903214707 | AE174: 0 | AF174: 0.005903214707 | AG174: 0.005032150791 | AH174: 0 | AJ174: 0.01098304662 | AL174: 0.01122802675 | AN174: 0.7728149328 | AO174: 0.2271850672 | AP174: 0.7366171732 | AQ174: 0.1762442876 | AR174: 0.03619775966 | AS174: 0.05094077958 | AU174: 0.04683884605 | AV174: 0.2242259151 | AW174: 385036.0064 | AX174: 4.307680783
H175: 52 | J175: 0.008308214956 | K175: 3.781224197e-24 | L175: 0.003845024262 | M175: 1.508358899e-83 | N175: 0.01051329623 | P175: 0 | R175: 1 | T175: 0.01063057906 | V175: 0.01069395151 | W175: 0.009038108673 | Y175: 0.0391042694 | Z175: 0.5 | AB175: 0.01049842802 | AC175: 0.004417111655 | AD175: 0.006081316364 | AE175: 0 | AF175: 0.006081316364 | AG175: 0.004417111655 | AH175: 0 | AJ175: 0.01038104295 | AL175: 0.01063057906 | AN175: 0.7834952585 | AO175: 0.2165047415 | AP175: 0.7431074078 | AQ175: 0.1720541965 | AR175: 0.04038785074 | AS175: 0.04445054497 | AU175: 0.05154830269 | AV175: 0.2053097991 | AW175: 332084.4431 | AX175: 4.016623876
H176: 53 | J176: 0.00751534617 | K176: 4.81932035e-25 | L176: 0.003324892248 | M176: 1.381856577e-85 | N176: 0.01071943929 | P176: 0 | R176: 1 | T176: 0.0100288756 | V176: 0.009999625403 | W176: 0.01057713175 | Y176: 0.03813878155 | Z176: 0.5 | AB176: 0.0100678179 | AC176: 0.003846798223 | AD176: 0.006221019678 | AE176: 0 | AF176: 0.006221019678 | AG176: 0.003846798223 | AH176: 0 | AJ176: 0.009776249982 | AL176: 0.0100288756 | AN176: 0.7937930711 | AO176: 0.2062069289 | AP176: 0.7489968546 | AQ176: 0.1676458308 | AR176: 0.04479621646 | AS176: 0.0385610981 | AU176: 0.056433116 | AV176: 0.1870019514 | AW176: 284840.7243 | AX176: 3.747911431
H177: 54 | J177: 0.00675696455 | K177: 5.901567566e-26 | L177: 0.002861787625 | M177: 1.242077584e-87 | N177: 0.01092558235 | P177: 0 | R177: 1 | T177: 0.009426147332 | V177: 0.009299327622 | W177: 0.01222613407 | Y177: 0.03682701403 | Z177: 0.5 | AB177: 0.009644927707 | AC177: 0.003323432392 | AD177: 0.006321495315 | AE177: 0 | AF177: 0.006321495315 | AG177: 0.003323432392 | AH177: 0 | AJ177: 0.009171886748 | AL177: 0.009426147332 | AN177: 0.8037064678 | AO177: 0.1962935322 | AP177: 0.7543064919 | AQ177: 0.1630420714 | AR177: 0.04939997585 | AS177: 0.03325146082 | AU177: 0.06146519635 | AV177: 0.1693966196 | AW177: 242935.36 | AX177: 3.498618974
H178: 55 | J178: 0.006038548153 | K178: 6.943480056e-27 | L178: 0.002452480652 | M178: 1.095762889e-89 | N178: 0.01113172542 | P178: 0 | R178: 1 | T178: 0.008825545733 | V178: 0.008597521437 | W178: 0.01395763592 | Y178: 0.03520653268 | Z178: 0.5 | AB178: 0.009230448844 | AC178: 0.002847939968 | AD178: 0.006382508876 | AE178: 0 | AF178: 0.006382508876 | AG178: 0.002847939968 | AH178: 0 | AJ178: 0.008571073473 | AL178: 0.008825545733 | AN178: 0.8132343688 | AO178: 0.1867656312 | AP178: 0.7590614703 | AQ178: 0.1582691488 | AR178: 0.05417289849 | AS178: 0.0284964824 | AU178: 0.06661412818 | AV178: 0.1525788349 | AW178: 205989.2275 | AX178: 3.266266731
A179: Results - Case Case 2 | H179: 56 | J179: 0.00536446601 | K179: 7.849016135e-28 | L179: 0.002093220321 | M179: 9.491077547e-92 | N179: 0.01133786848 | P179: 0 | R179: 1 | T179: 0.008230114011 | V179: 0.00789890985 | W179: 0.01573626673 | Y179: 0.03332246029 | Z179: 0.5 | AB179: 0.008824352392 | AC179: 0.002420106156 | AD179: 0.006404246236 | AE179: 0 | AF179: 0.006404246236 | AG179: 0.002420106156 | AH179: 0 | AJ179: 0.007976810716 | AL179: 0.008230114011 | AN179: 0.8223765023 | AO179: 0.1776234977 | AP179: 0.7632905584 | AQ179: 0.1533561033 | AR179: 0.05908594399 | AS179: 0.02426739439 | AU179: 0.07184780186 | AV179: 0.1366226581 | AW179: 173618.0542 | AX179: 3.048752714
A180: No of cycles run | B180: 234 | H180: 57 | J180: 0.004737900733 | K180: 8.524746476e-29 | L180: 0.00177992533 | M180: 8.074006941e-94 | N180: 0.01154401154 | P180: 0 | R180: 1 | T180: 0.00764277344 | V180: 0.007208394593 | W180: 0.01751939427 | Y180: 0.03122539334 | Z180: 0.5 | AB180: 0.008425927225 | AC180: 0.002038768125 | AD180: 0.0063871591 | AE180: 0 | AF180: 0.0063871591 | AG180: 0.002038768125 | AH180: 0 | AJ180: 0.007391972595 | AL180: 0.00764277344 | AN180: 0.8311333885 | AO180: 0.1688666115 | AP180: 0.7670255059 | AQ180: 0.1483341647 | AR180: 0.0641078826 | AS180: 0.02053244686 | AU180: 0.07713308536 | AV180: 0.1215897369 | AW180: 145437.0044 | AX180: 2.844297986
A181: Days until SS | B181: 1638 | H181: 58 | J181: 0.004160832198 | K181: 8.895614271e-30 | L181: 0.001508355578 | M181: 6.748012624e-96 | N181: 0.01175015461 | P181: 0 | R181: 1 | T181: 0.007066320954 | V181: 0.006531019539 | W181: 0.01925836751 | Y181: 0.02896915528 | Z181: 0.5 | AB181: 0.008033876872 | AC181: 0.001702020187 | AD181: 0.006331856685 | AE181: 0 | AF181: 0.006331856685 | AG181: 0.001702020187 | AH181: 0 | AJ181: 0.006819309241 | AL181: 0.007066320954 | AN181: 0.8395063245 | AO181: 0.1604936755 | AP181: 0.7703003525 | AQ181: 0.1432360753 | AR181: 0.06920597194 | AS181: 0.01725760022 | AU181: 0.08243651051 | AV181: 0.107528226 | AW181: 121065.217 | AX181: 2.651401772
A182: NCB Threshold | B182: 50 | H182: 59 | J182: 0.00363407848 | K182: 8.918640011e-31 | L182: 0.001274258598 | M182: 5.542548683e-98 | N182: 0.01195629767 | P182: 0 | R182: 1 | T182: 0.006503432626 | V182: 0.005871892128 | W182: 0.02090039127 | Y182: 0.02660852499 | Z182: 0.5 | AB182: 0.007646471577 | AC182: 0.001407410517 | AD182: 0.00623906106 | AE182: 0 | AF182: 0.00623906106 | AG182: 0.001407410517 | AH182: 0 | AJ182: 0.006261452415 | AL182: 0.006503432626 | AN182: 0.8474973714 | AO182: 0.1525026286 | AP182: 0.7731507082 | AQ182: 0.1380953841 | AR182: 0.0743466632 | AS182: 0.01440724458 | AU182: 0.08772494843 | AV182: 0.09447210653 | AW182: 100130.1455 | AX182: 2.468804526
A183: Avg. Soil Level of circulation incl. defects | B183: 31.26592348 | H183: 60 | J183: 0.00315738611 | K183: 8.591115284e-32 | L183: 0.00107348818 | M183: 4.475268828e-100 | N183: 0.01216244073 | P183: 0 | R183: 1 | T183: 0.005956666963 | V183: 0.005236078309 | W183: 0.02239099038 | Y183: 0.02419707245 | Z183: 0.5 | AB183: 0.007261746615 | AC183: 0.001152114253 | AD183: 0.006109632362 | AE183: 0 | AF183: 0.006109632362 | AG183: 0.001152114253 | AH183: 0 | AJ183: 0.005720918003 | AL183: 0.005956666963 | AN183: 0.855109343 | AO183: 0.144890657 | AP183: 0.7756130336 | AQ183: 0.1329457378 | AR183: 0.07949630944 | AS183: 0.01194491918 | AU183: 0.09296625056 | AV183: 0.08244092083 | AW183: 82271.56502 | AX183: 2.295457389
